Workbook

Sheet Portada

Sheet Indice
A4: Consejo Monetario Centroamericano
A5: Secretaría Ejecutiva
A20: Reporte Mensual de Actividad Económica
E24: FEBRERO
D25: Mes de Vigencia: | E25: MAYO
D26: Año: | E26: 2019
C29: Contenido
C32: IMAE, Variación Interanual y aceleración de la Tendencia-Ciclo
C33: Gráfico Reloj del Ciclo Económico
C34: Gráfico Dispersión Ciclo del IMAE
C35: Gráfico Dispersión del Ciclo del Producto Interno Bruto Trimestral
C36: Cuadro del IMAE por Ramas de Actividad
C37: Contribución de las Ramas de Actividad al IMAE
C38: Cuadros de Actividad Económica, IMAE y PIB
C39: Evolución del PIB real Trimestral
C40: Glosario y Nota Técnica
B44: ADVERTENCIA El Consejo Monetario Centroamericano y su Secretaría Ejecutiva autorizan la reproducción total y parcial del texto, gráficos y cifras de esta publicación, siempre que se mencione la fuente. No obstante, no asumen responsabilidad legal alguna o de cualquier otra índole, por la manipulación, interpretación personal y uso de dicha información. Derechos Reservados © 2018

Sheet Datos mensuales (hidden)
A1: ID | C1: 1 | D1: 2 | E1: 3 | F1: 4 | G1: 5 | H1: 6 | I1: 7 | J1: 8 | K1: 9 | L1: 1 | M1: 2 | N1: 3 | O1: 4 | P1: 5 | Q1: 6 | R1: 7 | S1: 8 | T1: 9 | U1: 1 | V1: 2 | W1: 3 | X1: 4 | Y1: 5 | Z1: 6 | AA1: 7 | AB1: 8 | AC1: 9 | AE1: Gráfico Dinámico | AH1: Business Cycle Tracer | AP1: Tendencia de los países | AW1: Business Cycle Tracer Países | BD1: Ciclo Normalizado Países | BK1: Variación Mensual Ciclo Países | BR1: Variación Interanual Ciclo Países
A2: Año | B2: Mes | C2: Variación Interanual | L2: Variación Media | U2: Aceleración
C3: IMAE TENDENCIA CICLO | L3: IMAE TENDENCIA CICLO | U3: IMAE TENDENCIA CICLO | AE3: =IF('Gráfico Dinámico IMAE'!$L$13="Costa Rica",LOOKUP(1,'Datos mensuales'!$C$1:$K$1,'Datos mensuales'!$C4:$K4),IF('Gráfico Dinámico IMAE'!$L$13="El Salvador",LOOKUP(2,'Datos mensuales'!$C$1:$K$1,'Datos mensuales'!$C4:$K4),IF('Gráfico Dinámico IMAE'!$L$13="Guatemala",LOOKUP(3,'Datos mensuales'!$C$1:$K1,'Datos mensuales'!$C4:$K4),IF('Gráfico Dinámico IMAE'!$L$13="Honduras",LOOKUP(4,'Datos mensuales'!$C$1:$K$1,'Datos mensuales'!$C4:$K4),IF('Gráfico Dinámico IMAE'!$L$13="Nicaragua",LOOKUP(5,'Datos mensuales'!$C$1:$K$1,'Datos mensuales'!$C4:$K4),IF('Gráfico Dinámico IMAE'!$L$13="República Dominicana",LOOKUP(6,'Datos mensuales'!$C$1:$K$1,'Datos mensuales'!$C4:$K4),IF('Gráfico Dinámico IMAE'!$L$13="Panamá",LOOKUP(7,'Datos mensuales'!$C$1:$K$1,'Datos mensuales'!$C4:$K4),IF('Gráfico Dinámico IMAE'!$L$13="Región CARD",LOOKUP(8,'Datos mensuales'!$C$1:$K$1,'Datos mensuales'!$C4:$K4),IF('Gráfico Dinámico IMAE'!$L$13="Región CAPARD",LOOKUP(9,'Datos mensuales'!$C$1:$K$1,'Datos mensuales'!$C4:$K4)))))))))) -> El Salvador | AF3: =IF('Gráfico Dinámico IMAE'!$L$13="Costa Rica",LOOKUP(1,'Datos mensuales'!$C$1:$K$1,'Datos mensuales'!$C4:$K4),IF('Gráfico Dinámico IMAE'!$L$13="El Salvador",LOOKUP(2,'Datos mensuales'!$C$1:$K$1,'Datos mensuales'!$C4:$K4),IF('Gráfico Dinámico IMAE'!$L$13="Guatemala",LOOKUP(3,'Datos mensuales'!$C$1:$K1,'Datos mensuales'!$C4:$K4),IF('Gráfico Dinámico IMAE'!$L$13="Honduras",LOOKUP(4,'Datos mensuales'!$C$1:$K$1,'Datos mensuales'!$C4:$K4),IF('Gráfico Dinámico IMAE'!$L$13="Nicaragua",LOOKUP(5,'Datos mensuales'!$C$1:$K$1,'Datos mensuales'!$C4:$K4),IF('Gráfico Dinámico IMAE'!$L$13="República Dominicana",LOOKUP(6,'Datos mensuales'!$C$1:$K$1,'Datos mensuales'!$C4:$K4),IF('Gráfico Dinámico IMAE'!$L$13="Panamá",LOOKUP(7,'Datos mensuales'!$C$1:$K$1,'Datos mensuales'!$C4:$K4),IF('Gráfico Dinámico IMAE'!$L$13="Región CARD",LOOKUP(8,'Datos mensuales'!$C$1:$K$1,'Datos mensuales'!$C4:$K4),IF('Gráfico Dinámico IMAE'!$L$13="Región CAPARD",LOOKUP(9,'Datos mensuales'!$C$1:$K$1,'Datos mensuales'!$C4:$K4)))))))))) -> El Salvador | AH3: Ciclo IMAER | AI3: Ciclo IMAER* | AJ3: Variación Ciclo IMAER* | AK3: Ciclo IPI | AL3: Ciclo IPI* | AM3: Variación Ciclo IPI* | AP3: Trend IMAE CR | AQ3: Trend IMAE SV | AR3: Trend IMAE GT | AS3: Trend IMAE HN | AT3: Trend IMAE NI | AU3: Trend IMAE DO | AV3: Trend IMAE PA | AW3: CR | AX3: SV | AY3: GT | AZ3: HN | BA3: NI | BB3: DO | BC3: PA | BD3: Ciclo Normalizado CR | BE3: Ciclo Normalizado SV | BF3: Ciclo Normalizado GT | BG3: Ciclo Normalizado HN | BH3: Ciclo Normalizado NI | BI3: Ciclo Normalizado DO | BJ3: Ciclo Normalizado PA | BK3: Variación Mensual Ciclo IMAE CR | BL3: Variación Mensual Ciclo IMAE SV | BM3: Variación Mensual Ciclo IMAE GT | BN3: Variación Mensual Ciclo IMAE HN | BO3: Variación Mensual Ciclo IMAE NI | BP3: Variación Mensual Ciclo IMAE DO | BQ3: Variación Mensual Ciclo IMAE PA | BR3: Variación Interanual Ciclo IMAE CR | BS3: Variación Interanual Ciclo IMAE SV | BT3: Variación Interanual Ciclo IMAE GT | BU3: Variación Interanual Ciclo IMAE HN | BV3: Variación Interanual Ciclo IMAE NI | BW3: Variación Interanual Ciclo IMAE DO | BX3: Variación Interanual Ciclo IMAE PA
C4: Costa Rica | D4: El Salvador | E4: Guatemala | F4: Honduras | G4: Nicaragua | H4: República Dominicana | I4: Panamá | J4: Región CARD | K4: Región CAPARD | L4: Costa Rica | M4: El Salvador | N4: Guatemala | O4: Honduras | P4: Nicaragua | Q4: República Dominicana | R4: Panamá | S4: Región CARD | T4: Región CAPARD | U4: Costa Rica | V4: El Salvador | W4: Guatemala | X4: Honduras | Y4: Nicaragua | Z4: República Dominicana | AA4: Panamá | AB4: Región CARD | AC4: Región CAPARD | AE4: Variación Interanual | AF4: Aceleración
A5: 1990 | B5: Ene | U5: - | V5: - | W5: - | X5: - | Y5: - | Z5: - | AB5: - | AC5: =IF(OR(K5="",K5="n.d.",K4="",K4="n.d."),"",K5-K4) ->  | AH5: n.d. | AI5: =IF(ISERROR(STANDARDIZE($AH5,AVERAGE($AH:$AH),STDEV($AH:$AH))),"n.d.",STANDARDIZE($AH5,AVERAGE($AH:$AH),STDEV($AH:$AH))) -> n.d. | AJ5: =IF(OR(AI5="",AI4=""),"",IF(OR(AI5="n.d.",AI4="n.d."),"n.d.",((AI5/AI4)-1))) ->  | AK5: =IF(OR('[1]REAL(M)'!$CI4="",'[1]REAL(M)'!$CI4=""),"",IF(OR('[1]REAL(M)'!$CI4="n.d.",'[1]REAL(M)'!$CI4="n.d."),"n.d.",'[1]REAL(M)'!$CI4-'[1]REAL(M)'!$CJ4)) -> 0.2486368165 | AL5: =IF(ISERROR(STANDARDIZE($AK5,AVERAGE($AK:$AK),STDEV($AK:$AK))),"n.d.",STANDARDIZE($AK5,AVERAGE($AK:$AK),STDEV($AK:$AK))) -> 0.1520254389 | AM5: =IF(OR(AL5="",AL4=""),"",IF(OR(AL5="n.d.",AL4="n.d."),"n.d.",((AL5/AL4)-1))) ->  | AW5: n.d. | AX5: n.d. | AY5: n.d. | AZ5: n.d. | BA5: n.d. | BB5: n.d. | BC5: n.d. | BD5: =IF(ISERROR(STANDARDIZE($AW5,AVERAGE($AW:$AW),STDEV('Datos mensuales'!$AH:$AH))),"n.d.",STANDARDIZE($AW5,AVERAGE('Datos mensuales'!$AH:$AH),STDEV('Datos mensuales'!$AH:$AH))) -> n.d. | BE5: =IF(ISERROR(STANDARDIZE($AX5,AVERAGE($AX:$AX),STDEV('Datos mensuales'!$AH:$AH))),"n.d.",STANDARDIZE($AX5,AVERAGE('Datos mensuales'!$AH:$AH),STDEV('Datos mensuales'!$AH:$AH))) -> n.d. | BF5: =IF(ISERROR(STANDARDIZE($AY5,AVERAGE($AY:$AY),STDEV('Datos mensuales'!$AH:$AH))),"n.d.",STANDARDIZE($AY5,AVERAGE('Datos mensuales'!$AH:$AH),STDEV('Datos mensuales'!$AH:$AH))) -> n.d. | BG5: =IF(ISERROR(STANDARDIZE($AZ5,AVERAGE($AZ:$AZ),STDEV('Datos mensuales'!$AH:$AH))),"n.d.",STANDARDIZE($AZ5,AVERAGE('Datos mensuales'!$AH:$AH),STDEV('Datos mensuales'!$AH:$AH))) -> n.d. | BH5: =IF(ISERROR(STANDARDIZE($BA5,AVERAGE($BA:$BA),STDEV('Datos mensuales'!$AH:$AH))),"n.d.",STANDARDIZE($BA5,AVERAGE('Datos mensuales'!$AH:$AH),STDEV('Datos mensuales'!$AH:$AH))) -> n.d. | BI5: =IF(ISERROR(STANDARDIZE($BB5,AVERAGE($BB:$BB),STDEV('Datos mensuales'!$AH:$AH))),"n.d.",STANDARDIZE($BB5,AVERAGE('Datos mensuales'!$AH:$AH),STDEV('Datos mensuales'!$AH:$AH))) -> n.d. | BJ5: =IF(ISERROR(STANDARDIZE($BC5,AVERAGE($BC:$BC),STDEV('Datos mensuales'!$AH:$AH))),"n.d.",STANDARDIZE($BC5,AVERAGE('Datos mensuales'!$AH:$AH),STDEV('Datos mensuales'!$AH:$AH))) -> n.d.
B6: Feb | U6: =IF(OR(C6="",C6="n.d.",C5="",C5="n.d."),"",C6-C5) ->  | AB6: =IF(OR(I6="",I6="n.d.",I5="",I5="n.d."),"",I6-I5) ->  | AH6: n.d. | AI6: n.d. | AJ6: n.d. | AK6: =IF(OR('[1]REAL(M)'!$CI5="",'[1]REAL(M)'!$CI5=""),"",IF(OR('[1]REAL(M)'!$CI5="n.d.",'[1]REAL(M)'!$CI5="n.d."),"n.d.",'[1]REAL(M)'!$CI5-'[1]REAL(M)'!$CJ5)) -> 0.6377756921 | AL6: 0.3923771034 | AM6: =IF(OR(AL6="",AL5=""),"",IF(OR(AL6="n.d.",AL5="n.d."),"n.d.",AL6-AL5)) -> 0.2403516645 | AW6: n.d. | AX6: n.d. | AY6: n.d. | AZ6: n.d. | BA6: n.d. | BB6: n.d. | BC6: n.d. | BD6: =IF(ISERROR(STANDARDIZE($AW6,AVERAGE($AW:$AW),STDEV('Datos mensuales'!$AH:$AH))),"n.d.",STANDARDIZE($AW6,AVERAGE('Datos mensuales'!$AH:$AH),STDEV('Datos mensuales'!$AH:$AH))) -> n.d. | BE6: =IF(ISERROR(STANDARDIZE($AX6,AVERAGE($AX:$AX),STDEV('Datos mensuales'!$AH:$AH))),"n.d.",STANDARDIZE($AX6,AVERAGE('Datos mensuales'!$AH:$AH),STDEV('Datos mensuales'!$AH:$AH))) -> n.d. | BF6: =IF(ISERROR(STANDARDIZE($AY6,AVERAGE($AY:$AY),STDEV('Datos mensuales'!$AH:$AH))),"n.d.",STANDARDIZE($AY6,AVERAGE('Datos mensuales'!$AH:$AH),STDEV('Datos mensuales'!$AH:$AH))) -> n.d. | BG6: =IF(ISERROR(STANDARDIZE($AZ6,AVERAGE($AZ:$AZ),STDEV('Datos mensuales'!$AH:$AH))),"n.d.",STANDARDIZE($AZ6,AVERAGE('Datos mensuales'!$AH:$AH),STDEV('Datos mensuales'!$AH:$AH))) -> n.d. | BH6: =IF(ISERROR(STANDARDIZE($BA6,AVERAGE($BA:$BA),STDEV('Datos mensuales'!$AH:$AH))),"n.d.",STANDARDIZE($BA6,AVERAGE('Datos mensuales'!$AH:$AH),STDEV('Datos mensuales'!$AH:$AH))) -> n.d. | BI6: =IF(ISERROR(STANDARDIZE($BB6,AVERAGE($BB:$BB),STDEV('Datos mensuales'!$AH:$AH))),"n.d.",STANDARDIZE($BB6,AVERAGE('Datos mensuales'!$AH:$AH),STDEV('Datos mensuales'!$AH:$AH))) -> n.d. | BJ6: =IF(ISERROR(STANDARDIZE($BC6,AVERAGE($BC:$BC),STDEV('Datos mensuales'!$AH:$AH))),"n.d.",STANDARDIZE($BC6,AVERAGE('Datos mensuales'!$AH:$AH),STDEV('Datos mensuales'!$AH:$AH))) -> n.d. | BK6: =IF(OR(BD6="",BD5=""),"",IF(OR(BD6="n.d.",BD5="n.d."),"n.d.",IF(OR(AND(BD6>0,BD5>0),AND(BD6<0,BD5>0)),BD6/BD5 -1,IF(OR(AND(BD6>0,BD5<0),AND(BD6<0,BD5<0)),-(BD6/BD5 -1),"n.a.")))) -> n.d. | BL6: n.d. | BM6: n.d. | BN6: n.d. | BO6: n.d. | BP6: n.d. | BQ6: n.d. | BR6: =IF(OR(BK6="",BK5=""),"",IF(OR(BK6="n.d.",BK5="n.d."),"n.d.",((BK6/BK5)-1))) -> 
B7: Mar | U7: =IF(OR(C7="",C7="n.d.",C6="",C6="n.d."),"",C7-C6) ->  | V7: =IF(OR(D7="",D7="n.d.",D6="",D6="n.d."),"",D7-D6) ->  | W7: =IF(OR(E7="",E7="n.d.",E6="",E6="n.d."),"",E7-E6) ->  | X7: =IF(OR(F7="",F7="n.d.",F6="",F6="n.d."),"",F7-F6) ->  | Y7: =IF(OR(G7="",G7="n.d.",G6="",G6="n.d."),"",G7-G6) ->  | Z7: =IF(OR(H7="",H7="n.d.",H6="",H6="n.d."),"",H7-H6) ->  | AB7: =IF(OR(I7="",I7="n.d.",I6="",I6="n.d."),"",I7-I6) ->  | AH7: n.d. | AI7: n.d. | AJ7: n.d. | AK7: =IF(OR('[1]REAL(M)'!$CI6="",'[1]REAL(M)'!$CI6=""),"",IF(OR('[1]REAL(M)'!$CI6="n.d.",'[1]REAL(M)'!$CI6="n.d."),"n.d.",'[1]REAL(M)'!$CI6-'[1]REAL(M)'!$CJ6)) -> 0.8713389168 | AL7: 0.536637452 | AM7: 0.1442603486 | AW7: n.d. | AX7: n.d. | AY7: n.d. | AZ7: n.d. | BA7: n.d. | BB7: n.d. | BC7: n.d. | BD7: =IF(ISERROR(STANDARDIZE($AW7,AVERAGE($AW:$AW),STDEV('Datos mensuales'!$AH:$AH))),"n.d.",STANDARDIZE($AW7,AVERAGE('Datos mensuales'!$AH:$AH),STDEV('Datos mensuales'!$AH:$AH))) -> n.d. | BE7: =IF(ISERROR(STANDARDIZE($AX7,AVERAGE($AX:$AX),STDEV('Datos mensuales'!$AH:$AH))),"n.d.",STANDARDIZE($AX7,AVERAGE('Datos mensuales'!$AH:$AH),STDEV('Datos mensuales'!$AH:$AH))) -> n.d. | BF7: =IF(ISERROR(STANDARDIZE($AY7,AVERAGE($AY:$AY),STDEV('Datos mensuales'!$AH:$AH))),"n.d.",STANDARDIZE($AY7,AVERAGE('Datos mensuales'!$AH:$AH),STDEV('Datos mensuales'!$AH:$AH))) -> n.d. | BG7: =IF(ISERROR(STANDARDIZE($AZ7,AVERAGE($AZ:$AZ),STDEV('Datos mensuales'!$AH:$AH))),"n.d.",STANDARDIZE($AZ7,AVERAGE('Datos mensuales'!$AH:$AH),STDEV('Datos mensuales'!$AH:$AH))) -> n.d. | BH7: =IF(ISERROR(STANDARDIZE($BA7,AVERAGE($BA:$BA),STDEV('Datos mensuales'!$AH:$AH))),"n.d.",STANDARDIZE($BA7,AVERAGE('Datos mensuales'!$AH:$AH),STDEV('Datos mensuales'!$AH:$AH))) -> n.d. | BI7: =IF(ISERROR(STANDARDIZE($BB7,AVERAGE($BB:$BB),STDEV('Datos mensuales'!$AH:$AH))),"n.d.",STANDARDIZE($BB7,AVERAGE('Datos mensuales'!$AH:$AH),STDEV('Datos mensuales'!$AH:$AH))) -> n.d. | BJ7: =IF(ISERROR(STANDARDIZE($BC7,AVERAGE($BC:$BC),STDEV('Datos mensuales'!$AH:$AH))),"n.d.",STANDARDIZE($BC7,AVERAGE('Datos mensuales'!$AH:$AH),STDEV('Datos mensuales'!$AH:$AH))) -> n.d. | BK7: =IF(OR(BD7="",BD6=""),"",IF(OR(BD7="n.d.",BD6="n.d."),"n.d.",BD7-BD6)) -> n.d. | BL7: =IF(OR(BE7="",BE6=""),"",IF(OR(BE7="n.d.",BE6="n.d."),"n.d.",BE7-BE6)) -> n.d. | BM7: =IF(OR(BF7="",BF6=""),"",IF(OR(BF7="n.d.",BF6="n.d."),"n.d.",BF7-BF6)) -> n.d. | BN7: =IF(OR(BG7="",BG6=""),"",IF(OR(BG7="n.d.",BG6="n.d."),"n.d.",BG7-BG6)) -> n.d. | BO7: =IF(OR(BH7="",BH6=""),"",IF(OR(BH7="n.d.",BH6="n.d."),"n.d.",BH7-BH6)) -> n.d. | BP7: =IF(OR(BI7="",BI6=""),"",IF(OR(BI7="n.d.",BI6="n.d."),"n.d.",BI7-BI6)) -> n.d. | BQ7: =IF(OR(BJ7="",BJ6=""),"",IF(OR(BJ7="n.d.",BJ6="n.d."),"n.d.",BJ7-BJ6)) -> n.d.
B8: Abr | AB8: =IF(OR(I8="",I8="n.d.",I7="",I7="n.d."),"",I8-I7) ->  | AH8: n.d. | AI8: n.d. | AJ8: n.d. | AK8: =IF(OR('[1]REAL(M)'!$CI7="",'[1]REAL(M)'!$CI7=""),"",IF(OR('[1]REAL(M)'!$CI7="n.d.",'[1]REAL(M)'!$CI7="n.d."),"n.d.",'[1]REAL(M)'!$CI7-'[1]REAL(M)'!$CJ7)) -> 0.9014935161 | AL8: 0.5552624432 | AM8: 0.01862499118 | AW8: n.d. | AX8: n.d. | AY8: n.d. | AZ8: n.d. | BA8: n.d. | BB8: n.d. | BC8: n.d. | BD8: =IF(ISERROR(STANDARDIZE($AW8,AVERAGE($AW:$AW),STDEV('Datos mensuales'!$AH:$AH))),"n.d.",STANDARDIZE($AW8,AVERAGE('Datos mensuales'!$AH:$AH),STDEV('Datos mensuales'!$AH:$AH))) -> n.d. | BE8: =IF(ISERROR(STANDARDIZE($AX8,AVERAGE($AX:$AX),STDEV('Datos mensuales'!$AH:$AH))),"n.d.",STANDARDIZE($AX8,AVERAGE('Datos mensuales'!$AH:$AH),STDEV('Datos mensuales'!$AH:$AH))) -> n.d. | BF8: =IF(ISERROR(STANDARDIZE($AY8,AVERAGE($AY:$AY),STDEV('Datos mensuales'!$AH:$AH))),"n.d.",STANDARDIZE($AY8,AVERAGE('Datos mensuales'!$AH:$AH),STDEV('Datos mensuales'!$AH:$AH))) -> n.d. | BG8: =IF(ISERROR(STANDARDIZE($AZ8,AVERAGE($AZ:$AZ),STDEV('Datos mensuales'!$AH:$AH))),"n.d.",STANDARDIZE($AZ8,AVERAGE('Datos mensuales'!$AH:$AH),STDEV('Datos mensuales'!$AH:$AH))) -> n.d. | BH8: =IF(ISERROR(STANDARDIZE($BA8,AVERAGE($BA:$BA),STDEV('Datos mensuales'!$AH:$AH))),"n.d.",STANDARDIZE($BA8,AVERAGE('Datos mensuales'!$AH:$AH),STDEV('Datos mensuales'!$AH:$AH))) -> n.d. | BI8: =IF(ISERROR(STANDARDIZE($BB8,AVERAGE($BB:$BB),STDEV('Datos mensuales'!$AH:$AH))),"n.d.",STANDARDIZE($BB8,AVERAGE('Datos mensuales'!$AH:$AH),STDEV('Datos mensuales'!$AH:$AH))) -> n.d. | BJ8: =IF(ISERROR(STANDARDIZE($BC8,AVERAGE($BC:$BC),STDEV('Datos mensuales'!$AH:$AH))),"n.d.",STANDARDIZE($BC8,AVERAGE('Datos mensuales'!$AH:$AH),STDEV('Datos mensuales'!$AH:$AH))) -> n.d. | BK8: n.d. | BL8: n.d. | BM8: n.d. | BN8: n.d. | BO8: n.d. | BP8: n.d. | BQ8: n.d.
B9: May | AB9: =IF(OR(I9="",I9="n.d.",I8="",I8="n.d."),"",I9-I8) ->  | AH9: n.d. | AI9: n.d. | AJ9: n.d. | AK9: =IF(OR('[1]REAL(M)'!$CI8="",'[1]REAL(M)'!$CI8=""),"",IF(OR('[1]REAL(M)'!$CI8="n.d.",'[1]REAL(M)'!$CI8="n.d."),"n.d.",'[1]REAL(M)'!$CI8-'[1]REAL(M)'!$CJ8)) -> 1.012077031 | AL9: 0.6235643622 | AM9: 0.06830191898 | AW9: n.d. | AX9: n.d. | AY9: n.d. | AZ9: n.d. | BA9: n.d. | BB9: n.d. | BC9: n.d. | BD9: =IF(ISERROR(STANDARDIZE($AW9,AVERAGE($AW:$AW),STDEV('Datos mensuales'!$AH:$AH))),"n.d.",STANDARDIZE($AW9,AVERAGE('Datos mensuales'!$AH:$AH),STDEV('Datos mensuales'!$AH:$AH))) -> n.d. | BE9: =IF(ISERROR(STANDARDIZE($AX9,AVERAGE($AX:$AX),STDEV('Datos mensuales'!$AH:$AH))),"n.d.",STANDARDIZE($AX9,AVERAGE('Datos mensuales'!$AH:$AH),STDEV('Datos mensuales'!$AH:$AH))) -> n.d. | BF9: =IF(ISERROR(STANDARDIZE($AY9,AVERAGE($AY:$AY),STDEV('Datos mensuales'!$AH:$AH))),"n.d.",STANDARDIZE($AY9,AVERAGE('Datos mensuales'!$AH:$AH),STDEV('Datos mensuales'!$AH:$AH))) -> n.d. | BG9: =IF(ISERROR(STANDARDIZE($AZ9,AVERAGE($AZ:$AZ),STDEV('Datos mensuales'!$AH:$AH))),"n.d.",STANDARDIZE($AZ9,AVERAGE('Datos mensuales'!$AH:$AH),STDEV('Datos mensuales'!$AH:$AH))) -> n.d. | BH9: =IF(ISERROR(STANDARDIZE($BA9,AVERAGE($BA:$BA),STDEV('Datos mensuales'!$AH:$AH))),"n.d.",STANDARDIZE($BA9,AVERAGE('Datos mensuales'!$AH:$AH),STDEV('Datos mensuales'!$AH:$AH))) -> n.d. | BI9: =IF(ISERROR(STANDARDIZE($BB9,AVERAGE($BB:$BB),STDEV('Datos mensuales'!$AH:$AH))),"n.d.",STANDARDIZE($BB9,AVERAGE('Datos mensuales'!$AH:$AH),STDEV('Datos mensuales'!$AH:$AH))) -> n.d. | BJ9: =IF(ISERROR(STANDARDIZE($BC9,AVERAGE($BC:$BC),STDEV('Datos mensuales'!$AH:$AH))),"n.d.",STANDARDIZE($BC9,AVERAGE('Datos mensuales'!$AH:$AH),STDEV('Datos mensuales'!$AH:$AH))) -> n.d. | BK9: n.d. | BL9: n.d. | BM9: n.d. | BN9: n.d. | BO9: n.d. | BP9: n.d. | BQ9: n.d.
B10: Jun | AA10: =IF(OR(I10="",I10="n.d.",I9="",I9="n.d."),"",I10-I9) ->  | AB10: =IF(OR(J10="",J10="n.d.",J9="",J9="n.d."),"",J10-J9) ->  | AH10: n.d. | AI10: n.d. | AJ10: n.d. | AK10: =IF(OR('[1]REAL(M)'!$CI9="",'[1]REAL(M)'!$CI9=""),"",IF(OR('[1]REAL(M)'!$CI9="n.d.",'[1]REAL(M)'!$CI9="n.d."),"n.d.",'[1]REAL(M)'!$CI9-'[1]REAL(M)'!$CJ9)) -> 1.131440654 | AL10: 0.6972893153 | AM10: 0.07372495312 | AW10: n.d. | AX10: n.d. | AY10: n.d. | AZ10: n.d. | BA10: n.d. | BB10: n.d. | BC10: n.d. | BD10: =IF(ISERROR(STANDARDIZE($AW10,AVERAGE($AW:$AW),STDEV('Datos mensuales'!$AH:$AH))),"n.d.",STANDARDIZE($AW10,AVERAGE('Datos mensuales'!$AH:$AH),STDEV('Datos mensuales'!$AH:$AH))) -> n.d. | BE10: =IF(ISERROR(STANDARDIZE($AX10,AVERAGE($AX:$AX),STDEV('Datos mensuales'!$AH:$AH))),"n.d.",STANDARDIZE($AX10,AVERAGE('Datos mensuales'!$AH:$AH),STDEV('Datos mensuales'!$AH:$AH))) -> n.d. | BF10: =IF(ISERROR(STANDARDIZE($AY10,AVERAGE($AY:$AY),STDEV('Datos mensuales'!$AH:$AH))),"n.d.",STANDARDIZE($AY10,AVERAGE('Datos mensuales'!$AH:$AH),STDEV('Datos mensuales'!$AH:$AH))) -> n.d. | BG10: =IF(ISERROR(STANDARDIZE($AZ10,AVERAGE($AZ:$AZ),STDEV('Datos mensuales'!$AH:$AH))),"n.d.",STANDARDIZE($AZ10,AVERAGE('Datos mensuales'!$AH:$AH),STDEV('Datos mensuales'!$AH:$AH))) -> n.d. | BH10: =IF(ISERROR(STANDARDIZE($BA10,AVERAGE($BA:$BA),STDEV('Datos mensuales'!$AH:$AH))),"n.d.",STANDARDIZE($BA10,AVERAGE('Datos mensuales'!$AH:$AH),STDEV('Datos mensuales'!$AH:$AH))) -> n.d. | BI10: =IF(ISERROR(STANDARDIZE($BB10,AVERAGE($BB:$BB),STDEV('Datos mensuales'!$AH:$AH))),"n.d.",STANDARDIZE($BB10,AVERAGE('Datos mensuales'!$AH:$AH),STDEV('Datos mensuales'!$AH:$AH))) -> n.d. | BJ10: =IF(ISERROR(STANDARDIZE($BC10,AVERAGE($BC:$BC),STDEV('Datos mensuales'!$AH:$AH))),"n.d.",STANDARDIZE($BC10,AVERAGE('Datos mensuales'!$AH:$AH),STDEV('Datos mensuales'!$AH:$AH))) -> n.d. | BK10: n.d. | BL10: n.d. | BM10: n.d. | BN10: n.d. | BO10: n.d. | BP10: n.d. | BQ10: n.d.
B11: Jul | AH11: n.d. | AI11: n.d. | AJ11: n.d. | AK11: =IF(OR('[1]REAL(M)'!$CI10="",'[1]REAL(M)'!$CI10=""),"",IF(OR('[1]REAL(M)'!$CI10="n.d.",'[1]REAL(M)'!$CI10="n.d."),"n.d.",'[1]REAL(M)'!$CI10-'[1]REAL(M)'!$CJ10)) -> 1.161286817 | AL11: 0.715723801 | AM11: 0.01843448575 | AW11: n.d. | AX11: n.d. | AY11: n.d. | AZ11: n.d. | BA11: n.d. | BB11: n.d. | BC11: n.d. | BD11: =IF(ISERROR(STANDARDIZE($AW11,AVERAGE($AW:$AW),STDEV('Datos mensuales'!$AH:$AH))),"n.d.",STANDARDIZE($AW11,AVERAGE('Datos mensuales'!$AH:$AH),STDEV('Datos mensuales'!$AH:$AH))) -> n.d. | BE11: =IF(ISERROR(STANDARDIZE($AX11,AVERAGE($AX:$AX),STDEV('Datos mensuales'!$AH:$AH))),"n.d.",STANDARDIZE($AX11,AVERAGE('Datos mensuales'!$AH:$AH),STDEV('Datos mensuales'!$AH:$AH))) -> n.d. | BF11: =IF(ISERROR(STANDARDIZE($AY11,AVERAGE($AY:$AY),STDEV('Datos mensuales'!$AH:$AH))),"n.d.",STANDARDIZE($AY11,AVERAGE('Datos mensuales'!$AH:$AH),STDEV('Datos mensuales'!$AH:$AH))) -> n.d. | BG11: =IF(ISERROR(STANDARDIZE($AZ11,AVERAGE($AZ:$AZ),STDEV('Datos mensuales'!$AH:$AH))),"n.d.",STANDARDIZE($AZ11,AVERAGE('Datos mensuales'!$AH:$AH),STDEV('Datos mensuales'!$AH:$AH))) -> n.d. | BH11: =IF(ISERROR(STANDARDIZE($BA11,AVERAGE($BA:$BA),STDEV('Datos mensuales'!$AH:$AH))),"n.d.",STANDARDIZE($BA11,AVERAGE('Datos mensuales'!$AH:$AH),STDEV('Datos mensuales'!$AH:$AH))) -> n.d. | BI11: =IF(ISERROR(STANDARDIZE($BB11,AVERAGE($BB:$BB),STDEV('Datos mensuales'!$AH:$AH))),"n.d.",STANDARDIZE($BB11,AVERAGE('Datos mensuales'!$AH:$AH),STDEV('Datos mensuales'!$AH:$AH))) -> n.d. | BJ11: =IF(ISERROR(STANDARDIZE($BC11,AVERAGE($BC:$BC),STDEV('Datos mensuales'!$AH:$AH))),"n.d.",STANDARDIZE($BC11,AVERAGE('Datos mensuales'!$AH:$AH),STDEV('Datos mensuales'!$AH:$AH))) -> n.d. | BK11: n.d. | BL11: n.d. | BM11: n.d. | BN11: n.d. | BO11: n.d. | BP11: n.d. | BQ11: n.d.
B12: Ago | AH12: n.d. | AI12: n.d. | AJ12: n.d. | AK12: =IF(OR('[1]REAL(M)'!$CI11="",'[1]REAL(M)'!$CI11=""),"",IF(OR('[1]REAL(M)'!$CI11="n.d.",'[1]REAL(M)'!$CI11="n.d."),"n.d.",'[1]REAL(M)'!$CI11-'[1]REAL(M)'!$CJ11)) -> 1.221374722 | AL12: 0.7528371012 | AM12: 0.03711330021 | AW12: n.d. | AX12: n.d. | AY12: n.d. | AZ12: n.d. | BA12: n.d. | BB12: n.d. | BC12: n.d. | BD12: =IF(ISERROR(STANDARDIZE($AW12,AVERAGE($AW:$AW),STDEV('Datos mensuales'!$AH:$AH))),"n.d.",STANDARDIZE($AW12,AVERAGE('Datos mensuales'!$AH:$AH),STDEV('Datos mensuales'!$AH:$AH))) -> n.d. | BE12: =IF(ISERROR(STANDARDIZE($AX12,AVERAGE($AX:$AX),STDEV('Datos mensuales'!$AH:$AH))),"n.d.",STANDARDIZE($AX12,AVERAGE('Datos mensuales'!$AH:$AH),STDEV('Datos mensuales'!$AH:$AH))) -> n.d. | BF12: =IF(ISERROR(STANDARDIZE($AY12,AVERAGE($AY:$AY),STDEV('Datos mensuales'!$AH:$AH))),"n.d.",STANDARDIZE($AY12,AVERAGE('Datos mensuales'!$AH:$AH),STDEV('Datos mensuales'!$AH:$AH))) -> n.d. | BG12: =IF(ISERROR(STANDARDIZE($AZ12,AVERAGE($AZ:$AZ),STDEV('Datos mensuales'!$AH:$AH))),"n.d.",STANDARDIZE($AZ12,AVERAGE('Datos mensuales'!$AH:$AH),STDEV('Datos mensuales'!$AH:$AH))) -> n.d. | BH12: =IF(ISERROR(STANDARDIZE($BA12,AVERAGE($BA:$BA),STDEV('Datos mensuales'!$AH:$AH))),"n.d.",STANDARDIZE($BA12,AVERAGE('Datos mensuales'!$AH:$AH),STDEV('Datos mensuales'!$AH:$AH))) -> n.d. | BI12: =IF(ISERROR(STANDARDIZE($BB12,AVERAGE($BB:$BB),STDEV('Datos mensuales'!$AH:$AH))),"n.d.",STANDARDIZE($BB12,AVERAGE('Datos mensuales'!$AH:$AH),STDEV('Datos mensuales'!$AH:$AH))) -> n.d. | BJ12: =IF(ISERROR(STANDARDIZE($BC12,AVERAGE($BC:$BC),STDEV('Datos mensuales'!$AH:$AH))),"n.d.",STANDARDIZE($BC12,AVERAGE('Datos mensuales'!$AH:$AH),STDEV('Datos mensuales'!$AH:$AH))) -> n.d. | BK12: n.d. | BL12: n.d. | BM12: n.d. | BN12: n.d. | BO12: n.d. | BP12: n.d. | BQ12: n.d.
B13: Sep | AH13: n.d. | AI13: n.d. | AJ13: n.d. | AK13: =IF(OR('[1]REAL(M)'!$CI12="",'[1]REAL(M)'!$CI12=""),"",IF(OR('[1]REAL(M)'!$CI12="n.d.",'[1]REAL(M)'!$CI12="n.d."),"n.d.",'[1]REAL(M)'!$CI12-'[1]REAL(M)'!$CJ12)) -> 1.174808854 | AL13: 0.7240756884 | AM13: -0.02876141279 | AW13: n.d. | AX13: n.d. | AY13: n.d. | AZ13: n.d. | BA13: n.d. | BB13: n.d. | BC13: n.d. | BD13: =IF(ISERROR(STANDARDIZE($AW13,AVERAGE($AW:$AW),STDEV('Datos mensuales'!$AH:$AH))),"n.d.",STANDARDIZE($AW13,AVERAGE('Datos mensuales'!$AH:$AH),STDEV('Datos mensuales'!$AH:$AH))) -> n.d. | BE13: =IF(ISERROR(STANDARDIZE($AX13,AVERAGE($AX:$AX),STDEV('Datos mensuales'!$AH:$AH))),"n.d.",STANDARDIZE($AX13,AVERAGE('Datos mensuales'!$AH:$AH),STDEV('Datos mensuales'!$AH:$AH))) -> n.d. | BF13: =IF(ISERROR(STANDARDIZE($AY13,AVERAGE($AY:$AY),STDEV('Datos mensuales'!$AH:$AH))),"n.d.",STANDARDIZE($AY13,AVERAGE('Datos mensuales'!$AH:$AH),STDEV('Datos mensuales'!$AH:$AH))) -> n.d. | BG13: =IF(ISERROR(STANDARDIZE($AZ13,AVERAGE($AZ:$AZ),STDEV('Datos mensuales'!$AH:$AH))),"n.d.",STANDARDIZE($AZ13,AVERAGE('Datos mensuales'!$AH:$AH),STDEV('Datos mensuales'!$AH:$AH))) -> n.d. | BH13: =IF(ISERROR(STANDARDIZE($BA13,AVERAGE($BA:$BA),STDEV('Datos mensuales'!$AH:$AH))),"n.d.",STANDARDIZE($BA13,AVERAGE('Datos mensuales'!$AH:$AH),STDEV('Datos mensuales'!$AH:$AH))) -> n.d. | BI13: =IF(ISERROR(STANDARDIZE($BB13,AVERAGE($BB:$BB),STDEV('Datos mensuales'!$AH:$AH))),"n.d.",STANDARDIZE($BB13,AVERAGE('Datos mensuales'!$AH:$AH),STDEV('Datos mensuales'!$AH:$AH))) -> n.d. | BJ13: =IF(ISERROR(STANDARDIZE($BC13,AVERAGE($BC:$BC),STDEV('Datos mensuales'!$AH:$AH))),"n.d.",STANDARDIZE($BC13,AVERAGE('Datos mensuales'!$AH:$AH),STDEV('Datos mensuales'!$AH:$AH))) -> n.d. | BK13: n.d. | BL13: n.d. | BM13: n.d. | BN13: n.d. | BO13: n.d. | BP13: n.d. | BQ13: n.d.
B14: Oct | AH14: n.d. | AI14: n.d. | AJ14: n.d. | AK14: =IF(OR('[1]REAL(M)'!$CI13="",'[1]REAL(M)'!$CI13=""),"",IF(OR('[1]REAL(M)'!$CI13="n.d.",'[1]REAL(M)'!$CI13="n.d."),"n.d.",'[1]REAL(M)'!$CI13-'[1]REAL(M)'!$CJ13)) -> 0.7781383892 | AL14: 0.479072137 | AM14: -0.2450035514 | AW14: n.d. | AX14: n.d. | AY14: n.d. | AZ14: n.d. | BA14: n.d. | BB14: n.d. | BC14: n.d. | BD14: =IF(ISERROR(STANDARDIZE($AW14,AVERAGE($AW:$AW),STDEV('Datos mensuales'!$AH:$AH))),"n.d.",STANDARDIZE($AW14,AVERAGE('Datos mensuales'!$AH:$AH),STDEV('Datos mensuales'!$AH:$AH))) -> n.d. | BE14: =IF(ISERROR(STANDARDIZE($AX14,AVERAGE($AX:$AX),STDEV('Datos mensuales'!$AH:$AH))),"n.d.",STANDARDIZE($AX14,AVERAGE('Datos mensuales'!$AH:$AH),STDEV('Datos mensuales'!$AH:$AH))) -> n.d. | BF14: =IF(ISERROR(STANDARDIZE($AY14,AVERAGE($AY:$AY),STDEV('Datos mensuales'!$AH:$AH))),"n.d.",STANDARDIZE($AY14,AVERAGE('Datos mensuales'!$AH:$AH),STDEV('Datos mensuales'!$AH:$AH))) -> n.d. | BG14: =IF(ISERROR(STANDARDIZE($AZ14,AVERAGE($AZ:$AZ),STDEV('Datos mensuales'!$AH:$AH))),"n.d.",STANDARDIZE($AZ14,AVERAGE('Datos mensuales'!$AH:$AH),STDEV('Datos mensuales'!$AH:$AH))) -> n.d. | BH14: =IF(ISERROR(STANDARDIZE($BA14,AVERAGE($BA:$BA),STDEV('Datos mensuales'!$AH:$AH))),"n.d.",STANDARDIZE($BA14,AVERAGE('Datos mensuales'!$AH:$AH),STDEV('Datos mensuales'!$AH:$AH))) -> n.d. | BI14: =IF(ISERROR(STANDARDIZE($BB14,AVERAGE($BB:$BB),STDEV('Datos mensuales'!$AH:$AH))),"n.d.",STANDARDIZE($BB14,AVERAGE('Datos mensuales'!$AH:$AH),STDEV('Datos mensuales'!$AH:$AH))) -> n.d. | BJ14: =IF(ISERROR(STANDARDIZE($BC14,AVERAGE($BC:$BC),STDEV('Datos mensuales'!$AH:$AH))),"n.d.",STANDARDIZE($BC14,AVERAGE('Datos mensuales'!$AH:$AH),STDEV('Datos mensuales'!$AH:$AH))) -> n.d. | BK14: n.d. | BL14: n.d. | BM14: n.d. | BN14: n.d. | BO14: n.d. | BP14: n.d. | BQ14: n.d.
B15: Nov | AH15: n.d. | AI15: n.d. | AJ15: n.d. | AK15: =IF(OR('[1]REAL(M)'!$CI14="",'[1]REAL(M)'!$CI14=""),"",IF(OR('[1]REAL(M)'!$CI14="n.d.",'[1]REAL(M)'!$CI14="n.d."),"n.d.",'[1]REAL(M)'!$CI14-'[1]REAL(M)'!$CJ14)) -> 0.1143846353 | AL15: 0.06910456612 | AM15: -0.4099675709 | AW15: n.d. | AX15: n.d. | AY15: n.d. | AZ15: n.d. | BA15: n.d. | BB15: n.d. | BC15: n.d. | BD15: =IF(ISERROR(STANDARDIZE($AW15,AVERAGE($AW:$AW),STDEV('Datos mensuales'!$AH:$AH))),"n.d.",STANDARDIZE($AW15,AVERAGE('Datos mensuales'!$AH:$AH),STDEV('Datos mensuales'!$AH:$AH))) -> n.d. | BE15: =IF(ISERROR(STANDARDIZE($AX15,AVERAGE($AX:$AX),STDEV('Datos mensuales'!$AH:$AH))),"n.d.",STANDARDIZE($AX15,AVERAGE('Datos mensuales'!$AH:$AH),STDEV('Datos mensuales'!$AH:$AH))) -> n.d. | BF15: =IF(ISERROR(STANDARDIZE($AY15,AVERAGE($AY:$AY),STDEV('Datos mensuales'!$AH:$AH))),"n.d.",STANDARDIZE($AY15,AVERAGE('Datos mensuales'!$AH:$AH),STDEV('Datos mensuales'!$AH:$AH))) -> n.d. | BG15: =IF(ISERROR(STANDARDIZE($AZ15,AVERAGE($AZ:$AZ),STDEV('Datos mensuales'!$AH:$AH))),"n.d.",STANDARDIZE($AZ15,AVERAGE('Datos mensuales'!$AH:$AH),STDEV('Datos mensuales'!$AH:$AH))) -> n.d. | BH15: =IF(ISERROR(STANDARDIZE($BA15,AVERAGE($BA:$BA),STDEV('Datos mensuales'!$AH:$AH))),"n.d.",STANDARDIZE($BA15,AVERAGE('Datos mensuales'!$AH:$AH),STDEV('Datos mensuales'!$AH:$AH))) -> n.d. | BI15: =IF(ISERROR(STANDARDIZE($BB15,AVERAGE($BB:$BB),STDEV('Datos mensuales'!$AH:$AH))),"n.d.",STANDARDIZE($BB15,AVERAGE('Datos mensuales'!$AH:$AH),STDEV('Datos mensuales'!$AH:$AH))) -> n.d. | BJ15: =IF(ISERROR(STANDARDIZE($BC15,AVERAGE($BC:$BC),STDEV('Datos mensuales'!$AH:$AH))),"n.d.",STANDARDIZE($BC15,AVERAGE('Datos mensuales'!$AH:$AH),STDEV('Datos mensuales'!$AH:$AH))) -> n.d. | BK15: n.d. | BL15: n.d. | BM15: n.d. | BN15: n.d. | BO15: n.d. | BP15: n.d. | BQ15: n.d.
B16: Dic | AH16: n.d. | AI16: n.d. | AJ16: n.d. | AK16: =IF(OR('[1]REAL(M)'!$CI15="",'[1]REAL(M)'!$CI15=""),"",IF(OR('[1]REAL(M)'!$CI15="n.d.",'[1]REAL(M)'!$CI15="n.d."),"n.d.",'[1]REAL(M)'!$CI15-'[1]REAL(M)'!$CJ15)) -> -0.425890691 | AL16: -0.264596542 | AM16: -0.3337011081 | AW16: n.d. | AX16: n.d. | AY16: n.d. | AZ16: n.d. | BA16: n.d. | BB16: n.d. | BC16: n.d. | BD16: =IF(ISERROR(STANDARDIZE($AW16,AVERAGE($AW:$AW),STDEV('Datos mensuales'!$AH:$AH))),"n.d.",STANDARDIZE($AW16,AVERAGE('Datos mensuales'!$AH:$AH),STDEV('Datos mensuales'!$AH:$AH))) -> n.d. | BE16: =IF(ISERROR(STANDARDIZE($AX16,AVERAGE($AX:$AX),STDEV('Datos mensuales'!$AH:$AH))),"n.d.",STANDARDIZE($AX16,AVERAGE('Datos mensuales'!$AH:$AH),STDEV('Datos mensuales'!$AH:$AH))) -> n.d. | BF16: =IF(ISERROR(STANDARDIZE($AY16,AVERAGE($AY:$AY),STDEV('Datos mensuales'!$AH:$AH))),"n.d.",STANDARDIZE($AY16,AVERAGE('Datos mensuales'!$AH:$AH),STDEV('Datos mensuales'!$AH:$AH))) -> n.d. | BG16: =IF(ISERROR(STANDARDIZE($AZ16,AVERAGE($AZ:$AZ),STDEV('Datos mensuales'!$AH:$AH))),"n.d.",STANDARDIZE($AZ16,AVERAGE('Datos mensuales'!$AH:$AH),STDEV('Datos mensuales'!$AH:$AH))) -> n.d. | BH16: =IF(ISERROR(STANDARDIZE($BA16,AVERAGE($BA:$BA),STDEV('Datos mensuales'!$AH:$AH))),"n.d.",STANDARDIZE($BA16,AVERAGE('Datos mensuales'!$AH:$AH),STDEV('Datos mensuales'!$AH:$AH))) -> n.d. | BI16: =IF(ISERROR(STANDARDIZE($BB16,AVERAGE($BB:$BB),STDEV('Datos mensuales'!$AH:$AH))),"n.d.",STANDARDIZE($BB16,AVERAGE('Datos mensuales'!$AH:$AH),STDEV('Datos mensuales'!$AH:$AH))) -> n.d. | BJ16: =IF(ISERROR(STANDARDIZE($BC16,AVERAGE($BC:$BC),STDEV('Datos mensuales'!$AH:$AH))),"n.d.",STANDARDIZE($BC16,AVERAGE('Datos mensuales'!$AH:$AH),STDEV('Datos mensuales'!$AH:$AH))) -> n.d. | BK16: n.d. | BL16: n.d. | BM16: n.d. | BN16: n.d. | BO16: n.d. | BP16: n.d. | BQ16: n.d.
A17: 1991 | B17: Ene | AH17: n.d. | AI17: n.d. | AJ17: n.d. | AK17: =IF(OR('[1]REAL(M)'!$CI16="",'[1]REAL(M)'!$CI16=""),"",IF(OR('[1]REAL(M)'!$CI16="n.d.",'[1]REAL(M)'!$CI16="n.d."),"n.d.",'[1]REAL(M)'!$CI16-'[1]REAL(M)'!$CJ16)) -> -0.7905801582 | AL17: -0.489847027 | AM17: -0.225250485 | AP17: 41.60338955 | AW17: 1.388034051 | AX17: n.d. | AY17: n.d. | AZ17: n.d. | BA17: n.d. | BB17: n.d. | BC17: n.d. | BD17: =IF(ISERROR(STANDARDIZE($AW17,AVERAGE($AW:$AW),STDEV('Datos mensuales'!$AH:$AH))),"n.d.",STANDARDIZE($AW17,AVERAGE('Datos mensuales'!$AH:$AH),STDEV('Datos mensuales'!$AH:$AH))) -> 1.515072267 | BE17: =IF(ISERROR(STANDARDIZE($AX17,AVERAGE($AX:$AX),STDEV('Datos mensuales'!$AH:$AH))),"n.d.",STANDARDIZE($AX17,AVERAGE('Datos mensuales'!$AH:$AH),STDEV('Datos mensuales'!$AH:$AH))) -> n.d. | BF17: =IF(ISERROR(STANDARDIZE($AY17,AVERAGE($AY:$AY),STDEV('Datos mensuales'!$AH:$AH))),"n.d.",STANDARDIZE($AY17,AVERAGE('Datos mensuales'!$AH:$AH),STDEV('Datos mensuales'!$AH:$AH))) -> n.d. | BG17: =IF(ISERROR(STANDARDIZE($AZ17,AVERAGE($AZ:$AZ),STDEV('Datos mensuales'!$AH:$AH))),"n.d.",STANDARDIZE($AZ17,AVERAGE('Datos mensuales'!$AH:$AH),STDEV('Datos mensuales'!$AH:$AH))) -> n.d. | BH17: =IF(ISERROR(STANDARDIZE($BA17,AVERAGE($BA:$BA),STDEV('Datos mensuales'!$AH:$AH))),"n.d.",STANDARDIZE($BA17,AVERAGE('Datos mensuales'!$AH:$AH),STDEV('Datos mensuales'!$AH:$AH))) -> n.d. | BI17: =IF(ISERROR(STANDARDIZE($BB17,AVERAGE($BB:$BB),STDEV('Datos mensuales'!$AH:$AH))),"n.d.",STANDARDIZE($BB17,AVERAGE('Datos mensuales'!$AH:$AH),STDEV('Datos mensuales'!$AH:$AH))) -> n.d. | BJ17: =IF(ISERROR(STANDARDIZE($BC17,AVERAGE($BC:$BC),STDEV('Datos mensuales'!$AH:$AH))),"n.d.",STANDARDIZE($BC17,AVERAGE('Datos mensuales'!$AH:$AH),STDEV('Datos mensuales'!$AH:$AH))) -> n.d. | BK17: n.d. | BL17: n.d. | BM17: n.d. | BN17: n.d. | BO17: n.d. | BP17: n.d. | BQ17: n.d. | BR17: =IF(OR(BD17="",BD5=""),"",IF(OR(BD17="n.d.",BD5="n.d."),"n.d.",IF(OR(AND(BD17>0,BD5>0),AND(BD17<0,BD5>0)),BD17/BD5 -1,IF(OR(AND(BD17>0,BD5<0),AND(BD17<0,BD5<0)),-(BD17/BD5 -1),"n.a.")))) -> n.d. | BS17: =IF(OR(BE17="",BE5=""),"",IF(OR(BE17="n.d.",BE5="n.d."),"n.d.",IF(OR(AND(BE17>0,BE5>0),AND(BE17<0,BE5>0)),BE17/BE5 -1,IF(OR(AND(BE17>0,BE5<0),AND(BE17<0,BE5<0)),-(BE17/BE5 -1),"n.a.")))) -> n.d. | BT17: =IF(OR(BF17="",BF5=""),"",IF(OR(BF17="n.d.",BF5="n.d."),"n.d.",IF(OR(AND(BF17>0,BF5>0),AND(BF17<0,BF5>0)),BF17/BF5 -1,IF(OR(AND(BF17>0,BF5<0),AND(BF17<0,BF5<0)),-(BF17/BF5 -1),"n.a.")))) -> n.d. | BU17: =IF(OR(BG17="",BG5=""),"",IF(OR(BG17="n.d.",BG5="n.d."),"n.d.",IF(OR(AND(BG17>0,BG5>0),AND(BG17<0,BG5>0)),BG17/BG5 -1,IF(OR(AND(BG17>0,BG5<0),AND(BG17<0,BG5<0)),-(BG17/BG5 -1),"n.a.")))) -> n.d. | BV17: =IF(OR(BH17="",BH5=""),"",IF(OR(BH17="n.d.",BH5="n.d."),"n.d.",IF(OR(AND(BH17>0,BH5>0),AND(BH17<0,BH5>0)),BH17/BH5 -1,IF(OR(AND(BH17>0,BH5<0),AND(BH17<0,BH5<0)),-(BH17/BH5 -1),"n.a.")))) -> n.d. | BW17: =IF(OR(BI17="",BI5=""),"",IF(OR(BI17="n.d.",BI5="n.d."),"n.d.",IF(OR(AND(BI17>0,BI5>0),AND(BI17<0,BI5>0)),BI17/BI5 -1,IF(OR(AND(BI17>0,BI5<0),AND(BI17<0,BI5<0)),-(BI17/BI5 -1),"n.a.")))) -> n.d. | BX17: =IF(OR(BJ17="",BJ5=""),"",IF(OR(BJ17="n.d.",BJ5="n.d."),"n.d.",IF(OR(AND(BJ17>0,BJ5>0),AND(BJ17<0,BJ5>0)),BJ17/BJ5 -1,IF(OR(AND(BJ17>0,BJ5<0),AND(BJ17<0,BJ5<0)),-(BJ17/BJ5 -1),"n.a.")))) -> n.d.
B18: Feb | AH18: n.d. | AI18: n.d. | AJ18: n.d. | AK18: =IF(OR('[1]REAL(M)'!$CI17="",'[1]REAL(M)'!$CI17=""),"",IF(OR('[1]REAL(M)'!$CI17="n.d.",'[1]REAL(M)'!$CI17="n.d."),"n.d.",'[1]REAL(M)'!$CI17-'[1]REAL(M)'!$CJ17)) -> -1.21363413 | AL18: -0.7511463539 | AM18: -0.2612993269 | AP18: 41.87441224 | AW18: 1.154415117 | AX18: n.d. | AY18: n.d. | AZ18: n.d. | BA18: n.d. | BB18: n.d. | BC18: n.d. | BD18: =IF(ISERROR(STANDARDIZE($AW18,AVERAGE($AW:$AW),STDEV('Datos mensuales'!$AH:$AH))),"n.d.",STANDARDIZE($AW18,AVERAGE('Datos mensuales'!$AH:$AH),STDEV('Datos mensuales'!$AH:$AH))) -> 1.26078091 | BE18: =IF(ISERROR(STANDARDIZE($AX18,AVERAGE($AX:$AX),STDEV('Datos mensuales'!$AH:$AH))),"n.d.",STANDARDIZE($AX18,AVERAGE('Datos mensuales'!$AH:$AH),STDEV('Datos mensuales'!$AH:$AH))) -> n.d. | BF18: =IF(ISERROR(STANDARDIZE($AY18,AVERAGE($AY:$AY),STDEV('Datos mensuales'!$AH:$AH))),"n.d.",STANDARDIZE($AY18,AVERAGE('Datos mensuales'!$AH:$AH),STDEV('Datos mensuales'!$AH:$AH))) -> n.d. | BG18: =IF(ISERROR(STANDARDIZE($AZ18,AVERAGE($AZ:$AZ),STDEV('Datos mensuales'!$AH:$AH))),"n.d.",STANDARDIZE($AZ18,AVERAGE('Datos mensuales'!$AH:$AH),STDEV('Datos mensuales'!$AH:$AH))) -> n.d. | BH18: =IF(ISERROR(STANDARDIZE($BA18,AVERAGE($BA:$BA),STDEV('Datos mensuales'!$AH:$AH))),"n.d.",STANDARDIZE($BA18,AVERAGE('Datos mensuales'!$AH:$AH),STDEV('Datos mensuales'!$AH:$AH))) -> n.d. | BI18: =IF(ISERROR(STANDARDIZE($BB18,AVERAGE($BB:$BB),STDEV('Datos mensuales'!$AH:$AH))),"n.d.",STANDARDIZE($BB18,AVERAGE('Datos mensuales'!$AH:$AH),STDEV('Datos mensuales'!$AH:$AH))) -> n.d. | BJ18: =IF(ISERROR(STANDARDIZE($BC18,AVERAGE($BC:$BC),STDEV('Datos mensuales'!$AH:$AH))),"n.d.",STANDARDIZE($BC18,AVERAGE('Datos mensuales'!$AH:$AH),STDEV('Datos mensuales'!$AH:$AH))) -> n.d. | BK18: -0.2542913576 | BL18: n.d. | BM18: n.d. | BN18: n.d. | BO18: n.d. | BP18: n.d. | BQ18: n.d. | BR18: n.d. | BS18: n.d. | BT18: n.d. | BU18: n.d. | BV18: n.d. | BW18: n.d. | BX18: n.d.
B19: Mar | AH19: n.d. | AI19: n.d. | AJ19: n.d. | AK19: =IF(OR('[1]REAL(M)'!$CI18="",'[1]REAL(M)'!$CI18=""),"",IF(OR('[1]REAL(M)'!$CI18="n.d.",'[1]REAL(M)'!$CI18="n.d."),"n.d.",'[1]REAL(M)'!$CI18-'[1]REAL(M)'!$CJ18)) -> -1.507326621 | AL19: -0.9325455498 | AM19: -0.1813991959 | AP19: 42.14547498 | AW19: 0.9123845417 | AX19: n.d. | AY19: n.d. | AZ19: n.d. | BA19: n.d. | BB19: n.d. | BC19: n.d. | BD19: =IF(ISERROR(STANDARDIZE($AW19,AVERAGE($AW:$AW),STDEV('Datos mensuales'!$AH:$AH))),"n.d.",STANDARDIZE($AW19,AVERAGE('Datos mensuales'!$AH:$AH),STDEV('Datos mensuales'!$AH:$AH))) -> 0.9973335819 | BE19: =IF(ISERROR(STANDARDIZE($AX19,AVERAGE($AX:$AX),STDEV('Datos mensuales'!$AH:$AH))),"n.d.",STANDARDIZE($AX19,AVERAGE('Datos mensuales'!$AH:$AH),STDEV('Datos mensuales'!$AH:$AH))) -> n.d. | BF19: =IF(ISERROR(STANDARDIZE($AY19,AVERAGE($AY:$AY),STDEV('Datos mensuales'!$AH:$AH))),"n.d.",STANDARDIZE($AY19,AVERAGE('Datos mensuales'!$AH:$AH),STDEV('Datos mensuales'!$AH:$AH))) -> n.d. | BG19: =IF(ISERROR(STANDARDIZE($AZ19,AVERAGE($AZ:$AZ),STDEV('Datos mensuales'!$AH:$AH))),"n.d.",STANDARDIZE($AZ19,AVERAGE('Datos mensuales'!$AH:$AH),STDEV('Datos mensuales'!$AH:$AH))) -> n.d. | BH19: =IF(ISERROR(STANDARDIZE($BA19,AVERAGE($BA:$BA),STDEV('Datos mensuales'!$AH:$AH))),"n.d.",STANDARDIZE($BA19,AVERAGE('Datos mensuales'!$AH:$AH),STDEV('Datos mensuales'!$AH:$AH))) -> n.d. | BI19: =IF(ISERROR(STANDARDIZE($BB19,AVERAGE($BB:$BB),STDEV('Datos mensuales'!$AH:$AH))),"n.d.",STANDARDIZE($BB19,AVERAGE('Datos mensuales'!$AH:$AH),STDEV('Datos mensuales'!$AH:$AH))) -> n.d. | BJ19: =IF(ISERROR(STANDARDIZE($BC19,AVERAGE($BC:$BC),STDEV('Datos mensuales'!$AH:$AH))),"n.d.",STANDARDIZE($BC19,AVERAGE('Datos mensuales'!$AH:$AH),STDEV('Datos mensuales'!$AH:$AH))) -> n.d. | BK19: -0.2634473277 | BL19: n.d. | BM19: n.d. | BN19: n.d. | BO19: n.d. | BP19: n.d. | BQ19: n.d. | BR19: n.d. | BS19: n.d. | BT19: n.d. | BU19: n.d. | BV19: n.d. | BW19: n.d. | BX19: n.d.
B20: Abr | AH20: n.d. | AI20: n.d. | AJ20: n.d. | AK20: =IF(OR('[1]REAL(M)'!$CI19="",'[1]REAL(M)'!$CI19=""),"",IF(OR('[1]REAL(M)'!$CI19="n.d.",'[1]REAL(M)'!$CI19="n.d."),"n.d.",'[1]REAL(M)'!$CI19-'[1]REAL(M)'!$CJ19)) -> -1.374817075 | AL20: -0.8507010156 | AM20: 0.08184453418 | AP20: 42.41663624 | AW20: 0.7730089077 | AX20: n.d. | AY20: n.d. | AZ20: n.d. | BA20: n.d. | BB20: n.d. | BC20: n.d. | BD20: =IF(ISERROR(STANDARDIZE($AW20,AVERAGE($AW:$AW),STDEV('Datos mensuales'!$AH:$AH))),"n.d.",STANDARDIZE($AW20,AVERAGE('Datos mensuales'!$AH:$AH),STDEV('Datos mensuales'!$AH:$AH))) -> 0.8456249053 | BE20: =IF(ISERROR(STANDARDIZE($AX20,AVERAGE($AX:$AX),STDEV('Datos mensuales'!$AH:$AH))),"n.d.",STANDARDIZE($AX20,AVERAGE('Datos mensuales'!$AH:$AH),STDEV('Datos mensuales'!$AH:$AH))) -> n.d. | BF20: =IF(ISERROR(STANDARDIZE($AY20,AVERAGE($AY:$AY),STDEV('Datos mensuales'!$AH:$AH))),"n.d.",STANDARDIZE($AY20,AVERAGE('Datos mensuales'!$AH:$AH),STDEV('Datos mensuales'!$AH:$AH))) -> n.d. | BG20: =IF(ISERROR(STANDARDIZE($AZ20,AVERAGE($AZ:$AZ),STDEV('Datos mensuales'!$AH:$AH))),"n.d.",STANDARDIZE($AZ20,AVERAGE('Datos mensuales'!$AH:$AH),STDEV('Datos mensuales'!$AH:$AH))) -> n.d. | BH20: =IF(ISERROR(STANDARDIZE($BA20,AVERAGE($BA:$BA),STDEV('Datos mensuales'!$AH:$AH))),"n.d.",STANDARDIZE($BA20,AVERAGE('Datos mensuales'!$AH:$AH),STDEV('Datos mensuales'!$AH:$AH))) -> n.d. | BI20: =IF(ISERROR(STANDARDIZE($BB20,AVERAGE($BB:$BB),STDEV('Datos mensuales'!$AH:$AH))),"n.d.",STANDARDIZE($BB20,AVERAGE('Datos mensuales'!$AH:$AH),STDEV('Datos mensuales'!$AH:$AH))) -> n.d. | BJ20: =IF(ISERROR(STANDARDIZE($BC20,AVERAGE($BC:$BC),STDEV('Datos mensuales'!$AH:$AH))),"n.d.",STANDARDIZE($BC20,AVERAGE('Datos mensuales'!$AH:$AH),STDEV('Datos mensuales'!$AH:$AH))) -> n.d. | BK20: -0.1517086766 | BL20: n.d. | BM20: n.d. | BN20: n.d. | BO20: n.d. | BP20: n.d. | BQ20: n.d. | BR20: n.d. | BS20: n.d. | BT20: n.d. | BU20: n.d. | BV20: n.d. | BW20: n.d. | BX20: n.d.
B21: May | AH21: n.d. | AI21: n.d. | AJ21: n.d. | AK21: =IF(OR('[1]REAL(M)'!$CI20="",'[1]REAL(M)'!$CI20=""),"",IF(OR('[1]REAL(M)'!$CI20="n.d.",'[1]REAL(M)'!$CI20="n.d."),"n.d.",'[1]REAL(M)'!$CI20-'[1]REAL(M)'!$CJ20)) -> -0.9563053236 | AL21: -0.5922071916 | AM21: 0.258493824 | AP21: 42.68795067 | AW21: 0.6871410217 | AX21: n.d. | AY21: n.d. | AZ21: n.d. | BA21: n.d. | BB21: n.d. | BC21: n.d. | BD21: =IF(ISERROR(STANDARDIZE($AW21,AVERAGE($AW:$AW),STDEV('Datos mensuales'!$AH:$AH))),"n.d.",STANDARDIZE($AW21,AVERAGE('Datos mensuales'!$AH:$AH),STDEV('Datos mensuales'!$AH:$AH))) -> 0.7521587595 | BE21: =IF(ISERROR(STANDARDIZE($AX21,AVERAGE($AX:$AX),STDEV('Datos mensuales'!$AH:$AH))),"n.d.",STANDARDIZE($AX21,AVERAGE('Datos mensuales'!$AH:$AH),STDEV('Datos mensuales'!$AH:$AH))) -> n.d. | BF21: =IF(ISERROR(STANDARDIZE($AY21,AVERAGE($AY:$AY),STDEV('Datos mensuales'!$AH:$AH))),"n.d.",STANDARDIZE($AY21,AVERAGE('Datos mensuales'!$AH:$AH),STDEV('Datos mensuales'!$AH:$AH))) -> n.d. | BG21: =IF(ISERROR(STANDARDIZE($AZ21,AVERAGE($AZ:$AZ),STDEV('Datos mensuales'!$AH:$AH))),"n.d.",STANDARDIZE($AZ21,AVERAGE('Datos mensuales'!$AH:$AH),STDEV('Datos mensuales'!$AH:$AH))) -> n.d. | BH21: =IF(ISERROR(STANDARDIZE($BA21,AVERAGE($BA:$BA),STDEV('Datos mensuales'!$AH:$AH))),"n.d.",STANDARDIZE($BA21,AVERAGE('Datos mensuales'!$AH:$AH),STDEV('Datos mensuales'!$AH:$AH))) -> n.d. | BI21: =IF(ISERROR(STANDARDIZE($BB21,AVERAGE($BB:$BB),STDEV('Datos mensuales'!$AH:$AH))),"n.d.",STANDARDIZE($BB21,AVERAGE('Datos mensuales'!$AH:$AH),STDEV('Datos mensuales'!$AH:$AH))) -> n.d. | BJ21: =IF(ISERROR(STANDARDIZE($BC21,AVERAGE($BC:$BC),STDEV('Datos mensuales'!$AH:$AH))),"n.d.",STANDARDIZE($BC21,AVERAGE('Datos mensuales'!$AH:$AH),STDEV('Datos mensuales'!$AH:$AH))) -> n.d. | BK21: -0.09346614586 | BL21: n.d. | BM21: n.d. | BN21: n.d. | BO21: n.d. | BP21: n.d. | BQ21: n.d. | BR21: n.d. | BS21: n.d. | BT21: n.d. | BU21: n.d. | BV21: n.d. | BW21: n.d. | BX21: n.d.
B22: Jun | AH22: n.d. | AI22: n.d. | AJ22: n.d. | AK22: =IF(OR('[1]REAL(M)'!$CI21="",'[1]REAL(M)'!$CI21=""),"",IF(OR('[1]REAL(M)'!$CI21="n.d.",'[1]REAL(M)'!$CI21="n.d."),"n.d.",'[1]REAL(M)'!$CI21-'[1]REAL(M)'!$CJ21)) -> -0.5655379391 | AL22: -0.3508496784 | AM22: 0.2413575132 | AP22: 42.95944396 | AW22: 0.6095266734 | AX22: n.d. | AY22: n.d. | AZ22: n.d. | BA22: n.d. | BB22: n.d. | BC22: n.d. | BD22: =IF(ISERROR(STANDARDIZE($AW22,AVERAGE($AW:$AW),STDEV('Datos mensuales'!$AH:$AH))),"n.d.",STANDARDIZE($AW22,AVERAGE('Datos mensuales'!$AH:$AH),STDEV('Datos mensuales'!$AH:$AH))) -> 0.6676764885 | BE22: =IF(ISERROR(STANDARDIZE($AX22,AVERAGE($AX:$AX),STDEV('Datos mensuales'!$AH:$AH))),"n.d.",STANDARDIZE($AX22,AVERAGE('Datos mensuales'!$AH:$AH),STDEV('Datos mensuales'!$AH:$AH))) -> n.d. | BF22: =IF(ISERROR(STANDARDIZE($AY22,AVERAGE($AY:$AY),STDEV('Datos mensuales'!$AH:$AH))),"n.d.",STANDARDIZE($AY22,AVERAGE('Datos mensuales'!$AH:$AH),STDEV('Datos mensuales'!$AH:$AH))) -> n.d. | BG22: =IF(ISERROR(STANDARDIZE($AZ22,AVERAGE($AZ:$AZ),STDEV('Datos mensuales'!$AH:$AH))),"n.d.",STANDARDIZE($AZ22,AVERAGE('Datos mensuales'!$AH:$AH),STDEV('Datos mensuales'!$AH:$AH))) -> n.d. | BH22: =IF(ISERROR(STANDARDIZE($BA22,AVERAGE($BA:$BA),STDEV('Datos mensuales'!$AH:$AH))),"n.d.",STANDARDIZE($BA22,AVERAGE('Datos mensuales'!$AH:$AH),STDEV('Datos mensuales'!$AH:$AH))) -> n.d. | BI22: =IF(ISERROR(STANDARDIZE($BB22,AVERAGE($BB:$BB),STDEV('Datos mensuales'!$AH:$AH))),"n.d.",STANDARDIZE($BB22,AVERAGE('Datos mensuales'!$AH:$AH),STDEV('Datos mensuales'!$AH:$AH))) -> n.d. | BJ22: =IF(ISERROR(STANDARDIZE($BC22,AVERAGE($BC:$BC),STDEV('Datos mensuales'!$AH:$AH))),"n.d.",STANDARDIZE($BC22,AVERAGE('Datos mensuales'!$AH:$AH),STDEV('Datos mensuales'!$AH:$AH))) -> n.d. | BK22: -0.08448227094 | BL22: n.d. | BM22: n.d. | BN22: n.d. | BO22: n.d. | BP22: n.d. | BQ22: n.d. | BR22: n.d. | BS22: n.d. | BT22: n.d. | BU22: n.d. | BV22: n.d. | BW22: n.d. | BX22: n.d.
B23: Jul | AH23: n.d. | AI23: n.d. | AJ23: n.d. | AK23: =IF(OR('[1]REAL(M)'!$CI22="",'[1]REAL(M)'!$CI22=""),"",IF(OR('[1]REAL(M)'!$CI22="n.d.",'[1]REAL(M)'!$CI22="n.d."),"n.d.",'[1]REAL(M)'!$CI22-'[1]REAL(M)'!$CJ22)) -> -0.3882977205 | AL23: -0.2413772401 | AM23: 0.1094724383 | AP23: 43.23108709 | AW23: 0.5456164909 | AX23: n.d. | AY23: n.d. | AZ23: n.d. | BA23: n.d. | BB23: n.d. | BC23: n.d. | BD23: =IF(ISERROR(STANDARDIZE($AW23,AVERAGE($AW:$AW),STDEV('Datos mensuales'!$AH:$AH))),"n.d.",STANDARDIZE($AW23,AVERAGE('Datos mensuales'!$AH:$AH),STDEV('Datos mensuales'!$AH:$AH))) -> 0.5981110349 | BE23: =IF(ISERROR(STANDARDIZE($AX23,AVERAGE($AX:$AX),STDEV('Datos mensuales'!$AH:$AH))),"n.d.",STANDARDIZE($AX23,AVERAGE('Datos mensuales'!$AH:$AH),STDEV('Datos mensuales'!$AH:$AH))) -> n.d. | BF23: =IF(ISERROR(STANDARDIZE($AY23,AVERAGE($AY:$AY),STDEV('Datos mensuales'!$AH:$AH))),"n.d.",STANDARDIZE($AY23,AVERAGE('Datos mensuales'!$AH:$AH),STDEV('Datos mensuales'!$AH:$AH))) -> n.d. | BG23: =IF(ISERROR(STANDARDIZE($AZ23,AVERAGE($AZ:$AZ),STDEV('Datos mensuales'!$AH:$AH))),"n.d.",STANDARDIZE($AZ23,AVERAGE('Datos mensuales'!$AH:$AH),STDEV('Datos mensuales'!$AH:$AH))) -> n.d. | BH23: =IF(ISERROR(STANDARDIZE($BA23,AVERAGE($BA:$BA),STDEV('Datos mensuales'!$AH:$AH))),"n.d.",STANDARDIZE($BA23,AVERAGE('Datos mensuales'!$AH:$AH),STDEV('Datos mensuales'!$AH:$AH))) -> n.d. | BI23: =IF(ISERROR(STANDARDIZE($BB23,AVERAGE($BB:$BB),STDEV('Datos mensuales'!$AH:$AH))),"n.d.",STANDARDIZE($BB23,AVERAGE('Datos mensuales'!$AH:$AH),STDEV('Datos mensuales'!$AH:$AH))) -> n.d. | BJ23: =IF(ISERROR(STANDARDIZE($BC23,AVERAGE($BC:$BC),STDEV('Datos mensuales'!$AH:$AH))),"n.d.",STANDARDIZE($BC23,AVERAGE('Datos mensuales'!$AH:$AH),STDEV('Datos mensuales'!$AH:$AH))) -> n.d. | BK23: -0.06956545362 | BL23: n.d. | BM23: n.d. | BN23: n.d. | BO23: n.d. | BP23: n.d. | BQ23: n.d. | BR23: n.d. | BS23: n.d. | BT23: n.d. | BU23: n.d. | BV23: n.d. | BW23: n.d. | BX23: n.d.
B24: Ago | AH24: n.d. | AI24: n.d. | AJ24: n.d. | AK24: =IF(OR('[1]REAL(M)'!$CI23="",'[1]REAL(M)'!$CI23=""),"",IF(OR('[1]REAL(M)'!$CI23="n.d.",'[1]REAL(M)'!$CI23="n.d."),"n.d.",'[1]REAL(M)'!$CI23-'[1]REAL(M)'!$CJ23)) -> -0.2889654748 | AL24: -0.1800246688 | AM24: 0.06135257127 | AP24: 43.50277539 | AW24: 0.6287969684 | AX24: n.d. | AY24: n.d. | AZ24: n.d. | BA24: n.d. | BB24: n.d. | BC24: n.d. | BD24: =IF(ISERROR(STANDARDIZE($AW24,AVERAGE($AW:$AW),STDEV('Datos mensuales'!$AH:$AH))),"n.d.",STANDARDIZE($AW24,AVERAGE('Datos mensuales'!$AH:$AH),STDEV('Datos mensuales'!$AH:$AH))) -> 0.6886519695 | BE24: =IF(ISERROR(STANDARDIZE($AX24,AVERAGE($AX:$AX),STDEV('Datos mensuales'!$AH:$AH))),"n.d.",STANDARDIZE($AX24,AVERAGE('Datos mensuales'!$AH:$AH),STDEV('Datos mensuales'!$AH:$AH))) -> n.d. | BF24: =IF(ISERROR(STANDARDIZE($AY24,AVERAGE($AY:$AY),STDEV('Datos mensuales'!$AH:$AH))),"n.d.",STANDARDIZE($AY24,AVERAGE('Datos mensuales'!$AH:$AH),STDEV('Datos mensuales'!$AH:$AH))) -> n.d. | BG24: =IF(ISERROR(STANDARDIZE($AZ24,AVERAGE($AZ:$AZ),STDEV('Datos mensuales'!$AH:$AH))),"n.d.",STANDARDIZE($AZ24,AVERAGE('Datos mensuales'!$AH:$AH),STDEV('Datos mensuales'!$AH:$AH))) -> n.d. | BH24: =IF(ISERROR(STANDARDIZE($BA24,AVERAGE($BA:$BA),STDEV('Datos mensuales'!$AH:$AH))),"n.d.",STANDARDIZE($BA24,AVERAGE('Datos mensuales'!$AH:$AH),STDEV('Datos mensuales'!$AH:$AH))) -> n.d. | BI24: =IF(ISERROR(STANDARDIZE($BB24,AVERAGE($BB:$BB),STDEV('Datos mensuales'!$AH:$AH))),"n.d.",STANDARDIZE($BB24,AVERAGE('Datos mensuales'!$AH:$AH),STDEV('Datos mensuales'!$AH:$AH))) -> n.d. | BJ24: =IF(ISERROR(STANDARDIZE($BC24,AVERAGE($BC:$BC),STDEV('Datos mensuales'!$AH:$AH))),"n.d.",STANDARDIZE($BC24,AVERAGE('Datos mensuales'!$AH:$AH),STDEV('Datos mensuales'!$AH:$AH))) -> n.d. | BK24: 0.09054093462 | BL24: n.d. | BM24: n.d. | BN24: n.d. | BO24: n.d. | BP24: n.d. | BQ24: n.d. | BR24: n.d. | BS24: n.d. | BT24: n.d. | BU24: n.d. | BV24: n.d. | BW24: n.d. | BX24: n.d.
B25: Sep | AH25: n.d. | AI25: n.d. | AJ25: n.d. | AK25: =IF(OR('[1]REAL(M)'!$CI24="",'[1]REAL(M)'!$CI24=""),"",IF(OR('[1]REAL(M)'!$CI24="n.d.",'[1]REAL(M)'!$CI24="n.d."),"n.d.",'[1]REAL(M)'!$CI24-'[1]REAL(M)'!$CJ24)) -> -0.1251779752 | AL25: -0.0788613037 | AM25: 0.1011633651 | AP25: 43.77432425 | AW25: 0.8594823068 | AX25: n.d. | AY25: n.d. | AZ25: n.d. | BA25: n.d. | BB25: n.d. | BC25: n.d. | BD25: =IF(ISERROR(STANDARDIZE($AW25,AVERAGE($AW:$AW),STDEV('Datos mensuales'!$AH:$AH))),"n.d.",STANDARDIZE($AW25,AVERAGE('Datos mensuales'!$AH:$AH),STDEV('Datos mensuales'!$AH:$AH))) -> 0.9397501448 | BE25: =IF(ISERROR(STANDARDIZE($AX25,AVERAGE($AX:$AX),STDEV('Datos mensuales'!$AH:$AH))),"n.d.",STANDARDIZE($AX25,AVERAGE('Datos mensuales'!$AH:$AH),STDEV('Datos mensuales'!$AH:$AH))) -> n.d. | BF25: =IF(ISERROR(STANDARDIZE($AY25,AVERAGE($AY:$AY),STDEV('Datos mensuales'!$AH:$AH))),"n.d.",STANDARDIZE($AY25,AVERAGE('Datos mensuales'!$AH:$AH),STDEV('Datos mensuales'!$AH:$AH))) -> n.d. | BG25: =IF(ISERROR(STANDARDIZE($AZ25,AVERAGE($AZ:$AZ),STDEV('Datos mensuales'!$AH:$AH))),"n.d.",STANDARDIZE($AZ25,AVERAGE('Datos mensuales'!$AH:$AH),STDEV('Datos mensuales'!$AH:$AH))) -> n.d. | BH25: =IF(ISERROR(STANDARDIZE($BA25,AVERAGE($BA:$BA),STDEV('Datos mensuales'!$AH:$AH))),"n.d.",STANDARDIZE($BA25,AVERAGE('Datos mensuales'!$AH:$AH),STDEV('Datos mensuales'!$AH:$AH))) -> n.d. | BI25: =IF(ISERROR(STANDARDIZE($BB25,AVERAGE($BB:$BB),STDEV('Datos mensuales'!$AH:$AH))),"n.d.",STANDARDIZE($BB25,AVERAGE('Datos mensuales'!$AH:$AH),STDEV('Datos mensuales'!$AH:$AH))) -> n.d. | BJ25: =IF(ISERROR(STANDARDIZE($BC25,AVERAGE($BC:$BC),STDEV('Datos mensuales'!$AH:$AH))),"n.d.",STANDARDIZE($BC25,AVERAGE('Datos mensuales'!$AH:$AH),STDEV('Datos mensuales'!$AH:$AH))) -> n.d. | BK25: 0.2510981753 | BL25: n.d. | BM25: n.d. | BN25: n.d. | BO25: n.d. | BP25: n.d. | BQ25: n.d. | BR25: n.d. | BS25: n.d. | BT25: n.d. | BU25: n.d. | BV25: n.d. | BW25: n.d. | BX25: n.d.
B26: Oct | AH26: n.d. | AI26: n.d. | AJ26: n.d. | AK26: =IF(OR('[1]REAL(M)'!$CI25="",'[1]REAL(M)'!$CI25=""),"",IF(OR('[1]REAL(M)'!$CI25="n.d.",'[1]REAL(M)'!$CI25="n.d."),"n.d.",'[1]REAL(M)'!$CI25-'[1]REAL(M)'!$CJ25)) -> -0.1099791192 | AL26: -0.06947372878 | AM26: 0.00938757492 | AP26: 44.04548707 | AW26: 1.065158505 | AX26: n.d. | AY26: n.d. | AZ26: n.d. | BA26: n.d. | BB26: n.d. | BC26: n.d. | BD26: =IF(ISERROR(STANDARDIZE($AW26,AVERAGE($AW:$AW),STDEV('Datos mensuales'!$AH:$AH))),"n.d.",STANDARDIZE($AW26,AVERAGE('Datos mensuales'!$AH:$AH),STDEV('Datos mensuales'!$AH:$AH))) -> 1.163626176 | BE26: =IF(ISERROR(STANDARDIZE($AX26,AVERAGE($AX:$AX),STDEV('Datos mensuales'!$AH:$AH))),"n.d.",STANDARDIZE($AX26,AVERAGE('Datos mensuales'!$AH:$AH),STDEV('Datos mensuales'!$AH:$AH))) -> n.d. | BF26: =IF(ISERROR(STANDARDIZE($AY26,AVERAGE($AY:$AY),STDEV('Datos mensuales'!$AH:$AH))),"n.d.",STANDARDIZE($AY26,AVERAGE('Datos mensuales'!$AH:$AH),STDEV('Datos mensuales'!$AH:$AH))) -> n.d. | BG26: =IF(ISERROR(STANDARDIZE($AZ26,AVERAGE($AZ:$AZ),STDEV('Datos mensuales'!$AH:$AH))),"n.d.",STANDARDIZE($AZ26,AVERAGE('Datos mensuales'!$AH:$AH),STDEV('Datos mensuales'!$AH:$AH))) -> n.d. | BH26: =IF(ISERROR(STANDARDIZE($BA26,AVERAGE($BA:$BA),STDEV('Datos mensuales'!$AH:$AH))),"n.d.",STANDARDIZE($BA26,AVERAGE('Datos mensuales'!$AH:$AH),STDEV('Datos mensuales'!$AH:$AH))) -> n.d. | BI26: =IF(ISERROR(STANDARDIZE($BB26,AVERAGE($BB:$BB),STDEV('Datos mensuales'!$AH:$AH))),"n.d.",STANDARDIZE($BB26,AVERAGE('Datos mensuales'!$AH:$AH),STDEV('Datos mensuales'!$AH:$AH))) -> n.d. | BJ26: =IF(ISERROR(STANDARDIZE($BC26,AVERAGE($BC:$BC),STDEV('Datos mensuales'!$AH:$AH))),"n.d.",STANDARDIZE($BC26,AVERAGE('Datos mensuales'!$AH:$AH),STDEV('Datos mensuales'!$AH:$AH))) -> n.d. | BK26: 0.2238760315 | BL26: n.d. | BM26: n.d. | BN26: n.d. | BO26: n.d. | BP26: n.d. | BQ26: n.d. | BR26: n.d. | BS26: n.d. | BT26: n.d. | BU26: n.d. | BV26: n.d. | BW26: n.d. | BX26: n.d.
B27: Nov | AH27: n.d. | AI27: n.d. | AJ27: n.d. | AK27: =IF(OR('[1]REAL(M)'!$CI26="",'[1]REAL(M)'!$CI26=""),"",IF(OR('[1]REAL(M)'!$CI26="n.d.",'[1]REAL(M)'!$CI26="n.d."),"n.d.",'[1]REAL(M)'!$CI26-'[1]REAL(M)'!$CJ26)) -> -0.3229065925 | AL27: -0.2009884035 | AM27: -0.1315146747 | AP27: 44.31599261 | AW27: 1.232392288 | AX27: n.d. | AY27: n.d. | AZ27: n.d. | BA27: n.d. | BB27: n.d. | BC27: n.d. | BD27: =IF(ISERROR(STANDARDIZE($AW27,AVERAGE($AW:$AW),STDEV('Datos mensuales'!$AH:$AH))),"n.d.",STANDARDIZE($AW27,AVERAGE('Datos mensuales'!$AH:$AH),STDEV('Datos mensuales'!$AH:$AH))) -> 1.345658108 | BE27: =IF(ISERROR(STANDARDIZE($AX27,AVERAGE($AX:$AX),STDEV('Datos mensuales'!$AH:$AH))),"n.d.",STANDARDIZE($AX27,AVERAGE('Datos mensuales'!$AH:$AH),STDEV('Datos mensuales'!$AH:$AH))) -> n.d. | BF27: =IF(ISERROR(STANDARDIZE($AY27,AVERAGE($AY:$AY),STDEV('Datos mensuales'!$AH:$AH))),"n.d.",STANDARDIZE($AY27,AVERAGE('Datos mensuales'!$AH:$AH),STDEV('Datos mensuales'!$AH:$AH))) -> n.d. | BG27: =IF(ISERROR(STANDARDIZE($AZ27,AVERAGE($AZ:$AZ),STDEV('Datos mensuales'!$AH:$AH))),"n.d.",STANDARDIZE($AZ27,AVERAGE('Datos mensuales'!$AH:$AH),STDEV('Datos mensuales'!$AH:$AH))) -> n.d. | BH27: =IF(ISERROR(STANDARDIZE($BA27,AVERAGE($BA:$BA),STDEV('Datos mensuales'!$AH:$AH))),"n.d.",STANDARDIZE($BA27,AVERAGE('Datos mensuales'!$AH:$AH),STDEV('Datos mensuales'!$AH:$AH))) -> n.d. | BI27: =IF(ISERROR(STANDARDIZE($BB27,AVERAGE($BB:$BB),STDEV('Datos mensuales'!$AH:$AH))),"n.d.",STANDARDIZE($BB27,AVERAGE('Datos mensuales'!$AH:$AH),STDEV('Datos mensuales'!$AH:$AH))) -> n.d. | BJ27: =IF(ISERROR(STANDARDIZE($BC27,AVERAGE($BC:$BC),STDEV('Datos mensuales'!$AH:$AH))),"n.d.",STANDARDIZE($BC27,AVERAGE('Datos mensuales'!$AH:$AH),STDEV('Datos mensuales'!$AH:$AH))) -> n.d. | BK27: 0.1820319316 | BL27: n.d. | BM27: n.d. | BN27: n.d. | BO27: n.d. | BP27: n.d. | BQ27: n.d. | BR27: n.d. | BS27: n.d. | BT27: n.d. | BU27: n.d. | BV27: n.d. | BW27: n.d. | BX27: n.d.
B28: Dic | AH28: n.d. | AI28: n.d. | AJ28: n.d. | AK28: =IF(OR('[1]REAL(M)'!$CI27="",'[1]REAL(M)'!$CI27=""),"",IF(OR('[1]REAL(M)'!$CI27="n.d.",'[1]REAL(M)'!$CI27="n.d."),"n.d.",'[1]REAL(M)'!$CI27-'[1]REAL(M)'!$CJ27)) -> -0.6897811483 | AL28: -0.4275885087 | AM28: -0.2266001052 | AP28: 44.58558944 | AW28: 1.299709192 | AX28: n.d. | AY28: n.d. | AZ28: n.d. | BA28: n.d. | BB28: n.d. | BC28: n.d. | BD28: =IF(ISERROR(STANDARDIZE($AW28,AVERAGE($AW:$AW),STDEV('Datos mensuales'!$AH:$AH))),"n.d.",STANDARDIZE($AW28,AVERAGE('Datos mensuales'!$AH:$AH),STDEV('Datos mensuales'!$AH:$AH))) -> 1.418931737 | BE28: =IF(ISERROR(STANDARDIZE($AX28,AVERAGE($AX:$AX),STDEV('Datos mensuales'!$AH:$AH))),"n.d.",STANDARDIZE($AX28,AVERAGE('Datos mensuales'!$AH:$AH),STDEV('Datos mensuales'!$AH:$AH))) -> n.d. | BF28: =IF(ISERROR(STANDARDIZE($AY28,AVERAGE($AY:$AY),STDEV('Datos mensuales'!$AH:$AH))),"n.d.",STANDARDIZE($AY28,AVERAGE('Datos mensuales'!$AH:$AH),STDEV('Datos mensuales'!$AH:$AH))) -> n.d. | BG28: =IF(ISERROR(STANDARDIZE($AZ28,AVERAGE($AZ:$AZ),STDEV('Datos mensuales'!$AH:$AH))),"n.d.",STANDARDIZE($AZ28,AVERAGE('Datos mensuales'!$AH:$AH),STDEV('Datos mensuales'!$AH:$AH))) -> n.d. | BH28: =IF(ISERROR(STANDARDIZE($BA28,AVERAGE($BA:$BA),STDEV('Datos mensuales'!$AH:$AH))),"n.d.",STANDARDIZE($BA28,AVERAGE('Datos mensuales'!$AH:$AH),STDEV('Datos mensuales'!$AH:$AH))) -> n.d. | BI28: =IF(ISERROR(STANDARDIZE($BB28,AVERAGE($BB:$BB),STDEV('Datos mensuales'!$AH:$AH))),"n.d.",STANDARDIZE($BB28,AVERAGE('Datos mensuales'!$AH:$AH),STDEV('Datos mensuales'!$AH:$AH))) -> n.d. | BJ28: =IF(ISERROR(STANDARDIZE($BC28,AVERAGE($BC:$BC),STDEV('Datos mensuales'!$AH:$AH))),"n.d.",STANDARDIZE($BC28,AVERAGE('Datos mensuales'!$AH:$AH),STDEV('Datos mensuales'!$AH:$AH))) -> n.d. | BK28: 0.07327362905 | BL28: n.d. | BM28: n.d. | BN28: n.d. | BO28: n.d. | BP28: n.d. | BQ28: n.d. | BR28: n.d. | BS28: n.d. | BT28: n.d. | BU28: n.d. | BV28: n.d. | BW28: n.d. | BX28: n.d.
A29: 1992 | B29: Ene | C29: 7.163851443 | L29: 7.163851443 | AH29: n.d. | AI29: n.d. | AJ29: n.d. | AK29: =IF(OR('[1]REAL(M)'!$CI28="",'[1]REAL(M)'!$CI28=""),"",IF(OR('[1]REAL(M)'!$CI28="n.d.",'[1]REAL(M)'!$CI28="n.d."),"n.d.",'[1]REAL(M)'!$CI28-'[1]REAL(M)'!$CJ28)) -> -0.9468193374 | AL29: -0.5863481713 | AM29: -0.1587596626 | AP29: 44.85408053 | AW29: 1.217184791 | AX29: n.d. | AY29: n.d. | AZ29: n.d. | BA29: n.d. | BB29: n.d. | BC29: n.d. | BD29: =IF(ISERROR(STANDARDIZE($AW29,AVERAGE($AW:$AW),STDEV('Datos mensuales'!$AH:$AH))),"n.d.",STANDARDIZE($AW29,AVERAGE('Datos mensuales'!$AH:$AH),STDEV('Datos mensuales'!$AH:$AH))) -> 1.329104933 | BE29: =IF(ISERROR(STANDARDIZE($AX29,AVERAGE($AX:$AX),STDEV('Datos mensuales'!$AH:$AH))),"n.d.",STANDARDIZE($AX29,AVERAGE('Datos mensuales'!$AH:$AH),STDEV('Datos mensuales'!$AH:$AH))) -> n.d. | BF29: =IF(ISERROR(STANDARDIZE($AY29,AVERAGE($AY:$AY),STDEV('Datos mensuales'!$AH:$AH))),"n.d.",STANDARDIZE($AY29,AVERAGE('Datos mensuales'!$AH:$AH),STDEV('Datos mensuales'!$AH:$AH))) -> n.d. | BG29: =IF(ISERROR(STANDARDIZE($AZ29,AVERAGE($AZ:$AZ),STDEV('Datos mensuales'!$AH:$AH))),"n.d.",STANDARDIZE($AZ29,AVERAGE('Datos mensuales'!$AH:$AH),STDEV('Datos mensuales'!$AH:$AH))) -> n.d. | BH29: =IF(ISERROR(STANDARDIZE($BA29,AVERAGE($BA:$BA),STDEV('Datos mensuales'!$AH:$AH))),"n.d.",STANDARDIZE($BA29,AVERAGE('Datos mensuales'!$AH:$AH),STDEV('Datos mensuales'!$AH:$AH))) -> n.d. | BI29: =IF(ISERROR(STANDARDIZE($BB29,AVERAGE($BB:$BB),STDEV('Datos mensuales'!$AH:$AH))),"n.d.",STANDARDIZE($BB29,AVERAGE('Datos mensuales'!$AH:$AH),STDEV('Datos mensuales'!$AH:$AH))) -> n.d. | BJ29: =IF(ISERROR(STANDARDIZE($BC29,AVERAGE($BC:$BC),STDEV('Datos mensuales'!$AH:$AH))),"n.d.",STANDARDIZE($BC29,AVERAGE('Datos mensuales'!$AH:$AH),STDEV('Datos mensuales'!$AH:$AH))) -> n.d. | BK29: -0.08982680395 | BL29: n.d. | BM29: n.d. | BN29: n.d. | BO29: n.d. | BP29: n.d. | BQ29: n.d. | BR29: -0.1227448606 | BS29: n.d. | BT29: n.d. | BU29: n.d. | BV29: n.d. | BW29: n.d. | BX29: n.d.
B30: Feb | C30: 7.476835874 | L30: 7.320411705 | U30: 0.3129844304 | AH30: n.d. | AI30: n.d. | AJ30: n.d. | AK30: =IF(OR('[1]REAL(M)'!$CI29="",'[1]REAL(M)'!$CI29=""),"",IF(OR('[1]REAL(M)'!$CI29="n.d.",'[1]REAL(M)'!$CI29="n.d."),"n.d.",'[1]REAL(M)'!$CI29-'[1]REAL(M)'!$CJ29)) -> -0.7873169382 | AL30: -0.4878314988 | AM30: 0.09851667244 | AP30: 45.12133238 | AW30: 1.124689784 | AX30: n.d. | AY30: n.d. | AZ30: n.d. | BA30: n.d. | BB30: n.d. | BC30: n.d. | BD30: =IF(ISERROR(STANDARDIZE($AW30,AVERAGE($AW:$AW),STDEV('Datos mensuales'!$AH:$AH))),"n.d.",STANDARDIZE($AW30,AVERAGE('Datos mensuales'!$AH:$AH),STDEV('Datos mensuales'!$AH:$AH))) -> 1.228425247 | BE30: =IF(ISERROR(STANDARDIZE($AX30,AVERAGE($AX:$AX),STDEV('Datos mensuales'!$AH:$AH))),"n.d.",STANDARDIZE($AX30,AVERAGE('Datos mensuales'!$AH:$AH),STDEV('Datos mensuales'!$AH:$AH))) -> n.d. | BF30: =IF(ISERROR(STANDARDIZE($AY30,AVERAGE($AY:$AY),STDEV('Datos mensuales'!$AH:$AH))),"n.d.",STANDARDIZE($AY30,AVERAGE('Datos mensuales'!$AH:$AH),STDEV('Datos mensuales'!$AH:$AH))) -> n.d. | BG30: =IF(ISERROR(STANDARDIZE($AZ30,AVERAGE($AZ:$AZ),STDEV('Datos mensuales'!$AH:$AH))),"n.d.",STANDARDIZE($AZ30,AVERAGE('Datos mensuales'!$AH:$AH),STDEV('Datos mensuales'!$AH:$AH))) -> n.d. | BH30: =IF(ISERROR(STANDARDIZE($BA30,AVERAGE($BA:$BA),STDEV('Datos mensuales'!$AH:$AH))),"n.d.",STANDARDIZE($BA30,AVERAGE('Datos mensuales'!$AH:$AH),STDEV('Datos mensuales'!$AH:$AH))) -> n.d. | BI30: =IF(ISERROR(STANDARDIZE($BB30,AVERAGE($BB:$BB),STDEV('Datos mensuales'!$AH:$AH))),"n.d.",STANDARDIZE($BB30,AVERAGE('Datos mensuales'!$AH:$AH),STDEV('Datos mensuales'!$AH:$AH))) -> n.d. | BJ30: =IF(ISERROR(STANDARDIZE($BC30,AVERAGE($BC:$BC),STDEV('Datos mensuales'!$AH:$AH))),"n.d.",STANDARDIZE($BC30,AVERAGE('Datos mensuales'!$AH:$AH),STDEV('Datos mensuales'!$AH:$AH))) -> n.d. | BK30: -0.1006796856 | BL30: n.d. | BM30: n.d. | BN30: n.d. | BO30: n.d. | BP30: n.d. | BQ30: n.d. | BR30: -0.02566319172 | BS30: n.d. | BT30: n.d. | BU30: n.d. | BV30: n.d. | BW30: n.d. | BX30: n.d.
B31: Mar | C31: 7.974245349 | L31: 7.538517448 | U31: 0.4974094751 | AH31: n.d. | AI31: n.d. | AJ31: n.d. | AK31: =IF(OR('[1]REAL(M)'!$CI30="",'[1]REAL(M)'!$CI30=""),"",IF(OR('[1]REAL(M)'!$CI30="n.d.",'[1]REAL(M)'!$CI30="n.d."),"n.d.",'[1]REAL(M)'!$CI30-'[1]REAL(M)'!$CJ30)) -> -0.4002604471 | AL31: -0.2487660193 | AM31: 0.2390654795 | AP31: 45.38725632 | AW31: 1.104142559 | AX31: n.d. | AY31: n.d. | AZ31: n.d. | BA31: n.d. | BB31: n.d. | BC31: n.d. | BD31: =IF(ISERROR(STANDARDIZE($AW31,AVERAGE($AW:$AW),STDEV('Datos mensuales'!$AH:$AH))),"n.d.",STANDARDIZE($AW31,AVERAGE('Datos mensuales'!$AH:$AH),STDEV('Datos mensuales'!$AH:$AH))) -> 1.206059843 | BE31: =IF(ISERROR(STANDARDIZE($AX31,AVERAGE($AX:$AX),STDEV('Datos mensuales'!$AH:$AH))),"n.d.",STANDARDIZE($AX31,AVERAGE('Datos mensuales'!$AH:$AH),STDEV('Datos mensuales'!$AH:$AH))) -> n.d. | BF31: =IF(ISERROR(STANDARDIZE($AY31,AVERAGE($AY:$AY),STDEV('Datos mensuales'!$AH:$AH))),"n.d.",STANDARDIZE($AY31,AVERAGE('Datos mensuales'!$AH:$AH),STDEV('Datos mensuales'!$AH:$AH))) -> n.d. | BG31: =IF(ISERROR(STANDARDIZE($AZ31,AVERAGE($AZ:$AZ),STDEV('Datos mensuales'!$AH:$AH))),"n.d.",STANDARDIZE($AZ31,AVERAGE('Datos mensuales'!$AH:$AH),STDEV('Datos mensuales'!$AH:$AH))) -> n.d. | BH31: =IF(ISERROR(STANDARDIZE($BA31,AVERAGE($BA:$BA),STDEV('Datos mensuales'!$AH:$AH))),"n.d.",STANDARDIZE($BA31,AVERAGE('Datos mensuales'!$AH:$AH),STDEV('Datos mensuales'!$AH:$AH))) -> n.d. | BI31: =IF(ISERROR(STANDARDIZE($BB31,AVERAGE($BB:$BB),STDEV('Datos mensuales'!$AH:$AH))),"n.d.",STANDARDIZE($BB31,AVERAGE('Datos mensuales'!$AH:$AH),STDEV('Datos mensuales'!$AH:$AH))) -> n.d. | BJ31: =IF(ISERROR(STANDARDIZE($BC31,AVERAGE($BC:$BC),STDEV('Datos mensuales'!$AH:$AH))),"n.d.",STANDARDIZE($BC31,AVERAGE('Datos mensuales'!$AH:$AH),STDEV('Datos mensuales'!$AH:$AH))) -> n.d. | BK31: -0.02236540407 | BL31: n.d. | BM31: n.d. | BN31: n.d. | BO31: n.d. | BP31: n.d. | BQ31: n.d. | BR31: 0.2092843008 | BS31: n.d. | BT31: n.d. | BU31: n.d. | BV31: n.d. | BW31: n.d. | BX31: n.d.
B32: Abr | C32: 8.302296575 | L32: 7.730006269 | U32: 0.3280512263 | AH32: n.d. | AI32: n.d. | AJ32: n.d. | AK32: =IF(OR('[1]REAL(M)'!$CI31="",'[1]REAL(M)'!$CI31=""),"",IF(OR('[1]REAL(M)'!$CI31="n.d.",'[1]REAL(M)'!$CI31="n.d."),"n.d.",'[1]REAL(M)'!$CI31-'[1]REAL(M)'!$CJ31)) -> -0.1102368387 | AL32: -0.06963290928 | AM32: 0.1791331101 | AP32: 45.65177473 | AW32: 1.123602852 | AX32: n.d. | AY32: n.d. | AZ32: n.d. | BA32: n.d. | BB32: n.d. | BC32: n.d. | BD32: =IF(ISERROR(STANDARDIZE($AW32,AVERAGE($AW:$AW),STDEV('Datos mensuales'!$AH:$AH))),"n.d.",STANDARDIZE($AW32,AVERAGE('Datos mensuales'!$AH:$AH),STDEV('Datos mensuales'!$AH:$AH))) -> 1.227242135 | BE32: =IF(ISERROR(STANDARDIZE($AX32,AVERAGE($AX:$AX),STDEV('Datos mensuales'!$AH:$AH))),"n.d.",STANDARDIZE($AX32,AVERAGE('Datos mensuales'!$AH:$AH),STDEV('Datos mensuales'!$AH:$AH))) -> n.d. | BF32: =IF(ISERROR(STANDARDIZE($AY32,AVERAGE($AY:$AY),STDEV('Datos mensuales'!$AH:$AH))),"n.d.",STANDARDIZE($AY32,AVERAGE('Datos mensuales'!$AH:$AH),STDEV('Datos mensuales'!$AH:$AH))) -> n.d. | BG32: =IF(ISERROR(STANDARDIZE($AZ32,AVERAGE($AZ:$AZ),STDEV('Datos mensuales'!$AH:$AH))),"n.d.",STANDARDIZE($AZ32,AVERAGE('Datos mensuales'!$AH:$AH),STDEV('Datos mensuales'!$AH:$AH))) -> n.d. | BH32: =IF(ISERROR(STANDARDIZE($BA32,AVERAGE($BA:$BA),STDEV('Datos mensuales'!$AH:$AH))),"n.d.",STANDARDIZE($BA32,AVERAGE('Datos mensuales'!$AH:$AH),STDEV('Datos mensuales'!$AH:$AH))) -> n.d. | BI32: =IF(ISERROR(STANDARDIZE($BB32,AVERAGE($BB:$BB),STDEV('Datos mensuales'!$AH:$AH))),"n.d.",STANDARDIZE($BB32,AVERAGE('Datos mensuales'!$AH:$AH),STDEV('Datos mensuales'!$AH:$AH))) -> n.d. | BJ32: =IF(ISERROR(STANDARDIZE($BC32,AVERAGE($BC:$BC),STDEV('Datos mensuales'!$AH:$AH))),"n.d.",STANDARDIZE($BC32,AVERAGE('Datos mensuales'!$AH:$AH),STDEV('Datos mensuales'!$AH:$AH))) -> n.d. | BK32: 0.02118229128 | BL32: n.d. | BM32: n.d. | BN32: n.d. | BO32: n.d. | BP32: n.d. | BQ32: n.d. | BR32: 0.4512842832 | BS32: n.d. | BT32: n.d. | BU32: n.d. | BV32: n.d. | BW32: n.d. | BX32: n.d.
B33: May | C33: 8.593278964 | L33: 7.903647699 | U33: 0.2909823895 | AH33: n.d. | AI33: n.d. | AJ33: n.d. | AK33: =IF(OR('[1]REAL(M)'!$CI32="",'[1]REAL(M)'!$CI32=""),"",IF(OR('[1]REAL(M)'!$CI32="n.d.",'[1]REAL(M)'!$CI32="n.d."),"n.d.",'[1]REAL(M)'!$CI32-'[1]REAL(M)'!$CJ32)) -> 0.003643986492 | AL33: 0.0007055935362 | AM33: 0.07033850282 | AP33: 45.91478932 | AW33: 1.187645003 | AX33: n.d. | AY33: n.d. | AZ33: n.d. | BA33: n.d. | BB33: n.d. | BC33: n.d. | BD33: =IF(ISERROR(STANDARDIZE($AW33,AVERAGE($AW:$AW),STDEV('Datos mensuales'!$AH:$AH))),"n.d.",STANDARDIZE($AW33,AVERAGE('Datos mensuales'!$AH:$AH),STDEV('Datos mensuales'!$AH:$AH))) -> 1.296951235 | BE33: =IF(ISERROR(STANDARDIZE($AX33,AVERAGE($AX:$AX),STDEV('Datos mensuales'!$AH:$AH))),"n.d.",STANDARDIZE($AX33,AVERAGE('Datos mensuales'!$AH:$AH),STDEV('Datos mensuales'!$AH:$AH))) -> n.d. | BF33: =IF(ISERROR(STANDARDIZE($AY33,AVERAGE($AY:$AY),STDEV('Datos mensuales'!$AH:$AH))),"n.d.",STANDARDIZE($AY33,AVERAGE('Datos mensuales'!$AH:$AH),STDEV('Datos mensuales'!$AH:$AH))) -> n.d. | BG33: =IF(ISERROR(STANDARDIZE($AZ33,AVERAGE($AZ:$AZ),STDEV('Datos mensuales'!$AH:$AH))),"n.d.",STANDARDIZE($AZ33,AVERAGE('Datos mensuales'!$AH:$AH),STDEV('Datos mensuales'!$AH:$AH))) -> n.d. | BH33: =IF(ISERROR(STANDARDIZE($BA33,AVERAGE($BA:$BA),STDEV('Datos mensuales'!$AH:$AH))),"n.d.",STANDARDIZE($BA33,AVERAGE('Datos mensuales'!$AH:$AH),STDEV('Datos mensuales'!$AH:$AH))) -> n.d. | BI33: =IF(ISERROR(STANDARDIZE($BB33,AVERAGE($BB:$BB),STDEV('Datos mensuales'!$AH:$AH))),"n.d.",STANDARDIZE($BB33,AVERAGE('Datos mensuales'!$AH:$AH),STDEV('Datos mensuales'!$AH:$AH))) -> n.d. | BJ33: =IF(ISERROR(STANDARDIZE($BC33,AVERAGE($BC:$BC),STDEV('Datos mensuales'!$AH:$AH))),"n.d.",STANDARDIZE($BC33,AVERAGE('Datos mensuales'!$AH:$AH),STDEV('Datos mensuales'!$AH:$AH))) -> n.d. | BK33: 0.06970909995 | BL33: n.d. | BM33: n.d. | BN33: n.d. | BO33: n.d. | BP33: n.d. | BQ33: n.d. | BR33: 0.7243051659 | BS33: n.d. | BT33: n.d. | BU33: n.d. | BV33: n.d. | BW33: n.d. | BX33: n.d.
B34: Jun | C34: 9.016170621 | L34: 8.090643334 | U34: 0.422891657 | AH34: n.d. | AI34: n.d. | AJ34: n.d. | AK34: =IF(OR('[1]REAL(M)'!$CI33="",'[1]REAL(M)'!$CI33=""),"",IF(OR('[1]REAL(M)'!$CI33="n.d.",'[1]REAL(M)'!$CI33="n.d."),"n.d.",'[1]REAL(M)'!$CI33-'[1]REAL(M)'!$CJ33)) -> 0.1174073761 | AL34: 0.07097156222 | AM34: 0.07026596869 | AP34: 46.17616349 | AW34: 1.32105987 | AX34: n.d. | AY34: n.d. | AZ34: n.d. | BA34: n.d. | BB34: n.d. | BC34: n.d. | BD34: =IF(ISERROR(STANDARDIZE($AW34,AVERAGE($AW:$AW),STDEV('Datos mensuales'!$AH:$AH))),"n.d.",STANDARDIZE($AW34,AVERAGE('Datos mensuales'!$AH:$AH),STDEV('Datos mensuales'!$AH:$AH))) -> 1.442171689 | BE34: =IF(ISERROR(STANDARDIZE($AX34,AVERAGE($AX:$AX),STDEV('Datos mensuales'!$AH:$AH))),"n.d.",STANDARDIZE($AX34,AVERAGE('Datos mensuales'!$AH:$AH),STDEV('Datos mensuales'!$AH:$AH))) -> n.d. | BF34: =IF(ISERROR(STANDARDIZE($AY34,AVERAGE($AY:$AY),STDEV('Datos mensuales'!$AH:$AH))),"n.d.",STANDARDIZE($AY34,AVERAGE('Datos mensuales'!$AH:$AH),STDEV('Datos mensuales'!$AH:$AH))) -> n.d. | BG34: =IF(ISERROR(STANDARDIZE($AZ34,AVERAGE($AZ:$AZ),STDEV('Datos mensuales'!$AH:$AH))),"n.d.",STANDARDIZE($AZ34,AVERAGE('Datos mensuales'!$AH:$AH),STDEV('Datos mensuales'!$AH:$AH))) -> n.d. | BH34: =IF(ISERROR(STANDARDIZE($BA34,AVERAGE($BA:$BA),STDEV('Datos mensuales'!$AH:$AH))),"n.d.",STANDARDIZE($BA34,AVERAGE('Datos mensuales'!$AH:$AH),STDEV('Datos mensuales'!$AH:$AH))) -> n.d. | BI34: =IF(ISERROR(STANDARDIZE($BB34,AVERAGE($BB:$BB),STDEV('Datos mensuales'!$AH:$AH))),"n.d.",STANDARDIZE($BB34,AVERAGE('Datos mensuales'!$AH:$AH),STDEV('Datos mensuales'!$AH:$AH))) -> n.d. | BJ34: =IF(ISERROR(STANDARDIZE($BC34,AVERAGE($BC:$BC),STDEV('Datos mensuales'!$AH:$AH))),"n.d.",STANDARDIZE($BC34,AVERAGE('Datos mensuales'!$AH:$AH),STDEV('Datos mensuales'!$AH:$AH))) -> n.d. | BK34: 0.1452204547 | BL34: n.d. | BM34: n.d. | BN34: n.d. | BO34: n.d. | BP34: n.d. | BQ34: n.d. | BR34: 1.159985733 | BS34: n.d. | BT34: n.d. | BU34: n.d. | BV34: n.d. | BW34: n.d. | BX34: n.d.
B35: Jul | C35: 9.416579146 | L35: 8.282218575 | U35: 0.4004085243 | AH35: n.d. | AI35: n.d. | AJ35: n.d. | AK35: =IF(OR('[1]REAL(M)'!$CI34="",'[1]REAL(M)'!$CI34=""),"",IF(OR('[1]REAL(M)'!$CI34="n.d.",'[1]REAL(M)'!$CI34="n.d."),"n.d.",'[1]REAL(M)'!$CI34-'[1]REAL(M)'!$CJ34)) -> 0.1599986812 | AL35: 0.097278086 | AM35: 0.02630652377 | AP35: 46.43572559 | AW35: 1.463245926 | AX35: n.d. | AY35: n.d. | AZ35: n.d. | BA35: n.d. | BB35: n.d. | BC35: n.d. | BD35: =IF(ISERROR(STANDARDIZE($AW35,AVERAGE($AW:$AW),STDEV('Datos mensuales'!$AH:$AH))),"n.d.",STANDARDIZE($AW35,AVERAGE('Datos mensuales'!$AH:$AH),STDEV('Datos mensuales'!$AH:$AH))) -> 1.596939476 | BE35: =IF(ISERROR(STANDARDIZE($AX35,AVERAGE($AX:$AX),STDEV('Datos mensuales'!$AH:$AH))),"n.d.",STANDARDIZE($AX35,AVERAGE('Datos mensuales'!$AH:$AH),STDEV('Datos mensuales'!$AH:$AH))) -> n.d. | BF35: =IF(ISERROR(STANDARDIZE($AY35,AVERAGE($AY:$AY),STDEV('Datos mensuales'!$AH:$AH))),"n.d.",STANDARDIZE($AY35,AVERAGE('Datos mensuales'!$AH:$AH),STDEV('Datos mensuales'!$AH:$AH))) -> n.d. | BG35: =IF(ISERROR(STANDARDIZE($AZ35,AVERAGE($AZ:$AZ),STDEV('Datos mensuales'!$AH:$AH))),"n.d.",STANDARDIZE($AZ35,AVERAGE('Datos mensuales'!$AH:$AH),STDEV('Datos mensuales'!$AH:$AH))) -> n.d. | BH35: =IF(ISERROR(STANDARDIZE($BA35,AVERAGE($BA:$BA),STDEV('Datos mensuales'!$AH:$AH))),"n.d.",STANDARDIZE($BA35,AVERAGE('Datos mensuales'!$AH:$AH),STDEV('Datos mensuales'!$AH:$AH))) -> n.d. | BI35: =IF(ISERROR(STANDARDIZE($BB35,AVERAGE($BB:$BB),STDEV('Datos mensuales'!$AH:$AH))),"n.d.",STANDARDIZE($BB35,AVERAGE('Datos mensuales'!$AH:$AH),STDEV('Datos mensuales'!$AH:$AH))) -> n.d. | BJ35: =IF(ISERROR(STANDARDIZE($BC35,AVERAGE($BC:$BC),STDEV('Datos mensuales'!$AH:$AH))),"n.d.",STANDARDIZE($BC35,AVERAGE('Datos mensuales'!$AH:$AH),STDEV('Datos mensuales'!$AH:$AH))) -> n.d. | BK35: 0.1547677864 | BL35: n.d. | BM35: n.d. | BN35: n.d. | BO35: n.d. | BP35: n.d. | BQ35: n.d. | BR35: 1.669971598 | BS35: n.d. | BT35: n.d. | BU35: n.d. | BV35: n.d. | BW35: n.d. | BX35: n.d.
B36: Ago | C36: 9.219062255 | L36: 8.401325436 | U36: -0.1975168907 | AH36: n.d. | AI36: n.d. | AJ36: n.d. | AK36: =IF(OR('[1]REAL(M)'!$CI35="",'[1]REAL(M)'!$CI35=""),"",IF(OR('[1]REAL(M)'!$CI35="n.d.",'[1]REAL(M)'!$CI35="n.d."),"n.d.",'[1]REAL(M)'!$CI35-'[1]REAL(M)'!$CJ35)) -> -0.008655720672 | AL36: -0.006891321795 | AM36: -0.1041694078 | AP36: 46.69329035 | AW36: 1.506799136 | AX36: n.d. | AY36: n.d. | AZ36: n.d. | BA36: n.d. | BB36: n.d. | BC36: n.d. | BD36: =IF(ISERROR(STANDARDIZE($AW36,AVERAGE($AW:$AW),STDEV('Datos mensuales'!$AH:$AH))),"n.d.",STANDARDIZE($AW36,AVERAGE('Datos mensuales'!$AH:$AH),STDEV('Datos mensuales'!$AH:$AH))) -> 1.644346613 | BE36: =IF(ISERROR(STANDARDIZE($AX36,AVERAGE($AX:$AX),STDEV('Datos mensuales'!$AH:$AH))),"n.d.",STANDARDIZE($AX36,AVERAGE('Datos mensuales'!$AH:$AH),STDEV('Datos mensuales'!$AH:$AH))) -> n.d. | BF36: =IF(ISERROR(STANDARDIZE($AY36,AVERAGE($AY:$AY),STDEV('Datos mensuales'!$AH:$AH))),"n.d.",STANDARDIZE($AY36,AVERAGE('Datos mensuales'!$AH:$AH),STDEV('Datos mensuales'!$AH:$AH))) -> n.d. | BG36: =IF(ISERROR(STANDARDIZE($AZ36,AVERAGE($AZ:$AZ),STDEV('Datos mensuales'!$AH:$AH))),"n.d.",STANDARDIZE($AZ36,AVERAGE('Datos mensuales'!$AH:$AH),STDEV('Datos mensuales'!$AH:$AH))) -> n.d. | BH36: =IF(ISERROR(STANDARDIZE($BA36,AVERAGE($BA:$BA),STDEV('Datos mensuales'!$AH:$AH))),"n.d.",STANDARDIZE($BA36,AVERAGE('Datos mensuales'!$AH:$AH),STDEV('Datos mensuales'!$AH:$AH))) -> n.d. | BI36: =IF(ISERROR(STANDARDIZE($BB36,AVERAGE($BB:$BB),STDEV('Datos mensuales'!$AH:$AH))),"n.d.",STANDARDIZE($BB36,AVERAGE('Datos mensuales'!$AH:$AH),STDEV('Datos mensuales'!$AH:$AH))) -> n.d. | BJ36: =IF(ISERROR(STANDARDIZE($BC36,AVERAGE($BC:$BC),STDEV('Datos mensuales'!$AH:$AH))),"n.d.",STANDARDIZE($BC36,AVERAGE('Datos mensuales'!$AH:$AH),STDEV('Datos mensuales'!$AH:$AH))) -> n.d. | BK36: 0.04740713696 | BL36: n.d. | BM36: n.d. | BN36: n.d. | BO36: n.d. | BP36: n.d. | BQ36: n.d. | BR36: 1.387775953 | BS36: n.d. | BT36: n.d. | BU36: n.d. | BV36: n.d. | BW36: n.d. | BX36: n.d.
B37: Sep | C37: 8.400209346 | L37: 8.401198276 | U37: -0.8188529093 | AH37: n.d. | AI37: n.d. | AJ37: n.d. | AK37: =IF(OR('[1]REAL(M)'!$CI36="",'[1]REAL(M)'!$CI36=""),"",IF(OR('[1]REAL(M)'!$CI36="n.d.",'[1]REAL(M)'!$CI36="n.d."),"n.d.",'[1]REAL(M)'!$CI36-'[1]REAL(M)'!$CJ36)) -> -0.02081378895 | AL37: -0.01440075386 | AM37: -0.007509432061 | AP37: 46.9486846 | AW37: 1.434455151 | AX37: n.d. | AY37: n.d. | AZ37: n.d. | BA37: n.d. | BB37: n.d. | BC37: n.d. | BD37: =IF(ISERROR(STANDARDIZE($AW37,AVERAGE($AW:$AW),STDEV('Datos mensuales'!$AH:$AH))),"n.d.",STANDARDIZE($AW37,AVERAGE('Datos mensuales'!$AH:$AH),STDEV('Datos mensuales'!$AH:$AH))) -> 1.565601069 | BE37: =IF(ISERROR(STANDARDIZE($AX37,AVERAGE($AX:$AX),STDEV('Datos mensuales'!$AH:$AH))),"n.d.",STANDARDIZE($AX37,AVERAGE('Datos mensuales'!$AH:$AH),STDEV('Datos mensuales'!$AH:$AH))) -> n.d. | BF37: =IF(ISERROR(STANDARDIZE($AY37,AVERAGE($AY:$AY),STDEV('Datos mensuales'!$AH:$AH))),"n.d.",STANDARDIZE($AY37,AVERAGE('Datos mensuales'!$AH:$AH),STDEV('Datos mensuales'!$AH:$AH))) -> n.d. | BG37: =IF(ISERROR(STANDARDIZE($AZ37,AVERAGE($AZ:$AZ),STDEV('Datos mensuales'!$AH:$AH))),"n.d.",STANDARDIZE($AZ37,AVERAGE('Datos mensuales'!$AH:$AH),STDEV('Datos mensuales'!$AH:$AH))) -> n.d. | BH37: =IF(ISERROR(STANDARDIZE($BA37,AVERAGE($BA:$BA),STDEV('Datos mensuales'!$AH:$AH))),"n.d.",STANDARDIZE($BA37,AVERAGE('Datos mensuales'!$AH:$AH),STDEV('Datos mensuales'!$AH:$AH))) -> n.d. | BI37: =IF(ISERROR(STANDARDIZE($BB37,AVERAGE($BB:$BB),STDEV('Datos mensuales'!$AH:$AH))),"n.d.",STANDARDIZE($BB37,AVERAGE('Datos mensuales'!$AH:$AH),STDEV('Datos mensuales'!$AH:$AH))) -> n.d. | BJ37: =IF(ISERROR(STANDARDIZE($BC37,AVERAGE($BC:$BC),STDEV('Datos mensuales'!$AH:$AH))),"n.d.",STANDARDIZE($BC37,AVERAGE('Datos mensuales'!$AH:$AH),STDEV('Datos mensuales'!$AH:$AH))) -> n.d. | BK37: -0.07874554395 | BL37: n.d. | BM37: n.d. | BN37: n.d. | BO37: n.d. | BP37: n.d. | BQ37: n.d. | BR37: 0.6659758738 | BS37: n.d. | BT37: n.d. | BU37: n.d. | BV37: n.d. | BW37: n.d. | BX37: n.d.
B38: Oct | C38: 7.530207642 | L38: 8.311259758 | U38: -0.8700017039 | AH38: n.d. | AI38: n.d. | AJ38: n.d. | AK38: =IF(OR('[1]REAL(M)'!$CI37="",'[1]REAL(M)'!$CI37=""),"",IF(OR('[1]REAL(M)'!$CI37="n.d.",'[1]REAL(M)'!$CI37="n.d."),"n.d.",'[1]REAL(M)'!$CI37-'[1]REAL(M)'!$CJ37)) -> 0.1593492457 | AL38: 0.0968769621 | AM38: 0.111277716 | AP38: 47.20176131 | AW38: 1.305809535 | AX38: n.d. | AY38: n.d. | AZ38: n.d. | BA38: n.d. | BB38: n.d. | BC38: n.d. | BD38: =IF(ISERROR(STANDARDIZE($AW38,AVERAGE($AW:$AW),STDEV('Datos mensuales'!$AH:$AH))),"n.d.",STANDARDIZE($AW38,AVERAGE('Datos mensuales'!$AH:$AH),STDEV('Datos mensuales'!$AH:$AH))) -> 1.425571886 | BE38: =IF(ISERROR(STANDARDIZE($AX38,AVERAGE($AX:$AX),STDEV('Datos mensuales'!$AH:$AH))),"n.d.",STANDARDIZE($AX38,AVERAGE('Datos mensuales'!$AH:$AH),STDEV('Datos mensuales'!$AH:$AH))) -> n.d. | BF38: =IF(ISERROR(STANDARDIZE($AY38,AVERAGE($AY:$AY),STDEV('Datos mensuales'!$AH:$AH))),"n.d.",STANDARDIZE($AY38,AVERAGE('Datos mensuales'!$AH:$AH),STDEV('Datos mensuales'!$AH:$AH))) -> n.d. | BG38: =IF(ISERROR(STANDARDIZE($AZ38,AVERAGE($AZ:$AZ),STDEV('Datos mensuales'!$AH:$AH))),"n.d.",STANDARDIZE($AZ38,AVERAGE('Datos mensuales'!$AH:$AH),STDEV('Datos mensuales'!$AH:$AH))) -> n.d. | BH38: =IF(ISERROR(STANDARDIZE($BA38,AVERAGE($BA:$BA),STDEV('Datos mensuales'!$AH:$AH))),"n.d.",STANDARDIZE($BA38,AVERAGE('Datos mensuales'!$AH:$AH),STDEV('Datos mensuales'!$AH:$AH))) -> n.d. | BI38: =IF(ISERROR(STANDARDIZE($BB38,AVERAGE($BB:$BB),STDEV('Datos mensuales'!$AH:$AH))),"n.d.",STANDARDIZE($BB38,AVERAGE('Datos mensuales'!$AH:$AH),STDEV('Datos mensuales'!$AH:$AH))) -> n.d. | BJ38: =IF(ISERROR(STANDARDIZE($BC38,AVERAGE($BC:$BC),STDEV('Datos mensuales'!$AH:$AH))),"n.d.",STANDARDIZE($BC38,AVERAGE('Datos mensuales'!$AH:$AH),STDEV('Datos mensuales'!$AH:$AH))) -> n.d. | BK38: -0.1400291827 | BL38: n.d. | BM38: n.d. | BN38: n.d. | BO38: n.d. | BP38: n.d. | BQ38: n.d. | BR38: 0.2251115651 | BS38: n.d. | BT38: n.d. | BU38: n.d. | BV38: n.d. | BW38: n.d. | BX38: n.d.
B39: Nov | C39: 6.61350225 | L39: 8.150961168 | U39: -0.9167053923 | AH39: n.d. | AI39: n.d. | AJ39: n.d. | AK39: =IF(OR('[1]REAL(M)'!$CI38="",'[1]REAL(M)'!$CI38=""),"",IF(OR('[1]REAL(M)'!$CI38="n.d.",'[1]REAL(M)'!$CI38="n.d."),"n.d.",'[1]REAL(M)'!$CI38-'[1]REAL(M)'!$CJ38)) -> 0.2421336797 | AL39: 0.1480087758 | AM39: 0.05113181372 | AP39: 47.4523958 | AW39: 1.108332557 | AX39: n.d. | AY39: n.d. | AZ39: n.d. | BA39: n.d. | BB39: n.d. | BC39: n.d. | BD39: =IF(ISERROR(STANDARDIZE($AW39,AVERAGE($AW:$AW),STDEV('Datos mensuales'!$AH:$AH))),"n.d.",STANDARDIZE($AW39,AVERAGE('Datos mensuales'!$AH:$AH),STDEV('Datos mensuales'!$AH:$AH))) -> 1.210620605 | BE39: =IF(ISERROR(STANDARDIZE($AX39,AVERAGE($AX:$AX),STDEV('Datos mensuales'!$AH:$AH))),"n.d.",STANDARDIZE($AX39,AVERAGE('Datos mensuales'!$AH:$AH),STDEV('Datos mensuales'!$AH:$AH))) -> n.d. | BF39: =IF(ISERROR(STANDARDIZE($AY39,AVERAGE($AY:$AY),STDEV('Datos mensuales'!$AH:$AH))),"n.d.",STANDARDIZE($AY39,AVERAGE('Datos mensuales'!$AH:$AH),STDEV('Datos mensuales'!$AH:$AH))) -> n.d. | BG39: =IF(ISERROR(STANDARDIZE($AZ39,AVERAGE($AZ:$AZ),STDEV('Datos mensuales'!$AH:$AH))),"n.d.",STANDARDIZE($AZ39,AVERAGE('Datos mensuales'!$AH:$AH),STDEV('Datos mensuales'!$AH:$AH))) -> n.d. | BH39: =IF(ISERROR(STANDARDIZE($BA39,AVERAGE($BA:$BA),STDEV('Datos mensuales'!$AH:$AH))),"n.d.",STANDARDIZE($BA39,AVERAGE('Datos mensuales'!$AH:$AH),STDEV('Datos mensuales'!$AH:$AH))) -> n.d. | BI39: =IF(ISERROR(STANDARDIZE($BB39,AVERAGE($BB:$BB),STDEV('Datos mensuales'!$AH:$AH))),"n.d.",STANDARDIZE($BB39,AVERAGE('Datos mensuales'!$AH:$AH),STDEV('Datos mensuales'!$AH:$AH))) -> n.d. | BJ39: =IF(ISERROR(STANDARDIZE($BC39,AVERAGE($BC:$BC),STDEV('Datos mensuales'!$AH:$AH))),"n.d.",STANDARDIZE($BC39,AVERAGE('Datos mensuales'!$AH:$AH),STDEV('Datos mensuales'!$AH:$AH))) -> n.d. | BK39: -0.2149512811 | BL39: n.d. | BM39: n.d. | BN39: n.d. | BO39: n.d. | BP39: n.d. | BQ39: n.d. | BR39: -0.100350529 | BS39: n.d. | BT39: n.d. | BU39: n.d. | BV39: n.d. | BW39: n.d. | BX39: n.d.
B40: Dic | C40: 6.093658325 | L40: 7.972274302 | U40: -0.5198439244 | AH40: n.d. | AI40: n.d. | AJ40: n.d. | AK40: =IF(OR('[1]REAL(M)'!$CI39="",'[1]REAL(M)'!$CI39=""),"",IF(OR('[1]REAL(M)'!$CI39="n.d.",'[1]REAL(M)'!$CI39="n.d."),"n.d.",'[1]REAL(M)'!$CI39-'[1]REAL(M)'!$CJ39)) -> 0.2438395713 | AL40: 0.1490624199 | AM40: 0.001053644126 | AP40: 47.70047088 | AW40: 0.9809210675 | AX40: n.d. | AY40: n.d. | AZ40: n.d. | BA40: n.d. | BB40: n.d. | BC40: n.d. | BD40: =IF(ISERROR(STANDARDIZE($AW40,AVERAGE($AW:$AW),STDEV('Datos mensuales'!$AH:$AH))),"n.d.",STANDARDIZE($AW40,AVERAGE('Datos mensuales'!$AH:$AH),STDEV('Datos mensuales'!$AH:$AH))) -> 1.071934754 | BE40: =IF(ISERROR(STANDARDIZE($AX40,AVERAGE($AX:$AX),STDEV('Datos mensuales'!$AH:$AH))),"n.d.",STANDARDIZE($AX40,AVERAGE('Datos mensuales'!$AH:$AH),STDEV('Datos mensuales'!$AH:$AH))) -> n.d. | BF40: =IF(ISERROR(STANDARDIZE($AY40,AVERAGE($AY:$AY),STDEV('Datos mensuales'!$AH:$AH))),"n.d.",STANDARDIZE($AY40,AVERAGE('Datos mensuales'!$AH:$AH),STDEV('Datos mensuales'!$AH:$AH))) -> n.d. | BG40: =IF(ISERROR(STANDARDIZE($AZ40,AVERAGE($AZ:$AZ),STDEV('Datos mensuales'!$AH:$AH))),"n.d.",STANDARDIZE($AZ40,AVERAGE('Datos mensuales'!$AH:$AH),STDEV('Datos mensuales'!$AH:$AH))) -> n.d. | BH40: =IF(ISERROR(STANDARDIZE($BA40,AVERAGE($BA:$BA),STDEV('Datos mensuales'!$AH:$AH))),"n.d.",STANDARDIZE($BA40,AVERAGE('Datos mensuales'!$AH:$AH),STDEV('Datos mensuales'!$AH:$AH))) -> n.d. | BI40: =IF(ISERROR(STANDARDIZE($BB40,AVERAGE($BB:$BB),STDEV('Datos mensuales'!$AH:$AH))),"n.d.",STANDARDIZE($BB40,AVERAGE('Datos mensuales'!$AH:$AH),STDEV('Datos mensuales'!$AH:$AH))) -> n.d. | BJ40: =IF(ISERROR(STANDARDIZE($BC40,AVERAGE($BC:$BC),STDEV('Datos mensuales'!$AH:$AH))),"n.d.",STANDARDIZE($BC40,AVERAGE('Datos mensuales'!$AH:$AH),STDEV('Datos mensuales'!$AH:$AH))) -> n.d. | BK40: -0.1386858512 | BL40: n.d. | BM40: n.d. | BN40: n.d. | BO40: n.d. | BP40: n.d. | BQ40: n.d. | BR40: -0.2445480457 | BS40: n.d. | BT40: n.d. | BU40: n.d. | BV40: n.d. | BW40: n.d. | BX40: n.d.
A41: 1993 | B41: Ene | C41: 6.45579686 | L41: 6.45579686 | U41: 0.3621385351 | AH41: n.d. | AI41: n.d. | AJ41: n.d. | AK41: =IF(OR('[1]REAL(M)'!$CI40="",'[1]REAL(M)'!$CI40=""),"",IF(OR('[1]REAL(M)'!$CI40="n.d.",'[1]REAL(M)'!$CI40="n.d."),"n.d.",'[1]REAL(M)'!$CI40-'[1]REAL(M)'!$CJ40)) -> 0.2885672554 | AL41: 0.1766884784 | AM41: 0.02762605849 | AP41: 47.94586295 | AW41: 1.099669666 | AX41: n.d. | AY41: n.d. | AZ41: n.d. | BA41: n.d. | BB41: n.d. | BC41: n.d. | BD41: =IF(ISERROR(STANDARDIZE($AW41,AVERAGE($AW:$AW),STDEV('Datos mensuales'!$AH:$AH))),"n.d.",STANDARDIZE($AW41,AVERAGE('Datos mensuales'!$AH:$AH),STDEV('Datos mensuales'!$AH:$AH))) -> 1.201191154 | BE41: =IF(ISERROR(STANDARDIZE($AX41,AVERAGE($AX:$AX),STDEV('Datos mensuales'!$AH:$AH))),"n.d.",STANDARDIZE($AX41,AVERAGE('Datos mensuales'!$AH:$AH),STDEV('Datos mensuales'!$AH:$AH))) -> n.d. | BF41: =IF(ISERROR(STANDARDIZE($AY41,AVERAGE($AY:$AY),STDEV('Datos mensuales'!$AH:$AH))),"n.d.",STANDARDIZE($AY41,AVERAGE('Datos mensuales'!$AH:$AH),STDEV('Datos mensuales'!$AH:$AH))) -> n.d. | BG41: =IF(ISERROR(STANDARDIZE($AZ41,AVERAGE($AZ:$AZ),STDEV('Datos mensuales'!$AH:$AH))),"n.d.",STANDARDIZE($AZ41,AVERAGE('Datos mensuales'!$AH:$AH),STDEV('Datos mensuales'!$AH:$AH))) -> n.d. | BH41: =IF(ISERROR(STANDARDIZE($BA41,AVERAGE($BA:$BA),STDEV('Datos mensuales'!$AH:$AH))),"n.d.",STANDARDIZE($BA41,AVERAGE('Datos mensuales'!$AH:$AH),STDEV('Datos mensuales'!$AH:$AH))) -> n.d. | BI41: =IF(ISERROR(STANDARDIZE($BB41,AVERAGE($BB:$BB),STDEV('Datos mensuales'!$AH:$AH))),"n.d.",STANDARDIZE($BB41,AVERAGE('Datos mensuales'!$AH:$AH),STDEV('Datos mensuales'!$AH:$AH))) -> n.d. | BJ41: =IF(ISERROR(STANDARDIZE($BC41,AVERAGE($BC:$BC),STDEV('Datos mensuales'!$AH:$AH))),"n.d.",STANDARDIZE($BC41,AVERAGE('Datos mensuales'!$AH:$AH),STDEV('Datos mensuales'!$AH:$AH))) -> n.d. | BK41: 0.1292564 | BL41: n.d. | BM41: n.d. | BN41: n.d. | BO41: n.d. | BP41: n.d. | BQ41: n.d. | BR41: -0.09624054211 | BS41: n.d. | BT41: n.d. | BU41: n.d. | BV41: n.d. | BW41: n.d. | BX41: n.d.
B42: Feb | C42: 7.012193284 | L42: 6.734521702 | U42: 0.5563964237 | AH42: n.d. | AI42: n.d. | AJ42: n.d. | AK42: =IF(OR('[1]REAL(M)'!$CI41="",'[1]REAL(M)'!$CI41=""),"",IF(OR('[1]REAL(M)'!$CI41="n.d.",'[1]REAL(M)'!$CI41="n.d."),"n.d.",'[1]REAL(M)'!$CI41-'[1]REAL(M)'!$CJ41)) -> 0.3306271311 | AL42: 0.2026667647 | AM42: 0.02597828632 | AP42: 48.18843728 | AW42: 1.300445344 | AX42: n.d. | AY42: n.d. | AZ42: n.d. | BA42: n.d. | BB42: n.d. | BC42: n.d. | BD42: =IF(ISERROR(STANDARDIZE($AW42,AVERAGE($AW:$AW),STDEV('Datos mensuales'!$AH:$AH))),"n.d.",STANDARDIZE($AW42,AVERAGE('Datos mensuales'!$AH:$AH),STDEV('Datos mensuales'!$AH:$AH))) -> 1.419733029 | BE42: =IF(ISERROR(STANDARDIZE($AX42,AVERAGE($AX:$AX),STDEV('Datos mensuales'!$AH:$AH))),"n.d.",STANDARDIZE($AX42,AVERAGE('Datos mensuales'!$AH:$AH),STDEV('Datos mensuales'!$AH:$AH))) -> n.d. | BF42: =IF(ISERROR(STANDARDIZE($AY42,AVERAGE($AY:$AY),STDEV('Datos mensuales'!$AH:$AH))),"n.d.",STANDARDIZE($AY42,AVERAGE('Datos mensuales'!$AH:$AH),STDEV('Datos mensuales'!$AH:$AH))) -> n.d. | BG42: =IF(ISERROR(STANDARDIZE($AZ42,AVERAGE($AZ:$AZ),STDEV('Datos mensuales'!$AH:$AH))),"n.d.",STANDARDIZE($AZ42,AVERAGE('Datos mensuales'!$AH:$AH),STDEV('Datos mensuales'!$AH:$AH))) -> n.d. | BH42: =IF(ISERROR(STANDARDIZE($BA42,AVERAGE($BA:$BA),STDEV('Datos mensuales'!$AH:$AH))),"n.d.",STANDARDIZE($BA42,AVERAGE('Datos mensuales'!$AH:$AH),STDEV('Datos mensuales'!$AH:$AH))) -> n.d. | BI42: =IF(ISERROR(STANDARDIZE($BB42,AVERAGE($BB:$BB),STDEV('Datos mensuales'!$AH:$AH))),"n.d.",STANDARDIZE($BB42,AVERAGE('Datos mensuales'!$AH:$AH),STDEV('Datos mensuales'!$AH:$AH))) -> n.d. | BJ42: =IF(ISERROR(STANDARDIZE($BC42,AVERAGE($BC:$BC),STDEV('Datos mensuales'!$AH:$AH))),"n.d.",STANDARDIZE($BC42,AVERAGE('Datos mensuales'!$AH:$AH),STDEV('Datos mensuales'!$AH:$AH))) -> n.d. | BK42: 0.2185418754 | BL42: n.d. | BM42: n.d. | BN42: n.d. | BO42: n.d. | BP42: n.d. | BQ42: n.d. | BR42: 0.1557341663 | BS42: n.d. | BT42: n.d. | BU42: n.d. | BV42: n.d. | BW42: n.d. | BX42: n.d.
B43: Mar | C43: 7.154213511 | L43: 6.875089701 | U43: 0.1420202268 | AH43: n.d. | AI43: n.d. | AJ43: n.d. | AK43: =IF(OR('[1]REAL(M)'!$CI42="",'[1]REAL(M)'!$CI42=""),"",IF(OR('[1]REAL(M)'!$CI42="n.d.",'[1]REAL(M)'!$CI42="n.d."),"n.d.",'[1]REAL(M)'!$CI42-'[1]REAL(M)'!$CJ42)) -> 0.261098389 | AL43: 0.1597223304 | AM43: -0.04294443437 | AP43: 48.42805245 | AW43: 1.389440372 | AX43: n.d. | AY43: n.d. | AZ43: n.d. | BA43: n.d. | BB43: n.d. | BC43: n.d. | BD43: =IF(ISERROR(STANDARDIZE($AW43,AVERAGE($AW:$AW),STDEV('Datos mensuales'!$AH:$AH))),"n.d.",STANDARDIZE($AW43,AVERAGE('Datos mensuales'!$AH:$AH),STDEV('Datos mensuales'!$AH:$AH))) -> 1.516603031 | BE43: =IF(ISERROR(STANDARDIZE($AX43,AVERAGE($AX:$AX),STDEV('Datos mensuales'!$AH:$AH))),"n.d.",STANDARDIZE($AX43,AVERAGE('Datos mensuales'!$AH:$AH),STDEV('Datos mensuales'!$AH:$AH))) -> n.d. | BF43: =IF(ISERROR(STANDARDIZE($AY43,AVERAGE($AY:$AY),STDEV('Datos mensuales'!$AH:$AH))),"n.d.",STANDARDIZE($AY43,AVERAGE('Datos mensuales'!$AH:$AH),STDEV('Datos mensuales'!$AH:$AH))) -> n.d. | BG43: =IF(ISERROR(STANDARDIZE($AZ43,AVERAGE($AZ:$AZ),STDEV('Datos mensuales'!$AH:$AH))),"n.d.",STANDARDIZE($AZ43,AVERAGE('Datos mensuales'!$AH:$AH),STDEV('Datos mensuales'!$AH:$AH))) -> n.d. | BH43: =IF(ISERROR(STANDARDIZE($BA43,AVERAGE($BA:$BA),STDEV('Datos mensuales'!$AH:$AH))),"n.d.",STANDARDIZE($BA43,AVERAGE('Datos mensuales'!$AH:$AH),STDEV('Datos mensuales'!$AH:$AH))) -> n.d. | BI43: =IF(ISERROR(STANDARDIZE($BB43,AVERAGE($BB:$BB),STDEV('Datos mensuales'!$AH:$AH))),"n.d.",STANDARDIZE($BB43,AVERAGE('Datos mensuales'!$AH:$AH),STDEV('Datos mensuales'!$AH:$AH))) -> n.d. | BJ43: =IF(ISERROR(STANDARDIZE($BC43,AVERAGE($BC:$BC),STDEV('Datos mensuales'!$AH:$AH))),"n.d.",STANDARDIZE($BC43,AVERAGE('Datos mensuales'!$AH:$AH),STDEV('Datos mensuales'!$AH:$AH))) -> n.d. | BK43: 0.09687000152 | BL43: n.d. | BM43: n.d. | BN43: n.d. | BO43: n.d. | BP43: n.d. | BQ43: n.d. | BR43: 0.2574857202 | BS43: n.d. | BT43: n.d. | BU43: n.d. | BV43: n.d. | BW43: n.d. | BX43: n.d.
B44: Abr | C44: 7.058341954 | L44: 6.921277359 | U44: -0.09587155645 | AH44: n.d. | AI44: n.d. | AJ44: n.d. | AK44: =IF(OR('[1]REAL(M)'!$CI43="",'[1]REAL(M)'!$CI43=""),"",IF(OR('[1]REAL(M)'!$CI43="n.d.",'[1]REAL(M)'!$CI43="n.d."),"n.d.",'[1]REAL(M)'!$CI43-'[1]REAL(M)'!$CJ43)) -> 0.04666344713 | AL44: 0.0272765676 | AM44: -0.1324457628 | AP44: 48.66456857 | AW44: 1.412375111 | AX44: n.d. | AY44: n.d. | AZ44: n.d. | BA44: n.d. | BB44: n.d. | BC44: n.d. | BD44: =IF(ISERROR(STANDARDIZE($AW44,AVERAGE($AW:$AW),STDEV('Datos mensuales'!$AH:$AH))),"n.d.",STANDARDIZE($AW44,AVERAGE('Datos mensuales'!$AH:$AH),STDEV('Datos mensuales'!$AH:$AH))) -> 1.541567214 | BE44: =IF(ISERROR(STANDARDIZE($AX44,AVERAGE($AX:$AX),STDEV('Datos mensuales'!$AH:$AH))),"n.d.",STANDARDIZE($AX44,AVERAGE('Datos mensuales'!$AH:$AH),STDEV('Datos mensuales'!$AH:$AH))) -> n.d. | BF44: =IF(ISERROR(STANDARDIZE($AY44,AVERAGE($AY:$AY),STDEV('Datos mensuales'!$AH:$AH))),"n.d.",STANDARDIZE($AY44,AVERAGE('Datos mensuales'!$AH:$AH),STDEV('Datos mensuales'!$AH:$AH))) -> n.d. | BG44: =IF(ISERROR(STANDARDIZE($AZ44,AVERAGE($AZ:$AZ),STDEV('Datos mensuales'!$AH:$AH))),"n.d.",STANDARDIZE($AZ44,AVERAGE('Datos mensuales'!$AH:$AH),STDEV('Datos mensuales'!$AH:$AH))) -> n.d. | BH44: =IF(ISERROR(STANDARDIZE($BA44,AVERAGE($BA:$BA),STDEV('Datos mensuales'!$AH:$AH))),"n.d.",STANDARDIZE($BA44,AVERAGE('Datos mensuales'!$AH:$AH),STDEV('Datos mensuales'!$AH:$AH))) -> n.d. | BI44: =IF(ISERROR(STANDARDIZE($BB44,AVERAGE($BB:$BB),STDEV('Datos mensuales'!$AH:$AH))),"n.d.",STANDARDIZE($BB44,AVERAGE('Datos mensuales'!$AH:$AH),STDEV('Datos mensuales'!$AH:$AH))) -> n.d. | BJ44: =IF(ISERROR(STANDARDIZE($BC44,AVERAGE($BC:$BC),STDEV('Datos mensuales'!$AH:$AH))),"n.d.",STANDARDIZE($BC44,AVERAGE('Datos mensuales'!$AH:$AH),STDEV('Datos mensuales'!$AH:$AH))) -> n.d. | BK44: 0.02496418366 | BL44: n.d. | BM44: n.d. | BN44: n.d. | BO44: n.d. | BP44: n.d. | BQ44: n.d. | BR44: 0.2561231161 | BS44: n.d. | BT44: n.d. | BU44: n.d. | BV44: n.d. | BW44: n.d. | BX44: n.d.
B45: May | C45: 6.805456101 | L45: 6.897831808 | U45: -0.2528858536 | AH45: n.d. | AI45: n.d. | AJ45: n.d. | AK45: =IF(OR('[1]REAL(M)'!$CI44="",'[1]REAL(M)'!$CI44=""),"",IF(OR('[1]REAL(M)'!$CI44="n.d.",'[1]REAL(M)'!$CI44="n.d."),"n.d.",'[1]REAL(M)'!$CI44-'[1]REAL(M)'!$CJ44)) -> -0.2276032633 | AL45: -0.1421242929 | AM45: -0.1694008605 | AP45: 48.89785629 | AW45: 1.410113522 | AX45: n.d. | AY45: n.d. | AZ45: n.d. | BA45: n.d. | BB45: n.d. | BC45: n.d. | BD45: =IF(ISERROR(STANDARDIZE($AW45,AVERAGE($AW:$AW),STDEV('Datos mensuales'!$AH:$AH))),"n.d.",STANDARDIZE($AW45,AVERAGE('Datos mensuales'!$AH:$AH),STDEV('Datos mensuales'!$AH:$AH))) -> 1.539105502 | BE45: =IF(ISERROR(STANDARDIZE($AX45,AVERAGE($AX:$AX),STDEV('Datos mensuales'!$AH:$AH))),"n.d.",STANDARDIZE($AX45,AVERAGE('Datos mensuales'!$AH:$AH),STDEV('Datos mensuales'!$AH:$AH))) -> n.d. | BF45: =IF(ISERROR(STANDARDIZE($AY45,AVERAGE($AY:$AY),STDEV('Datos mensuales'!$AH:$AH))),"n.d.",STANDARDIZE($AY45,AVERAGE('Datos mensuales'!$AH:$AH),STDEV('Datos mensuales'!$AH:$AH))) -> n.d. | BG45: =IF(ISERROR(STANDARDIZE($AZ45,AVERAGE($AZ:$AZ),STDEV('Datos mensuales'!$AH:$AH))),"n.d.",STANDARDIZE($AZ45,AVERAGE('Datos mensuales'!$AH:$AH),STDEV('Datos mensuales'!$AH:$AH))) -> n.d. | BH45: =IF(ISERROR(STANDARDIZE($BA45,AVERAGE($BA:$BA),STDEV('Datos mensuales'!$AH:$AH))),"n.d.",STANDARDIZE($BA45,AVERAGE('Datos mensuales'!$AH:$AH),STDEV('Datos mensuales'!$AH:$AH))) -> n.d. | BI45: =IF(ISERROR(STANDARDIZE($BB45,AVERAGE($BB:$BB),STDEV('Datos mensuales'!$AH:$AH))),"n.d.",STANDARDIZE($BB45,AVERAGE('Datos mensuales'!$AH:$AH),STDEV('Datos mensuales'!$AH:$AH))) -> n.d. | BJ45: =IF(ISERROR(STANDARDIZE($BC45,AVERAGE($BC:$BC),STDEV('Datos mensuales'!$AH:$AH))),"n.d.",STANDARDIZE($BC45,AVERAGE('Datos mensuales'!$AH:$AH),STDEV('Datos mensuales'!$AH:$AH))) -> n.d. | BK45: -0.002461712362 | BL45: n.d. | BM45: n.d. | BN45: n.d. | BO45: n.d. | BP45: n.d. | BQ45: n.d. | BR45: 0.1867103874 | BS45: n.d. | BT45: n.d. | BU45: n.d. | BV45: n.d. | BW45: n.d. | BX45: n.d.
B46: Jun | C46: 6.374438979 | L46: 6.809105361 | U46: -0.4310171213 | AH46: n.d. | AI46: n.d. | AJ46: n.d. | AK46: =IF(OR('[1]REAL(M)'!$CI45="",'[1]REAL(M)'!$CI45=""),"",IF(OR('[1]REAL(M)'!$CI45="n.d.",'[1]REAL(M)'!$CI45="n.d."),"n.d.",'[1]REAL(M)'!$CI45-'[1]REAL(M)'!$CJ45)) -> -0.359551986 | AL46: -0.2236224344 | AM46: -0.08149814148 | AP46: 49.12780261 | AW46: 1.397102275 | AX46: n.d. | AY46: n.d. | AZ46: n.d. | BA46: n.d. | BB46: n.d. | BC46: n.d. | BD46: =IF(ISERROR(STANDARDIZE($AW46,AVERAGE($AW:$AW),STDEV('Datos mensuales'!$AH:$AH))),"n.d.",STANDARDIZE($AW46,AVERAGE('Datos mensuales'!$AH:$AH),STDEV('Datos mensuales'!$AH:$AH))) -> 1.524942918 | BE46: =IF(ISERROR(STANDARDIZE($AX46,AVERAGE($AX:$AX),STDEV('Datos mensuales'!$AH:$AH))),"n.d.",STANDARDIZE($AX46,AVERAGE('Datos mensuales'!$AH:$AH),STDEV('Datos mensuales'!$AH:$AH))) -> n.d. | BF46: =IF(ISERROR(STANDARDIZE($AY46,AVERAGE($AY:$AY),STDEV('Datos mensuales'!$AH:$AH))),"n.d.",STANDARDIZE($AY46,AVERAGE('Datos mensuales'!$AH:$AH),STDEV('Datos mensuales'!$AH:$AH))) -> n.d. | BG46: =IF(ISERROR(STANDARDIZE($AZ46,AVERAGE($AZ:$AZ),STDEV('Datos mensuales'!$AH:$AH))),"n.d.",STANDARDIZE($AZ46,AVERAGE('Datos mensuales'!$AH:$AH),STDEV('Datos mensuales'!$AH:$AH))) -> n.d. | BH46: =IF(ISERROR(STANDARDIZE($BA46,AVERAGE($BA:$BA),STDEV('Datos mensuales'!$AH:$AH))),"n.d.",STANDARDIZE($BA46,AVERAGE('Datos mensuales'!$AH:$AH),STDEV('Datos mensuales'!$AH:$AH))) -> n.d. | BI46: =IF(ISERROR(STANDARDIZE($BB46,AVERAGE($BB:$BB),STDEV('Datos mensuales'!$AH:$AH))),"n.d.",STANDARDIZE($BB46,AVERAGE('Datos mensuales'!$AH:$AH),STDEV('Datos mensuales'!$AH:$AH))) -> n.d. | BJ46: =IF(ISERROR(STANDARDIZE($BC46,AVERAGE($BC:$BC),STDEV('Datos mensuales'!$AH:$AH))),"n.d.",STANDARDIZE($BC46,AVERAGE('Datos mensuales'!$AH:$AH),STDEV('Datos mensuales'!$AH:$AH))) -> n.d. | BK46: -0.01416258365 | BL46: n.d. | BM46: n.d. | BN46: n.d. | BO46: n.d. | BP46: n.d. | BQ46: n.d. | BR46: 0.0573934641 | BS46: n.d. | BT46: n.d. | BU46: n.d. | BV46: n.d. | BW46: n.d. | BX46: n.d.
B47: Jul | C47: 6.017273542 | L47: 6.693500574 | U47: -0.3571654378 | AH47: n.d. | AI47: n.d. | AJ47: n.d. | AK47: =IF(OR('[1]REAL(M)'!$CI46="",'[1]REAL(M)'!$CI46=""),"",IF(OR('[1]REAL(M)'!$CI46="n.d.",'[1]REAL(M)'!$CI46="n.d."),"n.d.",'[1]REAL(M)'!$CI46-'[1]REAL(M)'!$CJ46)) -> -0.4656423564 | AL47: -0.289149162 | AM47: -0.06552672759 | AP47: 49.35430856 | AW47: 1.426875103 | AX47: n.d. | AY47: n.d. | AZ47: n.d. | BA47: n.d. | BB47: n.d. | BC47: n.d. | BD47: =IF(ISERROR(STANDARDIZE($AW47,AVERAGE($AW:$AW),STDEV('Datos mensuales'!$AH:$AH))),"n.d.",STANDARDIZE($AW47,AVERAGE('Datos mensuales'!$AH:$AH),STDEV('Datos mensuales'!$AH:$AH))) -> 1.557350278 | BE47: =IF(ISERROR(STANDARDIZE($AX47,AVERAGE($AX:$AX),STDEV('Datos mensuales'!$AH:$AH))),"n.d.",STANDARDIZE($AX47,AVERAGE('Datos mensuales'!$AH:$AH),STDEV('Datos mensuales'!$AH:$AH))) -> n.d. | BF47: =IF(ISERROR(STANDARDIZE($AY47,AVERAGE($AY:$AY),STDEV('Datos mensuales'!$AH:$AH))),"n.d.",STANDARDIZE($AY47,AVERAGE('Datos mensuales'!$AH:$AH),STDEV('Datos mensuales'!$AH:$AH))) -> n.d. | BG47: =IF(ISERROR(STANDARDIZE($AZ47,AVERAGE($AZ:$AZ),STDEV('Datos mensuales'!$AH:$AH))),"n.d.",STANDARDIZE($AZ47,AVERAGE('Datos mensuales'!$AH:$AH),STDEV('Datos mensuales'!$AH:$AH))) -> n.d. | BH47: =IF(ISERROR(STANDARDIZE($BA47,AVERAGE($BA:$BA),STDEV('Datos mensuales'!$AH:$AH))),"n.d.",STANDARDIZE($BA47,AVERAGE('Datos mensuales'!$AH:$AH),STDEV('Datos mensuales'!$AH:$AH))) -> n.d. | BI47: =IF(ISERROR(STANDARDIZE($BB47,AVERAGE($BB:$BB),STDEV('Datos mensuales'!$AH:$AH))),"n.d.",STANDARDIZE($BB47,AVERAGE('Datos mensuales'!$AH:$AH),STDEV('Datos mensuales'!$AH:$AH))) -> n.d. | BJ47: =IF(ISERROR(STANDARDIZE($BC47,AVERAGE($BC:$BC),STDEV('Datos mensuales'!$AH:$AH))),"n.d.",STANDARDIZE($BC47,AVERAGE('Datos mensuales'!$AH:$AH),STDEV('Datos mensuales'!$AH:$AH))) -> n.d. | BK47: 0.03240736001 | BL47: n.d. | BM47: n.d. | BN47: n.d. | BO47: n.d. | BP47: n.d. | BQ47: n.d. | BR47: -0.02479066863 | BS47: n.d. | BT47: n.d. | BU47: n.d. | BV47: n.d. | BW47: n.d. | BX47: n.d.
B48: Ago | C48: 5.746140452 | L48: 6.572148111 | U48: -0.2711330898 | AH48: n.d. | AI48: n.d. | AJ48: n.d. | AK48: =IF(OR('[1]REAL(M)'!$CI47="",'[1]REAL(M)'!$CI47=""),"",IF(OR('[1]REAL(M)'!$CI47="n.d.",'[1]REAL(M)'!$CI47="n.d."),"n.d.",'[1]REAL(M)'!$CI47-'[1]REAL(M)'!$CJ47)) -> -0.6273956298 | AL48: -0.3890560871 | AM48: -0.0999069251 | AP48: 49.57727811 | AW48: 1.392456218 | AX48: n.d. | AY48: n.d. | AZ48: n.d. | BA48: n.d. | BB48: n.d. | BC48: n.d. | BD48: =IF(ISERROR(STANDARDIZE($AW48,AVERAGE($AW:$AW),STDEV('Datos mensuales'!$AH:$AH))),"n.d.",STANDARDIZE($AW48,AVERAGE('Datos mensuales'!$AH:$AH),STDEV('Datos mensuales'!$AH:$AH))) -> 1.519885743 | BE48: =IF(ISERROR(STANDARDIZE($AX48,AVERAGE($AX:$AX),STDEV('Datos mensuales'!$AH:$AH))),"n.d.",STANDARDIZE($AX48,AVERAGE('Datos mensuales'!$AH:$AH),STDEV('Datos mensuales'!$AH:$AH))) -> n.d. | BF48: =IF(ISERROR(STANDARDIZE($AY48,AVERAGE($AY:$AY),STDEV('Datos mensuales'!$AH:$AH))),"n.d.",STANDARDIZE($AY48,AVERAGE('Datos mensuales'!$AH:$AH),STDEV('Datos mensuales'!$AH:$AH))) -> n.d. | BG48: =IF(ISERROR(STANDARDIZE($AZ48,AVERAGE($AZ:$AZ),STDEV('Datos mensuales'!$AH:$AH))),"n.d.",STANDARDIZE($AZ48,AVERAGE('Datos mensuales'!$AH:$AH),STDEV('Datos mensuales'!$AH:$AH))) -> n.d. | BH48: =IF(ISERROR(STANDARDIZE($BA48,AVERAGE($BA:$BA),STDEV('Datos mensuales'!$AH:$AH))),"n.d.",STANDARDIZE($BA48,AVERAGE('Datos mensuales'!$AH:$AH),STDEV('Datos mensuales'!$AH:$AH))) -> n.d. | BI48: =IF(ISERROR(STANDARDIZE($BB48,AVERAGE($BB:$BB),STDEV('Datos mensuales'!$AH:$AH))),"n.d.",STANDARDIZE($BB48,AVERAGE('Datos mensuales'!$AH:$AH),STDEV('Datos mensuales'!$AH:$AH))) -> n.d. | BJ48: =IF(ISERROR(STANDARDIZE($BC48,AVERAGE($BC:$BC),STDEV('Datos mensuales'!$AH:$AH))),"n.d.",STANDARDIZE($BC48,AVERAGE('Datos mensuales'!$AH:$AH),STDEV('Datos mensuales'!$AH:$AH))) -> n.d. | BK48: -0.03746453535 | BL48: n.d. | BM48: n.d. | BN48: n.d. | BO48: n.d. | BP48: n.d. | BQ48: n.d. | BR48: -0.07569016698 | BS48: n.d. | BT48: n.d. | BU48: n.d. | BV48: n.d. | BW48: n.d. | BX48: n.d.
B49: Sep | C49: 5.584785659 | L49: 6.459655695 | U49: -0.1613547931 | AH49: n.d. | AI49: n.d. | AJ49: n.d. | AK49: =IF(OR('[1]REAL(M)'!$CI48="",'[1]REAL(M)'!$CI48=""),"",IF(OR('[1]REAL(M)'!$CI48="n.d.",'[1]REAL(M)'!$CI48="n.d."),"n.d.",'[1]REAL(M)'!$CI48-'[1]REAL(M)'!$CJ48)) -> -0.6097740895 | AL49: -0.378172141 | AM49: 0.01088394603 | AP49: 49.79660869 | AW49: 1.288625714 | AX49: n.d. | AY49: n.d. | AZ49: n.d. | BA49: n.d. | BB49: n.d. | BC49: n.d. | BD49: =IF(ISERROR(STANDARDIZE($AW49,AVERAGE($AW:$AW),STDEV('Datos mensuales'!$AH:$AH))),"n.d.",STANDARDIZE($AW49,AVERAGE('Datos mensuales'!$AH:$AH),STDEV('Datos mensuales'!$AH:$AH))) -> 1.406867506 | BE49: =IF(ISERROR(STANDARDIZE($AX49,AVERAGE($AX:$AX),STDEV('Datos mensuales'!$AH:$AH))),"n.d.",STANDARDIZE($AX49,AVERAGE('Datos mensuales'!$AH:$AH),STDEV('Datos mensuales'!$AH:$AH))) -> n.d. | BF49: =IF(ISERROR(STANDARDIZE($AY49,AVERAGE($AY:$AY),STDEV('Datos mensuales'!$AH:$AH))),"n.d.",STANDARDIZE($AY49,AVERAGE('Datos mensuales'!$AH:$AH),STDEV('Datos mensuales'!$AH:$AH))) -> n.d. | BG49: =IF(ISERROR(STANDARDIZE($AZ49,AVERAGE($AZ:$AZ),STDEV('Datos mensuales'!$AH:$AH))),"n.d.",STANDARDIZE($AZ49,AVERAGE('Datos mensuales'!$AH:$AH),STDEV('Datos mensuales'!$AH:$AH))) -> n.d. | BH49: =IF(ISERROR(STANDARDIZE($BA49,AVERAGE($BA:$BA),STDEV('Datos mensuales'!$AH:$AH))),"n.d.",STANDARDIZE($BA49,AVERAGE('Datos mensuales'!$AH:$AH),STDEV('Datos mensuales'!$AH:$AH))) -> n.d. | BI49: =IF(ISERROR(STANDARDIZE($BB49,AVERAGE($BB:$BB),STDEV('Datos mensuales'!$AH:$AH))),"n.d.",STANDARDIZE($BB49,AVERAGE('Datos mensuales'!$AH:$AH),STDEV('Datos mensuales'!$AH:$AH))) -> n.d. | BJ49: =IF(ISERROR(STANDARDIZE($BC49,AVERAGE($BC:$BC),STDEV('Datos mensuales'!$AH:$AH))),"n.d.",STANDARDIZE($BC49,AVERAGE('Datos mensuales'!$AH:$AH),STDEV('Datos mensuales'!$AH:$AH))) -> n.d. | BK49: -0.1130182371 | BL49: n.d. | BM49: n.d. | BN49: n.d. | BO49: n.d. | BP49: n.d. | BQ49: n.d. | BR49: -0.1013882566 | BS49: n.d. | BT49: n.d. | BU49: n.d. | BV49: n.d. | BW49: n.d. | BX49: n.d.
B50: Oct | C50: 5.709388867 | L50: 6.38274179 | U50: 0.1246032088 | AH50: n.d. | AI50: n.d. | AJ50: n.d. | AK50: =IF(OR('[1]REAL(M)'!$CI49="",'[1]REAL(M)'!$CI49=""),"",IF(OR('[1]REAL(M)'!$CI49="n.d.",'[1]REAL(M)'!$CI49="n.d."),"n.d.",'[1]REAL(M)'!$CI49-'[1]REAL(M)'!$CJ49)) -> -0.4092906752 | AL50: -0.2543435406 | AM50: 0.1238286005 | AP50: 50.01218886 | AW50: 1.264867839 | AX50: n.d. | AY50: n.d. | AZ50: n.d. | BA50: n.d. | BB50: n.d. | BC50: n.d. | BD50: =IF(ISERROR(STANDARDIZE($AW50,AVERAGE($AW:$AW),STDEV('Datos mensuales'!$AH:$AH))),"n.d.",STANDARDIZE($AW50,AVERAGE('Datos mensuales'!$AH:$AH),STDEV('Datos mensuales'!$AH:$AH))) -> 1.381007349 | BE50: =IF(ISERROR(STANDARDIZE($AX50,AVERAGE($AX:$AX),STDEV('Datos mensuales'!$AH:$AH))),"n.d.",STANDARDIZE($AX50,AVERAGE('Datos mensuales'!$AH:$AH),STDEV('Datos mensuales'!$AH:$AH))) -> n.d. | BF50: =IF(ISERROR(STANDARDIZE($AY50,AVERAGE($AY:$AY),STDEV('Datos mensuales'!$AH:$AH))),"n.d.",STANDARDIZE($AY50,AVERAGE('Datos mensuales'!$AH:$AH),STDEV('Datos mensuales'!$AH:$AH))) -> n.d. | BG50: =IF(ISERROR(STANDARDIZE($AZ50,AVERAGE($AZ:$AZ),STDEV('Datos mensuales'!$AH:$AH))),"n.d.",STANDARDIZE($AZ50,AVERAGE('Datos mensuales'!$AH:$AH),STDEV('Datos mensuales'!$AH:$AH))) -> n.d. | BH50: =IF(ISERROR(STANDARDIZE($BA50,AVERAGE($BA:$BA),STDEV('Datos mensuales'!$AH:$AH))),"n.d.",STANDARDIZE($BA50,AVERAGE('Datos mensuales'!$AH:$AH),STDEV('Datos mensuales'!$AH:$AH))) -> n.d. | BI50: =IF(ISERROR(STANDARDIZE($BB50,AVERAGE($BB:$BB),STDEV('Datos mensuales'!$AH:$AH))),"n.d.",STANDARDIZE($BB50,AVERAGE('Datos mensuales'!$AH:$AH),STDEV('Datos mensuales'!$AH:$AH))) -> n.d. | BJ50: =IF(ISERROR(STANDARDIZE($BC50,AVERAGE($BC:$BC),STDEV('Datos mensuales'!$AH:$AH))),"n.d.",STANDARDIZE($BC50,AVERAGE('Datos mensuales'!$AH:$AH),STDEV('Datos mensuales'!$AH:$AH))) -> n.d. | BK50: -0.02586015658 | BL50: n.d. | BM50: n.d. | BN50: n.d. | BO50: n.d. | BP50: n.d. | BQ50: n.d. | BR50: -0.0312608134 | BS50: n.d. | BT50: n.d. | BU50: n.d. | BV50: n.d. | BW50: n.d. | BX50: n.d.
B51: Nov | C51: 6.126251707 | L51: 6.35886882 | U51: 0.4168628393 | AH51: n.d. | AI51: n.d. | AJ51: n.d. | AK51: =IF(OR('[1]REAL(M)'!$CI50="",'[1]REAL(M)'!$CI50=""),"",IF(OR('[1]REAL(M)'!$CI50="n.d.",'[1]REAL(M)'!$CI50="n.d."),"n.d.",'[1]REAL(M)'!$CI50-'[1]REAL(M)'!$CJ50)) -> -0.2299096134 | AL51: -0.1435488102 | AM51: 0.1107947303 | AP51: 50.22389912 | AW51: 1.311781693 | AX51: n.d. | AY51: n.d. | AZ51: n.d. | BA51: n.d. | BB51: n.d. | BC51: n.d. | BD51: =IF(ISERROR(STANDARDIZE($AW51,AVERAGE($AW:$AW),STDEV('Datos mensuales'!$AH:$AH))),"n.d.",STANDARDIZE($AW51,AVERAGE('Datos mensuales'!$AH:$AH),STDEV('Datos mensuales'!$AH:$AH))) -> 1.432072507 | BE51: =IF(ISERROR(STANDARDIZE($AX51,AVERAGE($AX:$AX),STDEV('Datos mensuales'!$AH:$AH))),"n.d.",STANDARDIZE($AX51,AVERAGE('Datos mensuales'!$AH:$AH),STDEV('Datos mensuales'!$AH:$AH))) -> n.d. | BF51: =IF(ISERROR(STANDARDIZE($AY51,AVERAGE($AY:$AY),STDEV('Datos mensuales'!$AH:$AH))),"n.d.",STANDARDIZE($AY51,AVERAGE('Datos mensuales'!$AH:$AH),STDEV('Datos mensuales'!$AH:$AH))) -> n.d. | BG51: =IF(ISERROR(STANDARDIZE($AZ51,AVERAGE($AZ:$AZ),STDEV('Datos mensuales'!$AH:$AH))),"n.d.",STANDARDIZE($AZ51,AVERAGE('Datos mensuales'!$AH:$AH),STDEV('Datos mensuales'!$AH:$AH))) -> n.d. | BH51: =IF(ISERROR(STANDARDIZE($BA51,AVERAGE($BA:$BA),STDEV('Datos mensuales'!$AH:$AH))),"n.d.",STANDARDIZE($BA51,AVERAGE('Datos mensuales'!$AH:$AH),STDEV('Datos mensuales'!$AH:$AH))) -> n.d. | BI51: =IF(ISERROR(STANDARDIZE($BB51,AVERAGE($BB:$BB),STDEV('Datos mensuales'!$AH:$AH))),"n.d.",STANDARDIZE($BB51,AVERAGE('Datos mensuales'!$AH:$AH),STDEV('Datos mensuales'!$AH:$AH))) -> n.d. | BJ51: =IF(ISERROR(STANDARDIZE($BC51,AVERAGE($BC:$BC),STDEV('Datos mensuales'!$AH:$AH))),"n.d.",STANDARDIZE($BC51,AVERAGE('Datos mensuales'!$AH:$AH),STDEV('Datos mensuales'!$AH:$AH))) -> n.d. | BK51: 0.05106515724 | BL51: n.d. | BM51: n.d. | BN51: n.d. | BO51: n.d. | BP51: n.d. | BQ51: n.d. | BR51: 0.1829242793 | BS51: n.d. | BT51: n.d. | BU51: n.d. | BV51: n.d. | BW51: n.d. | BX51: n.d.
B52: Dic | C52: 6.291467165 | L52: 6.353116512 | U52: 0.1652154582 | AH52: n.d. | AI52: n.d. | AJ52: n.d. | AK52: =IF(OR('[1]REAL(M)'!$CI51="",'[1]REAL(M)'!$CI51=""),"",IF(OR('[1]REAL(M)'!$CI51="n.d.",'[1]REAL(M)'!$CI51="n.d."),"n.d.",'[1]REAL(M)'!$CI51-'[1]REAL(M)'!$CJ51)) -> -0.18245436 | AL52: -0.1142380683 | AM52: 0.0293107419 | AP52: 50.43160937 | AW52: 1.312556372 | AX52: n.d. | AY52: n.d. | AZ52: n.d. | BA52: n.d. | BB52: n.d. | BC52: n.d. | BD52: =IF(ISERROR(STANDARDIZE($AW52,AVERAGE($AW:$AW),STDEV('Datos mensuales'!$AH:$AH))),"n.d.",STANDARDIZE($AW52,AVERAGE('Datos mensuales'!$AH:$AH),STDEV('Datos mensuales'!$AH:$AH))) -> 1.432915735 | BE52: =IF(ISERROR(STANDARDIZE($AX52,AVERAGE($AX:$AX),STDEV('Datos mensuales'!$AH:$AH))),"n.d.",STANDARDIZE($AX52,AVERAGE('Datos mensuales'!$AH:$AH),STDEV('Datos mensuales'!$AH:$AH))) -> n.d. | BF52: =IF(ISERROR(STANDARDIZE($AY52,AVERAGE($AY:$AY),STDEV('Datos mensuales'!$AH:$AH))),"n.d.",STANDARDIZE($AY52,AVERAGE('Datos mensuales'!$AH:$AH),STDEV('Datos mensuales'!$AH:$AH))) -> n.d. | BG52: =IF(ISERROR(STANDARDIZE($AZ52,AVERAGE($AZ:$AZ),STDEV('Datos mensuales'!$AH:$AH))),"n.d.",STANDARDIZE($AZ52,AVERAGE('Datos mensuales'!$AH:$AH),STDEV('Datos mensuales'!$AH:$AH))) -> n.d. | BH52: =IF(ISERROR(STANDARDIZE($BA52,AVERAGE($BA:$BA),STDEV('Datos mensuales'!$AH:$AH))),"n.d.",STANDARDIZE($BA52,AVERAGE('Datos mensuales'!$AH:$AH),STDEV('Datos mensuales'!$AH:$AH))) -> n.d. | BI52: =IF(ISERROR(STANDARDIZE($BB52,AVERAGE($BB:$BB),STDEV('Datos mensuales'!$AH:$AH))),"n.d.",STANDARDIZE($BB52,AVERAGE('Datos mensuales'!$AH:$AH),STDEV('Datos mensuales'!$AH:$AH))) -> n.d. | BJ52: =IF(ISERROR(STANDARDIZE($BC52,AVERAGE($BC:$BC),STDEV('Datos mensuales'!$AH:$AH))),"n.d.",STANDARDIZE($BC52,AVERAGE('Datos mensuales'!$AH:$AH),STDEV('Datos mensuales'!$AH:$AH))) -> n.d. | BK52: 0.0008432288164 | BL52: n.d. | BM52: n.d. | BN52: n.d. | BO52: n.d. | BP52: n.d. | BQ52: n.d. | BR52: 0.3367564867 | BS52: n.d. | BT52: n.d. | BU52: n.d. | BV52: n.d. | BW52: n.d. | BX52: n.d.
A53: 1994 | B53: Ene | C53: 5.803373147 | L53: 5.803373147 | U53: -0.4880940177 | AH53: n.d. | AI53: n.d. | AJ53: n.d. | AK53: =IF(OR('[1]REAL(M)'!$CI52="",'[1]REAL(M)'!$CI52=""),"",IF(OR('[1]REAL(M)'!$CI52="n.d.",'[1]REAL(M)'!$CI52="n.d."),"n.d.",'[1]REAL(M)'!$CI52-'[1]REAL(M)'!$CJ52)) -> -0.2605178685 | AL53: -0.162454002 | AM53: -0.04821593366 | AP53: 50.63517398 | AW53: 1.256653912 | AX53: n.d. | AY53: n.d. | AZ53: n.d. | BA53: n.d. | BB53: n.d. | BC53: n.d. | BD53: =IF(ISERROR(STANDARDIZE($AW53,AVERAGE($AW:$AW),STDEV('Datos mensuales'!$AH:$AH))),"n.d.",STANDARDIZE($AW53,AVERAGE('Datos mensuales'!$AH:$AH),STDEV('Datos mensuales'!$AH:$AH))) -> 1.37206659 | BE53: =IF(ISERROR(STANDARDIZE($AX53,AVERAGE($AX:$AX),STDEV('Datos mensuales'!$AH:$AH))),"n.d.",STANDARDIZE($AX53,AVERAGE('Datos mensuales'!$AH:$AH),STDEV('Datos mensuales'!$AH:$AH))) -> n.d. | BF53: =IF(ISERROR(STANDARDIZE($AY53,AVERAGE($AY:$AY),STDEV('Datos mensuales'!$AH:$AH))),"n.d.",STANDARDIZE($AY53,AVERAGE('Datos mensuales'!$AH:$AH),STDEV('Datos mensuales'!$AH:$AH))) -> n.d. | BG53: =IF(ISERROR(STANDARDIZE($AZ53,AVERAGE($AZ:$AZ),STDEV('Datos mensuales'!$AH:$AH))),"n.d.",STANDARDIZE($AZ53,AVERAGE('Datos mensuales'!$AH:$AH),STDEV('Datos mensuales'!$AH:$AH))) -> n.d. | BH53: =IF(ISERROR(STANDARDIZE($BA53,AVERAGE($BA:$BA),STDEV('Datos mensuales'!$AH:$AH))),"n.d.",STANDARDIZE($BA53,AVERAGE('Datos mensuales'!$AH:$AH),STDEV('Datos mensuales'!$AH:$AH))) -> n.d. | BI53: =IF(ISERROR(STANDARDIZE($BB53,AVERAGE($BB:$BB),STDEV('Datos mensuales'!$AH:$AH))),"n.d.",STANDARDIZE($BB53,AVERAGE('Datos mensuales'!$AH:$AH),STDEV('Datos mensuales'!$AH:$AH))) -> n.d. | BJ53: =IF(ISERROR(STANDARDIZE($BC53,AVERAGE($BC:$BC),STDEV('Datos mensuales'!$AH:$AH))),"n.d.",STANDARDIZE($BC53,AVERAGE('Datos mensuales'!$AH:$AH),STDEV('Datos mensuales'!$AH:$AH))) -> n.d. | BK53: -0.06084914527 | BL53: n.d. | BM53: n.d. | BN53: n.d. | BO53: n.d. | BP53: n.d. | BQ53: n.d. | BR53: 0.1422549907 | BS53: n.d. | BT53: n.d. | BU53: n.d. | BV53: n.d. | BW53: n.d. | BX53: n.d.
B54: Feb | C54: 5.409547293 | L54: 5.605574222 | U54: -0.3938258545 | AH54: n.d. | AI54: n.d. | AJ54: n.d. | AK54: =IF(OR('[1]REAL(M)'!$CI53="",'[1]REAL(M)'!$CI53=""),"",IF(OR('[1]REAL(M)'!$CI53="n.d.",'[1]REAL(M)'!$CI53="n.d."),"n.d.",'[1]REAL(M)'!$CI53-'[1]REAL(M)'!$CJ53)) -> -0.2495148594 | AL54: -0.1556579924 | AM54: 0.006796009644 | AP54: 50.83442984 | AW54: 1.331577292 | AX54: n.d. | AY54: n.d. | AZ54: n.d. | BA54: n.d. | BB54: n.d. | BC54: n.d. | BD54: =IF(ISERROR(STANDARDIZE($AW54,AVERAGE($AW:$AW),STDEV('Datos mensuales'!$AH:$AH))),"n.d.",STANDARDIZE($AW54,AVERAGE('Datos mensuales'!$AH:$AH),STDEV('Datos mensuales'!$AH:$AH))) -> 1.453619774 | BE54: =IF(ISERROR(STANDARDIZE($AX54,AVERAGE($AX:$AX),STDEV('Datos mensuales'!$AH:$AH))),"n.d.",STANDARDIZE($AX54,AVERAGE('Datos mensuales'!$AH:$AH),STDEV('Datos mensuales'!$AH:$AH))) -> n.d. | BF54: =IF(ISERROR(STANDARDIZE($AY54,AVERAGE($AY:$AY),STDEV('Datos mensuales'!$AH:$AH))),"n.d.",STANDARDIZE($AY54,AVERAGE('Datos mensuales'!$AH:$AH),STDEV('Datos mensuales'!$AH:$AH))) -> n.d. | BG54: =IF(ISERROR(STANDARDIZE($AZ54,AVERAGE($AZ:$AZ),STDEV('Datos mensuales'!$AH:$AH))),"n.d.",STANDARDIZE($AZ54,AVERAGE('Datos mensuales'!$AH:$AH),STDEV('Datos mensuales'!$AH:$AH))) -> n.d. | BH54: =IF(ISERROR(STANDARDIZE($BA54,AVERAGE($BA:$BA),STDEV('Datos mensuales'!$AH:$AH))),"n.d.",STANDARDIZE($BA54,AVERAGE('Datos mensuales'!$AH:$AH),STDEV('Datos mensuales'!$AH:$AH))) -> n.d. | BI54: =IF(ISERROR(STANDARDIZE($BB54,AVERAGE($BB:$BB),STDEV('Datos mensuales'!$AH:$AH))),"n.d.",STANDARDIZE($BB54,AVERAGE('Datos mensuales'!$AH:$AH),STDEV('Datos mensuales'!$AH:$AH))) -> n.d. | BJ54: =IF(ISERROR(STANDARDIZE($BC54,AVERAGE($BC:$BC),STDEV('Datos mensuales'!$AH:$AH))),"n.d.",STANDARDIZE($BC54,AVERAGE('Datos mensuales'!$AH:$AH),STDEV('Datos mensuales'!$AH:$AH))) -> n.d. | BK54: 0.08155318426 | BL54: n.d. | BM54: n.d. | BN54: n.d. | BO54: n.d. | BP54: n.d. | BQ54: n.d. | BR54: 0.0238683925 | BS54: n.d. | BT54: n.d. | BU54: n.d. | BV54: n.d. | BW54: n.d. | BX54: n.d.
B55: Mar | C55: 5.465176359 | L55: 5.558427746 | U55: 0.05562906572 | AH55: n.d. | AI55: n.d. | AJ55: n.d. | AK55: =IF(OR('[1]REAL(M)'!$CI54="",'[1]REAL(M)'!$CI54=""),"",IF(OR('[1]REAL(M)'!$CI54="n.d.",'[1]REAL(M)'!$CI54="n.d."),"n.d.",'[1]REAL(M)'!$CI54-'[1]REAL(M)'!$CJ54)) -> -0.01722620906 | AL55: -0.01218488479 | AM55: 0.1434731076 | AP55: 51.02920098 | AW55: 1.510905679 | AX55: n.d. | AY55: n.d. | AZ55: n.d. | BA55: n.d. | BB55: n.d. | BC55: n.d. | BD55: =IF(ISERROR(STANDARDIZE($AW55,AVERAGE($AW:$AW),STDEV('Datos mensuales'!$AH:$AH))),"n.d.",STANDARDIZE($AW55,AVERAGE('Datos mensuales'!$AH:$AH),STDEV('Datos mensuales'!$AH:$AH))) -> 1.648816535 | BE55: =IF(ISERROR(STANDARDIZE($AX55,AVERAGE($AX:$AX),STDEV('Datos mensuales'!$AH:$AH))),"n.d.",STANDARDIZE($AX55,AVERAGE('Datos mensuales'!$AH:$AH),STDEV('Datos mensuales'!$AH:$AH))) -> n.d. | BF55: =IF(ISERROR(STANDARDIZE($AY55,AVERAGE($AY:$AY),STDEV('Datos mensuales'!$AH:$AH))),"n.d.",STANDARDIZE($AY55,AVERAGE('Datos mensuales'!$AH:$AH),STDEV('Datos mensuales'!$AH:$AH))) -> n.d. | BG55: =IF(ISERROR(STANDARDIZE($AZ55,AVERAGE($AZ:$AZ),STDEV('Datos mensuales'!$AH:$AH))),"n.d.",STANDARDIZE($AZ55,AVERAGE('Datos mensuales'!$AH:$AH),STDEV('Datos mensuales'!$AH:$AH))) -> n.d. | BH55: =IF(ISERROR(STANDARDIZE($BA55,AVERAGE($BA:$BA),STDEV('Datos mensuales'!$AH:$AH))),"n.d.",STANDARDIZE($BA55,AVERAGE('Datos mensuales'!$AH:$AH),STDEV('Datos mensuales'!$AH:$AH))) -> n.d. | BI55: =IF(ISERROR(STANDARDIZE($BB55,AVERAGE($BB:$BB),STDEV('Datos mensuales'!$AH:$AH))),"n.d.",STANDARDIZE($BB55,AVERAGE('Datos mensuales'!$AH:$AH),STDEV('Datos mensuales'!$AH:$AH))) -> n.d. | BJ55: =IF(ISERROR(STANDARDIZE($BC55,AVERAGE($BC:$BC),STDEV('Datos mensuales'!$AH:$AH))),"n.d.",STANDARDIZE($BC55,AVERAGE('Datos mensuales'!$AH:$AH),STDEV('Datos mensuales'!$AH:$AH))) -> n.d. | BK55: 0.1951967603 | BL55: n.d. | BM55: n.d. | BN55: n.d. | BO55: n.d. | BP55: n.d. | BQ55: n.d. | BR55: 0.08717739668 | BS55: n.d. | BT55: n.d. | BU55: n.d. | BV55: n.d. | BW55: n.d. | BX55: n.d.
B56: Abr | C56: 5.48269209 | L56: 5.539314547 | U56: 0.01751573138 | AH56: n.d. | AI56: n.d. | AJ56: n.d. | AK56: =IF(OR('[1]REAL(M)'!$CI55="",'[1]REAL(M)'!$CI55=""),"",IF(OR('[1]REAL(M)'!$CI55="n.d.",'[1]REAL(M)'!$CI55="n.d."),"n.d.",'[1]REAL(M)'!$CI55-'[1]REAL(M)'!$CJ55)) -> 0.1844172546 | AL56: 0.1123602203 | AM56: 0.1245451051 | AP56: 51.21930766 | AW56: 1.60320065 | AX56: n.d. | AY56: n.d. | AZ56: n.d. | BA56: n.d. | BB56: n.d. | BC56: n.d. | BD56: =IF(ISERROR(STANDARDIZE($AW56,AVERAGE($AW:$AW),STDEV('Datos mensuales'!$AH:$AH))),"n.d.",STANDARDIZE($AW56,AVERAGE('Datos mensuales'!$AH:$AH),STDEV('Datos mensuales'!$AH:$AH))) -> 1.749278485 | BE56: =IF(ISERROR(STANDARDIZE($AX56,AVERAGE($AX:$AX),STDEV('Datos mensuales'!$AH:$AH))),"n.d.",STANDARDIZE($AX56,AVERAGE('Datos mensuales'!$AH:$AH),STDEV('Datos mensuales'!$AH:$AH))) -> n.d. | BF56: =IF(ISERROR(STANDARDIZE($AY56,AVERAGE($AY:$AY),STDEV('Datos mensuales'!$AH:$AH))),"n.d.",STANDARDIZE($AY56,AVERAGE('Datos mensuales'!$AH:$AH),STDEV('Datos mensuales'!$AH:$AH))) -> n.d. | BG56: =IF(ISERROR(STANDARDIZE($AZ56,AVERAGE($AZ:$AZ),STDEV('Datos mensuales'!$AH:$AH))),"n.d.",STANDARDIZE($AZ56,AVERAGE('Datos mensuales'!$AH:$AH),STDEV('Datos mensuales'!$AH:$AH))) -> n.d. | BH56: =IF(ISERROR(STANDARDIZE($BA56,AVERAGE($BA:$BA),STDEV('Datos mensuales'!$AH:$AH))),"n.d.",STANDARDIZE($BA56,AVERAGE('Datos mensuales'!$AH:$AH),STDEV('Datos mensuales'!$AH:$AH))) -> n.d. | BI56: =IF(ISERROR(STANDARDIZE($BB56,AVERAGE($BB:$BB),STDEV('Datos mensuales'!$AH:$AH))),"n.d.",STANDARDIZE($BB56,AVERAGE('Datos mensuales'!$AH:$AH),STDEV('Datos mensuales'!$AH:$AH))) -> n.d. | BJ56: =IF(ISERROR(STANDARDIZE($BC56,AVERAGE($BC:$BC),STDEV('Datos mensuales'!$AH:$AH))),"n.d.",STANDARDIZE($BC56,AVERAGE('Datos mensuales'!$AH:$AH),STDEV('Datos mensuales'!$AH:$AH))) -> n.d. | BK56: 0.1004619501 | BL56: n.d. | BM56: n.d. | BN56: n.d. | BO56: n.d. | BP56: n.d. | BQ56: n.d. | BR56: 0.1347403269 | BS56: n.d. | BT56: n.d. | BU56: n.d. | BV56: n.d. | BW56: n.d. | BX56: n.d.
B57: May | C57: 5.46383271 | L57: 5.524048058 | U57: -0.01885938031 | AH57: n.d. | AI57: n.d. | AJ57: n.d. | AK57: =IF(OR('[1]REAL(M)'!$CI56="",'[1]REAL(M)'!$CI56=""),"",IF(OR('[1]REAL(M)'!$CI56="n.d.",'[1]REAL(M)'!$CI56="n.d."),"n.d.",'[1]REAL(M)'!$CI56-'[1]REAL(M)'!$CJ56)) -> 0.2759189008 | AL57: 0.168876221 | AM57: 0.05651600071 | AP57: 51.40457782 | AW57: 1.6521353 | AX57: n.d. | AY57: n.d. | AZ57: n.d. | BA57: n.d. | BB57: n.d. | BC57: n.d. | BD57: =IF(ISERROR(STANDARDIZE($AW57,AVERAGE($AW:$AW),STDEV('Datos mensuales'!$AH:$AH))),"n.d.",STANDARDIZE($AW57,AVERAGE('Datos mensuales'!$AH:$AH),STDEV('Datos mensuales'!$AH:$AH))) -> 1.802543254 | BE57: =IF(ISERROR(STANDARDIZE($AX57,AVERAGE($AX:$AX),STDEV('Datos mensuales'!$AH:$AH))),"n.d.",STANDARDIZE($AX57,AVERAGE('Datos mensuales'!$AH:$AH),STDEV('Datos mensuales'!$AH:$AH))) -> n.d. | BF57: =IF(ISERROR(STANDARDIZE($AY57,AVERAGE($AY:$AY),STDEV('Datos mensuales'!$AH:$AH))),"n.d.",STANDARDIZE($AY57,AVERAGE('Datos mensuales'!$AH:$AH),STDEV('Datos mensuales'!$AH:$AH))) -> n.d. | BG57: =IF(ISERROR(STANDARDIZE($AZ57,AVERAGE($AZ:$AZ),STDEV('Datos mensuales'!$AH:$AH))),"n.d.",STANDARDIZE($AZ57,AVERAGE('Datos mensuales'!$AH:$AH),STDEV('Datos mensuales'!$AH:$AH))) -> n.d. | BH57: =IF(ISERROR(STANDARDIZE($BA57,AVERAGE($BA:$BA),STDEV('Datos mensuales'!$AH:$AH))),"n.d.",STANDARDIZE($BA57,AVERAGE('Datos mensuales'!$AH:$AH),STDEV('Datos mensuales'!$AH:$AH))) -> n.d. | BI57: =IF(ISERROR(STANDARDIZE($BB57,AVERAGE($BB:$BB),STDEV('Datos mensuales'!$AH:$AH))),"n.d.",STANDARDIZE($BB57,AVERAGE('Datos mensuales'!$AH:$AH),STDEV('Datos mensuales'!$AH:$AH))) -> n.d. | BJ57: =IF(ISERROR(STANDARDIZE($BC57,AVERAGE($BC:$BC),STDEV('Datos mensuales'!$AH:$AH))),"n.d.",STANDARDIZE($BC57,AVERAGE('Datos mensuales'!$AH:$AH),STDEV('Datos mensuales'!$AH:$AH))) -> n.d. | BK57: 0.05326476882 | BL57: n.d. | BM57: n.d. | BN57: n.d. | BO57: n.d. | BP57: n.d. | BQ57: n.d. | BR57: 0.1711628938 | BS57: n.d. | BT57: n.d. | BU57: n.d. | BV57: n.d. | BW57: n.d. | BX57: n.d.
B58: Jun | C58: 5.410389978 | L58: 5.504858956 | U58: -0.05344273161 | AH58: n.d. | AI58: n.d. | AJ58: n.d. | AK58: =IF(OR('[1]REAL(M)'!$CI57="",'[1]REAL(M)'!$CI57=""),"",IF(OR('[1]REAL(M)'!$CI57="n.d.",'[1]REAL(M)'!$CI57="n.d."),"n.d.",'[1]REAL(M)'!$CI57-'[1]REAL(M)'!$CJ57)) -> 0.304429438 | AL58: 0.186485757 | AM58: 0.01760953604 | AP58: 51.58486029 | AW58: 1.673638979 | AX58: n.d. | AY58: n.d. | AZ58: n.d. | BA58: n.d. | BB58: n.d. | BC58: n.d. | BD58: =IF(ISERROR(STANDARDIZE($AW58,AVERAGE($AW:$AW),STDEV('Datos mensuales'!$AH:$AH))),"n.d.",STANDARDIZE($AW58,AVERAGE('Datos mensuales'!$AH:$AH),STDEV('Datos mensuales'!$AH:$AH))) -> 1.825949746 | BE58: =IF(ISERROR(STANDARDIZE($AX58,AVERAGE($AX:$AX),STDEV('Datos mensuales'!$AH:$AH))),"n.d.",STANDARDIZE($AX58,AVERAGE('Datos mensuales'!$AH:$AH),STDEV('Datos mensuales'!$AH:$AH))) -> n.d. | BF58: =IF(ISERROR(STANDARDIZE($AY58,AVERAGE($AY:$AY),STDEV('Datos mensuales'!$AH:$AH))),"n.d.",STANDARDIZE($AY58,AVERAGE('Datos mensuales'!$AH:$AH),STDEV('Datos mensuales'!$AH:$AH))) -> n.d. | BG58: =IF(ISERROR(STANDARDIZE($AZ58,AVERAGE($AZ:$AZ),STDEV('Datos mensuales'!$AH:$AH))),"n.d.",STANDARDIZE($AZ58,AVERAGE('Datos mensuales'!$AH:$AH),STDEV('Datos mensuales'!$AH:$AH))) -> n.d. | BH58: =IF(ISERROR(STANDARDIZE($BA58,AVERAGE($BA:$BA),STDEV('Datos mensuales'!$AH:$AH))),"n.d.",STANDARDIZE($BA58,AVERAGE('Datos mensuales'!$AH:$AH),STDEV('Datos mensuales'!$AH:$AH))) -> n.d. | BI58: =IF(ISERROR(STANDARDIZE($BB58,AVERAGE($BB:$BB),STDEV('Datos mensuales'!$AH:$AH))),"n.d.",STANDARDIZE($BB58,AVERAGE('Datos mensuales'!$AH:$AH),STDEV('Datos mensuales'!$AH:$AH))) -> n.d. | BJ58: =IF(ISERROR(STANDARDIZE($BC58,AVERAGE($BC:$BC),STDEV('Datos mensuales'!$AH:$AH))),"n.d.",STANDARDIZE($BC58,AVERAGE('Datos mensuales'!$AH:$AH),STDEV('Datos mensuales'!$AH:$AH))) -> n.d. | BK58: 0.02340649256 | BL58: n.d. | BM58: n.d. | BN58: n.d. | BO58: n.d. | BP58: n.d. | BQ58: n.d. | BR58: 0.1973889148 | BS58: n.d. | BT58: n.d. | BU58: n.d. | BV58: n.d. | BW58: n.d. | BX58: n.d.
B59: Jul | C59: 5.214613404 | L59: 5.462752654 | U59: -0.1957765737 | AH59: n.d. | AI59: n.d. | AJ59: n.d. | AK59: =IF(OR('[1]REAL(M)'!$CI58="",'[1]REAL(M)'!$CI58=""),"",IF(OR('[1]REAL(M)'!$CI58="n.d.",'[1]REAL(M)'!$CI58="n.d."),"n.d.",'[1]REAL(M)'!$CI58-'[1]REAL(M)'!$CJ58)) -> 0.3137778827 | AL59: 0.1922598248 | AM59: 0.00577406781 | AP59: 51.7600383 | AW59: 1.669187766 | AX59: n.d. | AY59: n.d. | AZ59: n.d. | BA59: n.d. | BB59: n.d. | BC59: n.d. | BD59: =IF(ISERROR(STANDARDIZE($AW59,AVERAGE($AW:$AW),STDEV('Datos mensuales'!$AH:$AH))),"n.d.",STANDARDIZE($AW59,AVERAGE('Datos mensuales'!$AH:$AH),STDEV('Datos mensuales'!$AH:$AH))) -> 1.821104655 | BE59: =IF(ISERROR(STANDARDIZE($AX59,AVERAGE($AX:$AX),STDEV('Datos mensuales'!$AH:$AH))),"n.d.",STANDARDIZE($AX59,AVERAGE('Datos mensuales'!$AH:$AH),STDEV('Datos mensuales'!$AH:$AH))) -> n.d. | BF59: =IF(ISERROR(STANDARDIZE($AY59,AVERAGE($AY:$AY),STDEV('Datos mensuales'!$AH:$AH))),"n.d.",STANDARDIZE($AY59,AVERAGE('Datos mensuales'!$AH:$AH),STDEV('Datos mensuales'!$AH:$AH))) -> n.d. | BG59: =IF(ISERROR(STANDARDIZE($AZ59,AVERAGE($AZ:$AZ),STDEV('Datos mensuales'!$AH:$AH))),"n.d.",STANDARDIZE($AZ59,AVERAGE('Datos mensuales'!$AH:$AH),STDEV('Datos mensuales'!$AH:$AH))) -> n.d. | BH59: =IF(ISERROR(STANDARDIZE($BA59,AVERAGE($BA:$BA),STDEV('Datos mensuales'!$AH:$AH))),"n.d.",STANDARDIZE($BA59,AVERAGE('Datos mensuales'!$AH:$AH),STDEV('Datos mensuales'!$AH:$AH))) -> n.d. | BI59: =IF(ISERROR(STANDARDIZE($BB59,AVERAGE($BB:$BB),STDEV('Datos mensuales'!$AH:$AH))),"n.d.",STANDARDIZE($BB59,AVERAGE('Datos mensuales'!$AH:$AH),STDEV('Datos mensuales'!$AH:$AH))) -> n.d. | BJ59: =IF(ISERROR(STANDARDIZE($BC59,AVERAGE($BC:$BC),STDEV('Datos mensuales'!$AH:$AH))),"n.d.",STANDARDIZE($BC59,AVERAGE('Datos mensuales'!$AH:$AH),STDEV('Datos mensuales'!$AH:$AH))) -> n.d. | BK59: -0.00484509135 | BL59: n.d. | BM59: n.d. | BN59: n.d. | BO59: n.d. | BP59: n.d. | BQ59: n.d. | BR59: 0.1693609846 | BS59: n.d. | BT59: n.d. | BU59: n.d. | BV59: n.d. | BW59: n.d. | BX59: n.d.
B60: Ago | C60: 5.210217877 | L60: 5.430654837 | U60: -0.004395527152 | AH60: n.d. | AI60: n.d. | AJ60: n.d. | AK60: =IF(OR('[1]REAL(M)'!$CI59="",'[1]REAL(M)'!$CI59=""),"",IF(OR('[1]REAL(M)'!$CI59="n.d.",'[1]REAL(M)'!$CI59="n.d."),"n.d.",'[1]REAL(M)'!$CI59-'[1]REAL(M)'!$CJ59)) -> 0.3904365726 | AL60: 0.2396080721 | AM60: 0.04734824728 | AP60: 51.93003851 | AW60: 1.695330035 | AX60: n.d. | AY60: n.d. | AZ60: n.d. | BA60: n.d. | BB60: n.d. | BC60: n.d. | BD60: =IF(ISERROR(STANDARDIZE($AW60,AVERAGE($AW:$AW),STDEV('Datos mensuales'!$AH:$AH))),"n.d.",STANDARDIZE($AW60,AVERAGE('Datos mensuales'!$AH:$AH),STDEV('Datos mensuales'!$AH:$AH))) -> 1.849560196 | BE60: =IF(ISERROR(STANDARDIZE($AX60,AVERAGE($AX:$AX),STDEV('Datos mensuales'!$AH:$AH))),"n.d.",STANDARDIZE($AX60,AVERAGE('Datos mensuales'!$AH:$AH),STDEV('Datos mensuales'!$AH:$AH))) -> n.d. | BF60: =IF(ISERROR(STANDARDIZE($AY60,AVERAGE($AY:$AY),STDEV('Datos mensuales'!$AH:$AH))),"n.d.",STANDARDIZE($AY60,AVERAGE('Datos mensuales'!$AH:$AH),STDEV('Datos mensuales'!$AH:$AH))) -> n.d. | BG60: =IF(ISERROR(STANDARDIZE($AZ60,AVERAGE($AZ:$AZ),STDEV('Datos mensuales'!$AH:$AH))),"n.d.",STANDARDIZE($AZ60,AVERAGE('Datos mensuales'!$AH:$AH),STDEV('Datos mensuales'!$AH:$AH))) -> n.d. | BH60: =IF(ISERROR(STANDARDIZE($BA60,AVERAGE($BA:$BA),STDEV('Datos mensuales'!$AH:$AH))),"n.d.",STANDARDIZE($BA60,AVERAGE('Datos mensuales'!$AH:$AH),STDEV('Datos mensuales'!$AH:$AH))) -> n.d. | BI60: =IF(ISERROR(STANDARDIZE($BB60,AVERAGE($BB:$BB),STDEV('Datos mensuales'!$AH:$AH))),"n.d.",STANDARDIZE($BB60,AVERAGE('Datos mensuales'!$AH:$AH),STDEV('Datos mensuales'!$AH:$AH))) -> n.d. | BJ60: =IF(ISERROR(STANDARDIZE($BC60,AVERAGE($BC:$BC),STDEV('Datos mensuales'!$AH:$AH))),"n.d.",STANDARDIZE($BC60,AVERAGE('Datos mensuales'!$AH:$AH),STDEV('Datos mensuales'!$AH:$AH))) -> n.d. | BK60: 0.02845554078 | BL60: n.d. | BM60: n.d. | BN60: n.d. | BO60: n.d. | BP60: n.d. | BQ60: n.d. | BR60: 0.216907392 | BS60: n.d. | BT60: n.d. | BU60: n.d. | BV60: n.d. | BW60: n.d. | BX60: n.d.
B61: Sep | C61: 5.308580555 | L61: 5.416860936 | U61: 0.09836267817 | AH61: n.d. | AI61: n.d. | AJ61: n.d. | AK61: =IF(OR('[1]REAL(M)'!$CI60="",'[1]REAL(M)'!$CI60=""),"",IF(OR('[1]REAL(M)'!$CI60="n.d.",'[1]REAL(M)'!$CI60="n.d."),"n.d.",'[1]REAL(M)'!$CI60-'[1]REAL(M)'!$CJ60)) -> 0.4682852181 | AL61: 0.2876912956 | AM61: 0.04808322355 | AP61: 52.09482781 | AW61: 1.702307406 | AX61: n.d. | AY61: n.d. | AZ61: n.d. | BA61: n.d. | BB61: n.d. | BC61: n.d. | BD61: =IF(ISERROR(STANDARDIZE($AW61,AVERAGE($AW:$AW),STDEV('Datos mensuales'!$AH:$AH))),"n.d.",STANDARDIZE($AW61,AVERAGE('Datos mensuales'!$AH:$AH),STDEV('Datos mensuales'!$AH:$AH))) -> 1.857154979 | BE61: =IF(ISERROR(STANDARDIZE($AX61,AVERAGE($AX:$AX),STDEV('Datos mensuales'!$AH:$AH))),"n.d.",STANDARDIZE($AX61,AVERAGE('Datos mensuales'!$AH:$AH),STDEV('Datos mensuales'!$AH:$AH))) -> n.d. | BF61: =IF(ISERROR(STANDARDIZE($AY61,AVERAGE($AY:$AY),STDEV('Datos mensuales'!$AH:$AH))),"n.d.",STANDARDIZE($AY61,AVERAGE('Datos mensuales'!$AH:$AH),STDEV('Datos mensuales'!$AH:$AH))) -> n.d. | BG61: =IF(ISERROR(STANDARDIZE($AZ61,AVERAGE($AZ:$AZ),STDEV('Datos mensuales'!$AH:$AH))),"n.d.",STANDARDIZE($AZ61,AVERAGE('Datos mensuales'!$AH:$AH),STDEV('Datos mensuales'!$AH:$AH))) -> n.d. | BH61: =IF(ISERROR(STANDARDIZE($BA61,AVERAGE($BA:$BA),STDEV('Datos mensuales'!$AH:$AH))),"n.d.",STANDARDIZE($BA61,AVERAGE('Datos mensuales'!$AH:$AH),STDEV('Datos mensuales'!$AH:$AH))) -> n.d. | BI61: =IF(ISERROR(STANDARDIZE($BB61,AVERAGE($BB:$BB),STDEV('Datos mensuales'!$AH:$AH))),"n.d.",STANDARDIZE($BB61,AVERAGE('Datos mensuales'!$AH:$AH),STDEV('Datos mensuales'!$AH:$AH))) -> n.d. | BJ61: =IF(ISERROR(STANDARDIZE($BC61,AVERAGE($BC:$BC),STDEV('Datos mensuales'!$AH:$AH))),"n.d.",STANDARDIZE($BC61,AVERAGE('Datos mensuales'!$AH:$AH),STDEV('Datos mensuales'!$AH:$AH))) -> n.d. | BK61: 0.007594783457 | BL61: n.d. | BM61: n.d. | BN61: n.d. | BO61: n.d. | BP61: n.d. | BQ61: n.d. | BR61: 0.3200638804 | BS61: n.d. | BT61: n.d. | BU61: n.d. | BV61: n.d. | BW61: n.d. | BX61: n.d.
B62: Oct | C62: 5.143887676 | L62: 5.389054098 | U62: -0.1646928797 | AH62: n.d. | AI62: n.d. | AJ62: n.d. | AK62: =IF(OR('[1]REAL(M)'!$CI61="",'[1]REAL(M)'!$CI61=""),"",IF(OR('[1]REAL(M)'!$CI61="n.d.",'[1]REAL(M)'!$CI61="n.d."),"n.d.",'[1]REAL(M)'!$CI61-'[1]REAL(M)'!$CJ61)) -> 0.6358917429 | AL62: 0.391213482 | AM62: 0.1035221864 | AP62: 52.25440162 | AW62: 1.66028928 | AX62: n.d. | AY62: n.d. | AZ62: n.d. | BA62: n.d. | BB62: n.d. | BC62: n.d. | BD62: =IF(ISERROR(STANDARDIZE($AW62,AVERAGE($AW:$AW),STDEV('Datos mensuales'!$AH:$AH))),"n.d.",STANDARDIZE($AW62,AVERAGE('Datos mensuales'!$AH:$AH),STDEV('Datos mensuales'!$AH:$AH))) -> 1.811418762 | BE62: =IF(ISERROR(STANDARDIZE($AX62,AVERAGE($AX:$AX),STDEV('Datos mensuales'!$AH:$AH))),"n.d.",STANDARDIZE($AX62,AVERAGE('Datos mensuales'!$AH:$AH),STDEV('Datos mensuales'!$AH:$AH))) -> n.d. | BF62: =IF(ISERROR(STANDARDIZE($AY62,AVERAGE($AY:$AY),STDEV('Datos mensuales'!$AH:$AH))),"n.d.",STANDARDIZE($AY62,AVERAGE('Datos mensuales'!$AH:$AH),STDEV('Datos mensuales'!$AH:$AH))) -> n.d. | BG62: =IF(ISERROR(STANDARDIZE($AZ62,AVERAGE($AZ:$AZ),STDEV('Datos mensuales'!$AH:$AH))),"n.d.",STANDARDIZE($AZ62,AVERAGE('Datos mensuales'!$AH:$AH),STDEV('Datos mensuales'!$AH:$AH))) -> n.d. | BH62: =IF(ISERROR(STANDARDIZE($BA62,AVERAGE($BA:$BA),STDEV('Datos mensuales'!$AH:$AH))),"n.d.",STANDARDIZE($BA62,AVERAGE('Datos mensuales'!$AH:$AH),STDEV('Datos mensuales'!$AH:$AH))) -> n.d. | BI62: =IF(ISERROR(STANDARDIZE($BB62,AVERAGE($BB:$BB),STDEV('Datos mensuales'!$AH:$AH))),"n.d.",STANDARDIZE($BB62,AVERAGE('Datos mensuales'!$AH:$AH),STDEV('Datos mensuales'!$AH:$AH))) -> n.d. | BJ62: =IF(ISERROR(STANDARDIZE($BC62,AVERAGE($BC:$BC),STDEV('Datos mensuales'!$AH:$AH))),"n.d.",STANDARDIZE($BC62,AVERAGE('Datos mensuales'!$AH:$AH),STDEV('Datos mensuales'!$AH:$AH))) -> n.d. | BK62: -0.04573621751 | BL62: n.d. | BM62: n.d. | BN62: n.d. | BO62: n.d. | BP62: n.d. | BQ62: n.d. | BR62: 0.3116648238 | BS62: n.d. | BT62: n.d. | BU62: n.d. | BV62: n.d. | BW62: n.d. | BX62: n.d.
B63: Nov | C63: 4.81528644 | L63: 5.335767125 | U63: -0.3286012352 | AH63: n.d. | AI63: n.d. | AJ63: n.d. | AK63: =IF(OR('[1]REAL(M)'!$CI62="",'[1]REAL(M)'!$CI62=""),"",IF(OR('[1]REAL(M)'!$CI62="n.d.",'[1]REAL(M)'!$CI62="n.d."),"n.d.",'[1]REAL(M)'!$CI62-'[1]REAL(M)'!$CJ62)) -> 0.9587413537 | AL63: 0.5906215757 | AM63: 0.1994080937 | AP63: 52.40877651 | AW63: 1.608494954 | AX63: n.d. | AY63: n.d. | AZ63: n.d. | BA63: n.d. | BB63: n.d. | BC63: n.d. | BD63: =IF(ISERROR(STANDARDIZE($AW63,AVERAGE($AW:$AW),STDEV('Datos mensuales'!$AH:$AH))),"n.d.",STANDARDIZE($AW63,AVERAGE('Datos mensuales'!$AH:$AH),STDEV('Datos mensuales'!$AH:$AH))) -> 1.75504127 | BE63: =IF(ISERROR(STANDARDIZE($AX63,AVERAGE($AX:$AX),STDEV('Datos mensuales'!$AH:$AH))),"n.d.",STANDARDIZE($AX63,AVERAGE('Datos mensuales'!$AH:$AH),STDEV('Datos mensuales'!$AH:$AH))) -> n.d. | BF63: =IF(ISERROR(STANDARDIZE($AY63,AVERAGE($AY:$AY),STDEV('Datos mensuales'!$AH:$AH))),"n.d.",STANDARDIZE($AY63,AVERAGE('Datos mensuales'!$AH:$AH),STDEV('Datos mensuales'!$AH:$AH))) -> n.d. | BG63: =IF(ISERROR(STANDARDIZE($AZ63,AVERAGE($AZ:$AZ),STDEV('Datos mensuales'!$AH:$AH))),"n.d.",STANDARDIZE($AZ63,AVERAGE('Datos mensuales'!$AH:$AH),STDEV('Datos mensuales'!$AH:$AH))) -> n.d. | BH63: =IF(ISERROR(STANDARDIZE($BA63,AVERAGE($BA:$BA),STDEV('Datos mensuales'!$AH:$AH))),"n.d.",STANDARDIZE($BA63,AVERAGE('Datos mensuales'!$AH:$AH),STDEV('Datos mensuales'!$AH:$AH))) -> n.d. | BI63: =IF(ISERROR(STANDARDIZE($BB63,AVERAGE($BB:$BB),STDEV('Datos mensuales'!$AH:$AH))),"n.d.",STANDARDIZE($BB63,AVERAGE('Datos mensuales'!$AH:$AH),STDEV('Datos mensuales'!$AH:$AH))) -> n.d. | BJ63: =IF(ISERROR(STANDARDIZE($BC63,AVERAGE($BC:$BC),STDEV('Datos mensuales'!$AH:$AH))),"n.d.",STANDARDIZE($BC63,AVERAGE('Datos mensuales'!$AH:$AH),STDEV('Datos mensuales'!$AH:$AH))) -> n.d. | BK63: -0.05637749145 | BL63: n.d. | BM63: n.d. | BN63: n.d. | BO63: n.d. | BP63: n.d. | BQ63: n.d. | BR63: 0.225525427 | BS63: n.d. | BT63: n.d. | BU63: n.d. | BV63: n.d. | BW63: n.d. | BX63: n.d.
B64: Dic | C64: 4.917858513 | L64: 5.300121923 | U64: 0.102572073 | AH64: n.d. | AI64: n.d. | AJ64: n.d. | AK64: =IF(OR('[1]REAL(M)'!$CI63="",'[1]REAL(M)'!$CI63=""),"",IF(OR('[1]REAL(M)'!$CI63="n.d.",'[1]REAL(M)'!$CI63="n.d."),"n.d.",'[1]REAL(M)'!$CI63-'[1]REAL(M)'!$CJ63)) -> 1.203812888 | AL64: 0.7419900328 | AM64: 0.1513684571 | AP64: 52.55799305 | AW64: 1.730877547 | AX64: n.d. | AY64: n.d. | AZ64: n.d. | BA64: n.d. | BB64: n.d. | BC64: n.d. | BD64: =IF(ISERROR(STANDARDIZE($AW64,AVERAGE($AW:$AW),STDEV('Datos mensuales'!$AH:$AH))),"n.d.",STANDARDIZE($AW64,AVERAGE('Datos mensuales'!$AH:$AH),STDEV('Datos mensuales'!$AH:$AH))) -> 1.888253228 | BE64: =IF(ISERROR(STANDARDIZE($AX64,AVERAGE($AX:$AX),STDEV('Datos mensuales'!$AH:$AH))),"n.d.",STANDARDIZE($AX64,AVERAGE('Datos mensuales'!$AH:$AH),STDEV('Datos mensuales'!$AH:$AH))) -> n.d. | BF64: =IF(ISERROR(STANDARDIZE($AY64,AVERAGE($AY:$AY),STDEV('Datos mensuales'!$AH:$AH))),"n.d.",STANDARDIZE($AY64,AVERAGE('Datos mensuales'!$AH:$AH),STDEV('Datos mensuales'!$AH:$AH))) -> n.d. | BG64: =IF(ISERROR(STANDARDIZE($AZ64,AVERAGE($AZ:$AZ),STDEV('Datos mensuales'!$AH:$AH))),"n.d.",STANDARDIZE($AZ64,AVERAGE('Datos mensuales'!$AH:$AH),STDEV('Datos mensuales'!$AH:$AH))) -> n.d. | BH64: =IF(ISERROR(STANDARDIZE($BA64,AVERAGE($BA:$BA),STDEV('Datos mensuales'!$AH:$AH))),"n.d.",STANDARDIZE($BA64,AVERAGE('Datos mensuales'!$AH:$AH),STDEV('Datos mensuales'!$AH:$AH))) -> n.d. | BI64: =IF(ISERROR(STANDARDIZE($BB64,AVERAGE($BB:$BB),STDEV('Datos mensuales'!$AH:$AH))),"n.d.",STANDARDIZE($BB64,AVERAGE('Datos mensuales'!$AH:$AH),STDEV('Datos mensuales'!$AH:$AH))) -> n.d. | BJ64: =IF(ISERROR(STANDARDIZE($BC64,AVERAGE($BC:$BC),STDEV('Datos mensuales'!$AH:$AH))),"n.d.",STANDARDIZE($BC64,AVERAGE('Datos mensuales'!$AH:$AH),STDEV('Datos mensuales'!$AH:$AH))) -> n.d. | BK64: 0.1332119584 | BL64: n.d. | BM64: n.d. | BN64: n.d. | BO64: n.d. | BP64: n.d. | BQ64: n.d. | BR64: 0.3177699022 | BS64: n.d. | BT64: n.d. | BU64: n.d. | BV64: n.d. | BW64: n.d. | BX64: n.d.
A65: 1995 | B65: Ene | C65: 5.512637898 | L65: 5.512637898 | U65: 0.5947793842 | AH65: n.d. | AI65: n.d. | AJ65: n.d. | AK65: =IF(OR('[1]REAL(M)'!$CI64="",'[1]REAL(M)'!$CI64=""),"",IF(OR('[1]REAL(M)'!$CI64="n.d.",'[1]REAL(M)'!$CI64="n.d."),"n.d.",'[1]REAL(M)'!$CI64-'[1]REAL(M)'!$CJ64)) -> 1.113224757 | AL65: 0.6860382648 | AM65: -0.05595176798 | AP65: 52.70212804 | AW65: 2.05030842 | AX65: n.d. | AY65: n.d. | AZ65: n.d. | BA65: n.d. | BB65: n.d. | BC65: n.d. | BD65: =IF(ISERROR(STANDARDIZE($AW65,AVERAGE($AW:$AW),STDEV('Datos mensuales'!$AH:$AH))),"n.d.",STANDARDIZE($AW65,AVERAGE('Datos mensuales'!$AH:$AH),STDEV('Datos mensuales'!$AH:$AH))) -> 2.235949835 | BE65: =IF(ISERROR(STANDARDIZE($AX65,AVERAGE($AX:$AX),STDEV('Datos mensuales'!$AH:$AH))),"n.d.",STANDARDIZE($AX65,AVERAGE('Datos mensuales'!$AH:$AH),STDEV('Datos mensuales'!$AH:$AH))) -> n.d. | BF65: =IF(ISERROR(STANDARDIZE($AY65,AVERAGE($AY:$AY),STDEV('Datos mensuales'!$AH:$AH))),"n.d.",STANDARDIZE($AY65,AVERAGE('Datos mensuales'!$AH:$AH),STDEV('Datos mensuales'!$AH:$AH))) -> n.d. | BG65: =IF(ISERROR(STANDARDIZE($AZ65,AVERAGE($AZ:$AZ),STDEV('Datos mensuales'!$AH:$AH))),"n.d.",STANDARDIZE($AZ65,AVERAGE('Datos mensuales'!$AH:$AH),STDEV('Datos mensuales'!$AH:$AH))) -> n.d. | BH65: =IF(ISERROR(STANDARDIZE($BA65,AVERAGE($BA:$BA),STDEV('Datos mensuales'!$AH:$AH))),"n.d.",STANDARDIZE($BA65,AVERAGE('Datos mensuales'!$AH:$AH),STDEV('Datos mensuales'!$AH:$AH))) -> n.d. | BI65: =IF(ISERROR(STANDARDIZE($BB65,AVERAGE($BB:$BB),STDEV('Datos mensuales'!$AH:$AH))),"n.d.",STANDARDIZE($BB65,AVERAGE('Datos mensuales'!$AH:$AH),STDEV('Datos mensuales'!$AH:$AH))) -> n.d. | BJ65: =IF(ISERROR(STANDARDIZE($BC65,AVERAGE($BC:$BC),STDEV('Datos mensuales'!$AH:$AH))),"n.d.",STANDARDIZE($BC65,AVERAGE('Datos mensuales'!$AH:$AH),STDEV('Datos mensuales'!$AH:$AH))) -> n.d. | BK65: 0.3476966065 | BL65: n.d. | BM65: n.d. | BN65: n.d. | BO65: n.d. | BP65: n.d. | BQ65: n.d. | BR65: 0.6296219522 | BS65: n.d. | BT65: n.d. | BU65: n.d. | BV65: n.d. | BW65: n.d. | BX65: n.d.
B66: Feb | C66: 5.552879757 | L66: 5.532811843 | U66: 0.04024185952 | AH66: n.d. | AI66: n.d. | AJ66: n.d. | AK66: =IF(OR('[1]REAL(M)'!$CI65="",'[1]REAL(M)'!$CI65=""),"",IF(OR('[1]REAL(M)'!$CI65="n.d.",'[1]REAL(M)'!$CI65="n.d."),"n.d.",'[1]REAL(M)'!$CI65-'[1]REAL(M)'!$CJ65)) -> 0.8039809581 | AL66: 0.4950338022 | AM66: -0.1910044626 | AP66: 52.84131394 | AW66: 2.22140884 | AX66: n.d. | AY66: n.d. | AZ66: n.d. | BA66: n.d. | BB66: n.d. | BC66: n.d. | BD66: =IF(ISERROR(STANDARDIZE($AW66,AVERAGE($AW:$AW),STDEV('Datos mensuales'!$AH:$AH))),"n.d.",STANDARDIZE($AW66,AVERAGE('Datos mensuales'!$AH:$AH),STDEV('Datos mensuales'!$AH:$AH))) -> 2.422190554 | BE66: =IF(ISERROR(STANDARDIZE($AX66,AVERAGE($AX:$AX),STDEV('Datos mensuales'!$AH:$AH))),"n.d.",STANDARDIZE($AX66,AVERAGE('Datos mensuales'!$AH:$AH),STDEV('Datos mensuales'!$AH:$AH))) -> n.d. | BF66: =IF(ISERROR(STANDARDIZE($AY66,AVERAGE($AY:$AY),STDEV('Datos mensuales'!$AH:$AH))),"n.d.",STANDARDIZE($AY66,AVERAGE('Datos mensuales'!$AH:$AH),STDEV('Datos mensuales'!$AH:$AH))) -> n.d. | BG66: =IF(ISERROR(STANDARDIZE($AZ66,AVERAGE($AZ:$AZ),STDEV('Datos mensuales'!$AH:$AH))),"n.d.",STANDARDIZE($AZ66,AVERAGE('Datos mensuales'!$AH:$AH),STDEV('Datos mensuales'!$AH:$AH))) -> n.d. | BH66: =IF(ISERROR(STANDARDIZE($BA66,AVERAGE($BA:$BA),STDEV('Datos mensuales'!$AH:$AH))),"n.d.",STANDARDIZE($BA66,AVERAGE('Datos mensuales'!$AH:$AH),STDEV('Datos mensuales'!$AH:$AH))) -> n.d. | BI66: =IF(ISERROR(STANDARDIZE($BB66,AVERAGE($BB:$BB),STDEV('Datos mensuales'!$AH:$AH))),"n.d.",STANDARDIZE($BB66,AVERAGE('Datos mensuales'!$AH:$AH),STDEV('Datos mensuales'!$AH:$AH))) -> n.d. | BJ66: =IF(ISERROR(STANDARDIZE($BC66,AVERAGE($BC:$BC),STDEV('Datos mensuales'!$AH:$AH))),"n.d.",STANDARDIZE($BC66,AVERAGE('Datos mensuales'!$AH:$AH),STDEV('Datos mensuales'!$AH:$AH))) -> n.d. | BK66: 0.1862407189 | BL66: n.d. | BM66: n.d. | BN66: n.d. | BO66: n.d. | BP66: n.d. | BQ66: n.d. | BR66: 0.6663164582 | BS66: n.d. | BT66: n.d. | BU66: n.d. | BV66: n.d. | BW66: n.d. | BX66: n.d.
B67: Mar | C67: 4.93614942 | L67: 5.332625896 | U67: -0.6167303374 | AH67: n.d. | AI67: n.d. | AJ67: n.d. | AK67: =IF(OR('[1]REAL(M)'!$CI66="",'[1]REAL(M)'!$CI66=""),"",IF(OR('[1]REAL(M)'!$CI66="n.d.",'[1]REAL(M)'!$CI66="n.d."),"n.d.",'[1]REAL(M)'!$CI66-'[1]REAL(M)'!$CJ66)) -> 0.4753680121 | AL67: 0.292065984 | AM67: -0.2029678182 | AP67: 52.97576155 | AW67: 2.157803279 | AX67: n.d. | AY67: n.d. | AZ67: n.d. | BA67: n.d. | BB67: n.d. | BC67: n.d. | BD67: =IF(ISERROR(STANDARDIZE($AW67,AVERAGE($AW:$AW),STDEV('Datos mensuales'!$AH:$AH))),"n.d.",STANDARDIZE($AW67,AVERAGE('Datos mensuales'!$AH:$AH),STDEV('Datos mensuales'!$AH:$AH))) -> 2.352956678 | BE67: =IF(ISERROR(STANDARDIZE($AX67,AVERAGE($AX:$AX),STDEV('Datos mensuales'!$AH:$AH))),"n.d.",STANDARDIZE($AX67,AVERAGE('Datos mensuales'!$AH:$AH),STDEV('Datos mensuales'!$AH:$AH))) -> n.d. | BF67: =IF(ISERROR(STANDARDIZE($AY67,AVERAGE($AY:$AY),STDEV('Datos mensuales'!$AH:$AH))),"n.d.",STANDARDIZE($AY67,AVERAGE('Datos mensuales'!$AH:$AH),STDEV('Datos mensuales'!$AH:$AH))) -> n.d. | BG67: =IF(ISERROR(STANDARDIZE($AZ67,AVERAGE($AZ:$AZ),STDEV('Datos mensuales'!$AH:$AH))),"n.d.",STANDARDIZE($AZ67,AVERAGE('Datos mensuales'!$AH:$AH),STDEV('Datos mensuales'!$AH:$AH))) -> n.d. | BH67: =IF(ISERROR(STANDARDIZE($BA67,AVERAGE($BA:$BA),STDEV('Datos mensuales'!$AH:$AH))),"n.d.",STANDARDIZE($BA67,AVERAGE('Datos mensuales'!$AH:$AH),STDEV('Datos mensuales'!$AH:$AH))) -> n.d. | BI67: =IF(ISERROR(STANDARDIZE($BB67,AVERAGE($BB:$BB),STDEV('Datos mensuales'!$AH:$AH))),"n.d.",STANDARDIZE($BB67,AVERAGE('Datos mensuales'!$AH:$AH),STDEV('Datos mensuales'!$AH:$AH))) -> n.d. | BJ67: =IF(ISERROR(STANDARDIZE($BC67,AVERAGE($BC:$BC),STDEV('Datos mensuales'!$AH:$AH))),"n.d.",STANDARDIZE($BC67,AVERAGE('Datos mensuales'!$AH:$AH),STDEV('Datos mensuales'!$AH:$AH))) -> n.d. | BK67: -0.06923387612 | BL67: n.d. | BM67: n.d. | BN67: n.d. | BO67: n.d. | BP67: n.d. | BQ67: n.d. | BR67: 0.4270579099 | BS67: n.d. | BT67: n.d. | BU67: n.d. | BV67: n.d. | BW67: n.d. | BX67: n.d.
B68: Abr | C68: 4.4498714 | L68: 5.109967093 | U68: -0.4862780198 | AH68: n.d. | AI68: n.d. | AJ68: n.d. | AK68: =IF(OR('[1]REAL(M)'!$CI67="",'[1]REAL(M)'!$CI67=""),"",IF(OR('[1]REAL(M)'!$CI67="n.d.",'[1]REAL(M)'!$CI67="n.d."),"n.d.",'[1]REAL(M)'!$CI67-'[1]REAL(M)'!$CJ67)) -> 0.2250613913 | AL68: 0.1374640752 | AM68: -0.1546019088 | AP68: 53.10577949 | AW68: 2.067262506 | AX68: n.d. | AY68: n.d. | AZ68: n.d. | BA68: n.d. | BB68: n.d. | BC68: n.d. | BD68: =IF(ISERROR(STANDARDIZE($AW68,AVERAGE($AW:$AW),STDEV('Datos mensuales'!$AH:$AH))),"n.d.",STANDARDIZE($AW68,AVERAGE('Datos mensuales'!$AH:$AH),STDEV('Datos mensuales'!$AH:$AH))) -> 2.254404151 | BE68: =IF(ISERROR(STANDARDIZE($AX68,AVERAGE($AX:$AX),STDEV('Datos mensuales'!$AH:$AH))),"n.d.",STANDARDIZE($AX68,AVERAGE('Datos mensuales'!$AH:$AH),STDEV('Datos mensuales'!$AH:$AH))) -> n.d. | BF68: =IF(ISERROR(STANDARDIZE($AY68,AVERAGE($AY:$AY),STDEV('Datos mensuales'!$AH:$AH))),"n.d.",STANDARDIZE($AY68,AVERAGE('Datos mensuales'!$AH:$AH),STDEV('Datos mensuales'!$AH:$AH))) -> n.d. | BG68: =IF(ISERROR(STANDARDIZE($AZ68,AVERAGE($AZ:$AZ),STDEV('Datos mensuales'!$AH:$AH))),"n.d.",STANDARDIZE($AZ68,AVERAGE('Datos mensuales'!$AH:$AH),STDEV('Datos mensuales'!$AH:$AH))) -> n.d. | BH68: =IF(ISERROR(STANDARDIZE($BA68,AVERAGE($BA:$BA),STDEV('Datos mensuales'!$AH:$AH))),"n.d.",STANDARDIZE($BA68,AVERAGE('Datos mensuales'!$AH:$AH),STDEV('Datos mensuales'!$AH:$AH))) -> n.d. | BI68: =IF(ISERROR(STANDARDIZE($BB68,AVERAGE($BB:$BB),STDEV('Datos mensuales'!$AH:$AH))),"n.d.",STANDARDIZE($BB68,AVERAGE('Datos mensuales'!$AH:$AH),STDEV('Datos mensuales'!$AH:$AH))) -> n.d. | BJ68: =IF(ISERROR(STANDARDIZE($BC68,AVERAGE($BC:$BC),STDEV('Datos mensuales'!$AH:$AH))),"n.d.",STANDARDIZE($BC68,AVERAGE('Datos mensuales'!$AH:$AH),STDEV('Datos mensuales'!$AH:$AH))) -> n.d. | BK68: -0.09855252699 | BL68: n.d. | BM68: n.d. | BN68: n.d. | BO68: n.d. | BP68: n.d. | BQ68: n.d. | BR68: 0.2887622928 | BS68: n.d. | BT68: n.d. | BU68: n.d. | BV68: n.d. | BW68: n.d. | BX68: n.d.
B69: May | C69: 4.119733171 | L69: 4.909802795 | U69: -0.3301382286 | AC69: =IF(OR(K69="",K69="n.d.",K68="",K68="n.d."),"",K69-K68) ->  | AH69: n.d. | AI69: =IF(ISERROR(STANDARDIZE($AH69,AVERAGE($AH:$AH),STDEV($AH:$AH))),"n.d.",STANDARDIZE($AH69,AVERAGE($AH:$AH),STDEV($AH:$AH))) -> n.d. | AJ69: =IF(OR(AI69="",AI68=""),"",IF(OR(AI69="n.d.",AI68="n.d."),"n.d.",((AI69/AI68)-1))) -> n.d. | AK69: =IF(OR('[1]REAL(M)'!$CI68="",'[1]REAL(M)'!$CI68=""),"",IF(OR('[1]REAL(M)'!$CI68="n.d.",'[1]REAL(M)'!$CI68="n.d."),"n.d.",'[1]REAL(M)'!$CI68-'[1]REAL(M)'!$CJ68)) -> 0.1495592612 | AL69: =IF(ISERROR(STANDARDIZE($AK69,AVERAGE($AK:$AK),STDEV($AK:$AK))),"n.d.",STANDARDIZE($AK69,AVERAGE($AK:$AK),STDEV($AK:$AK))) -> 0.09083017724 | AM69: -0.04663389798 | AP69: 53.23178433 | AW69: 2.010723803 | AX69: n.d. | AY69: n.d. | AZ69: n.d. | BA69: n.d. | BB69: n.d. | BC69: n.d. | BD69: =IF(ISERROR(STANDARDIZE($AW69,AVERAGE($AW:$AW),STDEV('Datos mensuales'!$AH:$AH))),"n.d.",STANDARDIZE($AW69,AVERAGE('Datos mensuales'!$AH:$AH),STDEV('Datos mensuales'!$AH:$AH))) -> 2.192862463 | BE69: =IF(ISERROR(STANDARDIZE($AX69,AVERAGE($AX:$AX),STDEV('Datos mensuales'!$AH:$AH))),"n.d.",STANDARDIZE($AX69,AVERAGE('Datos mensuales'!$AH:$AH),STDEV('Datos mensuales'!$AH:$AH))) -> n.d. | BF69: =IF(ISERROR(STANDARDIZE($AY69,AVERAGE($AY:$AY),STDEV('Datos mensuales'!$AH:$AH))),"n.d.",STANDARDIZE($AY69,AVERAGE('Datos mensuales'!$AH:$AH),STDEV('Datos mensuales'!$AH:$AH))) -> n.d. | BG69: =IF(ISERROR(STANDARDIZE($AZ69,AVERAGE($AZ:$AZ),STDEV('Datos mensuales'!$AH:$AH))),"n.d.",STANDARDIZE($AZ69,AVERAGE('Datos mensuales'!$AH:$AH),STDEV('Datos mensuales'!$AH:$AH))) -> n.d. | BH69: =IF(ISERROR(STANDARDIZE($BA69,AVERAGE($BA:$BA),STDEV('Datos mensuales'!$AH:$AH))),"n.d.",STANDARDIZE($BA69,AVERAGE('Datos mensuales'!$AH:$AH),STDEV('Datos mensuales'!$AH:$AH))) -> n.d. | BI69: =IF(ISERROR(STANDARDIZE($BB69,AVERAGE($BB:$BB),STDEV('Datos mensuales'!$AH:$AH))),"n.d.",STANDARDIZE($BB69,AVERAGE('Datos mensuales'!$AH:$AH),STDEV('Datos mensuales'!$AH:$AH))) -> n.d. | BJ69: =IF(ISERROR(STANDARDIZE($BC69,AVERAGE($BC:$BC),STDEV('Datos mensuales'!$AH:$AH))),"n.d.",STANDARDIZE($BC69,AVERAGE('Datos mensuales'!$AH:$AH),STDEV('Datos mensuales'!$AH:$AH))) -> n.d. | BK69: -0.06154168811 | BL69: n.d. | BM69: n.d. | BN69: n.d. | BO69: n.d. | BP69: n.d. | BQ69: n.d. | BR69: 0.2165380544 | BS69: n.d. | BT69: n.d. | BU69: n.d. | BV69: n.d. | BW69: n.d. | BX69: n.d.
B70: Jun | C70: 3.809420746 | L70: 4.724189627 | U70: -0.3103124257 | AH70: n.d. | AI70: n.d. | AJ70: n.d. | AK70: =IF(OR('[1]REAL(M)'!$CI69="",'[1]REAL(M)'!$CI69=""),"",IF(OR('[1]REAL(M)'!$CI69="n.d.",'[1]REAL(M)'!$CI69="n.d."),"n.d.",'[1]REAL(M)'!$CI69-'[1]REAL(M)'!$CJ69)) -> -0.07343278847 | AL70: -0.04690088404 | AM70: =IF(OR(AL70="",AL69=""),"",IF(OR(AL70="n.d.",AL69="n.d."),"n.d.",AL70-AL69)) -> -0.1377310613 | AP70: 53.35429568 | AW70: 1.933043913 | AX70: n.d. | AY70: n.d. | AZ70: n.d. | BA70: n.d. | BB70: n.d. | BC70: n.d. | BD70: =IF(ISERROR(STANDARDIZE($AW70,AVERAGE($AW:$AW),STDEV('Datos mensuales'!$AH:$AH))),"n.d.",STANDARDIZE($AW70,AVERAGE('Datos mensuales'!$AH:$AH),STDEV('Datos mensuales'!$AH:$AH))) -> 2.108308851 | BE70: =IF(ISERROR(STANDARDIZE($AX70,AVERAGE($AX:$AX),STDEV('Datos mensuales'!$AH:$AH))),"n.d.",STANDARDIZE($AX70,AVERAGE('Datos mensuales'!$AH:$AH),STDEV('Datos mensuales'!$AH:$AH))) -> n.d. | BF70: =IF(ISERROR(STANDARDIZE($AY70,AVERAGE($AY:$AY),STDEV('Datos mensuales'!$AH:$AH))),"n.d.",STANDARDIZE($AY70,AVERAGE('Datos mensuales'!$AH:$AH),STDEV('Datos mensuales'!$AH:$AH))) -> n.d. | BG70: =IF(ISERROR(STANDARDIZE($AZ70,AVERAGE($AZ:$AZ),STDEV('Datos mensuales'!$AH:$AH))),"n.d.",STANDARDIZE($AZ70,AVERAGE('Datos mensuales'!$AH:$AH),STDEV('Datos mensuales'!$AH:$AH))) -> n.d. | BH70: =IF(ISERROR(STANDARDIZE($BA70,AVERAGE($BA:$BA),STDEV('Datos mensuales'!$AH:$AH))),"n.d.",STANDARDIZE($BA70,AVERAGE('Datos mensuales'!$AH:$AH),STDEV('Datos mensuales'!$AH:$AH))) -> n.d. | BI70: =IF(ISERROR(STANDARDIZE($BB70,AVERAGE($BB:$BB),STDEV('Datos mensuales'!$AH:$AH))),"n.d.",STANDARDIZE($BB70,AVERAGE('Datos mensuales'!$AH:$AH),STDEV('Datos mensuales'!$AH:$AH))) -> n.d. | BJ70: =IF(ISERROR(STANDARDIZE($BC70,AVERAGE($BC:$BC),STDEV('Datos mensuales'!$AH:$AH))),"n.d.",STANDARDIZE($BC70,AVERAGE('Datos mensuales'!$AH:$AH),STDEV('Datos mensuales'!$AH:$AH))) -> n.d. | BK70: -0.08455361148 | BL70: n.d. | BM70: n.d. | BN70: n.d. | BO70: n.d. | BP70: n.d. | BQ70: n.d. | BR70: 0.1546368435 | BS70: n.d. | BT70: n.d. | BU70: n.d. | BV70: n.d. | BW70: n.d. | BX70: n.d.
B71: Jul | C71: 3.450713356 | L71: 4.539879434 | U71: =IF(OR(C71="",C71="n.d.",C70="",C70="n.d."),"",C71-C70) -> -0.3587073896 | V71: =IF(OR(D71="",D71="n.d.",D70="",D70="n.d."),"",D71-D70) ->  | W71: =IF(OR(E71="",E71="n.d.",E70="",E70="n.d."),"",E71-E70) ->  | X71: =IF(OR(F71="",F71="n.d.",F70="",F70="n.d."),"",F71-F70) ->  | Y71: =IF(OR(G71="",G71="n.d.",G70="",G70="n.d."),"",G71-G70) ->  | Z71: =IF(OR(H71="",H71="n.d.",H70="",H70="n.d."),"",H71-H70) ->  | AH71: n.d. | AI71: n.d. | AJ71: n.d. | AK71: =IF(OR('[1]REAL(M)'!$CI70="",'[1]REAL(M)'!$CI70=""),"",IF(OR('[1]REAL(M)'!$CI70="n.d.",'[1]REAL(M)'!$CI70="n.d."),"n.d.",'[1]REAL(M)'!$CI70-'[1]REAL(M)'!$CJ70)) -> -0.2925050572 | AL71: -0.1822108922 | AM71: -0.1353100082 | AP71: 53.47391846 | AW71: 1.798997048 | AX71: n.d. | AY71: n.d. | AZ71: n.d. | BA71: n.d. | BB71: n.d. | BC71: n.d. | BD71: =IF(ISERROR(STANDARDIZE($AW71,AVERAGE($AW:$AW),STDEV('Datos mensuales'!$AH:$AH))),"n.d.",STANDARDIZE($AW71,AVERAGE('Datos mensuales'!$AH:$AH),STDEV('Datos mensuales'!$AH:$AH))) -> 1.962400474 | BE71: =IF(ISERROR(STANDARDIZE($AX71,AVERAGE($AX:$AX),STDEV('Datos mensuales'!$AH:$AH))),"n.d.",STANDARDIZE($AX71,AVERAGE('Datos mensuales'!$AH:$AH),STDEV('Datos mensuales'!$AH:$AH))) -> n.d. | BF71: =IF(ISERROR(STANDARDIZE($AY71,AVERAGE($AY:$AY),STDEV('Datos mensuales'!$AH:$AH))),"n.d.",STANDARDIZE($AY71,AVERAGE('Datos mensuales'!$AH:$AH),STDEV('Datos mensuales'!$AH:$AH))) -> n.d. | BG71: =IF(ISERROR(STANDARDIZE($AZ71,AVERAGE($AZ:$AZ),STDEV('Datos mensuales'!$AH:$AH))),"n.d.",STANDARDIZE($AZ71,AVERAGE('Datos mensuales'!$AH:$AH),STDEV('Datos mensuales'!$AH:$AH))) -> n.d. | BH71: =IF(ISERROR(STANDARDIZE($BA71,AVERAGE($BA:$BA),STDEV('Datos mensuales'!$AH:$AH))),"n.d.",STANDARDIZE($BA71,AVERAGE('Datos mensuales'!$AH:$AH),STDEV('Datos mensuales'!$AH:$AH))) -> n.d. | BI71: =IF(ISERROR(STANDARDIZE($BB71,AVERAGE($BB:$BB),STDEV('Datos mensuales'!$AH:$AH))),"n.d.",STANDARDIZE($BB71,AVERAGE('Datos mensuales'!$AH:$AH),STDEV('Datos mensuales'!$AH:$AH))) -> n.d. | BJ71: =IF(ISERROR(STANDARDIZE($BC71,AVERAGE($BC:$BC),STDEV('Datos mensuales'!$AH:$AH))),"n.d.",STANDARDIZE($BC71,AVERAGE('Datos mensuales'!$AH:$AH),STDEV('Datos mensuales'!$AH:$AH))) -> n.d. | BK71: =IF(OR(BD71="",BD70=""),"",IF(OR(BD71="n.d.",BD70="n.d."),"n.d.",BD71-BD70)) -> -0.1459083771 | BL71: =IF(OR(BE71="",BE70=""),"",IF(OR(BE71="n.d.",BE70="n.d."),"n.d.",BE71-BE70)) -> n.d. | BM71: =IF(OR(BF71="",BF70=""),"",IF(OR(BF71="n.d.",BF70="n.d."),"n.d.",BF71-BF70)) -> n.d. | BN71: =IF(OR(BG71="",BG70=""),"",IF(OR(BG71="n.d.",BG70="n.d."),"n.d.",BG71-BG70)) -> n.d. | BO71: =IF(OR(BH71="",BH70=""),"",IF(OR(BH71="n.d.",BH70="n.d."),"n.d.",BH71-BH70)) -> n.d. | BP71: =IF(OR(BI71="",BI70=""),"",IF(OR(BI71="n.d.",BI70="n.d."),"n.d.",BI71-BI70)) -> n.d. | BQ71: =IF(OR(BJ71="",BJ70=""),"",IF(OR(BJ71="n.d.",BJ70="n.d."),"n.d.",BJ71-BJ70)) -> n.d. | BR71: 0.0775879733 | BS71: n.d. | BT71: n.d. | BU71: n.d. | BV71: n.d. | BW71: n.d. | BX71: n.d.
B72: Ago | C72: 2.994061941 | L72: 4.343812871 | U72: -0.4566514153 | AH72: n.d. | AI72: n.d. | AJ72: n.d. | AK72: =IF(OR('[1]REAL(M)'!$CI71="",'[1]REAL(M)'!$CI71=""),"",IF(OR('[1]REAL(M)'!$CI71="n.d.",'[1]REAL(M)'!$CI71="n.d."),"n.d.",'[1]REAL(M)'!$CI71-'[1]REAL(M)'!$CJ71)) -> -0.09594095458 | AL72: -0.06080305504 | AM72: 0.1214078372 | AP72: 53.59131633 | AW72: 1.639628957 | AX72: n.d. | AY72: n.d. | AZ72: n.d. | BA72: n.d. | BB72: n.d. | BC72: n.d. | BD72: =IF(ISERROR(STANDARDIZE($AW72,AVERAGE($AW:$AW),STDEV('Datos mensuales'!$AH:$AH))),"n.d.",STANDARDIZE($AW72,AVERAGE('Datos mensuales'!$AH:$AH),STDEV('Datos mensuales'!$AH:$AH))) -> 1.788930252 | BE72: =IF(ISERROR(STANDARDIZE($AX72,AVERAGE($AX:$AX),STDEV('Datos mensuales'!$AH:$AH))),"n.d.",STANDARDIZE($AX72,AVERAGE('Datos mensuales'!$AH:$AH),STDEV('Datos mensuales'!$AH:$AH))) -> n.d. | BF72: =IF(ISERROR(STANDARDIZE($AY72,AVERAGE($AY:$AY),STDEV('Datos mensuales'!$AH:$AH))),"n.d.",STANDARDIZE($AY72,AVERAGE('Datos mensuales'!$AH:$AH),STDEV('Datos mensuales'!$AH:$AH))) -> n.d. | BG72: =IF(ISERROR(STANDARDIZE($AZ72,AVERAGE($AZ:$AZ),STDEV('Datos mensuales'!$AH:$AH))),"n.d.",STANDARDIZE($AZ72,AVERAGE('Datos mensuales'!$AH:$AH),STDEV('Datos mensuales'!$AH:$AH))) -> n.d. | BH72: =IF(ISERROR(STANDARDIZE($BA72,AVERAGE($BA:$BA),STDEV('Datos mensuales'!$AH:$AH))),"n.d.",STANDARDIZE($BA72,AVERAGE('Datos mensuales'!$AH:$AH),STDEV('Datos mensuales'!$AH:$AH))) -> n.d. | BI72: =IF(ISERROR(STANDARDIZE($BB72,AVERAGE($BB:$BB),STDEV('Datos mensuales'!$AH:$AH))),"n.d.",STANDARDIZE($BB72,AVERAGE('Datos mensuales'!$AH:$AH),STDEV('Datos mensuales'!$AH:$AH))) -> n.d. | BJ72: =IF(ISERROR(STANDARDIZE($BC72,AVERAGE($BC:$BC),STDEV('Datos mensuales'!$AH:$AH))),"n.d.",STANDARDIZE($BC72,AVERAGE('Datos mensuales'!$AH:$AH),STDEV('Datos mensuales'!$AH:$AH))) -> n.d. | BK72: -0.1734702219 | BL72: n.d. | BM72: n.d. | BN72: n.d. | BO72: n.d. | BP72: n.d. | BQ72: n.d. | BR72: -0.03278073538 | BS72: n.d. | BT72: n.d. | BU72: n.d. | BV72: n.d. | BW72: n.d. | BX72: n.d.
B73: Sep | C73: 2.604091044 | L73: 4.147433252 | U73: -0.389970897 | AH73: n.d. | AI73: n.d. | AJ73: n.d. | AK73: =IF(OR('[1]REAL(M)'!$CI72="",'[1]REAL(M)'!$CI72=""),"",IF(OR('[1]REAL(M)'!$CI72="n.d.",'[1]REAL(M)'!$CI72="n.d."),"n.d.",'[1]REAL(M)'!$CI72-'[1]REAL(M)'!$CJ72)) -> -0.03197872359 | AL73: -0.02129677682 | AM73: 0.03950627822 | AP73: 53.70718461 | AW73: 1.490876989 | AX73: n.d. | AY73: n.d. | AZ73: n.d. | BA73: n.d. | BB73: n.d. | BC73: n.d. | BD73: =IF(ISERROR(STANDARDIZE($AW73,AVERAGE($AW:$AW),STDEV('Datos mensuales'!$AH:$AH))),"n.d.",STANDARDIZE($AW73,AVERAGE('Datos mensuales'!$AH:$AH),STDEV('Datos mensuales'!$AH:$AH))) -> 1.627015551 | BE73: =IF(ISERROR(STANDARDIZE($AX73,AVERAGE($AX:$AX),STDEV('Datos mensuales'!$AH:$AH))),"n.d.",STANDARDIZE($AX73,AVERAGE('Datos mensuales'!$AH:$AH),STDEV('Datos mensuales'!$AH:$AH))) -> n.d. | BF73: =IF(ISERROR(STANDARDIZE($AY73,AVERAGE($AY:$AY),STDEV('Datos mensuales'!$AH:$AH))),"n.d.",STANDARDIZE($AY73,AVERAGE('Datos mensuales'!$AH:$AH),STDEV('Datos mensuales'!$AH:$AH))) -> n.d. | BG73: =IF(ISERROR(STANDARDIZE($AZ73,AVERAGE($AZ:$AZ),STDEV('Datos mensuales'!$AH:$AH))),"n.d.",STANDARDIZE($AZ73,AVERAGE('Datos mensuales'!$AH:$AH),STDEV('Datos mensuales'!$AH:$AH))) -> n.d. | BH73: =IF(ISERROR(STANDARDIZE($BA73,AVERAGE($BA:$BA),STDEV('Datos mensuales'!$AH:$AH))),"n.d.",STANDARDIZE($BA73,AVERAGE('Datos mensuales'!$AH:$AH),STDEV('Datos mensuales'!$AH:$AH))) -> n.d. | BI73: =IF(ISERROR(STANDARDIZE($BB73,AVERAGE($BB:$BB),STDEV('Datos mensuales'!$AH:$AH))),"n.d.",STANDARDIZE($BB73,AVERAGE('Datos mensuales'!$AH:$AH),STDEV('Datos mensuales'!$AH:$AH))) -> n.d. | BJ73: =IF(ISERROR(STANDARDIZE($BC73,AVERAGE($BC:$BC),STDEV('Datos mensuales'!$AH:$AH))),"n.d.",STANDARDIZE($BC73,AVERAGE('Datos mensuales'!$AH:$AH),STDEV('Datos mensuales'!$AH:$AH))) -> n.d. | BK73: -0.1619147015 | BL73: n.d. | BM73: n.d. | BN73: n.d. | BO73: n.d. | BP73: n.d. | BQ73: n.d. | BR73: -0.1239204218 | BS73: n.d. | BT73: n.d. | BU73: n.d. | BV73: n.d. | BW73: n.d. | BX73: n.d.
B74: Oct | C74: 2.395355437 | L74: 3.969370363 | U74: -0.2087356063 | AA74: =IF(OR(I74="",I74="n.d.",I73="",I73="n.d."),"",I74-I73) ->  | AB74: =IF(OR(J74="",J74="n.d.",J73="",J73="n.d."),"",J74-J73) ->  | AH74: n.d. | AI74: n.d. | AJ74: n.d. | AK74: =IF(OR('[1]REAL(M)'!$CI73="",'[1]REAL(M)'!$CI73=""),"",IF(OR('[1]REAL(M)'!$CI73="n.d.",'[1]REAL(M)'!$CI73="n.d."),"n.d.",'[1]REAL(M)'!$CI73-'[1]REAL(M)'!$CJ73)) -> -0.3287202174 | AL74: -0.2045791895 | AM74: -0.1832824126 | AP74: 53.82223103 | AW74: 1.383908354 | AX74: n.d. | AY74: n.d. | AZ74: n.d. | BA74: n.d. | BB74: n.d. | BC74: n.d. | BD74: =IF(ISERROR(STANDARDIZE($AW74,AVERAGE($AW:$AW),STDEV('Datos mensuales'!$AH:$AH))),"n.d.",STANDARDIZE($AW74,AVERAGE('Datos mensuales'!$AH:$AH),STDEV('Datos mensuales'!$AH:$AH))) -> 1.510581497 | BE74: =IF(ISERROR(STANDARDIZE($AX74,AVERAGE($AX:$AX),STDEV('Datos mensuales'!$AH:$AH))),"n.d.",STANDARDIZE($AX74,AVERAGE('Datos mensuales'!$AH:$AH),STDEV('Datos mensuales'!$AH:$AH))) -> n.d. | BF74: =IF(ISERROR(STANDARDIZE($AY74,AVERAGE($AY:$AY),STDEV('Datos mensuales'!$AH:$AH))),"n.d.",STANDARDIZE($AY74,AVERAGE('Datos mensuales'!$AH:$AH),STDEV('Datos mensuales'!$AH:$AH))) -> n.d. | BG74: =IF(ISERROR(STANDARDIZE($AZ74,AVERAGE($AZ:$AZ),STDEV('Datos mensuales'!$AH:$AH))),"n.d.",STANDARDIZE($AZ74,AVERAGE('Datos mensuales'!$AH:$AH),STDEV('Datos mensuales'!$AH:$AH))) -> n.d. | BH74: =IF(ISERROR(STANDARDIZE($BA74,AVERAGE($BA:$BA),STDEV('Datos mensuales'!$AH:$AH))),"n.d.",STANDARDIZE($BA74,AVERAGE('Datos mensuales'!$AH:$AH),STDEV('Datos mensuales'!$AH:$AH))) -> n.d. | BI74: =IF(ISERROR(STANDARDIZE($BB74,AVERAGE($BB:$BB),STDEV('Datos mensuales'!$AH:$AH))),"n.d.",STANDARDIZE($BB74,AVERAGE('Datos mensuales'!$AH:$AH),STDEV('Datos mensuales'!$AH:$AH))) -> n.d. | BJ74: =IF(ISERROR(STANDARDIZE($BC74,AVERAGE($BC:$BC),STDEV('Datos mensuales'!$AH:$AH))),"n.d.",STANDARDIZE($BC74,AVERAGE('Datos mensuales'!$AH:$AH),STDEV('Datos mensuales'!$AH:$AH))) -> n.d. | BK74: -0.1164340536 | BL74: n.d. | BM74: n.d. | BN74: n.d. | BO74: n.d. | BP74: n.d. | BQ74: n.d. | BR74: -0.1660782536 | BS74: n.d. | BT74: n.d. | BU74: n.d. | BV74: n.d. | BW74: n.d. | BX74: n.d.
B75: Nov | C75: 2.4265801 | L75: 3.826796263 | U75: 0.03122466301 | AH75: n.d. | AI75: n.d. | AJ75: n.d. | AK75: =IF(OR('[1]REAL(M)'!$CI74="",'[1]REAL(M)'!$CI74=""),"",IF(OR('[1]REAL(M)'!$CI74="n.d.",'[1]REAL(M)'!$CI74="n.d."),"n.d.",'[1]REAL(M)'!$CI74-'[1]REAL(M)'!$CJ74)) -> -0.56733112 | AL75: -0.3519572367 | AM75: -0.1473780473 | AP75: 53.9371642 | AW75: 1.390879622 | AX75: n.d. | AY75: n.d. | AZ75: n.d. | BA75: n.d. | BB75: n.d. | BC75: n.d. | BD75: =IF(ISERROR(STANDARDIZE($AW75,AVERAGE($AW:$AW),STDEV('Datos mensuales'!$AH:$AH))),"n.d.",STANDARDIZE($AW75,AVERAGE('Datos mensuales'!$AH:$AH),STDEV('Datos mensuales'!$AH:$AH))) -> 1.518169637 | BE75: =IF(ISERROR(STANDARDIZE($AX75,AVERAGE($AX:$AX),STDEV('Datos mensuales'!$AH:$AH))),"n.d.",STANDARDIZE($AX75,AVERAGE('Datos mensuales'!$AH:$AH),STDEV('Datos mensuales'!$AH:$AH))) -> n.d. | BF75: =IF(ISERROR(STANDARDIZE($AY75,AVERAGE($AY:$AY),STDEV('Datos mensuales'!$AH:$AH))),"n.d.",STANDARDIZE($AY75,AVERAGE('Datos mensuales'!$AH:$AH),STDEV('Datos mensuales'!$AH:$AH))) -> n.d. | BG75: =IF(ISERROR(STANDARDIZE($AZ75,AVERAGE($AZ:$AZ),STDEV('Datos mensuales'!$AH:$AH))),"n.d.",STANDARDIZE($AZ75,AVERAGE('Datos mensuales'!$AH:$AH),STDEV('Datos mensuales'!$AH:$AH))) -> n.d. | BH75: =IF(ISERROR(STANDARDIZE($BA75,AVERAGE($BA:$BA),STDEV('Datos mensuales'!$AH:$AH))),"n.d.",STANDARDIZE($BA75,AVERAGE('Datos mensuales'!$AH:$AH),STDEV('Datos mensuales'!$AH:$AH))) -> n.d. | BI75: =IF(ISERROR(STANDARDIZE($BB75,AVERAGE($BB:$BB),STDEV('Datos mensuales'!$AH:$AH))),"n.d.",STANDARDIZE($BB75,AVERAGE('Datos mensuales'!$AH:$AH),STDEV('Datos mensuales'!$AH:$AH))) -> n.d. | BJ75: =IF(ISERROR(STANDARDIZE($BC75,AVERAGE($BC:$BC),STDEV('Datos mensuales'!$AH:$AH))),"n.d.",STANDARDIZE($BC75,AVERAGE('Datos mensuales'!$AH:$AH),STDEV('Datos mensuales'!$AH:$AH))) -> n.d. | BK75: 0.007588139949 | BL75: n.d. | BM75: n.d. | BN75: n.d. | BO75: n.d. | BP75: n.d. | BQ75: n.d. | BR75: -0.1349664176 | BS75: n.d. | BT75: n.d. | BU75: n.d. | BV75: n.d. | BW75: n.d. | BX75: n.d.
B76: Dic | C76: 2.04644318 | L76: 3.675493643 | U76: -0.3801369202 | AH76: n.d. | AI76: n.d. | AJ76: n.d. | AK76: =IF(OR('[1]REAL(M)'!$CI75="",'[1]REAL(M)'!$CI75=""),"",IF(OR('[1]REAL(M)'!$CI75="n.d.",'[1]REAL(M)'!$CI75="n.d."),"n.d.",'[1]REAL(M)'!$CI75-'[1]REAL(M)'!$CJ75)) -> -0.8306174202 | AL76: -0.5145760458 | AM76: -0.162618809 | AP76: 54.05269051 | AW76: 1.347170981 | AX76: n.d. | AY76: n.d. | AZ76: n.d. | BA76: n.d. | BB76: n.d. | BC76: n.d. | BD76: =IF(ISERROR(STANDARDIZE($AW76,AVERAGE($AW:$AW),STDEV('Datos mensuales'!$AH:$AH))),"n.d.",STANDARDIZE($AW76,AVERAGE('Datos mensuales'!$AH:$AH),STDEV('Datos mensuales'!$AH:$AH))) -> 1.470593314 | BE76: =IF(ISERROR(STANDARDIZE($AX76,AVERAGE($AX:$AX),STDEV('Datos mensuales'!$AH:$AH))),"n.d.",STANDARDIZE($AX76,AVERAGE('Datos mensuales'!$AH:$AH),STDEV('Datos mensuales'!$AH:$AH))) -> n.d. | BF76: =IF(ISERROR(STANDARDIZE($AY76,AVERAGE($AY:$AY),STDEV('Datos mensuales'!$AH:$AH))),"n.d.",STANDARDIZE($AY76,AVERAGE('Datos mensuales'!$AH:$AH),STDEV('Datos mensuales'!$AH:$AH))) -> n.d. | BG76: =IF(ISERROR(STANDARDIZE($AZ76,AVERAGE($AZ:$AZ),STDEV('Datos mensuales'!$AH:$AH))),"n.d.",STANDARDIZE($AZ76,AVERAGE('Datos mensuales'!$AH:$AH),STDEV('Datos mensuales'!$AH:$AH))) -> n.d. | BH76: =IF(ISERROR(STANDARDIZE($BA76,AVERAGE($BA:$BA),STDEV('Datos mensuales'!$AH:$AH))),"n.d.",STANDARDIZE($BA76,AVERAGE('Datos mensuales'!$AH:$AH),STDEV('Datos mensuales'!$AH:$AH))) -> n.d. | BI76: =IF(ISERROR(STANDARDIZE($BB76,AVERAGE($BB:$BB),STDEV('Datos mensuales'!$AH:$AH))),"n.d.",STANDARDIZE($BB76,AVERAGE('Datos mensuales'!$AH:$AH),STDEV('Datos mensuales'!$AH:$AH))) -> n.d. | BJ76: =IF(ISERROR(STANDARDIZE($BC76,AVERAGE($BC:$BC),STDEV('Datos mensuales'!$AH:$AH))),"n.d.",STANDARDIZE($BC76,AVERAGE('Datos mensuales'!$AH:$AH),STDEV('Datos mensuales'!$AH:$AH))) -> n.d. | BK76: -0.04757632253 | BL76: n.d. | BM76: n.d. | BN76: n.d. | BO76: n.d. | BP76: n.d. | BQ76: n.d. | BR76: -0.2211885078 | BS76: n.d. | BT76: n.d. | BU76: n.d. | BV76: n.d. | BW76: n.d. | BX76: n.d.
A77: 1996 | B77: Ene | C77: 0.8333396457 | L77: 0.8333396457 | U77: -1.213103535 | AH77: n.d. | AI77: n.d. | AJ77: n.d. | AK77: =IF(OR('[1]REAL(M)'!$CI76="",'[1]REAL(M)'!$CI76=""),"",IF(OR('[1]REAL(M)'!$CI76="n.d.",'[1]REAL(M)'!$CI76="n.d."),"n.d.",'[1]REAL(M)'!$CI76-'[1]REAL(M)'!$CJ76)) -> -1.030022985 | AL77: -0.6377389122 | AM77: -0.1231628664 | AP77: 54.16951237 | AW77: 1.039197848 | AX77: n.d. | AY77: n.d. | AZ77: n.d. | BA77: n.d. | BB77: n.d. | BC77: n.d. | BD77: =IF(ISERROR(STANDARDIZE($AW77,AVERAGE($AW:$AW),STDEV('Datos mensuales'!$AH:$AH))),"n.d.",STANDARDIZE($AW77,AVERAGE('Datos mensuales'!$AH:$AH),STDEV('Datos mensuales'!$AH:$AH))) -> 1.135368319 | BE77: =IF(ISERROR(STANDARDIZE($AX77,AVERAGE($AX:$AX),STDEV('Datos mensuales'!$AH:$AH))),"n.d.",STANDARDIZE($AX77,AVERAGE('Datos mensuales'!$AH:$AH),STDEV('Datos mensuales'!$AH:$AH))) -> n.d. | BF77: =IF(ISERROR(STANDARDIZE($AY77,AVERAGE($AY:$AY),STDEV('Datos mensuales'!$AH:$AH))),"n.d.",STANDARDIZE($AY77,AVERAGE('Datos mensuales'!$AH:$AH),STDEV('Datos mensuales'!$AH:$AH))) -> n.d. | BG77: =IF(ISERROR(STANDARDIZE($AZ77,AVERAGE($AZ:$AZ),STDEV('Datos mensuales'!$AH:$AH))),"n.d.",STANDARDIZE($AZ77,AVERAGE('Datos mensuales'!$AH:$AH),STDEV('Datos mensuales'!$AH:$AH))) -> n.d. | BH77: =IF(ISERROR(STANDARDIZE($BA77,AVERAGE($BA:$BA),STDEV('Datos mensuales'!$AH:$AH))),"n.d.",STANDARDIZE($BA77,AVERAGE('Datos mensuales'!$AH:$AH),STDEV('Datos mensuales'!$AH:$AH))) -> n.d. | BI77: =IF(ISERROR(STANDARDIZE($BB77,AVERAGE($BB:$BB),STDEV('Datos mensuales'!$AH:$AH))),"n.d.",STANDARDIZE($BB77,AVERAGE('Datos mensuales'!$AH:$AH),STDEV('Datos mensuales'!$AH:$AH))) -> n.d. | BJ77: =IF(ISERROR(STANDARDIZE($BC77,AVERAGE($BC:$BC),STDEV('Datos mensuales'!$AH:$AH))),"n.d.",STANDARDIZE($BC77,AVERAGE('Datos mensuales'!$AH:$AH),STDEV('Datos mensuales'!$AH:$AH))) -> n.d. | BK77: -0.3352249959 | BL77: n.d. | BM77: n.d. | BN77: n.d. | BO77: n.d. | BP77: n.d. | BQ77: n.d. | BR77: -0.4922210235 | BS77: n.d. | BT77: n.d. | BU77: n.d. | BV77: n.d. | BW77: n.d. | BX77: n.d.
B78: Feb | C78: -0.1262744494 | L78: 0.3521768877 | U78: -0.9596140951 | AH78: n.d. | AI78: n.d. | AJ78: n.d. | AK78: =IF(OR('[1]REAL(M)'!$CI77="",'[1]REAL(M)'!$CI77=""),"",IF(OR('[1]REAL(M)'!$CI77="n.d.",'[1]REAL(M)'!$CI77="n.d."),"n.d.",'[1]REAL(M)'!$CI77-'[1]REAL(M)'!$CJ77)) -> -0.9835961645 | AL78: -0.6090633822 | AM78: 0.02867553002 | AP78: 54.28832368 | AW78: 0.704868953 | AX78: n.d. | AY78: n.d. | AZ78: n.d. | BA78: n.d. | BB78: n.d. | BC78: n.d. | BD78: =IF(ISERROR(STANDARDIZE($AW78,AVERAGE($AW:$AW),STDEV('Datos mensuales'!$AH:$AH))),"n.d.",STANDARDIZE($AW78,AVERAGE('Datos mensuales'!$AH:$AH),STDEV('Datos mensuales'!$AH:$AH))) -> 0.7714553963 | BE78: =IF(ISERROR(STANDARDIZE($AX78,AVERAGE($AX:$AX),STDEV('Datos mensuales'!$AH:$AH))),"n.d.",STANDARDIZE($AX78,AVERAGE('Datos mensuales'!$AH:$AH),STDEV('Datos mensuales'!$AH:$AH))) -> n.d. | BF78: =IF(ISERROR(STANDARDIZE($AY78,AVERAGE($AY:$AY),STDEV('Datos mensuales'!$AH:$AH))),"n.d.",STANDARDIZE($AY78,AVERAGE('Datos mensuales'!$AH:$AH),STDEV('Datos mensuales'!$AH:$AH))) -> n.d. | BG78: =IF(ISERROR(STANDARDIZE($AZ78,AVERAGE($AZ:$AZ),STDEV('Datos mensuales'!$AH:$AH))),"n.d.",STANDARDIZE($AZ78,AVERAGE('Datos mensuales'!$AH:$AH),STDEV('Datos mensuales'!$AH:$AH))) -> n.d. | BH78: =IF(ISERROR(STANDARDIZE($BA78,AVERAGE($BA:$BA),STDEV('Datos mensuales'!$AH:$AH))),"n.d.",STANDARDIZE($BA78,AVERAGE('Datos mensuales'!$AH:$AH),STDEV('Datos mensuales'!$AH:$AH))) -> n.d. | BI78: =IF(ISERROR(STANDARDIZE($BB78,AVERAGE($BB:$BB),STDEV('Datos mensuales'!$AH:$AH))),"n.d.",STANDARDIZE($BB78,AVERAGE('Datos mensuales'!$AH:$AH),STDEV('Datos mensuales'!$AH:$AH))) -> n.d. | BJ78: =IF(ISERROR(STANDARDIZE($BC78,AVERAGE($BC:$BC),STDEV('Datos mensuales'!$AH:$AH))),"n.d.",STANDARDIZE($BC78,AVERAGE('Datos mensuales'!$AH:$AH),STDEV('Datos mensuales'!$AH:$AH))) -> n.d. | BK78: -0.3639129223 | BL78: n.d. | BM78: n.d. | BN78: n.d. | BO78: n.d. | BP78: n.d. | BQ78: n.d. | BR78: -0.681505076 | BS78: n.d. | BT78: n.d. | BU78: n.d. | BV78: n.d. | BW78: n.d. | BX78: n.d.
B79: Mar | C79: -0.3236532601 | L79: 0.1262828986 | U79: -0.1973788108 | AH79: n.d. | AI79: n.d. | AJ79: n.d. | AK79: =IF(OR('[1]REAL(M)'!$CI78="",'[1]REAL(M)'!$CI78=""),"",IF(OR('[1]REAL(M)'!$CI78="n.d.",'[1]REAL(M)'!$CI78="n.d."),"n.d.",'[1]REAL(M)'!$CI78-'[1]REAL(M)'!$CJ78)) -> -0.9217438725 | AL79: -0.5708603079 | AM79: 0.03820307422 | AP79: 54.40979543 | AW79: 0.5453278153 | AX79: n.d. | AY79: n.d. | AZ79: n.d. | BA79: n.d. | BB79: n.d. | BC79: n.d. | BD79: =IF(ISERROR(STANDARDIZE($AW79,AVERAGE($AW:$AW),STDEV('Datos mensuales'!$AH:$AH))),"n.d.",STANDARDIZE($AW79,AVERAGE('Datos mensuales'!$AH:$AH),STDEV('Datos mensuales'!$AH:$AH))) -> 0.597796815 | BE79: =IF(ISERROR(STANDARDIZE($AX79,AVERAGE($AX:$AX),STDEV('Datos mensuales'!$AH:$AH))),"n.d.",STANDARDIZE($AX79,AVERAGE('Datos mensuales'!$AH:$AH),STDEV('Datos mensuales'!$AH:$AH))) -> n.d. | BF79: =IF(ISERROR(STANDARDIZE($AY79,AVERAGE($AY:$AY),STDEV('Datos mensuales'!$AH:$AH))),"n.d.",STANDARDIZE($AY79,AVERAGE('Datos mensuales'!$AH:$AH),STDEV('Datos mensuales'!$AH:$AH))) -> n.d. | BG79: =IF(ISERROR(STANDARDIZE($AZ79,AVERAGE($AZ:$AZ),STDEV('Datos mensuales'!$AH:$AH))),"n.d.",STANDARDIZE($AZ79,AVERAGE('Datos mensuales'!$AH:$AH),STDEV('Datos mensuales'!$AH:$AH))) -> n.d. | BH79: =IF(ISERROR(STANDARDIZE($BA79,AVERAGE($BA:$BA),STDEV('Datos mensuales'!$AH:$AH))),"n.d.",STANDARDIZE($BA79,AVERAGE('Datos mensuales'!$AH:$AH),STDEV('Datos mensuales'!$AH:$AH))) -> n.d. | BI79: =IF(ISERROR(STANDARDIZE($BB79,AVERAGE($BB:$BB),STDEV('Datos mensuales'!$AH:$AH))),"n.d.",STANDARDIZE($BB79,AVERAGE('Datos mensuales'!$AH:$AH),STDEV('Datos mensuales'!$AH:$AH))) -> n.d. | BJ79: =IF(ISERROR(STANDARDIZE($BC79,AVERAGE($BC:$BC),STDEV('Datos mensuales'!$AH:$AH))),"n.d.",STANDARDIZE($BC79,AVERAGE('Datos mensuales'!$AH:$AH),STDEV('Datos mensuales'!$AH:$AH))) -> n.d. | BK79: -0.1736585812 | BL79: n.d. | BM79: n.d. | BN79: n.d. | BO79: n.d. | BP79: n.d. | BQ79: n.d. | BR79: -0.7459380274 | BS79: n.d. | BT79: n.d. | BU79: n.d. | BV79: n.d. | BW79: n.d. | BX79: n.d.
B80: Abr | C80: -0.3354907275 | L80: 0.01054034338 | U80: -0.01183746739 | AH80: n.d. | AI80: n.d. | AJ80: n.d. | AK80: =IF(OR('[1]REAL(M)'!$CI79="",'[1]REAL(M)'!$CI79=""),"",IF(OR('[1]REAL(M)'!$CI79="n.d.",'[1]REAL(M)'!$CI79="n.d."),"n.d.",'[1]REAL(M)'!$CI79-'[1]REAL(M)'!$CJ79)) -> -0.7552197241 | AL80: -0.4680066514 | AM80: 0.1028536565 | AP80: 54.53455433 | AW80: 0.4533872342 | AX80: n.d. | AY80: n.d. | AZ80: n.d. | BA80: n.d. | BB80: n.d. | BC80: n.d. | BD80: =IF(ISERROR(STANDARDIZE($AW80,AVERAGE($AW:$AW),STDEV('Datos mensuales'!$AH:$AH))),"n.d.",STANDARDIZE($AW80,AVERAGE('Datos mensuales'!$AH:$AH),STDEV('Datos mensuales'!$AH:$AH))) -> 0.4977206147 | BE80: =IF(ISERROR(STANDARDIZE($AX80,AVERAGE($AX:$AX),STDEV('Datos mensuales'!$AH:$AH))),"n.d.",STANDARDIZE($AX80,AVERAGE('Datos mensuales'!$AH:$AH),STDEV('Datos mensuales'!$AH:$AH))) -> n.d. | BF80: =IF(ISERROR(STANDARDIZE($AY80,AVERAGE($AY:$AY),STDEV('Datos mensuales'!$AH:$AH))),"n.d.",STANDARDIZE($AY80,AVERAGE('Datos mensuales'!$AH:$AH),STDEV('Datos mensuales'!$AH:$AH))) -> n.d. | BG80: =IF(ISERROR(STANDARDIZE($AZ80,AVERAGE($AZ:$AZ),STDEV('Datos mensuales'!$AH:$AH))),"n.d.",STANDARDIZE($AZ80,AVERAGE('Datos mensuales'!$AH:$AH),STDEV('Datos mensuales'!$AH:$AH))) -> n.d. | BH80: =IF(ISERROR(STANDARDIZE($BA80,AVERAGE($BA:$BA),STDEV('Datos mensuales'!$AH:$AH))),"n.d.",STANDARDIZE($BA80,AVERAGE('Datos mensuales'!$AH:$AH),STDEV('Datos mensuales'!$AH:$AH))) -> n.d. | BI80: =IF(ISERROR(STANDARDIZE($BB80,AVERAGE($BB:$BB),STDEV('Datos mensuales'!$AH:$AH))),"n.d.",STANDARDIZE($BB80,AVERAGE('Datos mensuales'!$AH:$AH),STDEV('Datos mensuales'!$AH:$AH))) -> n.d. | BJ80: =IF(ISERROR(STANDARDIZE($BC80,AVERAGE($BC:$BC),STDEV('Datos mensuales'!$AH:$AH))),"n.d.",STANDARDIZE($BC80,AVERAGE('Datos mensuales'!$AH:$AH),STDEV('Datos mensuales'!$AH:$AH))) -> n.d. | BK80: -0.1000762004 | BL80: n.d. | BM80: n.d. | BN80: n.d. | BO80: n.d. | BP80: n.d. | BQ80: n.d. | BR80: -0.7792229869 | BS80: n.d. | BT80: n.d. | BU80: n.d. | BV80: n.d. | BW80: n.d. | BX80: n.d.
B81: May | C81: -0.3173254002 | L81: -0.05523480504 | U81: 0.01816532733 | AH81: n.d. | AI81: n.d. | AJ81: n.d. | AK81: =IF(OR('[1]REAL(M)'!$CI80="",'[1]REAL(M)'!$CI80=""),"",IF(OR('[1]REAL(M)'!$CI80="n.d.",'[1]REAL(M)'!$CI80="n.d."),"n.d.",'[1]REAL(M)'!$CI80-'[1]REAL(M)'!$CJ80)) -> -0.5390084605 | AL81: -0.3344637433 | AM81: 0.1335429081 | AP81: 54.66316177 | AW81: 0.4040478524 | AX81: n.d. | AY81: n.d. | AZ81: n.d. | BA81: n.d. | BB81: n.d. | BC81: n.d. | BD81: =IF(ISERROR(STANDARDIZE($AW81,AVERAGE($AW:$AW),STDEV('Datos mensuales'!$AH:$AH))),"n.d.",STANDARDIZE($AW81,AVERAGE('Datos mensuales'!$AH:$AH),STDEV('Datos mensuales'!$AH:$AH))) -> 0.4440152997 | BE81: =IF(ISERROR(STANDARDIZE($AX81,AVERAGE($AX:$AX),STDEV('Datos mensuales'!$AH:$AH))),"n.d.",STANDARDIZE($AX81,AVERAGE('Datos mensuales'!$AH:$AH),STDEV('Datos mensuales'!$AH:$AH))) -> n.d. | BF81: =IF(ISERROR(STANDARDIZE($AY81,AVERAGE($AY:$AY),STDEV('Datos mensuales'!$AH:$AH))),"n.d.",STANDARDIZE($AY81,AVERAGE('Datos mensuales'!$AH:$AH),STDEV('Datos mensuales'!$AH:$AH))) -> n.d. | BG81: =IF(ISERROR(STANDARDIZE($AZ81,AVERAGE($AZ:$AZ),STDEV('Datos mensuales'!$AH:$AH))),"n.d.",STANDARDIZE($AZ81,AVERAGE('Datos mensuales'!$AH:$AH),STDEV('Datos mensuales'!$AH:$AH))) -> n.d. | BH81: =IF(ISERROR(STANDARDIZE($BA81,AVERAGE($BA:$BA),STDEV('Datos mensuales'!$AH:$AH))),"n.d.",STANDARDIZE($BA81,AVERAGE('Datos mensuales'!$AH:$AH),STDEV('Datos mensuales'!$AH:$AH))) -> n.d. | BI81: =IF(ISERROR(STANDARDIZE($BB81,AVERAGE($BB:$BB),STDEV('Datos mensuales'!$AH:$AH))),"n.d.",STANDARDIZE($BB81,AVERAGE('Datos mensuales'!$AH:$AH),STDEV('Datos mensuales'!$AH:$AH))) -> n.d. | BJ81: =IF(ISERROR(STANDARDIZE($BC81,AVERAGE($BC:$BC),STDEV('Datos mensuales'!$AH:$AH))),"n.d.",STANDARDIZE($BC81,AVERAGE('Datos mensuales'!$AH:$AH),STDEV('Datos mensuales'!$AH:$AH))) -> n.d. | BK81: -0.05370531501 | BL81: n.d. | BM81: n.d. | BN81: n.d. | BO81: n.d. | BP81: n.d. | BQ81: n.d. | BR81: =IF(OR(BD81="",BD69=""),"",IF(OR(BD81="n.d.",BD69="n.d."),"n.d.",IF(OR(AND(BD81>0,BD69>0),AND(BD81<0,BD69>0)),BD81/BD69 -1,IF(OR(AND(BD81>0,BD69<0),AND(BD81<0,BD69<0)),-(BD81/BD69 -1),"n.a.")))) -> -0.7975179441 | BS81: =IF(OR(BE81="",BE69=""),"",IF(OR(BE81="n.d.",BE69="n.d."),"n.d.",IF(OR(AND(BE81>0,BE69>0),AND(BE81<0,BE69>0)),BE81/BE69 -1,IF(OR(AND(BE81>0,BE69<0),AND(BE81<0,BE69<0)),-(BE81/BE69 -1),"n.a.")))) -> n.d. | BT81: =IF(OR(BF81="",BF69=""),"",IF(OR(BF81="n.d.",BF69="n.d."),"n.d.",IF(OR(AND(BF81>0,BF69>0),AND(BF81<0,BF69>0)),BF81/BF69 -1,IF(OR(AND(BF81>0,BF69<0),AND(BF81<0,BF69<0)),-(BF81/BF69 -1),"n.a.")))) -> n.d. | BU81: =IF(OR(BG81="",BG69=""),"",IF(OR(BG81="n.d.",BG69="n.d."),"n.d.",IF(OR(AND(BG81>0,BG69>0),AND(BG81<0,BG69>0)),BG81/BG69 -1,IF(OR(AND(BG81>0,BG69<0),AND(BG81<0,BG69<0)),-(BG81/BG69 -1),"n.a.")))) -> n.d. | BV81: =IF(OR(BH81="",BH69=""),"",IF(OR(BH81="n.d.",BH69="n.d."),"n.d.",IF(OR(AND(BH81>0,BH69>0),AND(BH81<0,BH69>0)),BH81/BH69 -1,IF(OR(AND(BH81>0,BH69<0),AND(BH81<0,BH69<0)),-(BH81/BH69 -1),"n.a.")))) -> n.d. | BW81: =IF(OR(BI81="",BI69=""),"",IF(OR(BI81="n.d.",BI69="n.d."),"n.d.",IF(OR(AND(BI81>0,BI69>0),AND(BI81<0,BI69>0)),BI81/BI69 -1,IF(OR(AND(BI81>0,BI69<0),AND(BI81<0,BI69<0)),-(BI81/BI69 -1),"n.a.")))) -> n.d. | BX81: =IF(OR(BJ81="",BJ69=""),"",IF(OR(BJ81="n.d.",BJ69="n.d."),"n.d.",IF(OR(AND(BJ81>0,BJ69>0),AND(BJ81<0,BJ69>0)),BJ81/BJ69 -1,IF(OR(AND(BJ81>0,BJ69<0),AND(BJ81<0,BJ69<0)),-(BJ81/BJ69 -1),"n.a.")))) -> n.d.
B82: Jun | C82: -0.1250173738 | L82: -0.06690295488 | U82: 0.1923080264 | AH82: n.d. | AI82: n.d. | AJ82: n.d. | AK82: =IF(OR('[1]REAL(M)'!$CI81="",'[1]REAL(M)'!$CI81=""),"",IF(OR('[1]REAL(M)'!$CI81="n.d.",'[1]REAL(M)'!$CI81="n.d."),"n.d.",'[1]REAL(M)'!$CI81-'[1]REAL(M)'!$CJ81)) -> -0.5067780155 | AL82: -0.3145566058 | AM82: 0.01990713748 | AP82: 54.79609761 | AW82: 0.4221231984 | AX82: n.d. | AY82: n.d. | AZ82: n.d. | BA82: n.d. | BB82: n.d. | BC82: n.d. | BD82: =IF(ISERROR(STANDARDIZE($AW82,AVERAGE($AW:$AW),STDEV('Datos mensuales'!$AH:$AH))),"n.d.",STANDARDIZE($AW82,AVERAGE('Datos mensuales'!$AH:$AH),STDEV('Datos mensuales'!$AH:$AH))) -> 0.4636900932 | BE82: =IF(ISERROR(STANDARDIZE($AX82,AVERAGE($AX:$AX),STDEV('Datos mensuales'!$AH:$AH))),"n.d.",STANDARDIZE($AX82,AVERAGE('Datos mensuales'!$AH:$AH),STDEV('Datos mensuales'!$AH:$AH))) -> n.d. | BF82: =IF(ISERROR(STANDARDIZE($AY82,AVERAGE($AY:$AY),STDEV('Datos mensuales'!$AH:$AH))),"n.d.",STANDARDIZE($AY82,AVERAGE('Datos mensuales'!$AH:$AH),STDEV('Datos mensuales'!$AH:$AH))) -> n.d. | BG82: =IF(ISERROR(STANDARDIZE($AZ82,AVERAGE($AZ:$AZ),STDEV('Datos mensuales'!$AH:$AH))),"n.d.",STANDARDIZE($AZ82,AVERAGE('Datos mensuales'!$AH:$AH),STDEV('Datos mensuales'!$AH:$AH))) -> n.d. | BH82: =IF(ISERROR(STANDARDIZE($BA82,AVERAGE($BA:$BA),STDEV('Datos mensuales'!$AH:$AH))),"n.d.",STANDARDIZE($BA82,AVERAGE('Datos mensuales'!$AH:$AH),STDEV('Datos mensuales'!$AH:$AH))) -> n.d. | BI82: =IF(ISERROR(STANDARDIZE($BB82,AVERAGE($BB:$BB),STDEV('Datos mensuales'!$AH:$AH))),"n.d.",STANDARDIZE($BB82,AVERAGE('Datos mensuales'!$AH:$AH),STDEV('Datos mensuales'!$AH:$AH))) -> n.d. | BJ82: =IF(ISERROR(STANDARDIZE($BC82,AVERAGE($BC:$BC),STDEV('Datos mensuales'!$AH:$AH))),"n.d.",STANDARDIZE($BC82,AVERAGE('Datos mensuales'!$AH:$AH),STDEV('Datos mensuales'!$AH:$AH))) -> n.d. | BK82: 0.01967479354 | BL82: n.d. | BM82: n.d. | BN82: n.d. | BO82: n.d. | BP82: n.d. | BQ82: n.d. | BR82: -0.7800653861 | BS82: n.d. | BT82: n.d. | BU82: n.d. | BV82: n.d. | BW82: n.d. | BX82: n.d.
B83: Jul | C83: 0.1857994445 | L83: -0.0307103905 | U83: 0.3108168183 | AH83: n.d. | AI83: n.d. | AJ83: n.d. | AK83: =IF(OR('[1]REAL(M)'!$CI82="",'[1]REAL(M)'!$CI82=""),"",IF(OR('[1]REAL(M)'!$CI82="n.d.",'[1]REAL(M)'!$CI82="n.d."),"n.d.",'[1]REAL(M)'!$CI82-'[1]REAL(M)'!$CJ82)) -> -0.6145492565 | AL83: -0.3811215234 | AM83: -0.06656491753 | AP83: 54.93375607 | AW83: 0.4418562073 | AX83: n.d. | AY83: n.d. | AZ83: n.d. | BA83: n.d. | BB83: n.d. | BC83: n.d. | BD83: =IF(ISERROR(STANDARDIZE($AW83,AVERAGE($AW:$AW),STDEV('Datos mensuales'!$AH:$AH))),"n.d.",STANDARDIZE($AW83,AVERAGE('Datos mensuales'!$AH:$AH),STDEV('Datos mensuales'!$AH:$AH))) -> 0.4851692326 | BE83: =IF(ISERROR(STANDARDIZE($AX83,AVERAGE($AX:$AX),STDEV('Datos mensuales'!$AH:$AH))),"n.d.",STANDARDIZE($AX83,AVERAGE('Datos mensuales'!$AH:$AH),STDEV('Datos mensuales'!$AH:$AH))) -> n.d. | BF83: =IF(ISERROR(STANDARDIZE($AY83,AVERAGE($AY:$AY),STDEV('Datos mensuales'!$AH:$AH))),"n.d.",STANDARDIZE($AY83,AVERAGE('Datos mensuales'!$AH:$AH),STDEV('Datos mensuales'!$AH:$AH))) -> n.d. | BG83: =IF(ISERROR(STANDARDIZE($AZ83,AVERAGE($AZ:$AZ),STDEV('Datos mensuales'!$AH:$AH))),"n.d.",STANDARDIZE($AZ83,AVERAGE('Datos mensuales'!$AH:$AH),STDEV('Datos mensuales'!$AH:$AH))) -> n.d. | BH83: =IF(ISERROR(STANDARDIZE($BA83,AVERAGE($BA:$BA),STDEV('Datos mensuales'!$AH:$AH))),"n.d.",STANDARDIZE($BA83,AVERAGE('Datos mensuales'!$AH:$AH),STDEV('Datos mensuales'!$AH:$AH))) -> n.d. | BI83: =IF(ISERROR(STANDARDIZE($BB83,AVERAGE($BB:$BB),STDEV('Datos mensuales'!$AH:$AH))),"n.d.",STANDARDIZE($BB83,AVERAGE('Datos mensuales'!$AH:$AH),STDEV('Datos mensuales'!$AH:$AH))) -> n.d. | BJ83: =IF(ISERROR(STANDARDIZE($BC83,AVERAGE($BC:$BC),STDEV('Datos mensuales'!$AH:$AH))),"n.d.",STANDARDIZE($BC83,AVERAGE('Datos mensuales'!$AH:$AH),STDEV('Datos mensuales'!$AH:$AH))) -> n.d. | BK83: 0.02147913936 | BL83: n.d. | BM83: n.d. | BN83: n.d. | BO83: n.d. | BP83: n.d. | BQ83: n.d. | BR83: -0.7527674708 | BS83: n.d. | BT83: n.d. | BU83: n.d. | BV83: n.d. | BW83: n.d. | BX83: n.d.
B84: Ago | C84: 0.536729108 | L84: 0.04033082218 | U84: 0.3509296635 | AH84: n.d. | AI84: n.d. | AJ84: n.d. | AK84: =IF(OR('[1]REAL(M)'!$CI83="",'[1]REAL(M)'!$CI83=""),"",IF(OR('[1]REAL(M)'!$CI83="n.d.",'[1]REAL(M)'!$CI83="n.d."),"n.d.",'[1]REAL(M)'!$CI83-'[1]REAL(M)'!$CJ83)) -> -0.6905238401 | AL84: -0.4280472324 | AM84: -0.04692570901 | AP84: 55.07645594 | AW84: 0.4509299075 | AX84: n.d. | AY84: n.d. | AZ84: n.d. | BA84: n.d. | BB84: n.d. | BC84: n.d. | BD84: =IF(ISERROR(STANDARDIZE($AW84,AVERAGE($AW:$AW),STDEV('Datos mensuales'!$AH:$AH))),"n.d.",STANDARDIZE($AW84,AVERAGE('Datos mensuales'!$AH:$AH),STDEV('Datos mensuales'!$AH:$AH))) -> 0.4950458445 | BE84: =IF(ISERROR(STANDARDIZE($AX84,AVERAGE($AX:$AX),STDEV('Datos mensuales'!$AH:$AH))),"n.d.",STANDARDIZE($AX84,AVERAGE('Datos mensuales'!$AH:$AH),STDEV('Datos mensuales'!$AH:$AH))) -> n.d. | BF84: =IF(ISERROR(STANDARDIZE($AY84,AVERAGE($AY:$AY),STDEV('Datos mensuales'!$AH:$AH))),"n.d.",STANDARDIZE($AY84,AVERAGE('Datos mensuales'!$AH:$AH),STDEV('Datos mensuales'!$AH:$AH))) -> n.d. | BG84: =IF(ISERROR(STANDARDIZE($AZ84,AVERAGE($AZ:$AZ),STDEV('Datos mensuales'!$AH:$AH))),"n.d.",STANDARDIZE($AZ84,AVERAGE('Datos mensuales'!$AH:$AH),STDEV('Datos mensuales'!$AH:$AH))) -> n.d. | BH84: =IF(ISERROR(STANDARDIZE($BA84,AVERAGE($BA:$BA),STDEV('Datos mensuales'!$AH:$AH))),"n.d.",STANDARDIZE($BA84,AVERAGE('Datos mensuales'!$AH:$AH),STDEV('Datos mensuales'!$AH:$AH))) -> n.d. | BI84: =IF(ISERROR(STANDARDIZE($BB84,AVERAGE($BB:$BB),STDEV('Datos mensuales'!$AH:$AH))),"n.d.",STANDARDIZE($BB84,AVERAGE('Datos mensuales'!$AH:$AH),STDEV('Datos mensuales'!$AH:$AH))) -> n.d. | BJ84: =IF(ISERROR(STANDARDIZE($BC84,AVERAGE($BC:$BC),STDEV('Datos mensuales'!$AH:$AH))),"n.d.",STANDARDIZE($BC84,AVERAGE('Datos mensuales'!$AH:$AH),STDEV('Datos mensuales'!$AH:$AH))) -> n.d. | BK84: 0.009876611948 | BL84: n.d. | BM84: n.d. | BN84: n.d. | BO84: n.d. | BP84: n.d. | BQ84: n.d. | BR84: -0.7232726967 | BS84: n.d. | BT84: n.d. | BU84: n.d. | BV84: n.d. | BW84: n.d. | BX84: n.d.
B85: Sep | C85: 0.9195723279 | L85: 0.1381087632 | U85: 0.3828432199 | AH85: n.d. | AI85: n.d. | AJ85: n.d. | AK85: =IF(OR('[1]REAL(M)'!$CI84="",'[1]REAL(M)'!$CI84=""),"",IF(OR('[1]REAL(M)'!$CI84="n.d.",'[1]REAL(M)'!$CI84="n.d."),"n.d.",'[1]REAL(M)'!$CI84-'[1]REAL(M)'!$CJ84)) -> -0.7556143743 | AL85: -0.4682504072 | AM85: -0.04020317479 | AP85: 55.22445603 | AW85: 0.4811916705 | AX85: n.d. | AY85: n.d. | AZ85: n.d. | BA85: n.d. | BB85: n.d. | BC85: n.d. | BD85: =IF(ISERROR(STANDARDIZE($AW85,AVERAGE($AW:$AW),STDEV('Datos mensuales'!$AH:$AH))),"n.d.",STANDARDIZE($AW85,AVERAGE('Datos mensuales'!$AH:$AH),STDEV('Datos mensuales'!$AH:$AH))) -> 0.5279854042 | BE85: =IF(ISERROR(STANDARDIZE($AX85,AVERAGE($AX:$AX),STDEV('Datos mensuales'!$AH:$AH))),"n.d.",STANDARDIZE($AX85,AVERAGE('Datos mensuales'!$AH:$AH),STDEV('Datos mensuales'!$AH:$AH))) -> n.d. | BF85: =IF(ISERROR(STANDARDIZE($AY85,AVERAGE($AY:$AY),STDEV('Datos mensuales'!$AH:$AH))),"n.d.",STANDARDIZE($AY85,AVERAGE('Datos mensuales'!$AH:$AH),STDEV('Datos mensuales'!$AH:$AH))) -> n.d. | BG85: =IF(ISERROR(STANDARDIZE($AZ85,AVERAGE($AZ:$AZ),STDEV('Datos mensuales'!$AH:$AH))),"n.d.",STANDARDIZE($AZ85,AVERAGE('Datos mensuales'!$AH:$AH),STDEV('Datos mensuales'!$AH:$AH))) -> n.d. | BH85: =IF(ISERROR(STANDARDIZE($BA85,AVERAGE($BA:$BA),STDEV('Datos mensuales'!$AH:$AH))),"n.d.",STANDARDIZE($BA85,AVERAGE('Datos mensuales'!$AH:$AH),STDEV('Datos mensuales'!$AH:$AH))) -> n.d. | BI85: =IF(ISERROR(STANDARDIZE($BB85,AVERAGE($BB:$BB),STDEV('Datos mensuales'!$AH:$AH))),"n.d.",STANDARDIZE($BB85,AVERAGE('Datos mensuales'!$AH:$AH),STDEV('Datos mensuales'!$AH:$AH))) -> n.d. | BJ85: =IF(ISERROR(STANDARDIZE($BC85,AVERAGE($BC:$BC),STDEV('Datos mensuales'!$AH:$AH))),"n.d.",STANDARDIZE($BC85,AVERAGE('Datos mensuales'!$AH:$AH),STDEV('Datos mensuales'!$AH:$AH))) -> n.d. | BK85: 0.03293955971 | BL85: n.d. | BM85: n.d. | BN85: n.d. | BO85: n.d. | BP85: n.d. | BQ85: n.d. | BR85: -0.6754884094 | BS85: n.d. | BT85: n.d. | BU85: n.d. | BV85: n.d. | BW85: n.d. | BX85: n.d.
B86: Oct | C86: 1.086092628 | L86: 0.2329933817 | U86: 0.1665203001 | AH86: n.d. | AI86: n.d. | AJ86: n.d. | AK86: =IF(OR('[1]REAL(M)'!$CI85="",'[1]REAL(M)'!$CI85=""),"",IF(OR('[1]REAL(M)'!$CI85="n.d.",'[1]REAL(M)'!$CI85="n.d."),"n.d.",'[1]REAL(M)'!$CI85-'[1]REAL(M)'!$CJ85)) -> -0.8335553003 | AL86: -0.5163906277 | AM86: -0.04814022053 | AP86: 55.3779633 | AW86: 0.4277658851 | AX86: n.d. | AY86: n.d. | AZ86: n.d. | BA86: n.d. | BB86: n.d. | BC86: n.d. | BD86: =IF(ISERROR(STANDARDIZE($AW86,AVERAGE($AW:$AW),STDEV('Datos mensuales'!$AH:$AH))),"n.d.",STANDARDIZE($AW86,AVERAGE('Datos mensuales'!$AH:$AH),STDEV('Datos mensuales'!$AH:$AH))) -> 0.4698320888 | BE86: =IF(ISERROR(STANDARDIZE($AX86,AVERAGE($AX:$AX),STDEV('Datos mensuales'!$AH:$AH))),"n.d.",STANDARDIZE($AX86,AVERAGE('Datos mensuales'!$AH:$AH),STDEV('Datos mensuales'!$AH:$AH))) -> n.d. | BF86: =IF(ISERROR(STANDARDIZE($AY86,AVERAGE($AY:$AY),STDEV('Datos mensuales'!$AH:$AH))),"n.d.",STANDARDIZE($AY86,AVERAGE('Datos mensuales'!$AH:$AH),STDEV('Datos mensuales'!$AH:$AH))) -> n.d. | BG86: =IF(ISERROR(STANDARDIZE($AZ86,AVERAGE($AZ:$AZ),STDEV('Datos mensuales'!$AH:$AH))),"n.d.",STANDARDIZE($AZ86,AVERAGE('Datos mensuales'!$AH:$AH),STDEV('Datos mensuales'!$AH:$AH))) -> n.d. | BH86: =IF(ISERROR(STANDARDIZE($BA86,AVERAGE($BA:$BA),STDEV('Datos mensuales'!$AH:$AH))),"n.d.",STANDARDIZE($BA86,AVERAGE('Datos mensuales'!$AH:$AH),STDEV('Datos mensuales'!$AH:$AH))) -> n.d. | BI86: =IF(ISERROR(STANDARDIZE($BB86,AVERAGE($BB:$BB),STDEV('Datos mensuales'!$AH:$AH))),"n.d.",STANDARDIZE($BB86,AVERAGE('Datos mensuales'!$AH:$AH),STDEV('Datos mensuales'!$AH:$AH))) -> n.d. | BJ86: =IF(ISERROR(STANDARDIZE($BC86,AVERAGE($BC:$BC),STDEV('Datos mensuales'!$AH:$AH))),"n.d.",STANDARDIZE($BC86,AVERAGE('Datos mensuales'!$AH:$AH),STDEV('Datos mensuales'!$AH:$AH))) -> n.d. | BK86: -0.05815331543 | BL86: n.d. | BM86: n.d. | BN86: n.d. | BO86: n.d. | BP86: n.d. | BQ86: n.d. | BR86: -0.6889726971 | BS86: n.d. | BT86: n.d. | BU86: n.d. | BV86: n.d. | BW86: n.d. | BX86: n.d.
B87: Nov | C87: 0.8380362073 | L87: 0.2881532323 | U87: -0.2480564207 | AH87: n.d. | AI87: n.d. | AJ87: n.d. | AK87: =IF(OR('[1]REAL(M)'!$CI86="",'[1]REAL(M)'!$CI86=""),"",IF(OR('[1]REAL(M)'!$CI86="n.d.",'[1]REAL(M)'!$CI86="n.d."),"n.d.",'[1]REAL(M)'!$CI86-'[1]REAL(M)'!$CJ86)) -> -0.7460042239 | AL87: -0.4623146968 | AM87: 0.05407593091 | AP87: 55.53713165 | AW87: 0.254581207 | AX87: n.d. | AY87: n.d. | AZ87: n.d. | BA87: n.d. | BB87: n.d. | BC87: n.d. | BD87: =IF(ISERROR(STANDARDIZE($AW87,AVERAGE($AW:$AW),STDEV('Datos mensuales'!$AH:$AH))),"n.d.",STANDARDIZE($AW87,AVERAGE('Datos mensuales'!$AH:$AH),STDEV('Datos mensuales'!$AH:$AH))) -> 0.2813226804 | BE87: =IF(ISERROR(STANDARDIZE($AX87,AVERAGE($AX:$AX),STDEV('Datos mensuales'!$AH:$AH))),"n.d.",STANDARDIZE($AX87,AVERAGE('Datos mensuales'!$AH:$AH),STDEV('Datos mensuales'!$AH:$AH))) -> n.d. | BF87: =IF(ISERROR(STANDARDIZE($AY87,AVERAGE($AY:$AY),STDEV('Datos mensuales'!$AH:$AH))),"n.d.",STANDARDIZE($AY87,AVERAGE('Datos mensuales'!$AH:$AH),STDEV('Datos mensuales'!$AH:$AH))) -> n.d. | BG87: =IF(ISERROR(STANDARDIZE($AZ87,AVERAGE($AZ:$AZ),STDEV('Datos mensuales'!$AH:$AH))),"n.d.",STANDARDIZE($AZ87,AVERAGE('Datos mensuales'!$AH:$AH),STDEV('Datos mensuales'!$AH:$AH))) -> n.d. | BH87: =IF(ISERROR(STANDARDIZE($BA87,AVERAGE($BA:$BA),STDEV('Datos mensuales'!$AH:$AH))),"n.d.",STANDARDIZE($BA87,AVERAGE('Datos mensuales'!$AH:$AH),STDEV('Datos mensuales'!$AH:$AH))) -> n.d. | BI87: =IF(ISERROR(STANDARDIZE($BB87,AVERAGE($BB:$BB),STDEV('Datos mensuales'!$AH:$AH))),"n.d.",STANDARDIZE($BB87,AVERAGE('Datos mensuales'!$AH:$AH),STDEV('Datos mensuales'!$AH:$AH))) -> n.d. | BJ87: =IF(ISERROR(STANDARDIZE($BC87,AVERAGE($BC:$BC),STDEV('Datos mensuales'!$AH:$AH))),"n.d.",STANDARDIZE($BC87,AVERAGE('Datos mensuales'!$AH:$AH),STDEV('Datos mensuales'!$AH:$AH))) -> n.d. | BK87: -0.1885094084 | BL87: n.d. | BM87: n.d. | BN87: n.d. | BO87: n.d. | BP87: n.d. | BQ87: n.d. | BR87: -0.8146961489 | BS87: n.d. | BT87: n.d. | BU87: n.d. | BV87: n.d. | BW87: n.d. | BX87: n.d.
B88: Dic | C88: 0.7398158569 | L88: 0.3259344735 | U88: -0.0982203504 | AH88: n.d. | AI88: n.d. | AJ88: n.d. | AK88: =IF(OR('[1]REAL(M)'!$CI87="",'[1]REAL(M)'!$CI87=""),"",IF(OR('[1]REAL(M)'!$CI87="n.d.",'[1]REAL(M)'!$CI87="n.d."),"n.d.",'[1]REAL(M)'!$CI87-'[1]REAL(M)'!$CJ87)) -> -0.7096936332 | AL88: -0.4398874569 | AM88: 0.02242723986 | AP88: 55.70205329 | AW88: 0.1076651565 | AX88: n.d. | AY88: n.d. | AZ88: n.d. | BA88: n.d. | BB88: n.d. | BC88: n.d. | BD88: =IF(ISERROR(STANDARDIZE($AW88,AVERAGE($AW:$AW),STDEV('Datos mensuales'!$AH:$AH))),"n.d.",STANDARDIZE($AW88,AVERAGE('Datos mensuales'!$AH:$AH),STDEV('Datos mensuales'!$AH:$AH))) -> 0.1214063525 | BE88: =IF(ISERROR(STANDARDIZE($AX88,AVERAGE($AX:$AX),STDEV('Datos mensuales'!$AH:$AH))),"n.d.",STANDARDIZE($AX88,AVERAGE('Datos mensuales'!$AH:$AH),STDEV('Datos mensuales'!$AH:$AH))) -> n.d. | BF88: =IF(ISERROR(STANDARDIZE($AY88,AVERAGE($AY:$AY),STDEV('Datos mensuales'!$AH:$AH))),"n.d.",STANDARDIZE($AY88,AVERAGE('Datos mensuales'!$AH:$AH),STDEV('Datos mensuales'!$AH:$AH))) -> n.d. | BG88: =IF(ISERROR(STANDARDIZE($AZ88,AVERAGE($AZ:$AZ),STDEV('Datos mensuales'!$AH:$AH))),"n.d.",STANDARDIZE($AZ88,AVERAGE('Datos mensuales'!$AH:$AH),STDEV('Datos mensuales'!$AH:$AH))) -> n.d. | BH88: =IF(ISERROR(STANDARDIZE($BA88,AVERAGE($BA:$BA),STDEV('Datos mensuales'!$AH:$AH))),"n.d.",STANDARDIZE($BA88,AVERAGE('Datos mensuales'!$AH:$AH),STDEV('Datos mensuales'!$AH:$AH))) -> n.d. | BI88: =IF(ISERROR(STANDARDIZE($BB88,AVERAGE($BB:$BB),STDEV('Datos mensuales'!$AH:$AH))),"n.d.",STANDARDIZE($BB88,AVERAGE('Datos mensuales'!$AH:$AH),STDEV('Datos mensuales'!$AH:$AH))) -> n.d. | BJ88: =IF(ISERROR(STANDARDIZE($BC88,AVERAGE($BC:$BC),STDEV('Datos mensuales'!$AH:$AH))),"n.d.",STANDARDIZE($BC88,AVERAGE('Datos mensuales'!$AH:$AH),STDEV('Datos mensuales'!$AH:$AH))) -> n.d. | BK88: -0.1599163279 | BL88: n.d. | BM88: n.d. | BN88: n.d. | BO88: n.d. | BP88: n.d. | BQ88: n.d. | BR88: -0.9174439654 | BS88: n.d. | BT88: n.d. | BU88: n.d. | BV88: n.d. | BW88: n.d. | BX88: n.d.
A89: 1997 | B89: Ene | C89: 1.448104324 | L89: 1.448104324 | U89: 0.7082884673 | AH89: n.d. | AI89: n.d. | AJ89: n.d. | AK89: =IF(OR('[1]REAL(M)'!$CI88="",'[1]REAL(M)'!$CI88=""),"",IF(OR('[1]REAL(M)'!$CI88="n.d.",'[1]REAL(M)'!$CI88="n.d."),"n.d.",'[1]REAL(M)'!$CI88-'[1]REAL(M)'!$CJ88)) -> -0.7042057279 | AL89: -0.4364978517 | AM89: 0.003389605267 | AP89: 55.87274703 | AW89: 0.1354429054 | AX89: n.d. | AY89: n.d. | AZ89: n.d. | BA89: n.d. | BB89: n.d. | BC89: n.d. | BD89: =IF(ISERROR(STANDARDIZE($AW89,AVERAGE($AW:$AW),STDEV('Datos mensuales'!$AH:$AH))),"n.d.",STANDARDIZE($AW89,AVERAGE('Datos mensuales'!$AH:$AH),STDEV('Datos mensuales'!$AH:$AH))) -> 0.1516420932 | BE89: =IF(ISERROR(STANDARDIZE($AX89,AVERAGE($AX:$AX),STDEV('Datos mensuales'!$AH:$AH))),"n.d.",STANDARDIZE($AX89,AVERAGE('Datos mensuales'!$AH:$AH),STDEV('Datos mensuales'!$AH:$AH))) -> n.d. | BF89: =IF(ISERROR(STANDARDIZE($AY89,AVERAGE($AY:$AY),STDEV('Datos mensuales'!$AH:$AH))),"n.d.",STANDARDIZE($AY89,AVERAGE('Datos mensuales'!$AH:$AH),STDEV('Datos mensuales'!$AH:$AH))) -> n.d. | BG89: =IF(ISERROR(STANDARDIZE($AZ89,AVERAGE($AZ:$AZ),STDEV('Datos mensuales'!$AH:$AH))),"n.d.",STANDARDIZE($AZ89,AVERAGE('Datos mensuales'!$AH:$AH),STDEV('Datos mensuales'!$AH:$AH))) -> n.d. | BH89: =IF(ISERROR(STANDARDIZE($BA89,AVERAGE($BA:$BA),STDEV('Datos mensuales'!$AH:$AH))),"n.d.",STANDARDIZE($BA89,AVERAGE('Datos mensuales'!$AH:$AH),STDEV('Datos mensuales'!$AH:$AH))) -> n.d. | BI89: =IF(ISERROR(STANDARDIZE($BB89,AVERAGE($BB:$BB),STDEV('Datos mensuales'!$AH:$AH))),"n.d.",STANDARDIZE($BB89,AVERAGE('Datos mensuales'!$AH:$AH),STDEV('Datos mensuales'!$AH:$AH))) -> n.d. | BJ89: =IF(ISERROR(STANDARDIZE($BC89,AVERAGE($BC:$BC),STDEV('Datos mensuales'!$AH:$AH))),"n.d.",STANDARDIZE($BC89,AVERAGE('Datos mensuales'!$AH:$AH),STDEV('Datos mensuales'!$AH:$AH))) -> n.d. | BK89: 0.03023574068 | BL89: n.d. | BM89: n.d. | BN89: n.d. | BO89: n.d. | BP89: n.d. | BQ89: n.d. | BR89: -0.8664379738 | BS89: n.d. | BT89: n.d. | BU89: n.d. | BV89: n.d. | BW89: n.d. | BX89: n.d.
B90: Feb | C90: 2.457143649 | L90: 1.951637317 | U90: 1.009039325 | AH90: n.d. | AI90: n.d. | AJ90: n.d. | AK90: =IF(OR('[1]REAL(M)'!$CI89="",'[1]REAL(M)'!$CI89=""),"",IF(OR('[1]REAL(M)'!$CI89="n.d.",'[1]REAL(M)'!$CI89="n.d."),"n.d.",'[1]REAL(M)'!$CI89-'[1]REAL(M)'!$CJ89)) -> -0.4847518098 | AL90: -0.3009521178 | AM90: 0.1355457339 | AP90: 56.04915029 | AW90: 0.2953040784 | AX90: n.d. | AY90: n.d. | AZ90: n.d. | BA90: n.d. | BB90: n.d. | BC90: n.d. | BD90: =IF(ISERROR(STANDARDIZE($AW90,AVERAGE($AW:$AW),STDEV('Datos mensuales'!$AH:$AH))),"n.d.",STANDARDIZE($AW90,AVERAGE('Datos mensuales'!$AH:$AH),STDEV('Datos mensuales'!$AH:$AH))) -> 0.3256490289 | BE90: =IF(ISERROR(STANDARDIZE($AX90,AVERAGE($AX:$AX),STDEV('Datos mensuales'!$AH:$AH))),"n.d.",STANDARDIZE($AX90,AVERAGE('Datos mensuales'!$AH:$AH),STDEV('Datos mensuales'!$AH:$AH))) -> n.d. | BF90: =IF(ISERROR(STANDARDIZE($AY90,AVERAGE($AY:$AY),STDEV('Datos mensuales'!$AH:$AH))),"n.d.",STANDARDIZE($AY90,AVERAGE('Datos mensuales'!$AH:$AH),STDEV('Datos mensuales'!$AH:$AH))) -> n.d. | BG90: =IF(ISERROR(STANDARDIZE($AZ90,AVERAGE($AZ:$AZ),STDEV('Datos mensuales'!$AH:$AH))),"n.d.",STANDARDIZE($AZ90,AVERAGE('Datos mensuales'!$AH:$AH),STDEV('Datos mensuales'!$AH:$AH))) -> n.d. | BH90: =IF(ISERROR(STANDARDIZE($BA90,AVERAGE($BA:$BA),STDEV('Datos mensuales'!$AH:$AH))),"n.d.",STANDARDIZE($BA90,AVERAGE('Datos mensuales'!$AH:$AH),STDEV('Datos mensuales'!$AH:$AH))) -> n.d. | BI90: =IF(ISERROR(STANDARDIZE($BB90,AVERAGE($BB:$BB),STDEV('Datos mensuales'!$AH:$AH))),"n.d.",STANDARDIZE($BB90,AVERAGE('Datos mensuales'!$AH:$AH),STDEV('Datos mensuales'!$AH:$AH))) -> n.d. | BJ90: =IF(ISERROR(STANDARDIZE($BC90,AVERAGE($BC:$BC),STDEV('Datos mensuales'!$AH:$AH))),"n.d.",STANDARDIZE($BC90,AVERAGE('Datos mensuales'!$AH:$AH),STDEV('Datos mensuales'!$AH:$AH))) -> n.d. | BK90: 0.1740069357 | BL90: n.d. | BM90: n.d. | BN90: n.d. | BO90: n.d. | BP90: n.d. | BQ90: n.d. | BR90: -0.5778770485 | BS90: n.d. | BT90: n.d. | BU90: n.d. | BV90: n.d. | BW90: n.d. | BX90: n.d.
B91: Mar | C91: 3.151398136 | L91: 2.350851357 | U91: 0.6942544876 | AH91: n.d. | AI91: n.d. | AJ91: n.d. | AK91: =IF(OR('[1]REAL(M)'!$CI90="",'[1]REAL(M)'!$CI90=""),"",IF(OR('[1]REAL(M)'!$CI90="n.d.",'[1]REAL(M)'!$CI90="n.d."),"n.d.",'[1]REAL(M)'!$CI90-'[1]REAL(M)'!$CJ90)) -> -0.3814942522 | AL91: -0.2371750772 | AM91: 0.06377704053 | AP91: 56.23111696 | AW91: 0.455861024 | AX91: n.d. | AY91: n.d. | AZ91: n.d. | BA91: n.d. | BB91: n.d. | BC91: n.d. | BD91: =IF(ISERROR(STANDARDIZE($AW91,AVERAGE($AW:$AW),STDEV('Datos mensuales'!$AH:$AH))),"n.d.",STANDARDIZE($AW91,AVERAGE('Datos mensuales'!$AH:$AH),STDEV('Datos mensuales'!$AH:$AH))) -> 0.5004133046 | BE91: =IF(ISERROR(STANDARDIZE($AX91,AVERAGE($AX:$AX),STDEV('Datos mensuales'!$AH:$AH))),"n.d.",STANDARDIZE($AX91,AVERAGE('Datos mensuales'!$AH:$AH),STDEV('Datos mensuales'!$AH:$AH))) -> n.d. | BF91: =IF(ISERROR(STANDARDIZE($AY91,AVERAGE($AY:$AY),STDEV('Datos mensuales'!$AH:$AH))),"n.d.",STANDARDIZE($AY91,AVERAGE('Datos mensuales'!$AH:$AH),STDEV('Datos mensuales'!$AH:$AH))) -> n.d. | BG91: =IF(ISERROR(STANDARDIZE($AZ91,AVERAGE($AZ:$AZ),STDEV('Datos mensuales'!$AH:$AH))),"n.d.",STANDARDIZE($AZ91,AVERAGE('Datos mensuales'!$AH:$AH),STDEV('Datos mensuales'!$AH:$AH))) -> n.d. | BH91: =IF(ISERROR(STANDARDIZE($BA91,AVERAGE($BA:$BA),STDEV('Datos mensuales'!$AH:$AH))),"n.d.",STANDARDIZE($BA91,AVERAGE('Datos mensuales'!$AH:$AH),STDEV('Datos mensuales'!$AH:$AH))) -> n.d. | BI91: =IF(ISERROR(STANDARDIZE($BB91,AVERAGE($BB:$BB),STDEV('Datos mensuales'!$AH:$AH))),"n.d.",STANDARDIZE($BB91,AVERAGE('Datos mensuales'!$AH:$AH),STDEV('Datos mensuales'!$AH:$AH))) -> n.d. | BJ91: =IF(ISERROR(STANDARDIZE($BC91,AVERAGE($BC:$BC),STDEV('Datos mensuales'!$AH:$AH))),"n.d.",STANDARDIZE($BC91,AVERAGE('Datos mensuales'!$AH:$AH),STDEV('Datos mensuales'!$AH:$AH))) -> n.d. | BK91: 0.1747642758 | BL91: n.d. | BM91: n.d. | BN91: n.d. | BO91: n.d. | BP91: n.d. | BQ91: n.d. | BR91: -0.1629040302 | BS91: n.d. | BT91: n.d. | BU91: n.d. | BV91: n.d. | BW91: n.d. | BX91: n.d.
B92: Abr | C92: 3.719569222 | L92: 2.692730523 | U92: 0.5681710854 | AH92: n.d. | AI92: n.d. | AJ92: n.d. | AK92: =IF(OR('[1]REAL(M)'!$CI91="",'[1]REAL(M)'!$CI91=""),"",IF(OR('[1]REAL(M)'!$CI91="n.d.",'[1]REAL(M)'!$CI91="n.d."),"n.d.",'[1]REAL(M)'!$CI91-'[1]REAL(M)'!$CJ91)) -> -0.4997934535 | AL92: -0.3102425905 | AM92: -0.07306751323 | AP92: 56.4184232 | AW92: 0.6148329097 | AX92: n.d. | AY92: n.d. | AZ92: n.d. | BA92: n.d. | BB92: n.d. | BC92: n.d. | BD92: =IF(ISERROR(STANDARDIZE($AW92,AVERAGE($AW:$AW),STDEV('Datos mensuales'!$AH:$AH))),"n.d.",STANDARDIZE($AW92,AVERAGE('Datos mensuales'!$AH:$AH),STDEV('Datos mensuales'!$AH:$AH))) -> 0.673452262 | BE92: =IF(ISERROR(STANDARDIZE($AX92,AVERAGE($AX:$AX),STDEV('Datos mensuales'!$AH:$AH))),"n.d.",STANDARDIZE($AX92,AVERAGE('Datos mensuales'!$AH:$AH),STDEV('Datos mensuales'!$AH:$AH))) -> n.d. | BF92: =IF(ISERROR(STANDARDIZE($AY92,AVERAGE($AY:$AY),STDEV('Datos mensuales'!$AH:$AH))),"n.d.",STANDARDIZE($AY92,AVERAGE('Datos mensuales'!$AH:$AH),STDEV('Datos mensuales'!$AH:$AH))) -> n.d. | BG92: =IF(ISERROR(STANDARDIZE($AZ92,AVERAGE($AZ:$AZ),STDEV('Datos mensuales'!$AH:$AH))),"n.d.",STANDARDIZE($AZ92,AVERAGE('Datos mensuales'!$AH:$AH),STDEV('Datos mensuales'!$AH:$AH))) -> n.d. | BH92: =IF(ISERROR(STANDARDIZE($BA92,AVERAGE($BA:$BA),STDEV('Datos mensuales'!$AH:$AH))),"n.d.",STANDARDIZE($BA92,AVERAGE('Datos mensuales'!$AH:$AH),STDEV('Datos mensuales'!$AH:$AH))) -> n.d. | BI92: =IF(ISERROR(STANDARDIZE($BB92,AVERAGE($BB:$BB),STDEV('Datos mensuales'!$AH:$AH))),"n.d.",STANDARDIZE($BB92,AVERAGE('Datos mensuales'!$AH:$AH),STDEV('Datos mensuales'!$AH:$AH))) -> n.d. | BJ92: =IF(ISERROR(STANDARDIZE($BC92,AVERAGE($BC:$BC),STDEV('Datos mensuales'!$AH:$AH))),"n.d.",STANDARDIZE($BC92,AVERAGE('Datos mensuales'!$AH:$AH),STDEV('Datos mensuales'!$AH:$AH))) -> n.d. | BK92: 0.1730389574 | BL92: n.d. | BM92: n.d. | BN92: n.d. | BO92: n.d. | BP92: n.d. | BQ92: n.d. | BR92: 0.353072873 | BS92: n.d. | BT92: n.d. | BU92: n.d. | BV92: n.d. | BW92: n.d. | BX92: n.d.
B93: May | C93: 4.157806716 | L93: 2.985877646 | U93: 0.4382374943 | AH93: n.d. | AI93: n.d. | AJ93: n.d. | AK93: =IF(OR('[1]REAL(M)'!$CI92="",'[1]REAL(M)'!$CI92=""),"",IF(OR('[1]REAL(M)'!$CI92="n.d.",'[1]REAL(M)'!$CI92="n.d."),"n.d.",'[1]REAL(M)'!$CI92-'[1]REAL(M)'!$CJ92)) -> -0.6026213939 | AL93: -0.3737542779 | AM93: -0.06351168745 | AP93: 56.61077776 | AW93: 0.7460200017 | AX93: n.d. | AY93: n.d. | AZ93: n.d. | BA93: n.d. | BB93: n.d. | BC93: n.d. | BD93: =IF(ISERROR(STANDARDIZE($AW93,AVERAGE($AW:$AW),STDEV('Datos mensuales'!$AH:$AH))),"n.d.",STANDARDIZE($AW93,AVERAGE('Datos mensuales'!$AH:$AH),STDEV('Datos mensuales'!$AH:$AH))) -> 0.8162478105 | BE93: =IF(ISERROR(STANDARDIZE($AX93,AVERAGE($AX:$AX),STDEV('Datos mensuales'!$AH:$AH))),"n.d.",STANDARDIZE($AX93,AVERAGE('Datos mensuales'!$AH:$AH),STDEV('Datos mensuales'!$AH:$AH))) -> n.d. | BF93: =IF(ISERROR(STANDARDIZE($AY93,AVERAGE($AY:$AY),STDEV('Datos mensuales'!$AH:$AH))),"n.d.",STANDARDIZE($AY93,AVERAGE('Datos mensuales'!$AH:$AH),STDEV('Datos mensuales'!$AH:$AH))) -> n.d. | BG93: =IF(ISERROR(STANDARDIZE($AZ93,AVERAGE($AZ:$AZ),STDEV('Datos mensuales'!$AH:$AH))),"n.d.",STANDARDIZE($AZ93,AVERAGE('Datos mensuales'!$AH:$AH),STDEV('Datos mensuales'!$AH:$AH))) -> n.d. | BH93: =IF(ISERROR(STANDARDIZE($BA93,AVERAGE($BA:$BA),STDEV('Datos mensuales'!$AH:$AH))),"n.d.",STANDARDIZE($BA93,AVERAGE('Datos mensuales'!$AH:$AH),STDEV('Datos mensuales'!$AH:$AH))) -> n.d. | BI93: =IF(ISERROR(STANDARDIZE($BB93,AVERAGE($BB:$BB),STDEV('Datos mensuales'!$AH:$AH))),"n.d.",STANDARDIZE($BB93,AVERAGE('Datos mensuales'!$AH:$AH),STDEV('Datos mensuales'!$AH:$AH))) -> n.d. | BJ93: =IF(ISERROR(STANDARDIZE($BC93,AVERAGE($BC:$BC),STDEV('Datos mensuales'!$AH:$AH))),"n.d.",STANDARDIZE($BC93,AVERAGE('Datos mensuales'!$AH:$AH),STDEV('Datos mensuales'!$AH:$AH))) -> n.d. | BK93: 0.1427955485 | BL93: n.d. | BM93: n.d. | BN93: n.d. | BO93: n.d. | BP93: n.d. | BQ93: n.d. | BR93: 0.8383326231 | BS93: n.d. | BT93: n.d. | BU93: n.d. | BV93: n.d. | BW93: n.d. | BX93: n.d.
B94: Jun | C94: 4.449388923 | L94: 3.230445002 | U94: 0.2915822064 | AH94: n.d. | AI94: n.d. | AJ94: n.d. | AK94: =IF(OR('[1]REAL(M)'!$CI93="",'[1]REAL(M)'!$CI93=""),"",IF(OR('[1]REAL(M)'!$CI93="n.d.",'[1]REAL(M)'!$CI93="n.d."),"n.d.",'[1]REAL(M)'!$CI93-'[1]REAL(M)'!$CJ93)) -> -0.5814466024 | AL94: -0.3606756659 | AM94: 0.01307861204 | AP94: 56.80783253 | AW94: 0.8672616809 | AX94: n.d. | AY94: n.d. | AZ94: n.d. | BA94: n.d. | BB94: n.d. | BC94: n.d. | BD94: =IF(ISERROR(STANDARDIZE($AW94,AVERAGE($AW:$AW),STDEV('Datos mensuales'!$AH:$AH))),"n.d.",STANDARDIZE($AW94,AVERAGE('Datos mensuales'!$AH:$AH),STDEV('Datos mensuales'!$AH:$AH))) -> 0.9482178986 | BE94: =IF(ISERROR(STANDARDIZE($AX94,AVERAGE($AX:$AX),STDEV('Datos mensuales'!$AH:$AH))),"n.d.",STANDARDIZE($AX94,AVERAGE('Datos mensuales'!$AH:$AH),STDEV('Datos mensuales'!$AH:$AH))) -> n.d. | BF94: =IF(ISERROR(STANDARDIZE($AY94,AVERAGE($AY:$AY),STDEV('Datos mensuales'!$AH:$AH))),"n.d.",STANDARDIZE($AY94,AVERAGE('Datos mensuales'!$AH:$AH),STDEV('Datos mensuales'!$AH:$AH))) -> n.d. | BG94: =IF(ISERROR(STANDARDIZE($AZ94,AVERAGE($AZ:$AZ),STDEV('Datos mensuales'!$AH:$AH))),"n.d.",STANDARDIZE($AZ94,AVERAGE('Datos mensuales'!$AH:$AH),STDEV('Datos mensuales'!$AH:$AH))) -> n.d. | BH94: =IF(ISERROR(STANDARDIZE($BA94,AVERAGE($BA:$BA),STDEV('Datos mensuales'!$AH:$AH))),"n.d.",STANDARDIZE($BA94,AVERAGE('Datos mensuales'!$AH:$AH),STDEV('Datos mensuales'!$AH:$AH))) -> n.d. | BI94: =IF(ISERROR(STANDARDIZE($BB94,AVERAGE($BB:$BB),STDEV('Datos mensuales'!$AH:$AH))),"n.d.",STANDARDIZE($BB94,AVERAGE('Datos mensuales'!$AH:$AH),STDEV('Datos mensuales'!$AH:$AH))) -> n.d. | BJ94: =IF(ISERROR(STANDARDIZE($BC94,AVERAGE($BC:$BC),STDEV('Datos mensuales'!$AH:$AH))),"n.d.",STANDARDIZE($BC94,AVERAGE('Datos mensuales'!$AH:$AH),STDEV('Datos mensuales'!$AH:$AH))) -> n.d. | BK94: 0.1319700881 | BL94: n.d. | BM94: n.d. | BN94: n.d. | BO94: n.d. | BP94: n.d. | BQ94: n.d. | BR94: 1.044938877 | BS94: n.d. | BT94: n.d. | BU94: n.d. | BV94: n.d. | BW94: n.d. | BX94: n.d.
B95: Jul | C95: 4.79311298 | L95: 3.454738283 | U95: 0.3437240575 | AH95: n.d. | AI95: n.d. | AJ95: n.d. | AK95: =IF(OR('[1]REAL(M)'!$CI94="",'[1]REAL(M)'!$CI94=""),"",IF(OR('[1]REAL(M)'!$CI94="n.d.",'[1]REAL(M)'!$CI94="n.d."),"n.d.",'[1]REAL(M)'!$CI94-'[1]REAL(M)'!$CJ94)) -> -0.3535425326 | AL95: -0.2199106948 | AM95: 0.140764971 | AP95: 57.00919075 | AW95: 1.020637194 | AX95: n.d. | AY95: n.d. | AZ95: n.d. | BA95: n.d. | BB95: n.d. | BC95: n.d. | BD95: =IF(ISERROR(STANDARDIZE($AW95,AVERAGE($AW:$AW),STDEV('Datos mensuales'!$AH:$AH))),"n.d.",STANDARDIZE($AW95,AVERAGE('Datos mensuales'!$AH:$AH),STDEV('Datos mensuales'!$AH:$AH))) -> 1.115165272 | BE95: =IF(ISERROR(STANDARDIZE($AX95,AVERAGE($AX:$AX),STDEV('Datos mensuales'!$AH:$AH))),"n.d.",STANDARDIZE($AX95,AVERAGE('Datos mensuales'!$AH:$AH),STDEV('Datos mensuales'!$AH:$AH))) -> n.d. | BF95: =IF(ISERROR(STANDARDIZE($AY95,AVERAGE($AY:$AY),STDEV('Datos mensuales'!$AH:$AH))),"n.d.",STANDARDIZE($AY95,AVERAGE('Datos mensuales'!$AH:$AH),STDEV('Datos mensuales'!$AH:$AH))) -> n.d. | BG95: =IF(ISERROR(STANDARDIZE($AZ95,AVERAGE($AZ:$AZ),STDEV('Datos mensuales'!$AH:$AH))),"n.d.",STANDARDIZE($AZ95,AVERAGE('Datos mensuales'!$AH:$AH),STDEV('Datos mensuales'!$AH:$AH))) -> n.d. | BH95: =IF(ISERROR(STANDARDIZE($BA95,AVERAGE($BA:$BA),STDEV('Datos mensuales'!$AH:$AH))),"n.d.",STANDARDIZE($BA95,AVERAGE('Datos mensuales'!$AH:$AH),STDEV('Datos mensuales'!$AH:$AH))) -> n.d. | BI95: =IF(ISERROR(STANDARDIZE($BB95,AVERAGE($BB:$BB),STDEV('Datos mensuales'!$AH:$AH))),"n.d.",STANDARDIZE($BB95,AVERAGE('Datos mensuales'!$AH:$AH),STDEV('Datos mensuales'!$AH:$AH))) -> n.d. | BJ95: =IF(ISERROR(STANDARDIZE($BC95,AVERAGE($BC:$BC),STDEV('Datos mensuales'!$AH:$AH))),"n.d.",STANDARDIZE($BC95,AVERAGE('Datos mensuales'!$AH:$AH),STDEV('Datos mensuales'!$AH:$AH))) -> n.d. | BK95: 0.1669473736 | BL95: n.d. | BM95: n.d. | BN95: n.d. | BO95: n.d. | BP95: n.d. | BQ95: n.d. | BR95: 1.298507814 | BS95: n.d. | BT95: n.d. | BU95: n.d. | BV95: n.d. | BW95: n.d. | BX95: n.d.
B96: Ago | C96: 5.196293641 | L96: 3.673856114 | U96: 0.403180661 | AH96: n.d. | AI96: n.d. | AJ96: n.d. | AK96: =IF(OR('[1]REAL(M)'!$CI95="",'[1]REAL(M)'!$CI95=""),"",IF(OR('[1]REAL(M)'!$CI95="n.d.",'[1]REAL(M)'!$CI95="n.d."),"n.d.",'[1]REAL(M)'!$CI95-'[1]REAL(M)'!$CJ95)) -> 0.04007415677 | AL96: 0.02320669176 | AM96: 0.2431173866 | AP96: 57.21441204 | AW96: 1.198339825 | AX96: n.d. | AY96: n.d. | AZ96: n.d. | BA96: n.d. | BB96: n.d. | BC96: n.d. | BD96: =IF(ISERROR(STANDARDIZE($AW96,AVERAGE($AW:$AW),STDEV('Datos mensuales'!$AH:$AH))),"n.d.",STANDARDIZE($AW96,AVERAGE('Datos mensuales'!$AH:$AH),STDEV('Datos mensuales'!$AH:$AH))) -> 1.308592418 | BE96: =IF(ISERROR(STANDARDIZE($AX96,AVERAGE($AX:$AX),STDEV('Datos mensuales'!$AH:$AH))),"n.d.",STANDARDIZE($AX96,AVERAGE('Datos mensuales'!$AH:$AH),STDEV('Datos mensuales'!$AH:$AH))) -> n.d. | BF96: =IF(ISERROR(STANDARDIZE($AY96,AVERAGE($AY:$AY),STDEV('Datos mensuales'!$AH:$AH))),"n.d.",STANDARDIZE($AY96,AVERAGE('Datos mensuales'!$AH:$AH),STDEV('Datos mensuales'!$AH:$AH))) -> n.d. | BG96: =IF(ISERROR(STANDARDIZE($AZ96,AVERAGE($AZ:$AZ),STDEV('Datos mensuales'!$AH:$AH))),"n.d.",STANDARDIZE($AZ96,AVERAGE('Datos mensuales'!$AH:$AH),STDEV('Datos mensuales'!$AH:$AH))) -> n.d. | BH96: =IF(ISERROR(STANDARDIZE($BA96,AVERAGE($BA:$BA),STDEV('Datos mensuales'!$AH:$AH))),"n.d.",STANDARDIZE($BA96,AVERAGE('Datos mensuales'!$AH:$AH),STDEV('Datos mensuales'!$AH:$AH))) -> n.d. | BI96: =IF(ISERROR(STANDARDIZE($BB96,AVERAGE($BB:$BB),STDEV('Datos mensuales'!$AH:$AH))),"n.d.",STANDARDIZE($BB96,AVERAGE('Datos mensuales'!$AH:$AH),STDEV('Datos mensuales'!$AH:$AH))) -> n.d. | BJ96: =IF(ISERROR(STANDARDIZE($BC96,AVERAGE($BC:$BC),STDEV('Datos mensuales'!$AH:$AH))),"n.d.",STANDARDIZE($BC96,AVERAGE('Datos mensuales'!$AH:$AH),STDEV('Datos mensuales'!$AH:$AH))) -> n.d. | BK96: 0.1934271458 | BL96: n.d. | BM96: n.d. | BN96: n.d. | BO96: n.d. | BP96: n.d. | BQ96: n.d. | BR96: 1.64337623 | BS96: n.d. | BT96: n.d. | BU96: n.d. | BV96: n.d. | BW96: n.d. | BX96: n.d.
B97: Sep | C97: 5.637853287 | L97: 3.893971085 | U97: 0.4415596461 | AH97: n.d. | AI97: n.d. | AJ97: n.d. | AK97: =IF(OR('[1]REAL(M)'!$CI96="",'[1]REAL(M)'!$CI96=""),"",IF(OR('[1]REAL(M)'!$CI96="n.d.",'[1]REAL(M)'!$CI96="n.d."),"n.d.",'[1]REAL(M)'!$CI96-'[1]REAL(M)'!$CJ96)) -> 0.4501217119 | AL97: 0.2764726042 | AM97: 0.2532659125 | AP97: 57.4230207 | AW97: 1.423229692 | AX97: n.d. | AY97: n.d. | AZ97: n.d. | BA97: n.d. | BB97: n.d. | BC97: n.d. | BD97: =IF(ISERROR(STANDARDIZE($AW97,AVERAGE($AW:$AW),STDEV('Datos mensuales'!$AH:$AH))),"n.d.",STANDARDIZE($AW97,AVERAGE('Datos mensuales'!$AH:$AH),STDEV('Datos mensuales'!$AH:$AH))) -> 1.553382294 | BE97: =IF(ISERROR(STANDARDIZE($AX97,AVERAGE($AX:$AX),STDEV('Datos mensuales'!$AH:$AH))),"n.d.",STANDARDIZE($AX97,AVERAGE('Datos mensuales'!$AH:$AH),STDEV('Datos mensuales'!$AH:$AH))) -> n.d. | BF97: =IF(ISERROR(STANDARDIZE($AY97,AVERAGE($AY:$AY),STDEV('Datos mensuales'!$AH:$AH))),"n.d.",STANDARDIZE($AY97,AVERAGE('Datos mensuales'!$AH:$AH),STDEV('Datos mensuales'!$AH:$AH))) -> n.d. | BG97: =IF(ISERROR(STANDARDIZE($AZ97,AVERAGE($AZ:$AZ),STDEV('Datos mensuales'!$AH:$AH))),"n.d.",STANDARDIZE($AZ97,AVERAGE('Datos mensuales'!$AH:$AH),STDEV('Datos mensuales'!$AH:$AH))) -> n.d. | BH97: =IF(ISERROR(STANDARDIZE($BA97,AVERAGE($BA:$BA),STDEV('Datos mensuales'!$AH:$AH))),"n.d.",STANDARDIZE($BA97,AVERAGE('Datos mensuales'!$AH:$AH),STDEV('Datos mensuales'!$AH:$AH))) -> n.d. | BI97: =IF(ISERROR(STANDARDIZE($BB97,AVERAGE($BB:$BB),STDEV('Datos mensuales'!$AH:$AH))),"n.d.",STANDARDIZE($BB97,AVERAGE('Datos mensuales'!$AH:$AH),STDEV('Datos mensuales'!$AH:$AH))) -> n.d. | BJ97: =IF(ISERROR(STANDARDIZE($BC97,AVERAGE($BC:$BC),STDEV('Datos mensuales'!$AH:$AH))),"n.d.",STANDARDIZE($BC97,AVERAGE('Datos mensuales'!$AH:$AH),STDEV('Datos mensuales'!$AH:$AH))) -> n.d. | BK97: 0.2447898755 | BL97: n.d. | BM97: n.d. | BN97: n.d. | BO97: n.d. | BP97: n.d. | BQ97: n.d. | BR97: 1.942093249 | BS97: n.d. | BT97: n.d. | BU97: n.d. | BV97: n.d. | BW97: n.d. | BX97: n.d.
B98: Oct | C98: 6.300177636 | L98: 4.136860441 | U98: 0.6623243488 | AH98: n.d. | AI98: n.d. | AJ98: n.d. | AK98: =IF(OR('[1]REAL(M)'!$CI97="",'[1]REAL(M)'!$CI97=""),"",IF(OR('[1]REAL(M)'!$CI97="n.d.",'[1]REAL(M)'!$CI97="n.d."),"n.d.",'[1]REAL(M)'!$CI97-'[1]REAL(M)'!$CJ97)) -> 0.7391007179 | AL98: 0.4549605155 | AM98: 0.1784879113 | AP98: 57.63452192 | AW98: 1.687067337 | AX98: n.d. | AY98: n.d. | AZ98: n.d. | BA98: n.d. | BB98: n.d. | BC98: n.d. | BD98: =IF(ISERROR(STANDARDIZE($AW98,AVERAGE($AW:$AW),STDEV('Datos mensuales'!$AH:$AH))),"n.d.",STANDARDIZE($AW98,AVERAGE('Datos mensuales'!$AH:$AH),STDEV('Datos mensuales'!$AH:$AH))) -> 1.84056635 | BE98: =IF(ISERROR(STANDARDIZE($AX98,AVERAGE($AX:$AX),STDEV('Datos mensuales'!$AH:$AH))),"n.d.",STANDARDIZE($AX98,AVERAGE('Datos mensuales'!$AH:$AH),STDEV('Datos mensuales'!$AH:$AH))) -> n.d. | BF98: =IF(ISERROR(STANDARDIZE($AY98,AVERAGE($AY:$AY),STDEV('Datos mensuales'!$AH:$AH))),"n.d.",STANDARDIZE($AY98,AVERAGE('Datos mensuales'!$AH:$AH),STDEV('Datos mensuales'!$AH:$AH))) -> n.d. | BG98: =IF(ISERROR(STANDARDIZE($AZ98,AVERAGE($AZ:$AZ),STDEV('Datos mensuales'!$AH:$AH))),"n.d.",STANDARDIZE($AZ98,AVERAGE('Datos mensuales'!$AH:$AH),STDEV('Datos mensuales'!$AH:$AH))) -> n.d. | BH98: =IF(ISERROR(STANDARDIZE($BA98,AVERAGE($BA:$BA),STDEV('Datos mensuales'!$AH:$AH))),"n.d.",STANDARDIZE($BA98,AVERAGE('Datos mensuales'!$AH:$AH),STDEV('Datos mensuales'!$AH:$AH))) -> n.d. | BI98: =IF(ISERROR(STANDARDIZE($BB98,AVERAGE($BB:$BB),STDEV('Datos mensuales'!$AH:$AH))),"n.d.",STANDARDIZE($BB98,AVERAGE('Datos mensuales'!$AH:$AH),STDEV('Datos mensuales'!$AH:$AH))) -> n.d. | BJ98: =IF(ISERROR(STANDARDIZE($BC98,AVERAGE($BC:$BC),STDEV('Datos mensuales'!$AH:$AH))),"n.d.",STANDARDIZE($BC98,AVERAGE('Datos mensuales'!$AH:$AH),STDEV('Datos mensuales'!$AH:$AH))) -> n.d. | BK98: 0.2871840562 | BL98: n.d. | BM98: n.d. | BN98: n.d. | BO98: n.d. | BP98: n.d. | BQ98: n.d. | BR98: 2.917498174 | BS98: n.d. | BT98: n.d. | BU98: n.d. | BV98: n.d. | BW98: n.d. | BX98: n.d.
B99: Nov | C99: 7.233216751 | L99: 4.420693281 | U99: 0.9330391146 | AH99: n.d. | AI99: n.d. | AJ99: n.d. | AK99: =IF(OR('[1]REAL(M)'!$CI98="",'[1]REAL(M)'!$CI98=""),"",IF(OR('[1]REAL(M)'!$CI98="n.d.",'[1]REAL(M)'!$CI98="n.d."),"n.d.",'[1]REAL(M)'!$CI98-'[1]REAL(M)'!$CJ98)) -> 0.9219842141 | AL99: 0.5679185248 | AM99: 0.1129580093 | AP99: 57.84842559 | AW99: 1.978822791 | AX99: n.d. | AY99: n.d. | AZ99: n.d. | BA99: n.d. | BB99: n.d. | BC99: n.d. | BD99: =IF(ISERROR(STANDARDIZE($AW99,AVERAGE($AW:$AW),STDEV('Datos mensuales'!$AH:$AH))),"n.d.",STANDARDIZE($AW99,AVERAGE('Datos mensuales'!$AH:$AH),STDEV('Datos mensuales'!$AH:$AH))) -> 2.1581386 | BE99: =IF(ISERROR(STANDARDIZE($AX99,AVERAGE($AX:$AX),STDEV('Datos mensuales'!$AH:$AH))),"n.d.",STANDARDIZE($AX99,AVERAGE('Datos mensuales'!$AH:$AH),STDEV('Datos mensuales'!$AH:$AH))) -> n.d. | BF99: =IF(ISERROR(STANDARDIZE($AY99,AVERAGE($AY:$AY),STDEV('Datos mensuales'!$AH:$AH))),"n.d.",STANDARDIZE($AY99,AVERAGE('Datos mensuales'!$AH:$AH),STDEV('Datos mensuales'!$AH:$AH))) -> n.d. | BG99: =IF(ISERROR(STANDARDIZE($AZ99,AVERAGE($AZ:$AZ),STDEV('Datos mensuales'!$AH:$AH))),"n.d.",STANDARDIZE($AZ99,AVERAGE('Datos mensuales'!$AH:$AH),STDEV('Datos mensuales'!$AH:$AH))) -> n.d. | BH99: =IF(ISERROR(STANDARDIZE($BA99,AVERAGE($BA:$BA),STDEV('Datos mensuales'!$AH:$AH))),"n.d.",STANDARDIZE($BA99,AVERAGE('Datos mensuales'!$AH:$AH),STDEV('Datos mensuales'!$AH:$AH))) -> n.d. | BI99: =IF(ISERROR(STANDARDIZE($BB99,AVERAGE($BB:$BB),STDEV('Datos mensuales'!$AH:$AH))),"n.d.",STANDARDIZE($BB99,AVERAGE('Datos mensuales'!$AH:$AH),STDEV('Datos mensuales'!$AH:$AH))) -> n.d. | BJ99: =IF(ISERROR(STANDARDIZE($BC99,AVERAGE($BC:$BC),STDEV('Datos mensuales'!$AH:$AH))),"n.d.",STANDARDIZE($BC99,AVERAGE('Datos mensuales'!$AH:$AH),STDEV('Datos mensuales'!$AH:$AH))) -> n.d. | BK99: 0.3175722505 | BL99: n.d. | BM99: n.d. | BN99: n.d. | BO99: n.d. | BP99: n.d. | BQ99: n.d. | BR99: 6.671399252 | BS99: n.d. | BT99: n.d. | BU99: n.d. | BV99: n.d. | BW99: n.d. | BX99: n.d.
B100: Dic | C100: 8.081197944 | L100: 4.728154943 | U100: 0.8479811936 | AH100: n.d. | AI100: n.d. | AJ100: n.d. | AK100: =IF(OR('[1]REAL(M)'!$CI99="",'[1]REAL(M)'!$CI99=""),"",IF(OR('[1]REAL(M)'!$CI99="n.d.",'[1]REAL(M)'!$CI99="n.d."),"n.d.",'[1]REAL(M)'!$CI99-'[1]REAL(M)'!$CJ99)) -> 1.01348417 | AL100: 0.6244334817 | AM100: 0.05651495693 | AP100: 58.06426834 | AW100: 2.255543935 | AX100: n.d. | AY100: n.d. | AZ100: n.d. | BA100: n.d. | BB100: n.d. | BC100: n.d. | BD100: =IF(ISERROR(STANDARDIZE($AW100,AVERAGE($AW:$AW),STDEV('Datos mensuales'!$AH:$AH))),"n.d.",STANDARDIZE($AW100,AVERAGE('Datos mensuales'!$AH:$AH),STDEV('Datos mensuales'!$AH:$AH))) -> 2.459346189 | BE100: =IF(ISERROR(STANDARDIZE($AX100,AVERAGE($AX:$AX),STDEV('Datos mensuales'!$AH:$AH))),"n.d.",STANDARDIZE($AX100,AVERAGE('Datos mensuales'!$AH:$AH),STDEV('Datos mensuales'!$AH:$AH))) -> n.d. | BF100: =IF(ISERROR(STANDARDIZE($AY100,AVERAGE($AY:$AY),STDEV('Datos mensuales'!$AH:$AH))),"n.d.",STANDARDIZE($AY100,AVERAGE('Datos mensuales'!$AH:$AH),STDEV('Datos mensuales'!$AH:$AH))) -> n.d. | BG100: =IF(ISERROR(STANDARDIZE($AZ100,AVERAGE($AZ:$AZ),STDEV('Datos mensuales'!$AH:$AH))),"n.d.",STANDARDIZE($AZ100,AVERAGE('Datos mensuales'!$AH:$AH),STDEV('Datos mensuales'!$AH:$AH))) -> n.d. | BH100: =IF(ISERROR(STANDARDIZE($BA100,AVERAGE($BA:$BA),STDEV('Datos mensuales'!$AH:$AH))),"n.d.",STANDARDIZE($BA100,AVERAGE('Datos mensuales'!$AH:$AH),STDEV('Datos mensuales'!$AH:$AH))) -> n.d. | BI100: =IF(ISERROR(STANDARDIZE($BB100,AVERAGE($BB:$BB),STDEV('Datos mensuales'!$AH:$AH))),"n.d.",STANDARDIZE($BB100,AVERAGE('Datos mensuales'!$AH:$AH),STDEV('Datos mensuales'!$AH:$AH))) -> n.d. | BJ100: =IF(ISERROR(STANDARDIZE($BC100,AVERAGE($BC:$BC),STDEV('Datos mensuales'!$AH:$AH))),"n.d.",STANDARDIZE($BC100,AVERAGE('Datos mensuales'!$AH:$AH),STDEV('Datos mensuales'!$AH:$AH))) -> n.d. | BK100: 0.3012075884 | BL100: n.d. | BM100: n.d. | BN100: n.d. | BO100: n.d. | BP100: n.d. | BQ100: n.d. | BR100: 19.25714584 | BS100: n.d. | BT100: n.d. | BU100: n.d. | BV100: n.d. | BW100: n.d. | BX100: n.d.
A101: 1998 | B101: Ene | C101: 8.157194144 | L101: 8.157194144 | U101: 0.07599619998 | AH101: n.d. | AI101: n.d. | AJ101: n.d. | AK101: =IF(OR('[1]REAL(M)'!$CI100="",'[1]REAL(M)'!$CI100=""),"",IF(OR('[1]REAL(M)'!$CI100="n.d.",'[1]REAL(M)'!$CI100="n.d."),"n.d.",'[1]REAL(M)'!$CI100-'[1]REAL(M)'!$CJ100)) -> 0.9290128702 | AL101: 0.5722597749 | AM101: -0.05217370681 | AP101: 58.28163135 | AV101: 104.11 | AW101: 2.295255378 | AX101: n.d. | AY101: n.d. | AZ101: n.d. | BA101: n.d. | BB101: n.d. | BC101: 0 | BD101: =IF(ISERROR(STANDARDIZE($AW101,AVERAGE($AW:$AW),STDEV('Datos mensuales'!$AH:$AH))),"n.d.",STANDARDIZE($AW101,AVERAGE('Datos mensuales'!$AH:$AH),STDEV('Datos mensuales'!$AH:$AH))) -> 2.50257161 | BE101: =IF(ISERROR(STANDARDIZE($AX101,AVERAGE($AX:$AX),STDEV('Datos mensuales'!$AH:$AH))),"n.d.",STANDARDIZE($AX101,AVERAGE('Datos mensuales'!$AH:$AH),STDEV('Datos mensuales'!$AH:$AH))) -> n.d. | BF101: =IF(ISERROR(STANDARDIZE($AY101,AVERAGE($AY:$AY),STDEV('Datos mensuales'!$AH:$AH))),"n.d.",STANDARDIZE($AY101,AVERAGE('Datos mensuales'!$AH:$AH),STDEV('Datos mensuales'!$AH:$AH))) -> n.d. | BG101: =IF(ISERROR(STANDARDIZE($AZ101,AVERAGE($AZ:$AZ),STDEV('Datos mensuales'!$AH:$AH))),"n.d.",STANDARDIZE($AZ101,AVERAGE('Datos mensuales'!$AH:$AH),STDEV('Datos mensuales'!$AH:$AH))) -> n.d. | BH101: =IF(ISERROR(STANDARDIZE($BA101,AVERAGE($BA:$BA),STDEV('Datos mensuales'!$AH:$AH))),"n.d.",STANDARDIZE($BA101,AVERAGE('Datos mensuales'!$AH:$AH),STDEV('Datos mensuales'!$AH:$AH))) -> n.d. | BI101: =IF(ISERROR(STANDARDIZE($BB101,AVERAGE($BB:$BB),STDEV('Datos mensuales'!$AH:$AH))),"n.d.",STANDARDIZE($BB101,AVERAGE('Datos mensuales'!$AH:$AH),STDEV('Datos mensuales'!$AH:$AH))) -> n.d. | BJ101: =IF(ISERROR(STANDARDIZE($BC101,AVERAGE($BC:$BC),STDEV('Datos mensuales'!$AH:$AH))),"n.d.",STANDARDIZE($BC101,AVERAGE('Datos mensuales'!$AH:$AH),STDEV('Datos mensuales'!$AH:$AH))) -> 0.004214143666 | BK101: 0.0432254213 | BL101: n.d. | BM101: n.d. | BN101: n.d. | BO101: n.d. | BP101: n.d. | BQ101: n.d. | BR101: 15.50314604 | BS101: n.d. | BT101: n.d. | BU101: n.d. | BV101: n.d. | BW101: n.d. | BX101: n.d.
B102: Feb | C102: 7.416285554 | L102: 7.785631103 | U102: -0.74090859 | AH102: n.d. | AI102: n.d. | AJ102: n.d. | AK102: =IF(OR('[1]REAL(M)'!$CI101="",'[1]REAL(M)'!$CI101=""),"",IF(OR('[1]REAL(M)'!$CI101="n.d.",'[1]REAL(M)'!$CI101="n.d."),"n.d.",'[1]REAL(M)'!$CI101-'[1]REAL(M)'!$CJ101)) -> 0.6769424625 | AL102: 0.416568463 | AM102: -0.1556913119 | AP102: 58.50014901 | AV102: 104.34 | AW102: 2.022970993 | AX102: n.d. | AY102: n.d. | AZ102: n.d. | BA102: n.d. | BB102: n.d. | BC102: 0 | BD102: =IF(ISERROR(STANDARDIZE($AW102,AVERAGE($AW:$AW),STDEV('Datos mensuales'!$AH:$AH))),"n.d.",STANDARDIZE($AW102,AVERAGE('Datos mensuales'!$AH:$AH),STDEV('Datos mensuales'!$AH:$AH))) -> 2.206193379 | BE102: =IF(ISERROR(STANDARDIZE($AX102,AVERAGE($AX:$AX),STDEV('Datos mensuales'!$AH:$AH))),"n.d.",STANDARDIZE($AX102,AVERAGE('Datos mensuales'!$AH:$AH),STDEV('Datos mensuales'!$AH:$AH))) -> n.d. | BF102: =IF(ISERROR(STANDARDIZE($AY102,AVERAGE($AY:$AY),STDEV('Datos mensuales'!$AH:$AH))),"n.d.",STANDARDIZE($AY102,AVERAGE('Datos mensuales'!$AH:$AH),STDEV('Datos mensuales'!$AH:$AH))) -> n.d. | BG102: =IF(ISERROR(STANDARDIZE($AZ102,AVERAGE($AZ:$AZ),STDEV('Datos mensuales'!$AH:$AH))),"n.d.",STANDARDIZE($AZ102,AVERAGE('Datos mensuales'!$AH:$AH),STDEV('Datos mensuales'!$AH:$AH))) -> n.d. | BH102: =IF(ISERROR(STANDARDIZE($BA102,AVERAGE($BA:$BA),STDEV('Datos mensuales'!$AH:$AH))),"n.d.",STANDARDIZE($BA102,AVERAGE('Datos mensuales'!$AH:$AH),STDEV('Datos mensuales'!$AH:$AH))) -> n.d. | BI102: =IF(ISERROR(STANDARDIZE($BB102,AVERAGE($BB:$BB),STDEV('Datos mensuales'!$AH:$AH))),"n.d.",STANDARDIZE($BB102,AVERAGE('Datos mensuales'!$AH:$AH),STDEV('Datos mensuales'!$AH:$AH))) -> n.d. | BJ102: =IF(ISERROR(STANDARDIZE($BC102,AVERAGE($BC:$BC),STDEV('Datos mensuales'!$AH:$AH))),"n.d.",STANDARDIZE($BC102,AVERAGE('Datos mensuales'!$AH:$AH),STDEV('Datos mensuales'!$AH:$AH))) -> 0.004214143666 | BK102: -0.2963782306 | BL102: n.d. | BM102: n.d. | BN102: n.d. | BO102: n.d. | BP102: n.d. | BQ102: 0 | BR102: 5.774758049 | BS102: n.d. | BT102: n.d. | BU102: n.d. | BV102: n.d. | BW102: n.d. | BX102: n.d.
B103: Mar | C103: 6.707411006 | L103: 7.424052923 | U103: -0.7088745481 | AH103: n.d. | AI103: n.d. | AJ103: n.d. | AK103: =IF(OR('[1]REAL(M)'!$CI102="",'[1]REAL(M)'!$CI102=""),"",IF(OR('[1]REAL(M)'!$CI102="n.d.",'[1]REAL(M)'!$CI102="n.d."),"n.d.",'[1]REAL(M)'!$CI102-'[1]REAL(M)'!$CJ102)) -> 0.4078987022 | AL103: 0.2503935581 | AM103: -0.1661749048 | AP103: 58.71950625 | AV103: 104.3 | AW103: 1.769700329 | AX103: n.d. | AY103: n.d. | AZ103: n.d. | BA103: n.d. | BB103: n.d. | BC103: 0 | BD103: =IF(ISERROR(STANDARDIZE($AW103,AVERAGE($AW:$AW),STDEV('Datos mensuales'!$AH:$AH))),"n.d.",STANDARDIZE($AW103,AVERAGE('Datos mensuales'!$AH:$AH),STDEV('Datos mensuales'!$AH:$AH))) -> 1.930511353 | BE103: =IF(ISERROR(STANDARDIZE($AX103,AVERAGE($AX:$AX),STDEV('Datos mensuales'!$AH:$AH))),"n.d.",STANDARDIZE($AX103,AVERAGE('Datos mensuales'!$AH:$AH),STDEV('Datos mensuales'!$AH:$AH))) -> n.d. | BF103: =IF(ISERROR(STANDARDIZE($AY103,AVERAGE($AY:$AY),STDEV('Datos mensuales'!$AH:$AH))),"n.d.",STANDARDIZE($AY103,AVERAGE('Datos mensuales'!$AH:$AH),STDEV('Datos mensuales'!$AH:$AH))) -> n.d. | BG103: =IF(ISERROR(STANDARDIZE($AZ103,AVERAGE($AZ:$AZ),STDEV('Datos mensuales'!$AH:$AH))),"n.d.",STANDARDIZE($AZ103,AVERAGE('Datos mensuales'!$AH:$AH),STDEV('Datos mensuales'!$AH:$AH))) -> n.d. | BH103: =IF(ISERROR(STANDARDIZE($BA103,AVERAGE($BA:$BA),STDEV('Datos mensuales'!$AH:$AH))),"n.d.",STANDARDIZE($BA103,AVERAGE('Datos mensuales'!$AH:$AH),STDEV('Datos mensuales'!$AH:$AH))) -> n.d. | BI103: =IF(ISERROR(STANDARDIZE($BB103,AVERAGE($BB:$BB),STDEV('Datos mensuales'!$AH:$AH))),"n.d.",STANDARDIZE($BB103,AVERAGE('Datos mensuales'!$AH:$AH),STDEV('Datos mensuales'!$AH:$AH))) -> n.d. | BJ103: =IF(ISERROR(STANDARDIZE($BC103,AVERAGE($BC:$BC),STDEV('Datos mensuales'!$AH:$AH))),"n.d.",STANDARDIZE($BC103,AVERAGE('Datos mensuales'!$AH:$AH),STDEV('Datos mensuales'!$AH:$AH))) -> 0.004214143666 | BK103: -0.275682026 | BL103: n.d. | BM103: n.d. | BN103: n.d. | BO103: n.d. | BP103: n.d. | BQ103: 0 | BR103: 2.857833786 | BS103: n.d. | BT103: n.d. | BU103: n.d. | BV103: n.d. | BW103: n.d. | BX103: n.d.
B104: Abr | C104: 6.1756824 | L104: 7.10911627 | U104: -0.5317286055 | AH104: n.d. | AI104: n.d. | AJ104: n.d. | AK104: =IF(OR('[1]REAL(M)'!$CI103="",'[1]REAL(M)'!$CI103=""),"",IF(OR('[1]REAL(M)'!$CI103="n.d.",'[1]REAL(M)'!$CI103="n.d."),"n.d.",'[1]REAL(M)'!$CI103-'[1]REAL(M)'!$CJ103)) -> 0.313854635 | AL104: 0.1923072309 | AM104: -0.05808632724 | AP104: 58.93942691 | AV104: 104.07 | AW104: 1.616021961 | AX104: n.d. | AY104: n.d. | AZ104: n.d. | BA104: n.d. | BB104: n.d. | BC104: 0 | BD104: =IF(ISERROR(STANDARDIZE($AW104,AVERAGE($AW:$AW),STDEV('Datos mensuales'!$AH:$AH))),"n.d.",STANDARDIZE($AW104,AVERAGE('Datos mensuales'!$AH:$AH),STDEV('Datos mensuales'!$AH:$AH))) -> 1.763234325 | BE104: =IF(ISERROR(STANDARDIZE($AX104,AVERAGE($AX:$AX),STDEV('Datos mensuales'!$AH:$AH))),"n.d.",STANDARDIZE($AX104,AVERAGE('Datos mensuales'!$AH:$AH),STDEV('Datos mensuales'!$AH:$AH))) -> n.d. | BF104: =IF(ISERROR(STANDARDIZE($AY104,AVERAGE($AY:$AY),STDEV('Datos mensuales'!$AH:$AH))),"n.d.",STANDARDIZE($AY104,AVERAGE('Datos mensuales'!$AH:$AH),STDEV('Datos mensuales'!$AH:$AH))) -> n.d. | BG104: =IF(ISERROR(STANDARDIZE($AZ104,AVERAGE($AZ:$AZ),STDEV('Datos mensuales'!$AH:$AH))),"n.d.",STANDARDIZE($AZ104,AVERAGE('Datos mensuales'!$AH:$AH),STDEV('Datos mensuales'!$AH:$AH))) -> n.d. | BH104: =IF(ISERROR(STANDARDIZE($BA104,AVERAGE($BA:$BA),STDEV('Datos mensuales'!$AH:$AH))),"n.d.",STANDARDIZE($BA104,AVERAGE('Datos mensuales'!$AH:$AH),STDEV('Datos mensuales'!$AH:$AH))) -> n.d. | BI104: =IF(ISERROR(STANDARDIZE($BB104,AVERAGE($BB:$BB),STDEV('Datos mensuales'!$AH:$AH))),"n.d.",STANDARDIZE($BB104,AVERAGE('Datos mensuales'!$AH:$AH),STDEV('Datos mensuales'!$AH:$AH))) -> n.d. | BJ104: =IF(ISERROR(STANDARDIZE($BC104,AVERAGE($BC:$BC),STDEV('Datos mensuales'!$AH:$AH))),"n.d.",STANDARDIZE($BC104,AVERAGE('Datos mensuales'!$AH:$AH),STDEV('Datos mensuales'!$AH:$AH))) -> 0.004214143666 | BK104: -0.1672770286 | BL104: n.d. | BM104: n.d. | BN104: n.d. | BO104: n.d. | BP104: n.d. | BQ104: 0 | BR104: 1.618202394 | BS104: n.d. | BT104: n.d. | BU104: n.d. | BV104: n.d. | BW104: n.d. | BX104: n.d.
B105: May | C105: 5.597810626 | L105: 6.803277963 | U105: -0.577871774 | AH105: n.d. | AI105: n.d. | AJ105: n.d. | AK105: =IF(OR('[1]REAL(M)'!$CI104="",'[1]REAL(M)'!$CI104=""),"",IF(OR('[1]REAL(M)'!$CI104="n.d.",'[1]REAL(M)'!$CI104="n.d."),"n.d.",'[1]REAL(M)'!$CI104-'[1]REAL(M)'!$CJ104)) -> 0.1894747837 | AL105: 0.1154840036 | AM105: -0.07682322733 | AP105: 59.15965429 | AV105: 103.73 | AW105: 1.407868391 | AX105: n.d. | AY105: n.d. | AZ105: n.d. | BA105: n.d. | BB105: n.d. | BC105: 0 | BD105: =IF(ISERROR(STANDARDIZE($AW105,AVERAGE($AW:$AW),STDEV('Datos mensuales'!$AH:$AH))),"n.d.",STANDARDIZE($AW105,AVERAGE('Datos mensuales'!$AH:$AH),STDEV('Datos mensuales'!$AH:$AH))) -> 1.536661704 | BE105: =IF(ISERROR(STANDARDIZE($AX105,AVERAGE($AX:$AX),STDEV('Datos mensuales'!$AH:$AH))),"n.d.",STANDARDIZE($AX105,AVERAGE('Datos mensuales'!$AH:$AH),STDEV('Datos mensuales'!$AH:$AH))) -> n.d. | BF105: =IF(ISERROR(STANDARDIZE($AY105,AVERAGE($AY:$AY),STDEV('Datos mensuales'!$AH:$AH))),"n.d.",STANDARDIZE($AY105,AVERAGE('Datos mensuales'!$AH:$AH),STDEV('Datos mensuales'!$AH:$AH))) -> n.d. | BG105: =IF(ISERROR(STANDARDIZE($AZ105,AVERAGE($AZ:$AZ),STDEV('Datos mensuales'!$AH:$AH))),"n.d.",STANDARDIZE($AZ105,AVERAGE('Datos mensuales'!$AH:$AH),STDEV('Datos mensuales'!$AH:$AH))) -> n.d. | BH105: =IF(ISERROR(STANDARDIZE($BA105,AVERAGE($BA:$BA),STDEV('Datos mensuales'!$AH:$AH))),"n.d.",STANDARDIZE($BA105,AVERAGE('Datos mensuales'!$AH:$AH),STDEV('Datos mensuales'!$AH:$AH))) -> n.d. | BI105: =IF(ISERROR(STANDARDIZE($BB105,AVERAGE($BB:$BB),STDEV('Datos mensuales'!$AH:$AH))),"n.d.",STANDARDIZE($BB105,AVERAGE('Datos mensuales'!$AH:$AH),STDEV('Datos mensuales'!$AH:$AH))) -> n.d. | BJ105: =IF(ISERROR(STANDARDIZE($BC105,AVERAGE($BC:$BC),STDEV('Datos mensuales'!$AH:$AH))),"n.d.",STANDARDIZE($BC105,AVERAGE('Datos mensuales'!$AH:$AH),STDEV('Datos mensuales'!$AH:$AH))) -> 0.004214143666 | BK105: -0.2265726203 | BL105: n.d. | BM105: n.d. | BN105: n.d. | BO105: n.d. | BP105: n.d. | BQ105: 0 | BR105: 0.8825921303 | BS105: n.d. | BT105: n.d. | BU105: n.d. | BV105: n.d. | BW105: n.d. | BX105: n.d.
B106: Jun | C106: 5.072981935 | L106: 6.510713933 | U106: -0.5248286919 | AH106: n.d. | AI106: n.d. | AJ106: n.d. | AK106: =IF(OR('[1]REAL(M)'!$CI105="",'[1]REAL(M)'!$CI105=""),"",IF(OR('[1]REAL(M)'!$CI105="n.d.",'[1]REAL(M)'!$CI105="n.d."),"n.d.",'[1]REAL(M)'!$CI105-'[1]REAL(M)'!$CJ105)) -> -0.340063091 | AL106: -0.2115851164 | AM106: -0.32706912 | AP106: 59.37993243 | AV106: 103.47 | AW106: 1.221008889 | AX106: n.d. | AY106: n.d. | AZ106: n.d. | BA106: n.d. | BB106: n.d. | BC106: 0 | BD106: =IF(ISERROR(STANDARDIZE($AW106,AVERAGE($AW:$AW),STDEV('Datos mensuales'!$AH:$AH))),"n.d.",STANDARDIZE($AW106,AVERAGE('Datos mensuales'!$AH:$AH),STDEV('Datos mensuales'!$AH:$AH))) -> 1.333267417 | BE106: =IF(ISERROR(STANDARDIZE($AX106,AVERAGE($AX:$AX),STDEV('Datos mensuales'!$AH:$AH))),"n.d.",STANDARDIZE($AX106,AVERAGE('Datos mensuales'!$AH:$AH),STDEV('Datos mensuales'!$AH:$AH))) -> n.d. | BF106: =IF(ISERROR(STANDARDIZE($AY106,AVERAGE($AY:$AY),STDEV('Datos mensuales'!$AH:$AH))),"n.d.",STANDARDIZE($AY106,AVERAGE('Datos mensuales'!$AH:$AH),STDEV('Datos mensuales'!$AH:$AH))) -> n.d. | BG106: =IF(ISERROR(STANDARDIZE($AZ106,AVERAGE($AZ:$AZ),STDEV('Datos mensuales'!$AH:$AH))),"n.d.",STANDARDIZE($AZ106,AVERAGE('Datos mensuales'!$AH:$AH),STDEV('Datos mensuales'!$AH:$AH))) -> n.d. | BH106: =IF(ISERROR(STANDARDIZE($BA106,AVERAGE($BA:$BA),STDEV('Datos mensuales'!$AH:$AH))),"n.d.",STANDARDIZE($BA106,AVERAGE('Datos mensuales'!$AH:$AH),STDEV('Datos mensuales'!$AH:$AH))) -> n.d. | BI106: =IF(ISERROR(STANDARDIZE($BB106,AVERAGE($BB:$BB),STDEV('Datos mensuales'!$AH:$AH))),"n.d.",STANDARDIZE($BB106,AVERAGE('Datos mensuales'!$AH:$AH),STDEV('Datos mensuales'!$AH:$AH))) -> n.d. | BJ106: =IF(ISERROR(STANDARDIZE($BC106,AVERAGE($BC:$BC),STDEV('Datos mensuales'!$AH:$AH))),"n.d.",STANDARDIZE($BC106,AVERAGE('Datos mensuales'!$AH:$AH),STDEV('Datos mensuales'!$AH:$AH))) -> 0.004214143666 | BK106: -0.2033942869 | BL106: n.d. | BM106: n.d. | BN106: n.d. | BO106: n.d. | BP106: n.d. | BQ106: 0 | BR106: 0.4060770414 | BS106: n.d. | BT106: n.d. | BU106: n.d. | BV106: n.d. | BW106: n.d. | BX106: n.d.
B107: Jul | C107: 4.70650396 | L107: 6.248401433 | U107: -0.3664779745 | AH107: n.d. | AI107: n.d. | AJ107: n.d. | AK107: =IF(OR('[1]REAL(M)'!$CI106="",'[1]REAL(M)'!$CI106=""),"",IF(OR('[1]REAL(M)'!$CI106="n.d.",'[1]REAL(M)'!$CI106="n.d."),"n.d.",'[1]REAL(M)'!$CI106-'[1]REAL(M)'!$CJ106)) -> -1.009336696 | AL107: -0.6249620242 | AM107: -0.4133769078 | AP107: 59.59999012 | AV107: 103.54 | AW107: 1.161013969 | AX107: n.d. | AY107: n.d. | AZ107: n.d. | BA107: n.d. | BB107: n.d. | BC107: 0 | BD107: =IF(ISERROR(STANDARDIZE($AW107,AVERAGE($AW:$AW),STDEV('Datos mensuales'!$AH:$AH))),"n.d.",STANDARDIZE($AW107,AVERAGE('Datos mensuales'!$AH:$AH),STDEV('Datos mensuales'!$AH:$AH))) -> 1.267963679 | BE107: =IF(ISERROR(STANDARDIZE($AX107,AVERAGE($AX:$AX),STDEV('Datos mensuales'!$AH:$AH))),"n.d.",STANDARDIZE($AX107,AVERAGE('Datos mensuales'!$AH:$AH),STDEV('Datos mensuales'!$AH:$AH))) -> n.d. | BF107: =IF(ISERROR(STANDARDIZE($AY107,AVERAGE($AY:$AY),STDEV('Datos mensuales'!$AH:$AH))),"n.d.",STANDARDIZE($AY107,AVERAGE('Datos mensuales'!$AH:$AH),STDEV('Datos mensuales'!$AH:$AH))) -> n.d. | BG107: =IF(ISERROR(STANDARDIZE($AZ107,AVERAGE($AZ:$AZ),STDEV('Datos mensuales'!$AH:$AH))),"n.d.",STANDARDIZE($AZ107,AVERAGE('Datos mensuales'!$AH:$AH),STDEV('Datos mensuales'!$AH:$AH))) -> n.d. | BH107: =IF(ISERROR(STANDARDIZE($BA107,AVERAGE($BA:$BA),STDEV('Datos mensuales'!$AH:$AH))),"n.d.",STANDARDIZE($BA107,AVERAGE('Datos mensuales'!$AH:$AH),STDEV('Datos mensuales'!$AH:$AH))) -> n.d. | BI107: =IF(ISERROR(STANDARDIZE($BB107,AVERAGE($BB:$BB),STDEV('Datos mensuales'!$AH:$AH))),"n.d.",STANDARDIZE($BB107,AVERAGE('Datos mensuales'!$AH:$AH),STDEV('Datos mensuales'!$AH:$AH))) -> n.d. | BJ107: =IF(ISERROR(STANDARDIZE($BC107,AVERAGE($BC:$BC),STDEV('Datos mensuales'!$AH:$AH))),"n.d.",STANDARDIZE($BC107,AVERAGE('Datos mensuales'!$AH:$AH),STDEV('Datos mensuales'!$AH:$AH))) -> 0.004214143666 | BK107: -0.06530373812 | BL107: n.d. | BM107: n.d. | BN107: n.d. | BO107: n.d. | BP107: n.d. | BQ107: 0 | BR107: 0.1370186204 | BS107: n.d. | BT107: n.d. | BU107: n.d. | BV107: n.d. | BW107: n.d. | BX107: n.d.
B108: Ago | C108: 4.487586813 | L108: 6.023607152 | U108: -0.2189171471 | AH108: n.d. | AI108: n.d. | AJ108: n.d. | AK108: =IF(OR('[1]REAL(M)'!$CI107="",'[1]REAL(M)'!$CI107=""),"",IF(OR('[1]REAL(M)'!$CI107="n.d.",'[1]REAL(M)'!$CI107="n.d."),"n.d.",'[1]REAL(M)'!$CI107-'[1]REAL(M)'!$CJ107)) -> 0.1830279835 | AL108: 0.1115021368 | AM108: 0.736464161 | AP108: 59.81953323 | AV108: 103.98 | AW108: 1.214541586 | AX108: n.d. | AY108: n.d. | AZ108: n.d. | BA108: n.d. | BB108: n.d. | BC108: 0 | BD108: =IF(ISERROR(STANDARDIZE($AW108,AVERAGE($AW:$AW),STDEV('Datos mensuales'!$AH:$AH))),"n.d.",STANDARDIZE($AW108,AVERAGE('Datos mensuales'!$AH:$AH),STDEV('Datos mensuales'!$AH:$AH))) -> 1.326227837 | BE108: =IF(ISERROR(STANDARDIZE($AX108,AVERAGE($AX:$AX),STDEV('Datos mensuales'!$AH:$AH))),"n.d.",STANDARDIZE($AX108,AVERAGE('Datos mensuales'!$AH:$AH),STDEV('Datos mensuales'!$AH:$AH))) -> n.d. | BF108: =IF(ISERROR(STANDARDIZE($AY108,AVERAGE($AY:$AY),STDEV('Datos mensuales'!$AH:$AH))),"n.d.",STANDARDIZE($AY108,AVERAGE('Datos mensuales'!$AH:$AH),STDEV('Datos mensuales'!$AH:$AH))) -> n.d. | BG108: =IF(ISERROR(STANDARDIZE($AZ108,AVERAGE($AZ:$AZ),STDEV('Datos mensuales'!$AH:$AH))),"n.d.",STANDARDIZE($AZ108,AVERAGE('Datos mensuales'!$AH:$AH),STDEV('Datos mensuales'!$AH:$AH))) -> n.d. | BH108: =IF(ISERROR(STANDARDIZE($BA108,AVERAGE($BA:$BA),STDEV('Datos mensuales'!$AH:$AH))),"n.d.",STANDARDIZE($BA108,AVERAGE('Datos mensuales'!$AH:$AH),STDEV('Datos mensuales'!$AH:$AH))) -> n.d. | BI108: =IF(ISERROR(STANDARDIZE($BB108,AVERAGE($BB:$BB),STDEV('Datos mensuales'!$AH:$AH))),"n.d.",STANDARDIZE($BB108,AVERAGE('Datos mensuales'!$AH:$AH),STDEV('Datos mensuales'!$AH:$AH))) -> n.d. | BJ108: =IF(ISERROR(STANDARDIZE($BC108,AVERAGE($BC:$BC),STDEV('Datos mensuales'!$AH:$AH))),"n.d.",STANDARDIZE($BC108,AVERAGE('Datos mensuales'!$AH:$AH),STDEV('Datos mensuales'!$AH:$AH))) -> 0.004214143666 | BK108: 0.05826415789 | BL108: n.d. | BM108: n.d. | BN108: n.d. | BO108: n.d. | BP108: n.d. | BQ108: 0 | BR108: 0.01347663255 | BS108: n.d. | BT108: n.d. | BU108: n.d. | BV108: n.d. | BW108: n.d. | BX108: n.d.
B109: Sep | C109: 4.20844136 | L109: 5.816757763 | U109: -0.2791454533 | AH109: n.d. | AI109: n.d. | AJ109: n.d. | AK109: =IF(OR('[1]REAL(M)'!$CI108="",'[1]REAL(M)'!$CI108=""),"",IF(OR('[1]REAL(M)'!$CI108="n.d.",'[1]REAL(M)'!$CI108="n.d."),"n.d.",'[1]REAL(M)'!$CI108-'[1]REAL(M)'!$CJ108)) -> 0.01223249978 | AL109: 0.006010289608 | AM109: -0.1054918472 | AP109: 60.03824751 | AV109: 104.65 | AW109: 1.284512824 | AX109: n.d. | AY109: n.d. | AZ109: n.d. | BA109: n.d. | BB109: n.d. | BC109: 0 | BD109: =IF(ISERROR(STANDARDIZE($AW109,AVERAGE($AW:$AW),STDEV('Datos mensuales'!$AH:$AH))),"n.d.",STANDARDIZE($AW109,AVERAGE('Datos mensuales'!$AH:$AH),STDEV('Datos mensuales'!$AH:$AH))) -> 1.402390675 | BE109: =IF(ISERROR(STANDARDIZE($AX109,AVERAGE($AX:$AX),STDEV('Datos mensuales'!$AH:$AH))),"n.d.",STANDARDIZE($AX109,AVERAGE('Datos mensuales'!$AH:$AH),STDEV('Datos mensuales'!$AH:$AH))) -> n.d. | BF109: =IF(ISERROR(STANDARDIZE($AY109,AVERAGE($AY:$AY),STDEV('Datos mensuales'!$AH:$AH))),"n.d.",STANDARDIZE($AY109,AVERAGE('Datos mensuales'!$AH:$AH),STDEV('Datos mensuales'!$AH:$AH))) -> n.d. | BG109: =IF(ISERROR(STANDARDIZE($AZ109,AVERAGE($AZ:$AZ),STDEV('Datos mensuales'!$AH:$AH))),"n.d.",STANDARDIZE($AZ109,AVERAGE('Datos mensuales'!$AH:$AH),STDEV('Datos mensuales'!$AH:$AH))) -> n.d. | BH109: =IF(ISERROR(STANDARDIZE($BA109,AVERAGE($BA:$BA),STDEV('Datos mensuales'!$AH:$AH))),"n.d.",STANDARDIZE($BA109,AVERAGE('Datos mensuales'!$AH:$AH),STDEV('Datos mensuales'!$AH:$AH))) -> n.d. | BI109: =IF(ISERROR(STANDARDIZE($BB109,AVERAGE($BB:$BB),STDEV('Datos mensuales'!$AH:$AH))),"n.d.",STANDARDIZE($BB109,AVERAGE('Datos mensuales'!$AH:$AH),STDEV('Datos mensuales'!$AH:$AH))) -> n.d. | BJ109: =IF(ISERROR(STANDARDIZE($BC109,AVERAGE($BC:$BC),STDEV('Datos mensuales'!$AH:$AH))),"n.d.",STANDARDIZE($BC109,AVERAGE('Datos mensuales'!$AH:$AH),STDEV('Datos mensuales'!$AH:$AH))) -> 0.004214143666 | BK109: 0.07616283817 | BL109: n.d. | BM109: n.d. | BN109: n.d. | BO109: n.d. | BP109: n.d. | BQ109: 0 | BR109: -0.09720184062 | BS109: n.d. | BT109: n.d. | BU109: n.d. | BV109: n.d. | BW109: n.d. | BX109: n.d.
B110: Oct | C110: 3.858383733 | L110: 5.614967257 | U110: -0.3500576269 | AH110: n.d. | AI110: n.d. | AJ110: n.d. | AK110: =IF(OR('[1]REAL(M)'!$CI109="",'[1]REAL(M)'!$CI109=""),"",IF(OR('[1]REAL(M)'!$CI109="n.d.",'[1]REAL(M)'!$CI109="n.d."),"n.d.",'[1]REAL(M)'!$CI109-'[1]REAL(M)'!$CJ109)) -> -0.04011404402 | AL110: -0.02632155828 | AM110: -0.03233184789 | AP110: 60.25580829 | AV110: 105.47 | AW110: 1.35463552 | AX110: n.d. | AY110: n.d. | AZ110: n.d. | BA110: n.d. | BB110: n.d. | BC110: 0 | BD110: =IF(ISERROR(STANDARDIZE($AW110,AVERAGE($AW:$AW),STDEV('Datos mensuales'!$AH:$AH))),"n.d.",STANDARDIZE($AW110,AVERAGE('Datos mensuales'!$AH:$AH),STDEV('Datos mensuales'!$AH:$AH))) -> 1.478718374 | BE110: =IF(ISERROR(STANDARDIZE($AX110,AVERAGE($AX:$AX),STDEV('Datos mensuales'!$AH:$AH))),"n.d.",STANDARDIZE($AX110,AVERAGE('Datos mensuales'!$AH:$AH),STDEV('Datos mensuales'!$AH:$AH))) -> n.d. | BF110: =IF(ISERROR(STANDARDIZE($AY110,AVERAGE($AY:$AY),STDEV('Datos mensuales'!$AH:$AH))),"n.d.",STANDARDIZE($AY110,AVERAGE('Datos mensuales'!$AH:$AH),STDEV('Datos mensuales'!$AH:$AH))) -> n.d. | BG110: =IF(ISERROR(STANDARDIZE($AZ110,AVERAGE($AZ:$AZ),STDEV('Datos mensuales'!$AH:$AH))),"n.d.",STANDARDIZE($AZ110,AVERAGE('Datos mensuales'!$AH:$AH),STDEV('Datos mensuales'!$AH:$AH))) -> n.d. | BH110: =IF(ISERROR(STANDARDIZE($BA110,AVERAGE($BA:$BA),STDEV('Datos mensuales'!$AH:$AH))),"n.d.",STANDARDIZE($BA110,AVERAGE('Datos mensuales'!$AH:$AH),STDEV('Datos mensuales'!$AH:$AH))) -> n.d. | BI110: =IF(ISERROR(STANDARDIZE($BB110,AVERAGE($BB:$BB),STDEV('Datos mensuales'!$AH:$AH))),"n.d.",STANDARDIZE($BB110,AVERAGE('Datos mensuales'!$AH:$AH),STDEV('Datos mensuales'!$AH:$AH))) -> n.d. | BJ110: =IF(ISERROR(STANDARDIZE($BC110,AVERAGE($BC:$BC),STDEV('Datos mensuales'!$AH:$AH))),"n.d.",STANDARDIZE($BC110,AVERAGE('Datos mensuales'!$AH:$AH),STDEV('Datos mensuales'!$AH:$AH))) -> 0.004214143666 | BK110: 0.07632769874 | BL110: n.d. | BM110: n.d. | BN110: n.d. | BO110: n.d. | BP110: n.d. | BQ110: 0 | BR110: -0.1965959965 | BS110: n.d. | BT110: n.d. | BU110: n.d. | BV110: n.d. | BW110: n.d. | BX110: n.d.
B111: Nov | C111: 3.407321873 | L111: 5.407148957 | U111: -0.4510618598 | AH111: n.d. | AI111: n.d. | AJ111: n.d. | AK111: =IF(OR('[1]REAL(M)'!$CI110="",'[1]REAL(M)'!$CI110=""),"",IF(OR('[1]REAL(M)'!$CI110="n.d.",'[1]REAL(M)'!$CI110="n.d."),"n.d.",'[1]REAL(M)'!$CI110-'[1]REAL(M)'!$CJ110)) -> -0.1730672923 | AL111: -0.1084401451 | AM111: -0.08211858681 | AP111: 60.47189245 | AV111: 106.34 | AW111: 1.393862851 | AX111: n.d. | AY111: n.d. | AZ111: n.d. | BA111: n.d. | BB111: n.d. | BC111: 0 | BD111: =IF(ISERROR(STANDARDIZE($AW111,AVERAGE($AW:$AW),STDEV('Datos mensuales'!$AH:$AH))),"n.d.",STANDARDIZE($AW111,AVERAGE('Datos mensuales'!$AH:$AH),STDEV('Datos mensuales'!$AH:$AH))) -> 1.521416846 | BE111: =IF(ISERROR(STANDARDIZE($AX111,AVERAGE($AX:$AX),STDEV('Datos mensuales'!$AH:$AH))),"n.d.",STANDARDIZE($AX111,AVERAGE('Datos mensuales'!$AH:$AH),STDEV('Datos mensuales'!$AH:$AH))) -> n.d. | BF111: =IF(ISERROR(STANDARDIZE($AY111,AVERAGE($AY:$AY),STDEV('Datos mensuales'!$AH:$AH))),"n.d.",STANDARDIZE($AY111,AVERAGE('Datos mensuales'!$AH:$AH),STDEV('Datos mensuales'!$AH:$AH))) -> n.d. | BG111: =IF(ISERROR(STANDARDIZE($AZ111,AVERAGE($AZ:$AZ),STDEV('Datos mensuales'!$AH:$AH))),"n.d.",STANDARDIZE($AZ111,AVERAGE('Datos mensuales'!$AH:$AH),STDEV('Datos mensuales'!$AH:$AH))) -> n.d. | BH111: =IF(ISERROR(STANDARDIZE($BA111,AVERAGE($BA:$BA),STDEV('Datos mensuales'!$AH:$AH))),"n.d.",STANDARDIZE($BA111,AVERAGE('Datos mensuales'!$AH:$AH),STDEV('Datos mensuales'!$AH:$AH))) -> n.d. | BI111: =IF(ISERROR(STANDARDIZE($BB111,AVERAGE($BB:$BB),STDEV('Datos mensuales'!$AH:$AH))),"n.d.",STANDARDIZE($BB111,AVERAGE('Datos mensuales'!$AH:$AH),STDEV('Datos mensuales'!$AH:$AH))) -> n.d. | BJ111: =IF(ISERROR(STANDARDIZE($BC111,AVERAGE($BC:$BC),STDEV('Datos mensuales'!$AH:$AH))),"n.d.",STANDARDIZE($BC111,AVERAGE('Datos mensuales'!$AH:$AH),STDEV('Datos mensuales'!$AH:$AH))) -> 0.004214143666 | BK111: 0.04269847162 | BL111: n.d. | BM111: n.d. | BN111: n.d. | BO111: n.d. | BP111: n.d. | BQ111: 0 | BR111: -0.2950328373 | BS111: n.d. | BT111: n.d. | BU111: n.d. | BV111: n.d. | BW111: n.d. | BX111: n.d.
B112: Dic | C112: 2.754939277 | L112: 5.177245999 | U112: -0.652382596 | AH112: n.d. | AI112: n.d. | AJ112: n.d. | AK112: =IF(OR('[1]REAL(M)'!$CI111="",'[1]REAL(M)'!$CI111=""),"",IF(OR('[1]REAL(M)'!$CI111="n.d.",'[1]REAL(M)'!$CI111="n.d."),"n.d.",'[1]REAL(M)'!$CI111-'[1]REAL(M)'!$CJ111)) -> -0.2249460719 | AL112: -0.1404830784 | AM112: -0.03204293328 | AP112: 60.68618825 | AV112: 107.13 | AW112: 1.295398224 | AX112: n.d. | AY112: n.d. | AZ112: n.d. | BA112: n.d. | BB112: n.d. | BC112: 0 | BD112: =IF(ISERROR(STANDARDIZE($AW112,AVERAGE($AW:$AW),STDEV('Datos mensuales'!$AH:$AH))),"n.d.",STANDARDIZE($AW112,AVERAGE('Datos mensuales'!$AH:$AH),STDEV('Datos mensuales'!$AH:$AH))) -> 1.4142393 | BE112: =IF(ISERROR(STANDARDIZE($AX112,AVERAGE($AX:$AX),STDEV('Datos mensuales'!$AH:$AH))),"n.d.",STANDARDIZE($AX112,AVERAGE('Datos mensuales'!$AH:$AH),STDEV('Datos mensuales'!$AH:$AH))) -> n.d. | BF112: =IF(ISERROR(STANDARDIZE($AY112,AVERAGE($AY:$AY),STDEV('Datos mensuales'!$AH:$AH))),"n.d.",STANDARDIZE($AY112,AVERAGE('Datos mensuales'!$AH:$AH),STDEV('Datos mensuales'!$AH:$AH))) -> n.d. | BG112: =IF(ISERROR(STANDARDIZE($AZ112,AVERAGE($AZ:$AZ),STDEV('Datos mensuales'!$AH:$AH))),"n.d.",STANDARDIZE($AZ112,AVERAGE('Datos mensuales'!$AH:$AH),STDEV('Datos mensuales'!$AH:$AH))) -> n.d. | BH112: =IF(ISERROR(STANDARDIZE($BA112,AVERAGE($BA:$BA),STDEV('Datos mensuales'!$AH:$AH))),"n.d.",STANDARDIZE($BA112,AVERAGE('Datos mensuales'!$AH:$AH),STDEV('Datos mensuales'!$AH:$AH))) -> n.d. | BI112: =IF(ISERROR(STANDARDIZE($BB112,AVERAGE($BB:$BB),STDEV('Datos mensuales'!$AH:$AH))),"n.d.",STANDARDIZE($BB112,AVERAGE('Datos mensuales'!$AH:$AH),STDEV('Datos mensuales'!$AH:$AH))) -> n.d. | BJ112: =IF(ISERROR(STANDARDIZE($BC112,AVERAGE($BC:$BC),STDEV('Datos mensuales'!$AH:$AH))),"n.d.",STANDARDIZE($BC112,AVERAGE('Datos mensuales'!$AH:$AH),STDEV('Datos mensuales'!$AH:$AH))) -> 0.004214143666 | BK112: -0.1071775457 | BL112: n.d. | BM112: n.d. | BN112: n.d. | BO112: n.d. | BP112: n.d. | BQ112: 0 | BR112: -0.4249531414 | BS112: n.d. | BT112: n.d. | BU112: n.d. | BV112: n.d. | BW112: n.d. | BX112: n.d.
A113: 1999 | B113: Ene | C113: 2.471505587 | I113: 12.25626741 | L113: 2.471505587 | R113: 12.25626741 | U113: -0.2834336899 | AH113: n.d. | AI113: n.d. | AJ113: n.d. | AK113: =IF(OR('[1]REAL(M)'!$CI112="",'[1]REAL(M)'!$CI112=""),"",IF(OR('[1]REAL(M)'!$CI112="n.d.",'[1]REAL(M)'!$CI112="n.d."),"n.d.",'[1]REAL(M)'!$CI112-'[1]REAL(M)'!$CJ112)) -> -0.1247487909 | AL113: -0.07859621793 | AM113: 0.06188686044 | AP113: 60.89840048 | AV113: 116.87 | AW113: 1.175647386 | AX113: n.d. | AY113: n.d. | AZ113: n.d. | BA113: n.d. | BB113: n.d. | BC113: 0 | BD113: =IF(ISERROR(STANDARDIZE($AW113,AVERAGE($AW:$AW),STDEV('Datos mensuales'!$AH:$AH))),"n.d.",STANDARDIZE($AW113,AVERAGE('Datos mensuales'!$AH:$AH),STDEV('Datos mensuales'!$AH:$AH))) -> 1.283891975 | BE113: =IF(ISERROR(STANDARDIZE($AX113,AVERAGE($AX:$AX),STDEV('Datos mensuales'!$AH:$AH))),"n.d.",STANDARDIZE($AX113,AVERAGE('Datos mensuales'!$AH:$AH),STDEV('Datos mensuales'!$AH:$AH))) -> n.d. | BF113: =IF(ISERROR(STANDARDIZE($AY113,AVERAGE($AY:$AY),STDEV('Datos mensuales'!$AH:$AH))),"n.d.",STANDARDIZE($AY113,AVERAGE('Datos mensuales'!$AH:$AH),STDEV('Datos mensuales'!$AH:$AH))) -> n.d. | BG113: =IF(ISERROR(STANDARDIZE($AZ113,AVERAGE($AZ:$AZ),STDEV('Datos mensuales'!$AH:$AH))),"n.d.",STANDARDIZE($AZ113,AVERAGE('Datos mensuales'!$AH:$AH),STDEV('Datos mensuales'!$AH:$AH))) -> n.d. | BH113: =IF(ISERROR(STANDARDIZE($BA113,AVERAGE($BA:$BA),STDEV('Datos mensuales'!$AH:$AH))),"n.d.",STANDARDIZE($BA113,AVERAGE('Datos mensuales'!$AH:$AH),STDEV('Datos mensuales'!$AH:$AH))) -> n.d. | BI113: =IF(ISERROR(STANDARDIZE($BB113,AVERAGE($BB:$BB),STDEV('Datos mensuales'!$AH:$AH))),"n.d.",STANDARDIZE($BB113,AVERAGE('Datos mensuales'!$AH:$AH),STDEV('Datos mensuales'!$AH:$AH))) -> n.d. | BJ113: =IF(ISERROR(STANDARDIZE($BC113,AVERAGE($BC:$BC),STDEV('Datos mensuales'!$AH:$AH))),"n.d.",STANDARDIZE($BC113,AVERAGE('Datos mensuales'!$AH:$AH),STDEV('Datos mensuales'!$AH:$AH))) -> 0.004214143666 | BK113: -0.1303473251 | BL113: n.d. | BM113: n.d. | BN113: n.d. | BO113: n.d. | BP113: n.d. | BQ113: 0 | BR113: -0.4869709343 | BS113: n.d. | BT113: n.d. | BU113: n.d. | BV113: n.d. | BW113: n.d. | BX113: 0
B114: Feb | C114: 2.941267816 | I114: 12.47843588 | L114: 2.706282418 | R114: 12.36747421 | U114: 0.4697622293 | AA114: =IF(OR(I114="",I114="n.d.",I113="",I113="n.d."),"",I114-I113) -> 0.2221684732 | AH114: n.d. | AI114: n.d. | AJ114: n.d. | AK114: =IF(OR('[1]REAL(M)'!$CI113="",'[1]REAL(M)'!$CI113=""),"",IF(OR('[1]REAL(M)'!$CI113="n.d.",'[1]REAL(M)'!$CI113="n.d."),"n.d.",'[1]REAL(M)'!$CI113-'[1]REAL(M)'!$CJ113)) -> 0.005375749564 | AL114: 0.001775217167 | AM114: 0.0803714351 | AP114: 61.10824881 | AV114: 117.36 | AW114: 1.195018241 | AX114: n.d. | AY114: n.d. | AZ114: n.d. | BA114: n.d. | BB114: n.d. | BC114: 0 | BD114: =IF(ISERROR(STANDARDIZE($AW114,AVERAGE($AW:$AW),STDEV('Datos mensuales'!$AH:$AH))),"n.d.",STANDARDIZE($AW114,AVERAGE('Datos mensuales'!$AH:$AH),STDEV('Datos mensuales'!$AH:$AH))) -> 1.304976914 | BE114: =IF(ISERROR(STANDARDIZE($AX114,AVERAGE($AX:$AX),STDEV('Datos mensuales'!$AH:$AH))),"n.d.",STANDARDIZE($AX114,AVERAGE('Datos mensuales'!$AH:$AH),STDEV('Datos mensuales'!$AH:$AH))) -> n.d. | BF114: =IF(ISERROR(STANDARDIZE($AY114,AVERAGE($AY:$AY),STDEV('Datos mensuales'!$AH:$AH))),"n.d.",STANDARDIZE($AY114,AVERAGE('Datos mensuales'!$AH:$AH),STDEV('Datos mensuales'!$AH:$AH))) -> n.d. | BG114: =IF(ISERROR(STANDARDIZE($AZ114,AVERAGE($AZ:$AZ),STDEV('Datos mensuales'!$AH:$AH))),"n.d.",STANDARDIZE($AZ114,AVERAGE('Datos mensuales'!$AH:$AH),STDEV('Datos mensuales'!$AH:$AH))) -> n.d. | BH114: =IF(ISERROR(STANDARDIZE($BA114,AVERAGE($BA:$BA),STDEV('Datos mensuales'!$AH:$AH))),"n.d.",STANDARDIZE($BA114,AVERAGE('Datos mensuales'!$AH:$AH),STDEV('Datos mensuales'!$AH:$AH))) -> n.d. | BI114: =IF(ISERROR(STANDARDIZE($BB114,AVERAGE($BB:$BB),STDEV('Datos mensuales'!$AH:$AH))),"n.d.",STANDARDIZE($BB114,AVERAGE('Datos mensuales'!$AH:$AH),STDEV('Datos mensuales'!$AH:$AH))) -> n.d. | BJ114: =IF(ISERROR(STANDARDIZE($BC114,AVERAGE($BC:$BC),STDEV('Datos mensuales'!$AH:$AH))),"n.d.",STANDARDIZE($BC114,AVERAGE('Datos mensuales'!$AH:$AH),STDEV('Datos mensuales'!$AH:$AH))) -> 0.004214143666 | BK114: 0.02108493873 | BL114: n.d. | BM114: n.d. | BN114: n.d. | BO114: n.d. | BP114: n.d. | BQ114: 0 | BR114: -0.4084938673 | BS114: n.d. | BT114: n.d. | BU114: n.d. | BV114: n.d. | BW114: n.d. | BX114: 0
B115: Mar | C115: 3.465617056 | I115: 12.9050815 | L115: 2.959224478 | R115: 12.54676259 | U115: 0.5243492392 | AA115: 0.426645613 | AH115: n.d. | AI115: n.d. | AJ115: n.d. | AK115: =IF(OR('[1]REAL(M)'!$CI114="",'[1]REAL(M)'!$CI114=""),"",IF(OR('[1]REAL(M)'!$CI114="n.d.",'[1]REAL(M)'!$CI114="n.d."),"n.d.",'[1]REAL(M)'!$CI114-'[1]REAL(M)'!$CJ114)) -> 0.02432973682 | AL115: 0.01348214924 | AM115: 0.01170693208 | AP115: 61.31546548 | AV115: 117.76 | AW115: 1.270065358 | AX115: n.d. | AY115: n.d. | AZ115: n.d. | BA115: n.d. | BB115: n.d. | BC115: 0 | BD115: =IF(ISERROR(STANDARDIZE($AW115,AVERAGE($AW:$AW),STDEV('Datos mensuales'!$AH:$AH))),"n.d.",STANDARDIZE($AW115,AVERAGE('Datos mensuales'!$AH:$AH),STDEV('Datos mensuales'!$AH:$AH))) -> 1.386664785 | BE115: =IF(ISERROR(STANDARDIZE($AX115,AVERAGE($AX:$AX),STDEV('Datos mensuales'!$AH:$AH))),"n.d.",STANDARDIZE($AX115,AVERAGE('Datos mensuales'!$AH:$AH),STDEV('Datos mensuales'!$AH:$AH))) -> n.d. | BF115: =IF(ISERROR(STANDARDIZE($AY115,AVERAGE($AY:$AY),STDEV('Datos mensuales'!$AH:$AH))),"n.d.",STANDARDIZE($AY115,AVERAGE('Datos mensuales'!$AH:$AH),STDEV('Datos mensuales'!$AH:$AH))) -> n.d. | BG115: =IF(ISERROR(STANDARDIZE($AZ115,AVERAGE($AZ:$AZ),STDEV('Datos mensuales'!$AH:$AH))),"n.d.",STANDARDIZE($AZ115,AVERAGE('Datos mensuales'!$AH:$AH),STDEV('Datos mensuales'!$AH:$AH))) -> n.d. | BH115: =IF(ISERROR(STANDARDIZE($BA115,AVERAGE($BA:$BA),STDEV('Datos mensuales'!$AH:$AH))),"n.d.",STANDARDIZE($BA115,AVERAGE('Datos mensuales'!$AH:$AH),STDEV('Datos mensuales'!$AH:$AH))) -> n.d. | BI115: =IF(ISERROR(STANDARDIZE($BB115,AVERAGE($BB:$BB),STDEV('Datos mensuales'!$AH:$AH))),"n.d.",STANDARDIZE($BB115,AVERAGE('Datos mensuales'!$AH:$AH),STDEV('Datos mensuales'!$AH:$AH))) -> n.d. | BJ115: =IF(ISERROR(STANDARDIZE($BC115,AVERAGE($BC:$BC),STDEV('Datos mensuales'!$AH:$AH))),"n.d.",STANDARDIZE($BC115,AVERAGE('Datos mensuales'!$AH:$AH),STDEV('Datos mensuales'!$AH:$AH))) -> 0.004214143666 | BK115: 0.08168787118 | BL115: n.d. | BM115: n.d. | BN115: n.d. | BO115: n.d. | BP115: n.d. | BQ115: 0 | BR115: -0.2817111474 | BS115: n.d. | BT115: n.d. | BU115: n.d. | BV115: n.d. | BW115: n.d. | BX115: 0
B116: Abr | C116: 3.794728985 | I116: 13.51013741 | L116: 3.168167141 | R116: 12.78729428 | U116: 0.329111929 | AA116: 0.6050559118 | AH116: n.d. | AI116: n.d. | AJ116: n.d. | AK116: =IF(OR('[1]REAL(M)'!$CI115="",'[1]REAL(M)'!$CI115=""),"",IF(OR('[1]REAL(M)'!$CI115="n.d.",'[1]REAL(M)'!$CI115="n.d."),"n.d.",'[1]REAL(M)'!$CI115-'[1]REAL(M)'!$CJ115)) -> 0.001376322925 | AL116: -0.0006950290877 | AM116: -0.01417717833 | AP116: 61.51979608 | AV116: 118.13 | AW116: 1.333567962 | AX116: n.d. | AY116: n.d. | AZ116: n.d. | BA116: n.d. | BB116: n.d. | BC116: 0 | BD116: =IF(ISERROR(STANDARDIZE($AW116,AVERAGE($AW:$AW),STDEV('Datos mensuales'!$AH:$AH))),"n.d.",STANDARDIZE($AW116,AVERAGE('Datos mensuales'!$AH:$AH),STDEV('Datos mensuales'!$AH:$AH))) -> 1.455786595 | BE116: =IF(ISERROR(STANDARDIZE($AX116,AVERAGE($AX:$AX),STDEV('Datos mensuales'!$AH:$AH))),"n.d.",STANDARDIZE($AX116,AVERAGE('Datos mensuales'!$AH:$AH),STDEV('Datos mensuales'!$AH:$AH))) -> n.d. | BF116: =IF(ISERROR(STANDARDIZE($AY116,AVERAGE($AY:$AY),STDEV('Datos mensuales'!$AH:$AH))),"n.d.",STANDARDIZE($AY116,AVERAGE('Datos mensuales'!$AH:$AH),STDEV('Datos mensuales'!$AH:$AH))) -> n.d. | BG116: =IF(ISERROR(STANDARDIZE($AZ116,AVERAGE($AZ:$AZ),STDEV('Datos mensuales'!$AH:$AH))),"n.d.",STANDARDIZE($AZ116,AVERAGE('Datos mensuales'!$AH:$AH),STDEV('Datos mensuales'!$AH:$AH))) -> n.d. | BH116: =IF(ISERROR(STANDARDIZE($BA116,AVERAGE($BA:$BA),STDEV('Datos mensuales'!$AH:$AH))),"n.d.",STANDARDIZE($BA116,AVERAGE('Datos mensuales'!$AH:$AH),STDEV('Datos mensuales'!$AH:$AH))) -> n.d. | BI116: =IF(ISERROR(STANDARDIZE($BB116,AVERAGE($BB:$BB),STDEV('Datos mensuales'!$AH:$AH))),"n.d.",STANDARDIZE($BB116,AVERAGE('Datos mensuales'!$AH:$AH),STDEV('Datos mensuales'!$AH:$AH))) -> n.d. | BJ116: =IF(ISERROR(STANDARDIZE($BC116,AVERAGE($BC:$BC),STDEV('Datos mensuales'!$AH:$AH))),"n.d.",STANDARDIZE($BC116,AVERAGE('Datos mensuales'!$AH:$AH),STDEV('Datos mensuales'!$AH:$AH))) -> 0.004214143666 | BK116: 0.06912181002 | BL116: n.d. | BM116: n.d. | BN116: n.d. | BO116: n.d. | BP116: n.d. | BQ116: 0 | BR116: -0.1743657809 | BS116: n.d. | BT116: n.d. | BU116: n.d. | BV116: n.d. | BW116: n.d. | BX116: 0
B117: May | C117: 4.236741766 | I117: 14.22924901 | L117: 3.381970618 | R117: 13.0746326 | U117: 0.4420127814 | AA117: 0.7191116043 | AH117: n.d. | AI117: n.d. | AJ117: n.d. | AK117: =IF(OR('[1]REAL(M)'!$CI116="",'[1]REAL(M)'!$CI116=""),"",IF(OR('[1]REAL(M)'!$CI116="n.d.",'[1]REAL(M)'!$CI116="n.d."),"n.d.",'[1]REAL(M)'!$CI116-'[1]REAL(M)'!$CJ116)) -> 0.03349328236 | AL117: 0.01914201404 | AM117: 0.01983704313 | AP117: 61.72100662 | AV117: 118.49 | AW117: 1.412605585 | AX117: n.d. | AY117: n.d. | AZ117: n.d. | BA117: n.d. | BB117: n.d. | BC117: 0 | BD117: =IF(ISERROR(STANDARDIZE($AW117,AVERAGE($AW:$AW),STDEV('Datos mensuales'!$AH:$AH))),"n.d.",STANDARDIZE($AW117,AVERAGE('Datos mensuales'!$AH:$AH),STDEV('Datos mensuales'!$AH:$AH))) -> 1.541818082 | BE117: =IF(ISERROR(STANDARDIZE($AX117,AVERAGE($AX:$AX),STDEV('Datos mensuales'!$AH:$AH))),"n.d.",STANDARDIZE($AX117,AVERAGE('Datos mensuales'!$AH:$AH),STDEV('Datos mensuales'!$AH:$AH))) -> n.d. | BF117: =IF(ISERROR(STANDARDIZE($AY117,AVERAGE($AY:$AY),STDEV('Datos mensuales'!$AH:$AH))),"n.d.",STANDARDIZE($AY117,AVERAGE('Datos mensuales'!$AH:$AH),STDEV('Datos mensuales'!$AH:$AH))) -> n.d. | BG117: =IF(ISERROR(STANDARDIZE($AZ117,AVERAGE($AZ:$AZ),STDEV('Datos mensuales'!$AH:$AH))),"n.d.",STANDARDIZE($AZ117,AVERAGE('Datos mensuales'!$AH:$AH),STDEV('Datos mensuales'!$AH:$AH))) -> n.d. | BH117: =IF(ISERROR(STANDARDIZE($BA117,AVERAGE($BA:$BA),STDEV('Datos mensuales'!$AH:$AH))),"n.d.",STANDARDIZE($BA117,AVERAGE('Datos mensuales'!$AH:$AH),STDEV('Datos mensuales'!$AH:$AH))) -> n.d. | BI117: =IF(ISERROR(STANDARDIZE($BB117,AVERAGE($BB:$BB),STDEV('Datos mensuales'!$AH:$AH))),"n.d.",STANDARDIZE($BB117,AVERAGE('Datos mensuales'!$AH:$AH),STDEV('Datos mensuales'!$AH:$AH))) -> n.d. | BJ117: =IF(ISERROR(STANDARDIZE($BC117,AVERAGE($BC:$BC),STDEV('Datos mensuales'!$AH:$AH))),"n.d.",STANDARDIZE($BC117,AVERAGE('Datos mensuales'!$AH:$AH),STDEV('Datos mensuales'!$AH:$AH))) -> 0.004214143666 | BK117: 0.08603148763 | BL117: n.d. | BM117: n.d. | BN117: n.d. | BO117: n.d. | BP117: n.d. | BQ117: 0 | BR117: 0.003355571415 | BS117: n.d. | BT117: n.d. | BU117: n.d. | BV117: n.d. | BW117: n.d. | BX117: 0
B118: Jun | C118: 4.566031896 | I118: 14.73857157 | L118: 3.579473056 | R118: 13.35053364 | U118: 0.3292901301 | AA118: 0.5093225548 | AH118: n.d. | AI118: n.d. | AJ118: n.d. | AK118: =IF(OR('[1]REAL(M)'!$CI117="",'[1]REAL(M)'!$CI117=""),"",IF(OR('[1]REAL(M)'!$CI117="n.d.",'[1]REAL(M)'!$CI117="n.d."),"n.d.",'[1]REAL(M)'!$CI117-'[1]REAL(M)'!$CJ117)) -> 0.04785265146 | AL118: 0.02801107977 | AM118: 0.00886906573 | AP118: 61.91889372 | AV118: 118.72 | AW118: 1.449105907 | AX118: n.d. | AY118: n.d. | AZ118: n.d. | BA118: n.d. | BB118: n.d. | BC118: 0 | BD118: =IF(ISERROR(STANDARDIZE($AW118,AVERAGE($AW:$AW),STDEV('Datos mensuales'!$AH:$AH))),"n.d.",STANDARDIZE($AW118,AVERAGE('Datos mensuales'!$AH:$AH),STDEV('Datos mensuales'!$AH:$AH))) -> 1.581548237 | BE118: =IF(ISERROR(STANDARDIZE($AX118,AVERAGE($AX:$AX),STDEV('Datos mensuales'!$AH:$AH))),"n.d.",STANDARDIZE($AX118,AVERAGE('Datos mensuales'!$AH:$AH),STDEV('Datos mensuales'!$AH:$AH))) -> n.d. | BF118: =IF(ISERROR(STANDARDIZE($AY118,AVERAGE($AY:$AY),STDEV('Datos mensuales'!$AH:$AH))),"n.d.",STANDARDIZE($AY118,AVERAGE('Datos mensuales'!$AH:$AH),STDEV('Datos mensuales'!$AH:$AH))) -> n.d. | BG118: =IF(ISERROR(STANDARDIZE($AZ118,AVERAGE($AZ:$AZ),STDEV('Datos mensuales'!$AH:$AH))),"n.d.",STANDARDIZE($AZ118,AVERAGE('Datos mensuales'!$AH:$AH),STDEV('Datos mensuales'!$AH:$AH))) -> n.d. | BH118: =IF(ISERROR(STANDARDIZE($BA118,AVERAGE($BA:$BA),STDEV('Datos mensuales'!$AH:$AH))),"n.d.",STANDARDIZE($BA118,AVERAGE('Datos mensuales'!$AH:$AH),STDEV('Datos mensuales'!$AH:$AH))) -> n.d. | BI118: =IF(ISERROR(STANDARDIZE($BB118,AVERAGE($BB:$BB),STDEV('Datos mensuales'!$AH:$AH))),"n.d.",STANDARDIZE($BB118,AVERAGE('Datos mensuales'!$AH:$AH),STDEV('Datos mensuales'!$AH:$AH))) -> n.d. | BJ118: =IF(ISERROR(STANDARDIZE($BC118,AVERAGE($BC:$BC),STDEV('Datos mensuales'!$AH:$AH))),"n.d.",STANDARDIZE($BC118,AVERAGE('Datos mensuales'!$AH:$AH),STDEV('Datos mensuales'!$AH:$AH))) -> 0.004214143666 | BK118: 0.03973015488 | BL118: n.d. | BM118: n.d. | BN118: n.d. | BO118: n.d. | BP118: n.d. | BQ118: 0 | BR118: 0.186219821 | BS118: n.d. | BT118: n.d. | BU118: n.d. | BV118: n.d. | BW118: n.d. | BX118: 0
B119: Jul | C119: 4.572667818 | I119: 14.7382654 | L119: 3.721777211 | R119: 13.54802353 | U119: 0.00663592205 | AA119: -0.0003061619632 | AH119: n.d. | AI119: n.d. | AJ119: n.d. | AK119: =IF(OR('[1]REAL(M)'!$CI118="",'[1]REAL(M)'!$CI118=""),"",IF(OR('[1]REAL(M)'!$CI118="n.d.",'[1]REAL(M)'!$CI118="n.d."),"n.d.",'[1]REAL(M)'!$CI118-'[1]REAL(M)'!$CJ118)) -> 0.1572279767 | AL119: 0.09556676011 | AM119: 0.06755568034 | AP119: 62.1132914 | AV119: 118.8 | AW119: 1.426111569 | AX119: n.d. | AY119: n.d. | AZ119: n.d. | BA119: n.d. | BB119: n.d. | BC119: 0 | BD119: =IF(ISERROR(STANDARDIZE($AW119,AVERAGE($AW:$AW),STDEV('Datos mensuales'!$AH:$AH))),"n.d.",STANDARDIZE($AW119,AVERAGE('Datos mensuales'!$AH:$AH),STDEV('Datos mensuales'!$AH:$AH))) -> 1.556519181 | BE119: =IF(ISERROR(STANDARDIZE($AX119,AVERAGE($AX:$AX),STDEV('Datos mensuales'!$AH:$AH))),"n.d.",STANDARDIZE($AX119,AVERAGE('Datos mensuales'!$AH:$AH),STDEV('Datos mensuales'!$AH:$AH))) -> n.d. | BF119: =IF(ISERROR(STANDARDIZE($AY119,AVERAGE($AY:$AY),STDEV('Datos mensuales'!$AH:$AH))),"n.d.",STANDARDIZE($AY119,AVERAGE('Datos mensuales'!$AH:$AH),STDEV('Datos mensuales'!$AH:$AH))) -> n.d. | BG119: =IF(ISERROR(STANDARDIZE($AZ119,AVERAGE($AZ:$AZ),STDEV('Datos mensuales'!$AH:$AH))),"n.d.",STANDARDIZE($AZ119,AVERAGE('Datos mensuales'!$AH:$AH),STDEV('Datos mensuales'!$AH:$AH))) -> n.d. | BH119: =IF(ISERROR(STANDARDIZE($BA119,AVERAGE($BA:$BA),STDEV('Datos mensuales'!$AH:$AH))),"n.d.",STANDARDIZE($BA119,AVERAGE('Datos mensuales'!$AH:$AH),STDEV('Datos mensuales'!$AH:$AH))) -> n.d. | BI119: =IF(ISERROR(STANDARDIZE($BB119,AVERAGE($BB:$BB),STDEV('Datos mensuales'!$AH:$AH))),"n.d.",STANDARDIZE($BB119,AVERAGE('Datos mensuales'!$AH:$AH),STDEV('Datos mensuales'!$AH:$AH))) -> n.d. | BJ119: =IF(ISERROR(STANDARDIZE($BC119,AVERAGE($BC:$BC),STDEV('Datos mensuales'!$AH:$AH))),"n.d.",STANDARDIZE($BC119,AVERAGE('Datos mensuales'!$AH:$AH),STDEV('Datos mensuales'!$AH:$AH))) -> 0.004214143666 | BK119: -0.0250290562 | BL119: n.d. | BM119: n.d. | BN119: n.d. | BO119: n.d. | BP119: n.d. | BQ119: 0 | BR119: 0.2275739491 | BS119: n.d. | BT119: n.d. | BU119: n.d. | BV119: n.d. | BW119: n.d. | BX119: 0
B120: Ago | C120: 4.384432774 | I120: 14.18542027 | L120: 3.805149475 | R120: 13.62772687 | U120: -0.1882350437 | AA120: -0.5528451315 | AH120: n.d. | AI120: n.d. | AJ120: n.d. | AK120: =IF(OR('[1]REAL(M)'!$CI119="",'[1]REAL(M)'!$CI119=""),"",IF(OR('[1]REAL(M)'!$CI119="n.d.",'[1]REAL(M)'!$CI119="n.d."),"n.d.",'[1]REAL(M)'!$CI119-'[1]REAL(M)'!$CJ119)) -> 0.1260617937 | AL120: 0.07631696411 | AM120: -0.019249796 | AP120: 62.30407057 | AV120: 118.73 | AW120: 1.40600223 | AX120: n.d. | AY120: n.d. | AZ120: n.d. | BA120: n.d. | BB120: n.d. | BC120: 0 | BD120: =IF(ISERROR(STANDARDIZE($AW120,AVERAGE($AW:$AW),STDEV('Datos mensuales'!$AH:$AH))),"n.d.",STANDARDIZE($AW120,AVERAGE('Datos mensuales'!$AH:$AH),STDEV('Datos mensuales'!$AH:$AH))) -> 1.534630411 | BE120: =IF(ISERROR(STANDARDIZE($AX120,AVERAGE($AX:$AX),STDEV('Datos mensuales'!$AH:$AH))),"n.d.",STANDARDIZE($AX120,AVERAGE('Datos mensuales'!$AH:$AH),STDEV('Datos mensuales'!$AH:$AH))) -> n.d. | BF120: =IF(ISERROR(STANDARDIZE($AY120,AVERAGE($AY:$AY),STDEV('Datos mensuales'!$AH:$AH))),"n.d.",STANDARDIZE($AY120,AVERAGE('Datos mensuales'!$AH:$AH),STDEV('Datos mensuales'!$AH:$AH))) -> n.d. | BG120: =IF(ISERROR(STANDARDIZE($AZ120,AVERAGE($AZ:$AZ),STDEV('Datos mensuales'!$AH:$AH))),"n.d.",STANDARDIZE($AZ120,AVERAGE('Datos mensuales'!$AH:$AH),STDEV('Datos mensuales'!$AH:$AH))) -> n.d. | BH120: =IF(ISERROR(STANDARDIZE($BA120,AVERAGE($BA:$BA),STDEV('Datos mensuales'!$AH:$AH))),"n.d.",STANDARDIZE($BA120,AVERAGE('Datos mensuales'!$AH:$AH),STDEV('Datos mensuales'!$AH:$AH))) -> n.d. | BI120: =IF(ISERROR(STANDARDIZE($BB120,AVERAGE($BB:$BB),STDEV('Datos mensuales'!$AH:$AH))),"n.d.",STANDARDIZE($BB120,AVERAGE('Datos mensuales'!$AH:$AH),STDEV('Datos mensuales'!$AH:$AH))) -> n.d. | BJ120: =IF(ISERROR(STANDARDIZE($BC120,AVERAGE($BC:$BC),STDEV('Datos mensuales'!$AH:$AH))),"n.d.",STANDARDIZE($BC120,AVERAGE('Datos mensuales'!$AH:$AH),STDEV('Datos mensuales'!$AH:$AH))) -> 0.004214143666 | BK120: -0.0218887702 | BL120: n.d. | BM120: n.d. | BN120: n.d. | BO120: n.d. | BP120: n.d. | BQ120: 0 | BR120: 0.157139345 | BS120: n.d. | BT120: n.d. | BU120: n.d. | BV120: n.d. | BW120: n.d. | BX120: 0
B121: Sep | C121: 4.199166307 | I121: 13.34925944 | L121: 3.849367686 | R121: 13.59659898 | U121: -0.185266468 | AA121: -0.8361608369 | AH121: n.d. | AI121: n.d. | AJ121: n.d. | AK121: =IF(OR('[1]REAL(M)'!$CI120="",'[1]REAL(M)'!$CI120=""),"",IF(OR('[1]REAL(M)'!$CI120="n.d.",'[1]REAL(M)'!$CI120="n.d."),"n.d.",'[1]REAL(M)'!$CI120-'[1]REAL(M)'!$CJ120)) -> 0.07340986381 | AL121: 0.04379649447 | AM121: -0.03252046963 | AP121: 62.49113247 | AV121: 118.62 | AW121: 1.406672551 | AX121: n.d. | AY121: n.d. | AZ121: n.d. | BA121: n.d. | BB121: n.d. | BC121: 0 | BD121: =IF(ISERROR(STANDARDIZE($AW121,AVERAGE($AW:$AW),STDEV('Datos mensuales'!$AH:$AH))),"n.d.",STANDARDIZE($AW121,AVERAGE('Datos mensuales'!$AH:$AH),STDEV('Datos mensuales'!$AH:$AH))) -> 1.535360048 | BE121: =IF(ISERROR(STANDARDIZE($AX121,AVERAGE($AX:$AX),STDEV('Datos mensuales'!$AH:$AH))),"n.d.",STANDARDIZE($AX121,AVERAGE('Datos mensuales'!$AH:$AH),STDEV('Datos mensuales'!$AH:$AH))) -> n.d. | BF121: =IF(ISERROR(STANDARDIZE($AY121,AVERAGE($AY:$AY),STDEV('Datos mensuales'!$AH:$AH))),"n.d.",STANDARDIZE($AY121,AVERAGE('Datos mensuales'!$AH:$AH),STDEV('Datos mensuales'!$AH:$AH))) -> n.d. | BG121: =IF(ISERROR(STANDARDIZE($AZ121,AVERAGE($AZ:$AZ),STDEV('Datos mensuales'!$AH:$AH))),"n.d.",STANDARDIZE($AZ121,AVERAGE('Datos mensuales'!$AH:$AH),STDEV('Datos mensuales'!$AH:$AH))) -> n.d. | BH121: =IF(ISERROR(STANDARDIZE($BA121,AVERAGE($BA:$BA),STDEV('Datos mensuales'!$AH:$AH))),"n.d.",STANDARDIZE($BA121,AVERAGE('Datos mensuales'!$AH:$AH),STDEV('Datos mensuales'!$AH:$AH))) -> n.d. | BI121: =IF(ISERROR(STANDARDIZE($BB121,AVERAGE($BB:$BB),STDEV('Datos mensuales'!$AH:$AH))),"n.d.",STANDARDIZE($BB121,AVERAGE('Datos mensuales'!$AH:$AH),STDEV('Datos mensuales'!$AH:$AH))) -> n.d. | BJ121: =IF(ISERROR(STANDARDIZE($BC121,AVERAGE($BC:$BC),STDEV('Datos mensuales'!$AH:$AH))),"n.d.",STANDARDIZE($BC121,AVERAGE('Datos mensuales'!$AH:$AH),STDEV('Datos mensuales'!$AH:$AH))) -> 0.004214143666 | BK121: 0.0007296365852 | BL121: n.d. | BM121: n.d. | BN121: n.d. | BO121: n.d. | BP121: n.d. | BQ121: 0 | BR121: 0.09481621238 | BS121: n.d. | BT121: n.d. | BU121: n.d. | BV121: n.d. | BW121: n.d. | BX121: 0
B122: Oct | C122: 4.091891186 | I122: 12.45851901 | L122: 3.873941638 | R122: 13.48136628 | U122: -0.1072751204 | AA122: -0.8907404261 | AH122: n.d. | AI122: n.d. | AJ122: n.d. | AK122: =IF(OR('[1]REAL(M)'!$CI121="",'[1]REAL(M)'!$CI121=""),"",IF(OR('[1]REAL(M)'!$CI121="n.d.",'[1]REAL(M)'!$CI121="n.d."),"n.d.",'[1]REAL(M)'!$CI121-'[1]REAL(M)'!$CJ121)) -> 0.5367678084 | AL122: 0.3299895742 | AM122: 0.2861930797 | AP122: 62.67440097 | AV122: 118.61 | AW122: 1.457075161 | AX122: n.d. | AY122: n.d. | AZ122: n.d. | BA122: n.d. | BB122: n.d. | BC122: 0 | BD122: =IF(ISERROR(STANDARDIZE($AW122,AVERAGE($AW:$AW),STDEV('Datos mensuales'!$AH:$AH))),"n.d.",STANDARDIZE($AW122,AVERAGE('Datos mensuales'!$AH:$AH),STDEV('Datos mensuales'!$AH:$AH))) -> 1.590222673 | BE122: =IF(ISERROR(STANDARDIZE($AX122,AVERAGE($AX:$AX),STDEV('Datos mensuales'!$AH:$AH))),"n.d.",STANDARDIZE($AX122,AVERAGE('Datos mensuales'!$AH:$AH),STDEV('Datos mensuales'!$AH:$AH))) -> n.d. | BF122: =IF(ISERROR(STANDARDIZE($AY122,AVERAGE($AY:$AY),STDEV('Datos mensuales'!$AH:$AH))),"n.d.",STANDARDIZE($AY122,AVERAGE('Datos mensuales'!$AH:$AH),STDEV('Datos mensuales'!$AH:$AH))) -> n.d. | BG122: =IF(ISERROR(STANDARDIZE($AZ122,AVERAGE($AZ:$AZ),STDEV('Datos mensuales'!$AH:$AH))),"n.d.",STANDARDIZE($AZ122,AVERAGE('Datos mensuales'!$AH:$AH),STDEV('Datos mensuales'!$AH:$AH))) -> n.d. | BH122: =IF(ISERROR(STANDARDIZE($BA122,AVERAGE($BA:$BA),STDEV('Datos mensuales'!$AH:$AH))),"n.d.",STANDARDIZE($BA122,AVERAGE('Datos mensuales'!$AH:$AH),STDEV('Datos mensuales'!$AH:$AH))) -> n.d. | BI122: =IF(ISERROR(STANDARDIZE($BB122,AVERAGE($BB:$BB),STDEV('Datos mensuales'!$AH:$AH))),"n.d.",STANDARDIZE($BB122,AVERAGE('Datos mensuales'!$AH:$AH),STDEV('Datos mensuales'!$AH:$AH))) -> n.d. | BJ122: =IF(ISERROR(STANDARDIZE($BC122,AVERAGE($BC:$BC),STDEV('Datos mensuales'!$AH:$AH))),"n.d.",STANDARDIZE($BC122,AVERAGE('Datos mensuales'!$AH:$AH),STDEV('Datos mensuales'!$AH:$AH))) -> 0.004214143666 | BK122: 0.0548626252 | BL122: n.d. | BM122: n.d. | BN122: n.d. | BO122: n.d. | BP122: n.d. | BQ122: 0 | BR122: 0.07540604116 | BS122: n.d. | BT122: n.d. | BU122: n.d. | BV122: n.d. | BW122: n.d. | BX122: 0
B123: Nov | C123: 4.046656406 | I123: 11.63249953 | L123: 3.889891803 | R123: 13.31010453 | U123: -0.04523478008 | AA123: -0.8260194803 | AH123: n.d. | AI123: n.d. | AJ123: n.d. | AK123: =IF(OR('[1]REAL(M)'!$CI122="",'[1]REAL(M)'!$CI122=""),"",IF(OR('[1]REAL(M)'!$CI122="n.d.",'[1]REAL(M)'!$CI122="n.d."),"n.d.",'[1]REAL(M)'!$CI122-'[1]REAL(M)'!$CJ122)) -> 1.149686268 | AL123: 0.7085587203 | AM123: 0.3785691462 | AP123: 62.85381862 | AV123: 118.71 | AW123: 1.515431234 | AX123: n.d. | AY123: n.d. | AZ123: n.d. | BA123: n.d. | BB123: n.d. | BC123: 0 | BD123: =IF(ISERROR(STANDARDIZE($AW123,AVERAGE($AW:$AW),STDEV('Datos mensuales'!$AH:$AH))),"n.d.",STANDARDIZE($AW123,AVERAGE('Datos mensuales'!$AH:$AH),STDEV('Datos mensuales'!$AH:$AH))) -> 1.653742547 | BE123: =IF(ISERROR(STANDARDIZE($AX123,AVERAGE($AX:$AX),STDEV('Datos mensuales'!$AH:$AH))),"n.d.",STANDARDIZE($AX123,AVERAGE('Datos mensuales'!$AH:$AH),STDEV('Datos mensuales'!$AH:$AH))) -> n.d. | BF123: =IF(ISERROR(STANDARDIZE($AY123,AVERAGE($AY:$AY),STDEV('Datos mensuales'!$AH:$AH))),"n.d.",STANDARDIZE($AY123,AVERAGE('Datos mensuales'!$AH:$AH),STDEV('Datos mensuales'!$AH:$AH))) -> n.d. | BG123: =IF(ISERROR(STANDARDIZE($AZ123,AVERAGE($AZ:$AZ),STDEV('Datos mensuales'!$AH:$AH))),"n.d.",STANDARDIZE($AZ123,AVERAGE('Datos mensuales'!$AH:$AH),STDEV('Datos mensuales'!$AH:$AH))) -> n.d. | BH123: =IF(ISERROR(STANDARDIZE($BA123,AVERAGE($BA:$BA),STDEV('Datos mensuales'!$AH:$AH))),"n.d.",STANDARDIZE($BA123,AVERAGE('Datos mensuales'!$AH:$AH),STDEV('Datos mensuales'!$AH:$AH))) -> n.d. | BI123: =IF(ISERROR(STANDARDIZE($BB123,AVERAGE($BB:$BB),STDEV('Datos mensuales'!$AH:$AH))),"n.d.",STANDARDIZE($BB123,AVERAGE('Datos mensuales'!$AH:$AH),STDEV('Datos mensuales'!$AH:$AH))) -> n.d. | BJ123: =IF(ISERROR(STANDARDIZE($BC123,AVERAGE($BC:$BC),STDEV('Datos mensuales'!$AH:$AH))),"n.d.",STANDARDIZE($BC123,AVERAGE('Datos mensuales'!$AH:$AH),STDEV('Datos mensuales'!$AH:$AH))) -> 0.004214143666 | BK123: 0.06351987409 | BL123: n.d. | BM123: n.d. | BN123: n.d. | BO123: n.d. | BP123: n.d. | BQ123: 0 | BR123: 0.08697530951 | BS123: n.d. | BT123: n.d. | BU123: n.d. | BV123: n.d. | BW123: n.d. | BX123: 0
B124: Dic | C124: 4.131445395 | I124: 10.98665173 | L124: 3.910348293 | R124: 13.11178922 | U124: 0.08478898901 | AA124: -0.6458477983 | AH124: n.d. | AI124: n.d. | AJ124: n.d. | AK124: =IF(OR('[1]REAL(M)'!$CI123="",'[1]REAL(M)'!$CI123=""),"",IF(OR('[1]REAL(M)'!$CI123="n.d.",'[1]REAL(M)'!$CI123="n.d."),"n.d.",'[1]REAL(M)'!$CI123-'[1]REAL(M)'!$CJ123)) -> 1.420183953 | AL124: 0.875631642 | AM124: 0.1670729217 | AP124: 63.02935056 | AV124: 118.9 | AW124: 1.512971308 | AX124: n.d. | AY124: n.d. | AZ124: n.d. | BA124: n.d. | BB124: n.d. | BC124: 0 | BD124: =IF(ISERROR(STANDARDIZE($AW124,AVERAGE($AW:$AW),STDEV('Datos mensuales'!$AH:$AH))),"n.d.",STANDARDIZE($AW124,AVERAGE('Datos mensuales'!$AH:$AH),STDEV('Datos mensuales'!$AH:$AH))) -> 1.651064947 | BE124: =IF(ISERROR(STANDARDIZE($AX124,AVERAGE($AX:$AX),STDEV('Datos mensuales'!$AH:$AH))),"n.d.",STANDARDIZE($AX124,AVERAGE('Datos mensuales'!$AH:$AH),STDEV('Datos mensuales'!$AH:$AH))) -> n.d. | BF124: =IF(ISERROR(STANDARDIZE($AY124,AVERAGE($AY:$AY),STDEV('Datos mensuales'!$AH:$AH))),"n.d.",STANDARDIZE($AY124,AVERAGE('Datos mensuales'!$AH:$AH),STDEV('Datos mensuales'!$AH:$AH))) -> n.d. | BG124: =IF(ISERROR(STANDARDIZE($AZ124,AVERAGE($AZ:$AZ),STDEV('Datos mensuales'!$AH:$AH))),"n.d.",STANDARDIZE($AZ124,AVERAGE('Datos mensuales'!$AH:$AH),STDEV('Datos mensuales'!$AH:$AH))) -> n.d. | BH124: =IF(ISERROR(STANDARDIZE($BA124,AVERAGE($BA:$BA),STDEV('Datos mensuales'!$AH:$AH))),"n.d.",STANDARDIZE($BA124,AVERAGE('Datos mensuales'!$AH:$AH),STDEV('Datos mensuales'!$AH:$AH))) -> n.d. | BI124: =IF(ISERROR(STANDARDIZE($BB124,AVERAGE($BB:$BB),STDEV('Datos mensuales'!$AH:$AH))),"n.d.",STANDARDIZE($BB124,AVERAGE('Datos mensuales'!$AH:$AH),STDEV('Datos mensuales'!$AH:$AH))) -> n.d. | BJ124: =IF(ISERROR(STANDARDIZE($BC124,AVERAGE($BC:$BC),STDEV('Datos mensuales'!$AH:$AH))),"n.d.",STANDARDIZE($BC124,AVERAGE('Datos mensuales'!$AH:$AH),STDEV('Datos mensuales'!$AH:$AH))) -> 0.004214143666 | BK124: -0.00267760009 | BL124: n.d. | BM124: n.d. | BN124: n.d. | BO124: n.d. | BP124: n.d. | BQ124: 0 | BR124: 0.1674579731 | BS124: n.d. | BT124: n.d. | BU124: n.d. | BV124: n.d. | BW124: n.d. | BX124: 0
A125: 2000 | B125: Ene | C125: 4.18418086 | I125: 2.002224694 | L125: 4.18418086 | R125: 2.002224694 | U125: 0.05273546493 | AA125: -8.984427037 | AH125: n.d. | AI125: n.d. | AJ125: n.d. | AK125: =IF(OR('[1]REAL(M)'!$CI124="",'[1]REAL(M)'!$CI124=""),"",IF(OR('[1]REAL(M)'!$CI124="n.d.",'[1]REAL(M)'!$CI124="n.d."),"n.d.",'[1]REAL(M)'!$CI124-'[1]REAL(M)'!$CJ124)) -> 1.476075361 | AL125: 0.9101529757 | AM125: 0.03452133364 | AP125: 63.20099503 | AS125: 98.01376921 | AV125: 119.21 | AW125: 1.470343268 | AX125: n.d. | AY125: n.d. | AZ125: 2.887164134 | BA125: n.d. | BB125: n.d. | BC125: 0 | BD125: =IF(ISERROR(STANDARDIZE($AW125,AVERAGE($AW:$AW),STDEV('Datos mensuales'!$AH:$AH))),"n.d.",STANDARDIZE($AW125,AVERAGE('Datos mensuales'!$AH:$AH),STDEV('Datos mensuales'!$AH:$AH))) -> 1.604664846 | BE125: =IF(ISERROR(STANDARDIZE($AX125,AVERAGE($AX:$AX),STDEV('Datos mensuales'!$AH:$AH))),"n.d.",STANDARDIZE($AX125,AVERAGE('Datos mensuales'!$AH:$AH),STDEV('Datos mensuales'!$AH:$AH))) -> n.d. | BF125: =IF(ISERROR(STANDARDIZE($AY125,AVERAGE($AY:$AY),STDEV('Datos mensuales'!$AH:$AH))),"n.d.",STANDARDIZE($AY125,AVERAGE('Datos mensuales'!$AH:$AH),STDEV('Datos mensuales'!$AH:$AH))) -> n.d. | BG125: =IF(ISERROR(STANDARDIZE($AZ125,AVERAGE($AZ:$AZ),STDEV('Datos mensuales'!$AH:$AH))),"n.d.",STANDARDIZE($AZ125,AVERAGE('Datos mensuales'!$AH:$AH),STDEV('Datos mensuales'!$AH:$AH))) -> 3.146857067 | BH125: =IF(ISERROR(STANDARDIZE($BA125,AVERAGE($BA:$BA),STDEV('Datos mensuales'!$AH:$AH))),"n.d.",STANDARDIZE($BA125,AVERAGE('Datos mensuales'!$AH:$AH),STDEV('Datos mensuales'!$AH:$AH))) -> n.d. | BI125: =IF(ISERROR(STANDARDIZE($BB125,AVERAGE($BB:$BB),STDEV('Datos mensuales'!$AH:$AH))),"n.d.",STANDARDIZE($BB125,AVERAGE('Datos mensuales'!$AH:$AH),STDEV('Datos mensuales'!$AH:$AH))) -> n.d. | BJ125: =IF(ISERROR(STANDARDIZE($BC125,AVERAGE($BC:$BC),STDEV('Datos mensuales'!$AH:$AH))),"n.d.",STANDARDIZE($BC125,AVERAGE('Datos mensuales'!$AH:$AH),STDEV('Datos mensuales'!$AH:$AH))) -> 0.004214143666 | BK125: -0.04640010118 | BL125: n.d. | BM125: n.d. | BN125: n.d. | BO125: n.d. | BP125: n.d. | BQ125: 0 | BR125: 0.2498441278 | BS125: n.d. | BT125: n.d. | BU125: n.d. | BV125: n.d. | BW125: n.d. | BX125: 0
B126: Feb | C126: 3.990055125 | I126: 1.840490798 | L126: 4.086939112 | R126: 1.921188575 | U126: -0.1941257349 | AA126: -0.1617338966 | AH126: n.d. | AI126: n.d. | AJ126: n.d. | AK126: =IF(OR('[1]REAL(M)'!$CI125="",'[1]REAL(M)'!$CI125=""),"",IF(OR('[1]REAL(M)'!$CI125="n.d.",'[1]REAL(M)'!$CI125="n.d."),"n.d.",'[1]REAL(M)'!$CI125-'[1]REAL(M)'!$CJ125)) -> 1.612480542 | AL126: 0.9944036494 | AM126: 0.08425067376 | AP126: 63.36879821 | AS126: 98.37071218 | AV126: 119.52 | AW126: 1.42040354 | AX126: n.d. | AY126: n.d. | AZ126: 2.312662214 | BA126: n.d. | BB126: n.d. | BC126: 0 | BD126: =IF(ISERROR(STANDARDIZE($AW126,AVERAGE($AW:$AW),STDEV('Datos mensuales'!$AH:$AH))),"n.d.",STANDARDIZE($AW126,AVERAGE('Datos mensuales'!$AH:$AH),STDEV('Datos mensuales'!$AH:$AH))) -> 1.550306061 | BE126: =IF(ISERROR(STANDARDIZE($AX126,AVERAGE($AX:$AX),STDEV('Datos mensuales'!$AH:$AH))),"n.d.",STANDARDIZE($AX126,AVERAGE('Datos mensuales'!$AH:$AH),STDEV('Datos mensuales'!$AH:$AH))) -> n.d. | BF126: =IF(ISERROR(STANDARDIZE($AY126,AVERAGE($AY:$AY),STDEV('Datos mensuales'!$AH:$AH))),"n.d.",STANDARDIZE($AY126,AVERAGE('Datos mensuales'!$AH:$AH),STDEV('Datos mensuales'!$AH:$AH))) -> n.d. | BG126: =IF(ISERROR(STANDARDIZE($AZ126,AVERAGE($AZ:$AZ),STDEV('Datos mensuales'!$AH:$AH))),"n.d.",STANDARDIZE($AZ126,AVERAGE('Datos mensuales'!$AH:$AH),STDEV('Datos mensuales'!$AH:$AH))) -> 2.521518738 | BH126: =IF(ISERROR(STANDARDIZE($BA126,AVERAGE($BA:$BA),STDEV('Datos mensuales'!$AH:$AH))),"n.d.",STANDARDIZE($BA126,AVERAGE('Datos mensuales'!$AH:$AH),STDEV('Datos mensuales'!$AH:$AH))) -> n.d. | BI126: =IF(ISERROR(STANDARDIZE($BB126,AVERAGE($BB:$BB),STDEV('Datos mensuales'!$AH:$AH))),"n.d.",STANDARDIZE($BB126,AVERAGE('Datos mensuales'!$AH:$AH),STDEV('Datos mensuales'!$AH:$AH))) -> n.d. | BJ126: =IF(ISERROR(STANDARDIZE($BC126,AVERAGE($BC:$BC),STDEV('Datos mensuales'!$AH:$AH))),"n.d.",STANDARDIZE($BC126,AVERAGE('Datos mensuales'!$AH:$AH),STDEV('Datos mensuales'!$AH:$AH))) -> 0.004214143666 | BK126: -0.05435878431 | BL126: n.d. | BM126: n.d. | BN126: -0.6253383287 | BO126: n.d. | BP126: n.d. | BQ126: 0 | BR126: 0.1879950098 | BS126: n.d. | BT126: n.d. | BU126: n.d. | BV126: n.d. | BW126: n.d. | BX126: 0
B127: Mar | C127: 3.695405662 | I127: 1.647418478 | L127: 3.95587388 | R127: 1.829597432 | U127: -0.2946494635 | AA127: -0.1930723193 | AH127: n.d. | AI127: n.d. | AJ127: n.d. | AK127: =IF(OR('[1]REAL(M)'!$CI126="",'[1]REAL(M)'!$CI126=""),"",IF(OR('[1]REAL(M)'!$CI126="n.d.",'[1]REAL(M)'!$CI126="n.d."),"n.d.",'[1]REAL(M)'!$CI126-'[1]REAL(M)'!$CJ126)) -> 1.873032574 | AL127: 1.155333637 | AM127: 0.160929988 | AP127: 63.53286941 | AS127: 98.72783267 | AV127: 119.7 | AW127: 1.365450684 | AX127: n.d. | AY127: n.d. | AZ127: 1.746481655 | BA127: n.d. | BB127: n.d. | BC127: 0 | BD127: =IF(ISERROR(STANDARDIZE($AW127,AVERAGE($AW:$AW),STDEV('Datos mensuales'!$AH:$AH))),"n.d.",STANDARDIZE($AW127,AVERAGE('Datos mensuales'!$AH:$AH),STDEV('Datos mensuales'!$AH:$AH))) -> 1.490490548 | BE127: =IF(ISERROR(STANDARDIZE($AX127,AVERAGE($AX:$AX),STDEV('Datos mensuales'!$AH:$AH))),"n.d.",STANDARDIZE($AX127,AVERAGE('Datos mensuales'!$AH:$AH),STDEV('Datos mensuales'!$AH:$AH))) -> n.d. | BF127: =IF(ISERROR(STANDARDIZE($AY127,AVERAGE($AY:$AY),STDEV('Datos mensuales'!$AH:$AH))),"n.d.",STANDARDIZE($AY127,AVERAGE('Datos mensuales'!$AH:$AH),STDEV('Datos mensuales'!$AH:$AH))) -> n.d. | BG127: =IF(ISERROR(STANDARDIZE($AZ127,AVERAGE($AZ:$AZ),STDEV('Datos mensuales'!$AH:$AH))),"n.d.",STANDARDIZE($AZ127,AVERAGE('Datos mensuales'!$AH:$AH),STDEV('Datos mensuales'!$AH:$AH))) -> 1.90523811 | BH127: =IF(ISERROR(STANDARDIZE($BA127,AVERAGE($BA:$BA),STDEV('Datos mensuales'!$AH:$AH))),"n.d.",STANDARDIZE($BA127,AVERAGE('Datos mensuales'!$AH:$AH),STDEV('Datos mensuales'!$AH:$AH))) -> n.d. | BI127: =IF(ISERROR(STANDARDIZE($BB127,AVERAGE($BB:$BB),STDEV('Datos mensuales'!$AH:$AH))),"n.d.",STANDARDIZE($BB127,AVERAGE('Datos mensuales'!$AH:$AH),STDEV('Datos mensuales'!$AH:$AH))) -> n.d. | BJ127: =IF(ISERROR(STANDARDIZE($BC127,AVERAGE($BC:$BC),STDEV('Datos mensuales'!$AH:$AH))),"n.d.",STANDARDIZE($BC127,AVERAGE('Datos mensuales'!$AH:$AH),STDEV('Datos mensuales'!$AH:$AH))) -> 0.004214143666 | BK127: -0.05981551295 | BL127: n.d. | BM127: n.d. | BN127: -0.616280628 | BO127: n.d. | BP127: n.d. | BQ127: 0 | BR127: 0.07487445027 | BS127: n.d. | BT127: n.d. | BU127: n.d. | BV127: n.d. | BW127: n.d. | BX127: 0
B128: Abr | C128: 3.377198377 | I128: 1.379835774 | L128: 3.810280037 | R128: 1.716583 | U128: -0.318207285 | AA128: -0.2675827041 | AH128: n.d. | AI128: n.d. | AJ128: n.d. | AK128: =IF(OR('[1]REAL(M)'!$CI127="",'[1]REAL(M)'!$CI127=""),"",IF(OR('[1]REAL(M)'!$CI127="n.d.",'[1]REAL(M)'!$CI127="n.d."),"n.d.",'[1]REAL(M)'!$CI127-'[1]REAL(M)'!$CJ127)) -> 2.215245785 | AL128: 1.36670166 | AM128: 0.211368023 | AP128: 63.69338815 | AS128: 99.08545258 | AV128: 119.76 | AW128: 1.282658678 | AX128: n.d. | AY128: n.d. | AZ128: 1.198796179 | BA128: n.d. | BB128: n.d. | BC128: 0 | BD128: =IF(ISERROR(STANDARDIZE($AW128,AVERAGE($AW:$AW),STDEV('Datos mensuales'!$AH:$AH))),"n.d.",STANDARDIZE($AW128,AVERAGE('Datos mensuales'!$AH:$AH),STDEV('Datos mensuales'!$AH:$AH))) -> 1.40037246 | BE128: =IF(ISERROR(STANDARDIZE($AX128,AVERAGE($AX:$AX),STDEV('Datos mensuales'!$AH:$AH))),"n.d.",STANDARDIZE($AX128,AVERAGE('Datos mensuales'!$AH:$AH),STDEV('Datos mensuales'!$AH:$AH))) -> n.d. | BF128: =IF(ISERROR(STANDARDIZE($AY128,AVERAGE($AY:$AY),STDEV('Datos mensuales'!$AH:$AH))),"n.d.",STANDARDIZE($AY128,AVERAGE('Datos mensuales'!$AH:$AH),STDEV('Datos mensuales'!$AH:$AH))) -> n.d. | BG128: =IF(ISERROR(STANDARDIZE($AZ128,AVERAGE($AZ:$AZ),STDEV('Datos mensuales'!$AH:$AH))),"n.d.",STANDARDIZE($AZ128,AVERAGE('Datos mensuales'!$AH:$AH),STDEV('Datos mensuales'!$AH:$AH))) -> 1.309089153 | BH128: =IF(ISERROR(STANDARDIZE($BA128,AVERAGE($BA:$BA),STDEV('Datos mensuales'!$AH:$AH))),"n.d.",STANDARDIZE($BA128,AVERAGE('Datos mensuales'!$AH:$AH),STDEV('Datos mensuales'!$AH:$AH))) -> n.d. | BI128: =IF(ISERROR(STANDARDIZE($BB128,AVERAGE($BB:$BB),STDEV('Datos mensuales'!$AH:$AH))),"n.d.",STANDARDIZE($BB128,AVERAGE('Datos mensuales'!$AH:$AH),STDEV('Datos mensuales'!$AH:$AH))) -> n.d. | BJ128: =IF(ISERROR(STANDARDIZE($BC128,AVERAGE($BC:$BC),STDEV('Datos mensuales'!$AH:$AH))),"n.d.",STANDARDIZE($BC128,AVERAGE('Datos mensuales'!$AH:$AH),STDEV('Datos mensuales'!$AH:$AH))) -> 0.004214143666 | BK128: -0.09011808836 | BL128: n.d. | BM128: n.d. | BN128: -0.5961489569 | BO128: n.d. | BP128: n.d. | BQ128: 0 | BR128: -0.03806473772 | BS128: n.d. | BT128: n.d. | BU128: n.d. | BV128: n.d. | BW128: n.d. | BX128: 0
B129: May | C129: 3.059342199 | I129: 1.164655245 | L129: 3.65878796 | R129: 1.605477311 | U129: -0.3178561778 | AA129: -0.215180529 | AH129: n.d. | AI129: n.d. | AJ129: n.d. | AK129: =IF(OR('[1]REAL(M)'!$CI128="",'[1]REAL(M)'!$CI128=""),"",IF(OR('[1]REAL(M)'!$CI128="n.d.",'[1]REAL(M)'!$CI128="n.d."),"n.d.",'[1]REAL(M)'!$CI128-'[1]REAL(M)'!$CJ128)) -> 2.47943224 | AL129: 1.52987645 | AM129: 0.1631747896 | AP129: 63.85060531 | AS129: 99.44400579 | AV129: 119.87 | AW129: 1.21448014 | AX129: n.d. | AY129: n.d. | AZ129: -0.05184333457 | BA129: n.d. | BB129: n.d. | BC129: 0 | BD129: =IF(ISERROR(STANDARDIZE($AW129,AVERAGE($AW:$AW),STDEV('Datos mensuales'!$AH:$AH))),"n.d.",STANDARDIZE($AW129,AVERAGE('Datos mensuales'!$AH:$AH),STDEV('Datos mensuales'!$AH:$AH))) -> 1.326160954 | BE129: =IF(ISERROR(STANDARDIZE($AX129,AVERAGE($AX:$AX),STDEV('Datos mensuales'!$AH:$AH))),"n.d.",STANDARDIZE($AX129,AVERAGE('Datos mensuales'!$AH:$AH),STDEV('Datos mensuales'!$AH:$AH))) -> n.d. | BF129: =IF(ISERROR(STANDARDIZE($AY129,AVERAGE($AY:$AY),STDEV('Datos mensuales'!$AH:$AH))),"n.d.",STANDARDIZE($AY129,AVERAGE('Datos mensuales'!$AH:$AH),STDEV('Datos mensuales'!$AH:$AH))) -> n.d. | BG129: =IF(ISERROR(STANDARDIZE($AZ129,AVERAGE($AZ:$AZ),STDEV('Datos mensuales'!$AH:$AH))),"n.d.",STANDARDIZE($AZ129,AVERAGE('Datos mensuales'!$AH:$AH),STDEV('Datos mensuales'!$AH:$AH))) -> -0.05221669328 | BH129: =IF(ISERROR(STANDARDIZE($BA129,AVERAGE($BA:$BA),STDEV('Datos mensuales'!$AH:$AH))),"n.d.",STANDARDIZE($BA129,AVERAGE('Datos mensuales'!$AH:$AH),STDEV('Datos mensuales'!$AH:$AH))) -> n.d. | BI129: =IF(ISERROR(STANDARDIZE($BB129,AVERAGE($BB:$BB),STDEV('Datos mensuales'!$AH:$AH))),"n.d.",STANDARDIZE($BB129,AVERAGE('Datos mensuales'!$AH:$AH),STDEV('Datos mensuales'!$AH:$AH))) -> n.d. | BJ129: =IF(ISERROR(STANDARDIZE($BC129,AVERAGE($BC:$BC),STDEV('Datos mensuales'!$AH:$AH))),"n.d.",STANDARDIZE($BC129,AVERAGE('Datos mensuales'!$AH:$AH),STDEV('Datos mensuales'!$AH:$AH))) -> 0.004214143666 | BK129: -0.07421150599 | BL129: n.d. | BM129: n.d. | BN129: -1.361305847 | BO129: n.d. | BP129: n.d. | BQ129: 0 | BR129: -0.1398719674 | BS129: n.d. | BT129: n.d. | BU129: n.d. | BV129: n.d. | BW129: n.d. | BX129: 0
B130: Jun | C130: 2.844248091 | I130: 1.238207547 | L130: 3.521627935 | R130: 1.543833854 | U130: -0.2150941075 | AA130: 0.073552302 | AH130: n.d. | AI130: n.d. | AJ130: n.d. | AK130: =IF(OR('[1]REAL(M)'!$CI129="",'[1]REAL(M)'!$CI129=""),"",IF(OR('[1]REAL(M)'!$CI129="n.d.",'[1]REAL(M)'!$CI129="n.d."),"n.d.",'[1]REAL(M)'!$CI129-'[1]REAL(M)'!$CJ129)) -> 2.425483469 | AL130: 1.496554986 | AM130: -0.03332146369 | AP130: 64.00483609 | AS130: 99.80400634 | AV130: 120.19 | AW130: 1.165506663 | AX130: n.d. | AY130: n.d. | AZ130: -0.3852092288 | BA130: n.d. | BB130: n.d. | BC130: 0 | BD130: =IF(ISERROR(STANDARDIZE($AW130,AVERAGE($AW:$AW),STDEV('Datos mensuales'!$AH:$AH))),"n.d.",STANDARDIZE($AW130,AVERAGE('Datos mensuales'!$AH:$AH),STDEV('Datos mensuales'!$AH:$AH))) -> 1.272853921 | BE130: =IF(ISERROR(STANDARDIZE($AX130,AVERAGE($AX:$AX),STDEV('Datos mensuales'!$AH:$AH))),"n.d.",STANDARDIZE($AX130,AVERAGE('Datos mensuales'!$AH:$AH),STDEV('Datos mensuales'!$AH:$AH))) -> n.d. | BF130: =IF(ISERROR(STANDARDIZE($AY130,AVERAGE($AY:$AY),STDEV('Datos mensuales'!$AH:$AH))),"n.d.",STANDARDIZE($AY130,AVERAGE('Datos mensuales'!$AH:$AH),STDEV('Datos mensuales'!$AH:$AH))) -> n.d. | BG130: =IF(ISERROR(STANDARDIZE($AZ130,AVERAGE($AZ:$AZ),STDEV('Datos mensuales'!$AH:$AH))),"n.d.",STANDARDIZE($AZ130,AVERAGE('Datos mensuales'!$AH:$AH),STDEV('Datos mensuales'!$AH:$AH))) -> -0.4150814005 | BH130: =IF(ISERROR(STANDARDIZE($BA130,AVERAGE($BA:$BA),STDEV('Datos mensuales'!$AH:$AH))),"n.d.",STANDARDIZE($BA130,AVERAGE('Datos mensuales'!$AH:$AH),STDEV('Datos mensuales'!$AH:$AH))) -> n.d. | BI130: =IF(ISERROR(STANDARDIZE($BB130,AVERAGE($BB:$BB),STDEV('Datos mensuales'!$AH:$AH))),"n.d.",STANDARDIZE($BB130,AVERAGE('Datos mensuales'!$AH:$AH),STDEV('Datos mensuales'!$AH:$AH))) -> n.d. | BJ130: =IF(ISERROR(STANDARDIZE($BC130,AVERAGE($BC:$BC),STDEV('Datos mensuales'!$AH:$AH))),"n.d.",STANDARDIZE($BC130,AVERAGE('Datos mensuales'!$AH:$AH),STDEV('Datos mensuales'!$AH:$AH))) -> 0.004214143666 | BK130: -0.05330703277 | BL130: n.d. | BM130: n.d. | BN130: -0.3628647072 | BO130: n.d. | BP130: n.d. | BQ130: 0 | BR130: -0.1951848884 | BS130: n.d. | BT130: n.d. | BU130: n.d. | BV130: n.d. | BW130: n.d. | BX130: 0
B131: Jul | C131: 2.697861941 | I131: 1.675084175 | L131: 3.402631141 | R131: 1.562708048 | U131: -0.1463861508 | AA131: 0.4368766279 | AH131: n.d. | AI131: n.d. | AJ131: n.d. | AK131: =IF(OR('[1]REAL(M)'!$CI130="",'[1]REAL(M)'!$CI130=""),"",IF(OR('[1]REAL(M)'!$CI130="n.d.",'[1]REAL(M)'!$CI130="n.d."),"n.d.",'[1]REAL(M)'!$CI130-'[1]REAL(M)'!$CJ130)) -> 2.178713155 | AL131: 1.344137278 | AM131: -0.1524177085 | AP131: 64.15644496 | AS131: 100.1659659 | AV131: 120.79 | AW131: 1.097163382 | AX131: n.d. | AY131: n.d. | AZ131: -0.5269196932 | BA131: n.d. | BB131: n.d. | BC131: 0 | BD131: =IF(ISERROR(STANDARDIZE($AW131,AVERAGE($AW:$AW),STDEV('Datos mensuales'!$AH:$AH))),"n.d.",STANDARDIZE($AW131,AVERAGE('Datos mensuales'!$AH:$AH),STDEV('Datos mensuales'!$AH:$AH))) -> 1.198463095 | BE131: =IF(ISERROR(STANDARDIZE($AX131,AVERAGE($AX:$AX),STDEV('Datos mensuales'!$AH:$AH))),"n.d.",STANDARDIZE($AX131,AVERAGE('Datos mensuales'!$AH:$AH),STDEV('Datos mensuales'!$AH:$AH))) -> n.d. | BF131: =IF(ISERROR(STANDARDIZE($AY131,AVERAGE($AY:$AY),STDEV('Datos mensuales'!$AH:$AH))),"n.d.",STANDARDIZE($AY131,AVERAGE('Datos mensuales'!$AH:$AH),STDEV('Datos mensuales'!$AH:$AH))) -> n.d. | BG131: =IF(ISERROR(STANDARDIZE($AZ131,AVERAGE($AZ:$AZ),STDEV('Datos mensuales'!$AH:$AH))),"n.d.",STANDARDIZE($AZ131,AVERAGE('Datos mensuales'!$AH:$AH),STDEV('Datos mensuales'!$AH:$AH))) -> -0.5693315114 | BH131: =IF(ISERROR(STANDARDIZE($BA131,AVERAGE($BA:$BA),STDEV('Datos mensuales'!$AH:$AH))),"n.d.",STANDARDIZE($BA131,AVERAGE('Datos mensuales'!$AH:$AH),STDEV('Datos mensuales'!$AH:$AH))) -> n.d. | BI131: =IF(ISERROR(STANDARDIZE($BB131,AVERAGE($BB:$BB),STDEV('Datos mensuales'!$AH:$AH))),"n.d.",STANDARDIZE($BB131,AVERAGE('Datos mensuales'!$AH:$AH),STDEV('Datos mensuales'!$AH:$AH))) -> n.d. | BJ131: =IF(ISERROR(STANDARDIZE($BC131,AVERAGE($BC:$BC),STDEV('Datos mensuales'!$AH:$AH))),"n.d.",STANDARDIZE($BC131,AVERAGE('Datos mensuales'!$AH:$AH),STDEV('Datos mensuales'!$AH:$AH))) -> 0.004214143666 | BK131: -0.07439082653 | BL131: n.d. | BM131: n.d. | BN131: -0.1542501109 | BO131: n.d. | BP131: n.d. | BQ131: 0 | BR131: -0.2300364113 | BS131: n.d. | BT131: n.d. | BU131: n.d. | BV131: n.d. | BW131: n.d. | BX131: 0
B132: Ago | C132: 2.490514106 | I132: 2.40882675 | L132: 3.287232379 | R132: 1.669030333 | U132: -0.2073478346 | AA132: 0.7337425747 | AH132: n.d. | AI132: n.d. | AJ132: n.d. | AK132: =IF(OR('[1]REAL(M)'!$CI131="",'[1]REAL(M)'!$CI131=""),"",IF(OR('[1]REAL(M)'!$CI131="n.d.",'[1]REAL(M)'!$CI131="n.d."),"n.d.",'[1]REAL(M)'!$CI131-'[1]REAL(M)'!$CJ131)) -> 2.094962361 | AL132: 1.292408592 | AM132: -0.05172868627 | AP132: 64.30582314 | AS132: 100.530373 | AV132: 121.59 | AW132: 0.9909580093 | AX132: n.d. | AY132: n.d. | AZ132: -0.492062418 | BA132: n.d. | BB132: n.d. | BC132: 0 | BD132: =IF(ISERROR(STANDARDIZE($AW132,AVERAGE($AW:$AW),STDEV('Datos mensuales'!$AH:$AH))),"n.d.",STANDARDIZE($AW132,AVERAGE('Datos mensuales'!$AH:$AH),STDEV('Datos mensuales'!$AH:$AH))) -> 1.082859842 | BE132: =IF(ISERROR(STANDARDIZE($AX132,AVERAGE($AX:$AX),STDEV('Datos mensuales'!$AH:$AH))),"n.d.",STANDARDIZE($AX132,AVERAGE('Datos mensuales'!$AH:$AH),STDEV('Datos mensuales'!$AH:$AH))) -> n.d. | BF132: =IF(ISERROR(STANDARDIZE($AY132,AVERAGE($AY:$AY),STDEV('Datos mensuales'!$AH:$AH))),"n.d.",STANDARDIZE($AY132,AVERAGE('Datos mensuales'!$AH:$AH),STDEV('Datos mensuales'!$AH:$AH))) -> n.d. | BG132: =IF(ISERROR(STANDARDIZE($AZ132,AVERAGE($AZ:$AZ),STDEV('Datos mensuales'!$AH:$AH))),"n.d.",STANDARDIZE($AZ132,AVERAGE('Datos mensuales'!$AH:$AH),STDEV('Datos mensuales'!$AH:$AH))) -> -0.5313897929 | BH132: =IF(ISERROR(STANDARDIZE($BA132,AVERAGE($BA:$BA),STDEV('Datos mensuales'!$AH:$AH))),"n.d.",STANDARDIZE($BA132,AVERAGE('Datos mensuales'!$AH:$AH),STDEV('Datos mensuales'!$AH:$AH))) -> n.d. | BI132: =IF(ISERROR(STANDARDIZE($BB132,AVERAGE($BB:$BB),STDEV('Datos mensuales'!$AH:$AH))),"n.d.",STANDARDIZE($BB132,AVERAGE('Datos mensuales'!$AH:$AH),STDEV('Datos mensuales'!$AH:$AH))) -> n.d. | BJ132: =IF(ISERROR(STANDARDIZE($BC132,AVERAGE($BC:$BC),STDEV('Datos mensuales'!$AH:$AH))),"n.d.",STANDARDIZE($BC132,AVERAGE('Datos mensuales'!$AH:$AH),STDEV('Datos mensuales'!$AH:$AH))) -> 0.004214143666 | BK132: -0.1156032522 | BL132: n.d. | BM132: n.d. | BN132: 0.03794171854 | BO132: n.d. | BP132: n.d. | BQ132: 0 | BR132: -0.2943839541 | BS132: n.d. | BT132: n.d. | BU132: n.d. | BV132: n.d. | BW132: n.d. | BX132: 0
B133: Sep | C133: 2.222618398 | I133: 3.127634463 | L133: 3.167354529 | R133: 1.83172227 | U133: -0.2678957084 | AA133: 0.7188077132 | AC133: =IF(OR(K133="",K133="n.d.",K132="",K132="n.d."),"",K133-K132) ->  | AH133: n.d. | AI133: =IF(ISERROR(STANDARDIZE($AH133,AVERAGE($AH:$AH),STDEV($AH:$AH))),"n.d.",STANDARDIZE($AH133,AVERAGE($AH:$AH),STDEV($AH:$AH))) -> n.d. | AJ133: =IF(OR(AI133="",AI132=""),"",IF(OR(AI133="n.d.",AI132="n.d."),"n.d.",((AI133/AI132)-1))) -> n.d. | AK133: =IF(OR('[1]REAL(M)'!$CI132="",'[1]REAL(M)'!$CI132=""),"",IF(OR('[1]REAL(M)'!$CI132="n.d.",'[1]REAL(M)'!$CI132="n.d."),"n.d.",'[1]REAL(M)'!$CI132-'[1]REAL(M)'!$CJ132)) -> 2.142087302 | AL133: =IF(ISERROR(STANDARDIZE($AK133,AVERAGE($AK:$AK),STDEV($AK:$AK))),"n.d.",STANDARDIZE($AK133,AVERAGE($AK:$AK),STDEV($AK:$AK))) -> 1.321515316 | AM133: 0.02910672462 | AP133: 64.45336002 | AS133: 100.8976837 | AV133: 122.33 | AW133: 0.8646493704 | AX133: n.d. | AY133: n.d. | AZ133: -0.3383064098 | BA133: n.d. | BB133: n.d. | BC133: 0 | BD133: =IF(ISERROR(STANDARDIZE($AW133,AVERAGE($AW:$AW),STDEV('Datos mensuales'!$AH:$AH))),"n.d.",STANDARDIZE($AW133,AVERAGE('Datos mensuales'!$AH:$AH),STDEV('Datos mensuales'!$AH:$AH))) -> 0.9453744305 | BE133: =IF(ISERROR(STANDARDIZE($AX133,AVERAGE($AX:$AX),STDEV('Datos mensuales'!$AH:$AH))),"n.d.",STANDARDIZE($AX133,AVERAGE('Datos mensuales'!$AH:$AH),STDEV('Datos mensuales'!$AH:$AH))) -> n.d. | BF133: =IF(ISERROR(STANDARDIZE($AY133,AVERAGE($AY:$AY),STDEV('Datos mensuales'!$AH:$AH))),"n.d.",STANDARDIZE($AY133,AVERAGE('Datos mensuales'!$AH:$AH),STDEV('Datos mensuales'!$AH:$AH))) -> n.d. | BG133: =IF(ISERROR(STANDARDIZE($AZ133,AVERAGE($AZ:$AZ),STDEV('Datos mensuales'!$AH:$AH))),"n.d.",STANDARDIZE($AZ133,AVERAGE('Datos mensuales'!$AH:$AH),STDEV('Datos mensuales'!$AH:$AH))) -> -0.3640282544 | BH133: =IF(ISERROR(STANDARDIZE($BA133,AVERAGE($BA:$BA),STDEV('Datos mensuales'!$AH:$AH))),"n.d.",STANDARDIZE($BA133,AVERAGE('Datos mensuales'!$AH:$AH),STDEV('Datos mensuales'!$AH:$AH))) -> n.d. | BI133: =IF(ISERROR(STANDARDIZE($BB133,AVERAGE($BB:$BB),STDEV('Datos mensuales'!$AH:$AH))),"n.d.",STANDARDIZE($BB133,AVERAGE('Datos mensuales'!$AH:$AH),STDEV('Datos mensuales'!$AH:$AH))) -> n.d. | BJ133: =IF(ISERROR(STANDARDIZE($BC133,AVERAGE($BC:$BC),STDEV('Datos mensuales'!$AH:$AH))),"n.d.",STANDARDIZE($BC133,AVERAGE('Datos mensuales'!$AH:$AH),STDEV('Datos mensuales'!$AH:$AH))) -> 0.004214143666 | BK133: -0.1374854119 | BL133: n.d. | BM133: n.d. | BN133: 0.1673615384 | BO133: n.d. | BP133: n.d. | BQ133: 0 | BR133: -0.3842653181 | BS133: n.d. | BT133: n.d. | BU133: n.d. | BV133: n.d. | BW133: n.d. | BX133: 0
B134: Oct | C134: 2.032465863 | I134: 3.498861816 | L134: 3.052119444 | R134: 1.999001768 | U134: -0.1901525342 | AA134: 0.371227353 | AH134: n.d. | AI134: n.d. | AJ134: n.d. | AK134: =IF(OR('[1]REAL(M)'!$CI133="",'[1]REAL(M)'!$CI133=""),"",IF(OR('[1]REAL(M)'!$CI133="n.d.",'[1]REAL(M)'!$CI133="n.d."),"n.d.",'[1]REAL(M)'!$CI133-'[1]REAL(M)'!$CJ133)) -> 2.0436396 | AL134: 1.260709083 | AM134: =IF(OR(AL134="",AL133=""),"",IF(OR(AL134="n.d.",AL133="n.d."),"n.d.",AL134-AL133)) -> -0.06080623304 | AP134: 64.59941888 | AS134: 101.2683243 | AV134: 122.76 | AW134: 0.8355076107 | AX134: n.d. | AY134: n.d. | AZ134: -0.1125630889 | BA134: n.d. | BB134: n.d. | BC134: 0 | BD134: =IF(ISERROR(STANDARDIZE($AW134,AVERAGE($AW:$AW),STDEV('Datos mensuales'!$AH:$AH))),"n.d.",STANDARDIZE($AW134,AVERAGE('Datos mensuales'!$AH:$AH),STDEV('Datos mensuales'!$AH:$AH))) -> 0.9136539808 | BE134: =IF(ISERROR(STANDARDIZE($AX134,AVERAGE($AX:$AX),STDEV('Datos mensuales'!$AH:$AH))),"n.d.",STANDARDIZE($AX134,AVERAGE('Datos mensuales'!$AH:$AH),STDEV('Datos mensuales'!$AH:$AH))) -> n.d. | BF134: =IF(ISERROR(STANDARDIZE($AY134,AVERAGE($AY:$AY),STDEV('Datos mensuales'!$AH:$AH))),"n.d.",STANDARDIZE($AY134,AVERAGE('Datos mensuales'!$AH:$AH),STDEV('Datos mensuales'!$AH:$AH))) -> n.d. | BG134: =IF(ISERROR(STANDARDIZE($AZ134,AVERAGE($AZ:$AZ),STDEV('Datos mensuales'!$AH:$AH))),"n.d.",STANDARDIZE($AZ134,AVERAGE('Datos mensuales'!$AH:$AH),STDEV('Datos mensuales'!$AH:$AH))) -> -0.1183094047 | BH134: =IF(ISERROR(STANDARDIZE($BA134,AVERAGE($BA:$BA),STDEV('Datos mensuales'!$AH:$AH))),"n.d.",STANDARDIZE($BA134,AVERAGE('Datos mensuales'!$AH:$AH),STDEV('Datos mensuales'!$AH:$AH))) -> n.d. | BI134: =IF(ISERROR(STANDARDIZE($BB134,AVERAGE($BB:$BB),STDEV('Datos mensuales'!$AH:$AH))),"n.d.",STANDARDIZE($BB134,AVERAGE('Datos mensuales'!$AH:$AH),STDEV('Datos mensuales'!$AH:$AH))) -> n.d. | BJ134: =IF(ISERROR(STANDARDIZE($BC134,AVERAGE($BC:$BC),STDEV('Datos mensuales'!$AH:$AH))),"n.d.",STANDARDIZE($BC134,AVERAGE('Datos mensuales'!$AH:$AH),STDEV('Datos mensuales'!$AH:$AH))) -> 0.004214143666 | BK134: -0.03172044974 | BL134: n.d. | BM134: n.d. | BN134: 0.2457188497 | BO134: n.d. | BP134: n.d. | BQ134: 0 | BR134: -0.4254553174 | BS134: n.d. | BT134: n.d. | BU134: n.d. | BV134: n.d. | BW134: n.d. | BX134: 0
B135: Nov | C135: 2.037618122 | I135: 3.428523292 | L135: 2.958289134 | R135: 2.129458795 | U135: =IF(OR(C135="",C135="n.d.",C134="",C134="n.d."),"",C135-C134) -> 0.005152258752 | V135: =IF(OR(D135="",D135="n.d.",D134="",D134="n.d."),"",D135-D134) ->  | W135: =IF(OR(E135="",E135="n.d.",E134="",E134="n.d."),"",E135-E134) ->  | X135: =IF(OR(F135="",F135="n.d.",F134="",F134="n.d."),"",F135-F134) ->  | Y135: =IF(OR(G135="",G135="n.d.",G134="",G134="n.d."),"",G135-G134) ->  | Z135: =IF(OR(H135="",H135="n.d.",H134="",H134="n.d."),"",H135-H134) ->  | AA135: -0.07033852398 | AH135: n.d. | AI135: n.d. | AJ135: n.d. | AK135: =IF(OR('[1]REAL(M)'!$CI134="",'[1]REAL(M)'!$CI134=""),"",IF(OR('[1]REAL(M)'!$CI134="n.d.",'[1]REAL(M)'!$CI134="n.d."),"n.d.",'[1]REAL(M)'!$CI134-'[1]REAL(M)'!$CJ134)) -> 1.864195548 | AL135: 1.149875447 | AM135: -0.1108336361 | AP135: 64.74432458 | AS135: 101.6427024 | AV135: 122.78 | AW135: 0.9365247734 | AX135: n.d. | AY135: n.d. | AZ135: 0.1718708661 | BA135: n.d. | BB135: n.d. | BC135: 0 | BD135: =IF(ISERROR(STANDARDIZE($AW135,AVERAGE($AW:$AW),STDEV('Datos mensuales'!$AH:$AH))),"n.d.",STANDARDIZE($AW135,AVERAGE('Datos mensuales'!$AH:$AH),STDEV('Datos mensuales'!$AH:$AH))) -> 1.02360993 | BE135: =IF(ISERROR(STANDARDIZE($AX135,AVERAGE($AX:$AX),STDEV('Datos mensuales'!$AH:$AH))),"n.d.",STANDARDIZE($AX135,AVERAGE('Datos mensuales'!$AH:$AH),STDEV('Datos mensuales'!$AH:$AH))) -> n.d. | BF135: =IF(ISERROR(STANDARDIZE($AY135,AVERAGE($AY:$AY),STDEV('Datos mensuales'!$AH:$AH))),"n.d.",STANDARDIZE($AY135,AVERAGE('Datos mensuales'!$AH:$AH),STDEV('Datos mensuales'!$AH:$AH))) -> n.d. | BG135: =IF(ISERROR(STANDARDIZE($AZ135,AVERAGE($AZ:$AZ),STDEV('Datos mensuales'!$AH:$AH))),"n.d.",STANDARDIZE($AZ135,AVERAGE('Datos mensuales'!$AH:$AH),STDEV('Datos mensuales'!$AH:$AH))) -> 0.1912934838 | BH135: =IF(ISERROR(STANDARDIZE($BA135,AVERAGE($BA:$BA),STDEV('Datos mensuales'!$AH:$AH))),"n.d.",STANDARDIZE($BA135,AVERAGE('Datos mensuales'!$AH:$AH),STDEV('Datos mensuales'!$AH:$AH))) -> n.d. | BI135: =IF(ISERROR(STANDARDIZE($BB135,AVERAGE($BB:$BB),STDEV('Datos mensuales'!$AH:$AH))),"n.d.",STANDARDIZE($BB135,AVERAGE('Datos mensuales'!$AH:$AH),STDEV('Datos mensuales'!$AH:$AH))) -> n.d. | BJ135: =IF(ISERROR(STANDARDIZE($BC135,AVERAGE($BC:$BC),STDEV('Datos mensuales'!$AH:$AH))),"n.d.",STANDARDIZE($BC135,AVERAGE('Datos mensuales'!$AH:$AH),STDEV('Datos mensuales'!$AH:$AH))) -> 0.004214143666 | BK135: =IF(OR(BD135="",BD134=""),"",IF(OR(BD135="n.d.",BD134="n.d."),"n.d.",BD135-BD134)) -> 0.1099559487 | BL135: =IF(OR(BE135="",BE134=""),"",IF(OR(BE135="n.d.",BE134="n.d."),"n.d.",BE135-BE134)) -> n.d. | BM135: =IF(OR(BF135="",BF134=""),"",IF(OR(BF135="n.d.",BF134="n.d."),"n.d.",BF135-BF134)) -> n.d. | BN135: =IF(OR(BG135="",BG134=""),"",IF(OR(BG135="n.d.",BG134="n.d."),"n.d.",BG135-BG134)) -> 0.3096028885 | BO135: =IF(OR(BH135="",BH134=""),"",IF(OR(BH135="n.d.",BH134="n.d."),"n.d.",BH135-BH134)) -> n.d. | BP135: =IF(OR(BI135="",BI134=""),"",IF(OR(BI135="n.d.",BI134="n.d."),"n.d.",BI135-BI134)) -> n.d. | BQ135: =IF(OR(BJ135="",BJ134=""),"",IF(OR(BJ135="n.d.",BJ134="n.d."),"n.d.",BJ135-BJ134)) -> 0 | BR135: -0.3810342901 | BS135: n.d. | BT135: n.d. | BU135: n.d. | BV135: n.d. | BW135: n.d. | BX135: 0
B136: Dic | C136: 2.208267318 | I136: 3.036164844 | L136: 2.89463676 | R136: 2.205395506 | U136: 0.1706491957 | AA136: -0.3923584476 | AH136: n.d. | AI136: n.d. | AJ136: n.d. | AK136: =IF(OR('[1]REAL(M)'!$CI135="",'[1]REAL(M)'!$CI135=""),"",IF(OR('[1]REAL(M)'!$CI135="n.d.",'[1]REAL(M)'!$CI135="n.d."),"n.d.",'[1]REAL(M)'!$CI135-'[1]REAL(M)'!$CJ135)) -> 1.613248409 | AL136: 0.9948779222 | AM136: -0.1549975248 | AP136: 64.88836451 | AS136: 102.0212133 | AV136: 122.51 | AW136: 1.079224361 | AX136: n.d. | AY136: n.d. | AZ136: 0.4770365571 | BA136: n.d. | BB136: n.d. | BC136: 0 | BD136: =IF(ISERROR(STANDARDIZE($AW136,AVERAGE($AW:$AW),STDEV('Datos mensuales'!$AH:$AH))),"n.d.",STANDARDIZE($AW136,AVERAGE('Datos mensuales'!$AH:$AH),STDEV('Datos mensuales'!$AH:$AH))) -> 1.178936689 | BE136: =IF(ISERROR(STANDARDIZE($AX136,AVERAGE($AX:$AX),STDEV('Datos mensuales'!$AH:$AH))),"n.d.",STANDARDIZE($AX136,AVERAGE('Datos mensuales'!$AH:$AH),STDEV('Datos mensuales'!$AH:$AH))) -> n.d. | BF136: =IF(ISERROR(STANDARDIZE($AY136,AVERAGE($AY:$AY),STDEV('Datos mensuales'!$AH:$AH))),"n.d.",STANDARDIZE($AY136,AVERAGE('Datos mensuales'!$AH:$AH),STDEV('Datos mensuales'!$AH:$AH))) -> n.d. | BG136: =IF(ISERROR(STANDARDIZE($AZ136,AVERAGE($AZ:$AZ),STDEV('Datos mensuales'!$AH:$AH))),"n.d.",STANDARDIZE($AZ136,AVERAGE('Datos mensuales'!$AH:$AH),STDEV('Datos mensuales'!$AH:$AH))) -> 0.5234626139 | BH136: =IF(ISERROR(STANDARDIZE($BA136,AVERAGE($BA:$BA),STDEV('Datos mensuales'!$AH:$AH))),"n.d.",STANDARDIZE($BA136,AVERAGE('Datos mensuales'!$AH:$AH),STDEV('Datos mensuales'!$AH:$AH))) -> n.d. | BI136: =IF(ISERROR(STANDARDIZE($BB136,AVERAGE($BB:$BB),STDEV('Datos mensuales'!$AH:$AH))),"n.d.",STANDARDIZE($BB136,AVERAGE('Datos mensuales'!$AH:$AH),STDEV('Datos mensuales'!$AH:$AH))) -> n.d. | BJ136: =IF(ISERROR(STANDARDIZE($BC136,AVERAGE($BC:$BC),STDEV('Datos mensuales'!$AH:$AH))),"n.d.",STANDARDIZE($BC136,AVERAGE('Datos mensuales'!$AH:$AH),STDEV('Datos mensuales'!$AH:$AH))) -> 0.004214143666 | BK136: 0.1553267598 | BL136: n.d. | BM136: n.d. | BN136: 0.3321691302 | BO136: n.d. | BP136: n.d. | BQ136: 0 | BR136: -0.2859537769 | BS136: n.d. | BT136: n.d. | BU136: n.d. | BV136: n.d. | BW136: n.d. | BX136: 0
A137: 2001 | B137: Ene | C137: 2.318282657 | F137: 2.247027258 | I137: 2.533344518 | L137: 2.318282657 | O137: 2.247027258 | R137: 2.533344518 | U137: 0.1100153394 | AA137: -0.5028203263 | AH137: n.d. | AI137: n.d. | AJ137: n.d. | AK137: =IF(OR('[1]REAL(M)'!$CI136="",'[1]REAL(M)'!$CI136=""),"",IF(OR('[1]REAL(M)'!$CI136="n.d.",'[1]REAL(M)'!$CI136="n.d."),"n.d.",'[1]REAL(M)'!$CI136-'[1]REAL(M)'!$CJ136)) -> 1.160448944 | AL137: 0.7152062886 | AM137: -0.2796716337 | AP137: 65.03180008 | AR137: 99.67 | AS137: 102.4042639 | AV137: 122.23 | AW137: 1.138802642 | AX137: n.d. | AY137: -0.1546234536 | AZ137: 0.763940884 | BA137: n.d. | BB137: n.d. | BC137: 0 | BD137: =IF(ISERROR(STANDARDIZE($AW137,AVERAGE($AW:$AW),STDEV('Datos mensuales'!$AH:$AH))),"n.d.",STANDARDIZE($AW137,AVERAGE('Datos mensuales'!$AH:$AH),STDEV('Datos mensuales'!$AH:$AH))) -> 1.243786921 | BE137: =IF(ISERROR(STANDARDIZE($AX137,AVERAGE($AX:$AX),STDEV('Datos mensuales'!$AH:$AH))),"n.d.",STANDARDIZE($AX137,AVERAGE('Datos mensuales'!$AH:$AH),STDEV('Datos mensuales'!$AH:$AH))) -> n.d. | BF137: =IF(ISERROR(STANDARDIZE($AY137,AVERAGE($AY:$AY),STDEV('Datos mensuales'!$AH:$AH))),"n.d.",STANDARDIZE($AY137,AVERAGE('Datos mensuales'!$AH:$AH),STDEV('Datos mensuales'!$AH:$AH))) -> -0.1640915984 | BG137: =IF(ISERROR(STANDARDIZE($AZ137,AVERAGE($AZ:$AZ),STDEV('Datos mensuales'!$AH:$AH))),"n.d.",STANDARDIZE($AZ137,AVERAGE('Datos mensuales'!$AH:$AH),STDEV('Datos mensuales'!$AH:$AH))) -> 0.8357544722 | BH137: =IF(ISERROR(STANDARDIZE($BA137,AVERAGE($BA:$BA),STDEV('Datos mensuales'!$AH:$AH))),"n.d.",STANDARDIZE($BA137,AVERAGE('Datos mensuales'!$AH:$AH),STDEV('Datos mensuales'!$AH:$AH))) -> n.d. | BI137: =IF(ISERROR(STANDARDIZE($BB137,AVERAGE($BB:$BB),STDEV('Datos mensuales'!$AH:$AH))),"n.d.",STANDARDIZE($BB137,AVERAGE('Datos mensuales'!$AH:$AH),STDEV('Datos mensuales'!$AH:$AH))) -> n.d. | BJ137: =IF(ISERROR(STANDARDIZE($BC137,AVERAGE($BC:$BC),STDEV('Datos mensuales'!$AH:$AH))),"n.d.",STANDARDIZE($BC137,AVERAGE('Datos mensuales'!$AH:$AH),STDEV('Datos mensuales'!$AH:$AH))) -> 0.004214143666 | BK137: 0.06485023129 | BL137: n.d. | BM137: n.d. | BN137: 0.3122918583 | BO137: n.d. | BP137: n.d. | BQ137: 0 | BR137: -0.2248930211 | BS137: n.d. | BT137: n.d. | BU137: -0.7344161319 | BV137: n.d. | BW137: n.d. | BX137: 0
B138: Feb | C138: 2.264609858 | F138: 3.055709117 | I138: 2.225568942 | L138: 2.291421825 | O138: 2.650931804 | R138: 2.379256901 | U138: -0.05367279883 | X138: 0.808681859 | AA138: =IF(OR(I138="",I138="n.d.",I137="",I137="n.d."),"",I138-I137) -> -0.3077755756 | AB138: =IF(OR(J138="",J138="n.d.",J137="",J137="n.d."),"",J138-J137) ->  | AH138: n.d. | AI138: n.d. | AJ138: n.d. | AK138: =IF(OR('[1]REAL(M)'!$CI137="",'[1]REAL(M)'!$CI137=""),"",IF(OR('[1]REAL(M)'!$CI137="n.d.",'[1]REAL(M)'!$CI137="n.d."),"n.d.",'[1]REAL(M)'!$CI137-'[1]REAL(M)'!$CJ137)) -> 0.6452341669 | AL138: 0.3969838311 | AM138: -0.3182224574 | AP138: 65.17488447 | AR138: 99.7 | AS138: 102.7922971 | AV138: 122.18 | AW138: 1.081539933 | AX138: n.d. | AY138: -0.155470484 | AZ138: 0.9676682977 | BA138: n.d. | BB138: n.d. | BC138: 0 | BD138: =IF(ISERROR(STANDARDIZE($AW138,AVERAGE($AW:$AW),STDEV('Datos mensuales'!$AH:$AH))),"n.d.",STANDARDIZE($AW138,AVERAGE('Datos mensuales'!$AH:$AH),STDEV('Datos mensuales'!$AH:$AH))) -> 1.18145716 | BE138: =IF(ISERROR(STANDARDIZE($AX138,AVERAGE($AX:$AX),STDEV('Datos mensuales'!$AH:$AH))),"n.d.",STANDARDIZE($AX138,AVERAGE('Datos mensuales'!$AH:$AH),STDEV('Datos mensuales'!$AH:$AH))) -> n.d. | BF138: =IF(ISERROR(STANDARDIZE($AY138,AVERAGE($AY:$AY),STDEV('Datos mensuales'!$AH:$AH))),"n.d.",STANDARDIZE($AY138,AVERAGE('Datos mensuales'!$AH:$AH),STDEV('Datos mensuales'!$AH:$AH))) -> -0.1650135807 | BG138: =IF(ISERROR(STANDARDIZE($AZ138,AVERAGE($AZ:$AZ),STDEV('Datos mensuales'!$AH:$AH))),"n.d.",STANDARDIZE($AZ138,AVERAGE('Datos mensuales'!$AH:$AH),STDEV('Datos mensuales'!$AH:$AH))) -> 1.057509276 | BH138: =IF(ISERROR(STANDARDIZE($BA138,AVERAGE($BA:$BA),STDEV('Datos mensuales'!$AH:$AH))),"n.d.",STANDARDIZE($BA138,AVERAGE('Datos mensuales'!$AH:$AH),STDEV('Datos mensuales'!$AH:$AH))) -> n.d. | BI138: =IF(ISERROR(STANDARDIZE($BB138,AVERAGE($BB:$BB),STDEV('Datos mensuales'!$AH:$AH))),"n.d.",STANDARDIZE($BB138,AVERAGE('Datos mensuales'!$AH:$AH),STDEV('Datos mensuales'!$AH:$AH))) -> n.d. | BJ138: =IF(ISERROR(STANDARDIZE($BC138,AVERAGE($BC:$BC),STDEV('Datos mensuales'!$AH:$AH))),"n.d.",STANDARDIZE($BC138,AVERAGE('Datos mensuales'!$AH:$AH),STDEV('Datos mensuales'!$AH:$AH))) -> 0.004214143666 | BK138: -0.06232976032 | BL138: n.d. | BM138: -0.000921982316 | BN138: 0.2217548034 | BO138: n.d. | BP138: n.d. | BQ138: 0 | BR138: -0.2379200535 | BS138: n.d. | BT138: n.d. | BU138: -0.5806062198 | BV138: n.d. | BW138: n.d. | BX138: 0
B139: Mar | C139: 2.144641291 | F139: 3.688761311 | I139: 2.372598162 | L139: 2.242410373 | O139: 2.99614694 | R139: 2.377033172 | U139: -0.1199685671 | X139: 0.6330521944 | AA139: 0.1470292196 | AH139: n.d. | AI139: n.d. | AJ139: n.d. | AK139: =IF(OR('[1]REAL(M)'!$CI138="",'[1]REAL(M)'!$CI138=""),"",IF(OR('[1]REAL(M)'!$CI138="n.d.",'[1]REAL(M)'!$CI138="n.d."),"n.d.",'[1]REAL(M)'!$CI138-'[1]REAL(M)'!$CJ138)) -> 0.2826043367 | AL139: 0.1730054811 | AM139: -0.2239783501 | AP139: 65.31787976 | AR139: 99.71 | AS139: 103.1858243 | AV139: 122.54 | AW139: 0.9722764976 | AX139: n.d. | AY139: -0.1701000196 | AZ139: 0.9947476293 | BA139: n.d. | BB139: n.d. | BC139: 0 | BD139: =IF(ISERROR(STANDARDIZE($AW139,AVERAGE($AW:$AW),STDEV('Datos mensuales'!$AH:$AH))),"n.d.",STANDARDIZE($AW139,AVERAGE('Datos mensuales'!$AH:$AH),STDEV('Datos mensuales'!$AH:$AH))) -> 1.062525245 | BE139: =IF(ISERROR(STANDARDIZE($AX139,AVERAGE($AX:$AX),STDEV('Datos mensuales'!$AH:$AH))),"n.d.",STANDARDIZE($AX139,AVERAGE('Datos mensuales'!$AH:$AH),STDEV('Datos mensuales'!$AH:$AH))) -> n.d. | BF139: =IF(ISERROR(STANDARDIZE($AY139,AVERAGE($AY:$AY),STDEV('Datos mensuales'!$AH:$AH))),"n.d.",STANDARDIZE($AY139,AVERAGE('Datos mensuales'!$AH:$AH),STDEV('Datos mensuales'!$AH:$AH))) -> -0.1809376517 | BG139: =IF(ISERROR(STANDARDIZE($AZ139,AVERAGE($AZ:$AZ),STDEV('Datos mensuales'!$AH:$AH))),"n.d.",STANDARDIZE($AZ139,AVERAGE('Datos mensuales'!$AH:$AH),STDEV('Datos mensuales'!$AH:$AH))) -> 1.086984798 | BH139: =IF(ISERROR(STANDARDIZE($BA139,AVERAGE($BA:$BA),STDEV('Datos mensuales'!$AH:$AH))),"n.d.",STANDARDIZE($BA139,AVERAGE('Datos mensuales'!$AH:$AH),STDEV('Datos mensuales'!$AH:$AH))) -> n.d. | BI139: =IF(ISERROR(STANDARDIZE($BB139,AVERAGE($BB:$BB),STDEV('Datos mensuales'!$AH:$AH))),"n.d.",STANDARDIZE($BB139,AVERAGE('Datos mensuales'!$AH:$AH),STDEV('Datos mensuales'!$AH:$AH))) -> n.d. | BJ139: =IF(ISERROR(STANDARDIZE($BC139,AVERAGE($BC:$BC),STDEV('Datos mensuales'!$AH:$AH))),"n.d.",STANDARDIZE($BC139,AVERAGE('Datos mensuales'!$AH:$AH),STDEV('Datos mensuales'!$AH:$AH))) -> 0.004214143666 | BK139: -0.1189319154 | BL139: n.d. | BM139: -0.01592407094 | BN139: 0.029475522 | BO139: n.d. | BP139: n.d. | BQ139: 0 | BR139: -0.2871305047 | BS139: n.d. | BT139: n.d. | BU139: -0.4294756168 | BV139: n.d. | BW139: n.d. | BX139: 0
B140: Abr | C140: 2.104055104 | F140: 4.069030044 | I140: 2.905811623 | L140: 2.207745628 | O140: 3.263563822 | R140: 2.509462766 | U140: -0.04058618683 | X140: 0.3802687324 | AA140: 0.5332134612 | AH140: n.d. | AI140: n.d. | AJ140: n.d. | AK140: =IF(OR('[1]REAL(M)'!$CI139="",'[1]REAL(M)'!$CI139=""),"",IF(OR('[1]REAL(M)'!$CI139="n.d.",'[1]REAL(M)'!$CI139="n.d."),"n.d.",'[1]REAL(M)'!$CI139-'[1]REAL(M)'!$CJ139)) -> -0.03204272423 | AL140: -0.02133630683 | AM140: -0.1943417879 | AP140: 65.46106507 | AR140: 99.66 | AS140: 103.5854407 | AV140: 123.24 | AW140: 0.8821135898 | AX140: n.d. | AY140: -0.1785514792 | AZ140: 0.7794042579 | BA140: n.d. | BB140: n.d. | BC140: 0 | BD140: =IF(ISERROR(STANDARDIZE($AW140,AVERAGE($AW:$AW),STDEV('Datos mensuales'!$AH:$AH))),"n.d.",STANDARDIZE($AW140,AVERAGE('Datos mensuales'!$AH:$AH),STDEV('Datos mensuales'!$AH:$AH))) -> 0.9643840202 | BE140: =IF(ISERROR(STANDARDIZE($AX140,AVERAGE($AX:$AX),STDEV('Datos mensuales'!$AH:$AH))),"n.d.",STANDARDIZE($AX140,AVERAGE('Datos mensuales'!$AH:$AH),STDEV('Datos mensuales'!$AH:$AH))) -> n.d. | BF140: =IF(ISERROR(STANDARDIZE($AY140,AVERAGE($AY:$AY),STDEV('Datos mensuales'!$AH:$AH))),"n.d.",STANDARDIZE($AY140,AVERAGE('Datos mensuales'!$AH:$AH),STDEV('Datos mensuales'!$AH:$AH))) -> -0.1901369623 | BG140: =IF(ISERROR(STANDARDIZE($AZ140,AVERAGE($AZ:$AZ),STDEV('Datos mensuales'!$AH:$AH))),"n.d.",STANDARDIZE($AZ140,AVERAGE('Datos mensuales'!$AH:$AH),STDEV('Datos mensuales'!$AH:$AH))) -> 0.8525861659 | BH140: =IF(ISERROR(STANDARDIZE($BA140,AVERAGE($BA:$BA),STDEV('Datos mensuales'!$AH:$AH))),"n.d.",STANDARDIZE($BA140,AVERAGE('Datos mensuales'!$AH:$AH),STDEV('Datos mensuales'!$AH:$AH))) -> n.d. | BI140: =IF(ISERROR(STANDARDIZE($BB140,AVERAGE($BB:$BB),STDEV('Datos mensuales'!$AH:$AH))),"n.d.",STANDARDIZE($BB140,AVERAGE('Datos mensuales'!$AH:$AH),STDEV('Datos mensuales'!$AH:$AH))) -> n.d. | BJ140: =IF(ISERROR(STANDARDIZE($BC140,AVERAGE($BC:$BC),STDEV('Datos mensuales'!$AH:$AH))),"n.d.",STANDARDIZE($BC140,AVERAGE('Datos mensuales'!$AH:$AH),STDEV('Datos mensuales'!$AH:$AH))) -> 0.004214143666 | BK140: -0.09814122474 | BL140: n.d. | BM140: -0.009199310625 | BN140: -0.2343986316 | BO140: n.d. | BP140: n.d. | BQ140: 0 | BR140: -0.311337485 | BS140: n.d. | BT140: n.d. | BU140: -0.3487180275 | BV140: n.d. | BW140: n.d. | BX140: 0
B141: May | C141: 2.173885841 | F141: 4.94706721 | I141: 3.42037207 | L141: 2.200954352 | O141: 3.59706065 | R141: 2.692037588 | U141: 0.0698307365 | X141: 0.8780371659 | AA141: 0.5145604465 | AH141: n.d. | AI141: n.d. | AJ141: n.d. | AK141: =IF(OR('[1]REAL(M)'!$CI140="",'[1]REAL(M)'!$CI140=""),"",IF(OR('[1]REAL(M)'!$CI140="n.d.",'[1]REAL(M)'!$CI140="n.d."),"n.d.",'[1]REAL(M)'!$CI140-'[1]REAL(M)'!$CJ140)) -> -0.44760297 | AL141: -0.2780071332 | AM141: -0.2566708264 | AP141: 65.60473284 | AR141: 99.54 | AS141: 103.9918272 | AV141: 123.97 | AW141: 0.87479329 | AX141: n.d. | AY141: -0.177819191 | AZ141: 0.3173322861 | BA141: n.d. | BB141: n.d. | BC141: 0 | BD141: =IF(ISERROR(STANDARDIZE($AW141,AVERAGE($AW:$AW),STDEV('Datos mensuales'!$AH:$AH))),"n.d.",STANDARDIZE($AW141,AVERAGE('Datos mensuales'!$AH:$AH),STDEV('Datos mensuales'!$AH:$AH))) -> 0.9564159632 | BE141: =IF(ISERROR(STANDARDIZE($AX141,AVERAGE($AX:$AX),STDEV('Datos mensuales'!$AH:$AH))),"n.d.",STANDARDIZE($AX141,AVERAGE('Datos mensuales'!$AH:$AH),STDEV('Datos mensuales'!$AH:$AH))) -> n.d. | BF141: =IF(ISERROR(STANDARDIZE($AY141,AVERAGE($AY:$AY),STDEV('Datos mensuales'!$AH:$AH))),"n.d.",STANDARDIZE($AY141,AVERAGE('Datos mensuales'!$AH:$AH),STDEV('Datos mensuales'!$AH:$AH))) -> -0.1893398755 | BG141: =IF(ISERROR(STANDARDIZE($AZ141,AVERAGE($AZ:$AZ),STDEV('Datos mensuales'!$AH:$AH))),"n.d.",STANDARDIZE($AZ141,AVERAGE('Datos mensuales'!$AH:$AH),STDEV('Datos mensuales'!$AH:$AH))) -> 0.3496264642 | BH141: =IF(ISERROR(STANDARDIZE($BA141,AVERAGE($BA:$BA),STDEV('Datos mensuales'!$AH:$AH))),"n.d.",STANDARDIZE($BA141,AVERAGE('Datos mensuales'!$AH:$AH),STDEV('Datos mensuales'!$AH:$AH))) -> n.d. | BI141: =IF(ISERROR(STANDARDIZE($BB141,AVERAGE($BB:$BB),STDEV('Datos mensuales'!$AH:$AH))),"n.d.",STANDARDIZE($BB141,AVERAGE('Datos mensuales'!$AH:$AH),STDEV('Datos mensuales'!$AH:$AH))) -> n.d. | BJ141: =IF(ISERROR(STANDARDIZE($BC141,AVERAGE($BC:$BC),STDEV('Datos mensuales'!$AH:$AH))),"n.d.",STANDARDIZE($BC141,AVERAGE('Datos mensuales'!$AH:$AH),STDEV('Datos mensuales'!$AH:$AH))) -> 0.004214143666 | BK141: -0.007968056982 | BL141: n.d. | BM141: 0.000797086808 | BN141: -0.5029597018 | BO141: n.d. | BP141: n.d. | BQ141: 0 | BR141: -0.2788085335 | BS141: n.d. | BT141: n.d. | BU141: 7.69568374 | BV141: n.d. | BW141: n.d. | BX141: 0
B142: Jun | C142: 2.241499044 | F142: 4.714513963 | I142: 3.644229969 | L142: 2.207736982 | O142: 3.781865036 | R142: 2.851374869 | U142: 0.06761320349 | X142: -0.2325532466 | AA142: 0.2238578995 | AH142: n.d. | AI142: n.d. | AJ142: n.d. | AK142: =IF(OR('[1]REAL(M)'!$CI141="",'[1]REAL(M)'!$CI141=""),"",IF(OR('[1]REAL(M)'!$CI141="n.d.",'[1]REAL(M)'!$CI141="n.d."),"n.d.",'[1]REAL(M)'!$CI141-'[1]REAL(M)'!$CJ141)) -> -0.9481937726 | AL142: -0.5871970913 | AM142: -0.3091899581 | AP142: 65.74917753 | AR142: 99.43 | AS142: 104.4057353 | AV142: 124.57 | AW142: 0.8819578298 | AX142: n.d. | AY142: -0.1797946012 | AZ142: -0.2998251468 | BA142: n.d. | BB142: n.d. | BC142: 0 | BD142: =IF(ISERROR(STANDARDIZE($AW142,AVERAGE($AW:$AW),STDEV('Datos mensuales'!$AH:$AH))),"n.d.",STANDARDIZE($AW142,AVERAGE('Datos mensuales'!$AH:$AH),STDEV('Datos mensuales'!$AH:$AH))) -> 0.9642144773 | BE142: =IF(ISERROR(STANDARDIZE($AX142,AVERAGE($AX:$AX),STDEV('Datos mensuales'!$AH:$AH))),"n.d.",STANDARDIZE($AX142,AVERAGE('Datos mensuales'!$AH:$AH),STDEV('Datos mensuales'!$AH:$AH))) -> n.d. | BF142: =IF(ISERROR(STANDARDIZE($AY142,AVERAGE($AY:$AY),STDEV('Datos mensuales'!$AH:$AH))),"n.d.",STANDARDIZE($AY142,AVERAGE('Datos mensuales'!$AH:$AH),STDEV('Datos mensuales'!$AH:$AH))) -> -0.1914900854 | BG142: =IF(ISERROR(STANDARDIZE($AZ142,AVERAGE($AZ:$AZ),STDEV('Datos mensuales'!$AH:$AH))),"n.d.",STANDARDIZE($AZ142,AVERAGE('Datos mensuales'!$AH:$AH),STDEV('Datos mensuales'!$AH:$AH))) -> -0.3221418694 | BH142: =IF(ISERROR(STANDARDIZE($BA142,AVERAGE($BA:$BA),STDEV('Datos mensuales'!$AH:$AH))),"n.d.",STANDARDIZE($BA142,AVERAGE('Datos mensuales'!$AH:$AH),STDEV('Datos mensuales'!$AH:$AH))) -> n.d. | BI142: =IF(ISERROR(STANDARDIZE($BB142,AVERAGE($BB:$BB),STDEV('Datos mensuales'!$AH:$AH))),"n.d.",STANDARDIZE($BB142,AVERAGE('Datos mensuales'!$AH:$AH),STDEV('Datos mensuales'!$AH:$AH))) -> n.d. | BJ142: =IF(ISERROR(STANDARDIZE($BC142,AVERAGE($BC:$BC),STDEV('Datos mensuales'!$AH:$AH))),"n.d.",STANDARDIZE($BC142,AVERAGE('Datos mensuales'!$AH:$AH),STDEV('Datos mensuales'!$AH:$AH))) -> 0.004214143666 | BK142: 0.007798514105 | BL142: n.d. | BM142: -0.002150209864 | BN142: -0.6717683335 | BO142: n.d. | BP142: n.d. | BQ142: 0 | BR142: -0.2424782913 | BS142: n.d. | BT142: n.d. | BU142: 0.223906759 | BV142: n.d. | BW142: n.d. | BX142: 0
B143: Jul | C143: 2.374418472 | F143: 4.270203821 | I143: 3.369484229 | L143: 2.231650782 | O143: 3.851297264 | R143: 2.925963005 | U143: 0.1329194274 | X143: -0.4443101423 | AA143: -0.2747457404 | AH143: n.d. | AI143: n.d. | AJ143: n.d. | AK143: =IF(OR('[1]REAL(M)'!$CI142="",'[1]REAL(M)'!$CI142=""),"",IF(OR('[1]REAL(M)'!$CI142="n.d.",'[1]REAL(M)'!$CI142="n.d."),"n.d.",'[1]REAL(M)'!$CI142-'[1]REAL(M)'!$CJ142)) -> -1.370566343 | AL143: -0.8480755505 | AM143: -0.2608784591 | AP143: 65.89468563 | AR143: 99.41 | AS143: 104.827953 | AV143: 124.86 | AW143: 0.9083164382 | AX143: n.d. | AY143: -0.1295891121 | AZ143: -0.9341164589 | BA143: n.d. | BB143: n.d. | BC143: 0 | BD143: =IF(ISERROR(STANDARDIZE($AW143,AVERAGE($AW:$AW),STDEV('Datos mensuales'!$AH:$AH))),"n.d.",STANDARDIZE($AW143,AVERAGE('Datos mensuales'!$AH:$AH),STDEV('Datos mensuales'!$AH:$AH))) -> 0.9929055009 | BE143: =IF(ISERROR(STANDARDIZE($AX143,AVERAGE($AX:$AX),STDEV('Datos mensuales'!$AH:$AH))),"n.d.",STANDARDIZE($AX143,AVERAGE('Datos mensuales'!$AH:$AH),STDEV('Datos mensuales'!$AH:$AH))) -> n.d. | BF143: =IF(ISERROR(STANDARDIZE($AY143,AVERAGE($AY:$AY),STDEV('Datos mensuales'!$AH:$AH))),"n.d.",STANDARDIZE($AY143,AVERAGE('Datos mensuales'!$AH:$AH),STDEV('Datos mensuales'!$AH:$AH))) -> -0.1368420233 | BG143: =IF(ISERROR(STANDARDIZE($AZ143,AVERAGE($AZ:$AZ),STDEV('Datos mensuales'!$AH:$AH))),"n.d.",STANDARDIZE($AZ143,AVERAGE('Datos mensuales'!$AH:$AH),STDEV('Datos mensuales'!$AH:$AH))) -> -1.012560221 | BH143: =IF(ISERROR(STANDARDIZE($BA143,AVERAGE($BA:$BA),STDEV('Datos mensuales'!$AH:$AH))),"n.d.",STANDARDIZE($BA143,AVERAGE('Datos mensuales'!$AH:$AH),STDEV('Datos mensuales'!$AH:$AH))) -> n.d. | BI143: =IF(ISERROR(STANDARDIZE($BB143,AVERAGE($BB:$BB),STDEV('Datos mensuales'!$AH:$AH))),"n.d.",STANDARDIZE($BB143,AVERAGE('Datos mensuales'!$AH:$AH),STDEV('Datos mensuales'!$AH:$AH))) -> n.d. | BJ143: =IF(ISERROR(STANDARDIZE($BC143,AVERAGE($BC:$BC),STDEV('Datos mensuales'!$AH:$AH))),"n.d.",STANDARDIZE($BC143,AVERAGE('Datos mensuales'!$AH:$AH),STDEV('Datos mensuales'!$AH:$AH))) -> 0.004214143666 | BK143: 0.0286910236 | BL143: n.d. | BM143: 0.0546480621 | BN143: -0.6904183518 | BO143: n.d. | BP143: n.d. | BQ143: 0 | BR143: -0.1715176668 | BS143: n.d. | BT143: n.d. | BU143: -0.7785072508 | BV143: n.d. | BW143: n.d. | BX143: 0
B144: Ago | C144: 2.666032535 | F144: 3.752515554 | I144: 2.672917181 | L144: 2.286183756 | O144: 3.83895764 | R144: 2.893934189 | U144: 0.2916140635 | X144: -0.5176882663 | AA144: -0.6965670481 | AH144: n.d. | AI144: n.d. | AJ144: n.d. | AK144: =IF(OR('[1]REAL(M)'!$CI143="",'[1]REAL(M)'!$CI143=""),"",IF(OR('[1]REAL(M)'!$CI143="n.d.",'[1]REAL(M)'!$CI143="n.d."),"n.d.",'[1]REAL(M)'!$CI143-'[1]REAL(M)'!$CJ143)) -> -1.658979505 | AL144: -1.026213968 | AM144: -0.178138418 | AP144: 66.04153536 | AR144: 99.57 | AS144: 105.2592597 | AV144: 124.84 | AW144: 0.9960792207 | AX144: n.d. | AY144: -0.02365173014 | AZ144: -1.466995971 | BA144: n.d. | BB144: n.d. | BC144: 0 | BD144: =IF(ISERROR(STANDARDIZE($AW144,AVERAGE($AW:$AW),STDEV('Datos mensuales'!$AH:$AH))),"n.d.",STANDARDIZE($AW144,AVERAGE('Datos mensuales'!$AH:$AH),STDEV('Datos mensuales'!$AH:$AH))) -> 1.088434218 | BE144: =IF(ISERROR(STANDARDIZE($AX144,AVERAGE($AX:$AX),STDEV('Datos mensuales'!$AH:$AH))),"n.d.",STANDARDIZE($AX144,AVERAGE('Datos mensuales'!$AH:$AH),STDEV('Datos mensuales'!$AH:$AH))) -> n.d. | BF144: =IF(ISERROR(STANDARDIZE($AY144,AVERAGE($AY:$AY),STDEV('Datos mensuales'!$AH:$AH))),"n.d.",STANDARDIZE($AY144,AVERAGE('Datos mensuales'!$AH:$AH),STDEV('Datos mensuales'!$AH:$AH))) -> -0.02153047593 | BG144: =IF(ISERROR(STANDARDIZE($AZ144,AVERAGE($AZ:$AZ),STDEV('Datos mensuales'!$AH:$AH))),"n.d.",STANDARDIZE($AZ144,AVERAGE('Datos mensuales'!$AH:$AH),STDEV('Datos mensuales'!$AH:$AH))) -> -1.592593067 | BH144: =IF(ISERROR(STANDARDIZE($BA144,AVERAGE($BA:$BA),STDEV('Datos mensuales'!$AH:$AH))),"n.d.",STANDARDIZE($BA144,AVERAGE('Datos mensuales'!$AH:$AH),STDEV('Datos mensuales'!$AH:$AH))) -> n.d. | BI144: =IF(ISERROR(STANDARDIZE($BB144,AVERAGE($BB:$BB),STDEV('Datos mensuales'!$AH:$AH))),"n.d.",STANDARDIZE($BB144,AVERAGE('Datos mensuales'!$AH:$AH),STDEV('Datos mensuales'!$AH:$AH))) -> n.d. | BJ144: =IF(ISERROR(STANDARDIZE($BC144,AVERAGE($BC:$BC),STDEV('Datos mensuales'!$AH:$AH))),"n.d.",STANDARDIZE($BC144,AVERAGE('Datos mensuales'!$AH:$AH),STDEV('Datos mensuales'!$AH:$AH))) -> 0.004214143666 | BK144: 0.09552871758 | BL144: n.d. | BM144: 0.1153115473 | BN144: -0.5800328457 | BO144: n.d. | BP144: n.d. | BQ144: 0 | BR144: 0.005147827823 | BS144: n.d. | BT144: n.d. | BU144: -1.997033605 | BV144: n.d. | BW144: n.d. | BX144: 0
